Workbook

Sheet Revision History (hidden)
B2: Revision History
C3: NStf-Fil | D3: =Control_Panel!OrgCodeSelection -> RWG
B4: Version | C4: Date | D4: Change | H4: Notes
B5: 0.1 | C5: 2017-08-30 | D5: Rebranding | H5: Finish question status sheet
B6: 0.2 | C6: 2018-01-15 | D6: Updates after meeting with AW | H6: Insert appropriate email hyperlink into cover
B7: 0.3 | C7: 2018-01-25 | D7: Created backsheet, works with automation tool | H7: Row 12-41 in control panel contains validations specific to questions
B8: 0.4 | C8: 2018-01-29 | D8: updated formulas in backsheet to accommodate for "0" defaults in site code | H8: Unsure if site summary needs to be visible to user or not i.e coloured blue or white
B9: 4 | C9: 2018-01-31 | D9: final lockdown and version number updates
B10: 5 | D10: repaired broken image
B11: 6 | C11: 2018-02-28 | D11: validation repairs
B12: 7 | C12: 2018-03-28 | D12: made locked cells selectable for ease of use
B13: 8 | C13: 2018-04-30 | D13: ref data and validation updates
B14: 9 | C14: 2018-05-10 | D14: Fix backsheet issues with hyphens & mixed data type for wards | H14: To DO
B15: 10 | C15: 2018-05-30 | D15: removed a validation at AW request
B16: 11 | C16: 2018-06-26 | D16: added a validation at AW request | H16: get correct email address for Cover sheet
B17: 12 | C17: 2018-07-25 | D17: AW Updates to ref data | H17: Check if Site summary is required - and if it need to be visible. - if so, is this better to be included in the frontsheet?
B18: 13 | C18: 2018-09-26 | D18: Updated Site codes as per Change Request Form | H18: Move validations to column AA
B19: 14 | C19: 2018-11-01 | D19: Added New Fields to collection | H19: set validations to appear in control panel
B20: 15 | C20: 2018-11-23 | H20: check ref data is up to date - Org code, site code, site speciality
B21: 16 | C21: 2018-11-27 | D21: Added org identifier in cell D3 revision history tab contains a look up to the org code selected on the control panel. | H21: check with Alun as to which validations he requires.
B22: 17 | C22: 2018-11-28 | D22: Removed RR1 and Added new sites to RRK | H22: New Backsheet
B23: 18 | C23: 2018-12-21 | D23: Mo fixed dropdown in column G | H23: Remove redudant VBA
B24: 19 | C24: 2019-01-31 | D24: Changed R1L - AHP from No to Yes
B25: 20 | C25: 2019-02-28 | D25: Updated AX3 and used new password
B26: 20.1 | C26: 2019-03-22 | D26: Protected workbook with same password as work sheets. ZSD
B27: 20.2 | C27: 2019-04-30 | D27: Updated R0B
B28: 21 | C28: 2019-05-31 | D28: Updated RX3
B29: 22 | C29: 2019-06-28 | D29: Updated RNU
B30: 23 | C30: 2019-08-30 | D30: Added new columns for Day/Night - Also Updated Backsheet Added - AB
B31: 24 | C31: 2019-09-30 | D31: Updated New Wards and added RYX98
B32: 25 | C32: 2019-10-16 | D32: VBA password update
C33: 2019-10-21 | D33: Updated Prov ref data DM-4825
C34: 2019-10-25 | D34: Updated reference data hidden in Frontsheet - AB
C35: 2019-10-29 | D35: Updated ward list, as provided by Alun Williams
B36: 26 | C36: 2019-11-01 | D36: Added missing formula to top row of front sheet

Sheet Cover

Sheet Control_Panel
L1: =IF(C17="","",C17) ->  | M1: =IF(C29="","",C29) ->  | P1: Backsheet Check
C2: Safe Staffing (Rota Fill Rates and CHPPD) Collection | L2: =IF(C19="","",C19) ->  | M2: =IF(C30="","",C30) ->  | P2: =IF(SUM(IF(ISERROR(INDIRECT("Backsheet!" &P3)),1,0))=0,0,1) -> 1
P3: A2:ZZ500
C4: Please check that the data on this upload template is accurate before being submitted to SDCS. You are reminded that these figures will be published, and it is the responsibility of your organisation that these submitted figures are accurate and in line with national guidance. We will undertake basic validation checks on these figures post submission, and may come back to you with any queries we may have.
E6: RWG | F6: =VLOOKUP(OrgCodeSelection,Orgs,2,FALSE) -> West Hertfordshire Hospitals NHS Trust
L7: =IF(C24="","",C24) -> 
C8: Validations
C9: Please correct all issues listed within the tables below. If the issues are not corrected then the pro forma will fail the validation stage in SDCS.
L11: This template is broken. Please download a new copy and start again
L12: =IF(C32="","",C32) -> 
C13: Control Panel
C14: =L14 ->  | L14: =IF(OrgCodeSelection="","No 'Organisation Code' has been selected. Please choose an organisation","") -> 
C16: Trust - Frontsheet
C17: =IF('Trust - Frontsheet'!AX2="","",'Trust - Frontsheet'!AX2) -> 
C18: =IF('Trust - Frontsheet'!AZ5="","",'Trust - Frontsheet'!AZ5) -> Check ward spelling and site-ward combination against ward list. If a new ward or site-ward combination, leave it in, and the ward list will be updated in time for the next collection.
C19: =IF('Trust - Frontsheet'!AX4="","",'Trust - Frontsheet'!AX4) -> 
C20: =IF('Trust - Frontsheet'!AX5="","",'Trust - Frontsheet'!AX5) -> 
C21: =IF('Trust - Frontsheet'!AX6="","",'Trust - Frontsheet'!AX6) -> 
C22: =IF('Trust - Frontsheet'!AX7="","",'Trust - Frontsheet'!AX7) -> 
C23: =IF('Trust - Frontsheet'!AX8="","",'Trust - Frontsheet'!AX8) -> 
C24: =IF('Trust - Frontsheet'!AX9="","",'Trust - Frontsheet'!AX9) -> 
C25: =IF('Trust - Frontsheet'!AX10="","",'Trust - Frontsheet'!AX10) -> 
C26: =IF('Trust - Frontsheet'!AX14="","",'Trust - Frontsheet'!AX14) -> 
C27: =IF('Trust - Frontsheet'!AX15="","",'Trust - Frontsheet'!AX15) -> 
C28: =IF(P2=1,"This template is broken. Please download a new copy and start again","") -> This template is broken. Please download a new copy and start again
C29: =IF('Trust - Frontsheet'!AZ6="","",'Trust - Frontsheet'!AZ6) -> 
C30: =IF('Trust - Frontsheet'!AZ7="","",'Trust - Frontsheet'!AZ7) -> 
C31: =IF('Trust - Frontsheet'!AZ8="","",'Trust - Frontsheet'!AZ8) -> 
C32: =IF('Trust - Frontsheet'!AX13="","",'Trust - Frontsheet'!AX13) -> 
C33: =IF('Trust - Frontsheet'!AX16="","",'Trust - Frontsheet'!AX16) -> 

Sheet Trust - Frontsheet
C1: =IF(E5="","",IF(VLOOKUP($E$5,Index!$N:$O,2,0)="Y","Y","N")) -> Y | AY1: ERRORS | BA1: WARNINGS | BR1: =CONCATENATE(LEFT(BS1, 3),BT1) -> AXGSAVERNAKE COMMUNITY HOSPITAL | BS1: AXG02 | BT1: SAVERNAKE COMMUNITY HOSPITAL | BU1: AXG02 | BV1: SAVERNAKE COMMUNITY HOSPITAL | BW1: =LEFT(BU1,3) -> AXG | BZ1: BERKELEY HOUSE | CA1: Berkeley House
D2: Safe Staffing (Rota Fill Rates and CHPPD) Collection | AX2: =IF(BG214=0,"","Select Site Name in Column E") ->  | AY2: SELECT SITE CODE | BR2: AXGWARMINSTER COMMUNITY HOSPITAL | BS2: AXG03 | BT2: WARMINSTER COMMUNITY HOSPITAL | BU2: AXG03 | BV2: WARMINSTER COMMUNITY HOSPITAL | BW2: AXG | BZ2: CHARLTON LANE HOSPITAL | CA2: Chestnut
AY3: Select Ward Name | BR3: AXGWILTSHIRE HEALTH & CARE (CHIPPENHAM COMMUNITY HOSPITAL) | BS3: AXG01 | BT3: WILTSHIRE HEALTH & CARE (CHIPPENHAM COMMUNITY HOSPITAL) | BU3: AXG01 | BV3: WILTSHIRE HEALTH & CARE (CHIPPENHAM COMMUNITY HOSPITAL) | BW3: AXG | BZ3: CHARLTON LANE HOSPITAL | CA3: Mulberry
AX4: =IF(BH214=0,"","Select Ward Name in Column F") ->  | AY4: Select speciality | BR4: NHMALDEBURGH COMMUNITY HOSPITAL | BS4: NHM02 | BT4: ALDEBURGH COMMUNITY HOSPITAL | BU4: NHM02 | BV4: ALDEBURGH COMMUNITY HOSPITAL | BW4: NHM | BZ4: CHARLTON LANE HOSPITAL | CA4: Willow
D5: Organisation: | E5: =IF(ISBLANK(Control_Panel!OrgCodeSelection),"",Control_Panel!OrgCodeSelection) -> RWG | F5: =IF(Control_Panel!OrgNameSelection="","",Control_Panel!OrgNameSelection) -> West Hertfordshire Hospitals NHS Trust | AX5: =IF(E415=0,"","At least one specialty must be selected (Speciality 1) for each row") ->  | AY5: Total planned hours > 0 | AZ5: =IF(BM214=0,"","Check ward spelling and site-ward combination against ward list. If a new ward or site-ward combination, leave it in, and the ward list will be updated in time for the next collection.") -> Check ward spelling and site-ward combination against ward list. If a new ward or site-ward combination, leave it in, and the ward list will be updated in time for the next collection. | BR5: NHMBLUEBIRD LODGE | BS5: NHM03 | BT5: BLUEBIRD LODGE | BU5: NHM03 | BV5: BLUEBIRD LODGE | BW5: NHM | BZ5: HONEYBOURNE | CA5: Honeybourne
AX6: =IF(F415=0,"","Total number of planned hours must be greater than 0") ->  | AY6: Total actual hours > 0 | AZ6: =IF(H415>0,"One or more wards has less than 1448 actual hours (approx. 2 full time staff)","") ->  | BR6: NHMFELIXSTOWE COMMUNITY HOSPITAL | BS6: NHM05 | BT6: FELIXSTOWE COMMUNITY HOSPITAL | BU6: NHM05 | BV6: FELIXSTOWE COMMUNITY HOSPITAL | BW6: NHM | BZ6: LAUREL HOUSE CHELT | CA6: Laurel House
F7: Please provide the URL to the page on your trust website where your staffing information is available | AX7: =IF(G415=0,"","Total number of actual hours must be greater than 0") ->  | AY7: duplicate ward/hospital and spec codes | AZ7: =IF(I415>0,"One or more wards has greater than 30000 actual hours (approx. 40 full time staff)","") ->  | BR7: NHMGLASTONBURY COURT | BS7: NHM26 | BT7: GLASTONBURY COURT | BU7: NHM26 | BV7: GLASTONBURY COURT | BW7: NHM | BZ7: OAK HOUSE | CA7: Oak House
F8: (Please can you ensure that the URL you attach to the spreadsheet is correct and links to the correct web page and include 'http://' in your URL) | AX8: =IF(E5="","",IF(BI416>0,"Duplicate Ward entry within site","")) ->  | AY8: Avoid gaps in between data rows | AZ8: =IF(AC415>0,"One or more wards has submitted actual hours but zero CHPPD patients.","") ->  | BR8: NHMNEWMARKET COMMUNITY HOSPITAL | BS8: NHM04 | BT8: NEWMARKET COMMUNITY HOSPITAL | BU8: NHM04 | BV8: NEWMARKET COMMUNITY HOSPITAL | BW8: NHM | BZ8: STONEBOW UNIT | CA8: Cantilupe
AX9: =IF(BK416>0,"Please do not leave gaps between rows of data.","") ->  | AY9: duplicate speciality codes | BR9: NLXCHIPPENHAM COMMUNITY HOSPITAL | BS9: NLX17 | BT9: CHIPPENHAM COMMUNITY HOSPITAL | BU9: NLX17 | BV9: CHIPPENHAM COMMUNITY HOSPITAL | BW9: NLX | BZ9: STONEBOW UNIT | CA9: Jenny Lind
A10: =IF(E14="",1,0) -> 0 | AX10: =IF(BL416>0,"Duplicate speciality codes entered","") ->  | BR10: NLXCOSSHAM HOSPITAL | BS10: NLX23 | BT10: COSSHAM HOSPITAL | BU10: NLX23 | BV10: COSSHAM HOSPITAL | BW10: NLX | BZ10: STONEBOW UNIT | CA10: Mortimer
F11: Only complete sites your organisation is accountable for | I11: Day | Q11: Night | Y11: Allied Health Professionals | AC11: Care Hours Per Patient Day (CHPPD) | AK11: Day | AO11: Night | AS11: Allied Health Professionals | AX11: =Control_Panel!L14 ->  | AY11: Site code issue | BR11: NLXDEVIZES COMMUNITY HOSPITAL | BS11: NLX18 | BT11: DEVIZES COMMUNITY HOSPITAL | BU11: NLX18 | BV11: DEVIZES COMMUNITY HOSPITAL | BW11: NLX | BZ11: WOTTON LAWN HOSPITAL | CA11: Abbey
D12: Hospital Site Details | F12: Ward name | G12: Main 2 Specialties on each ward | I12: Registered Nurses/Midwives | K12: Non-registered Nurses/Midwives (Care Staff) | M12: Registered Nursing Associates | O12: Non-registered Nursing Associates | Q12: Registered Nurses/Midwives | S12: Non-registered Nurses/Midwives (Care Staff) | U12: Registered Nursing Associates | W12: Non-registered Nursing Associates | Y12: Registered allied health professionals | AA12: Non-registered allied health professionals | AC12: Cumulative count over the month of patients at 23:59 each day | AD12: Registered Nurses/Midwives | AE12: Non-registered Nurses/Midwives | AF12: Registered Nursing Associates | AG12: Non-registered Nursing Associates | AH12: Registered allied health professionals | AI12: Non-registered allied health professionals | AJ12: Overall | AK12: Average fill rate - Registered Nurses/Midwives (%) | AL12: Average fill rate - Non-registered Nurses/Midwives (care staff) (%) | AM12: Average fill rate - Registered Nursing Associates (%) | AN12: Average fill rate - Non-Registered Nursing Associates (%) | AO12: Average fill rate - Registered Nurses/Midwives (%) | AP12: Average fill rate - Non-registered Nurses/Midwives (care staff) (%) | AQ12: Average fill rate - Registered Nursing Associates (%) | AR12: Average fill rate - Non-Registered Nursing Associates (%) | AS12: Average fill rate - registered allied health professionals (AHP) (%) | AT12: Average fill rate - non-registered allied health professionals (AHP) (%) | AX12: =D626 ->  | AY12: Do not enter negative numbers | BF12: VALIDATIONS | BR12: NLXGREYSTONES | BS12: NLX12 | BT12: GREYSTONES | BU12: NLX12 | BV12: GREYSTONES | BW12: NLX | BZ12: WOTTON LAWN HOSPITAL | CA12: Dean
D13: Site code *The Site code is automatically populated when a Site name is selected | E13: Hospital Site name | G13: Specialty 1 | H13: Specialty 2 | I13: Total monthly planned staff hours | J13: Total monthly actual staff hours | K13: Total monthly planned staff hours | L13: Total monthly actual staff hours | M13: Total monthly planned staff hours | N13: Total monthly actual staff hours | O13: Total monthly planned staff hours | P13: Total monthly actual staff hours | Q13: Total monthly planned staff hours | R13: Total monthly actual staff hours | S13: Total monthly planned staff hours | T13: Total monthly actual staff hours | U13: Total monthly planned staff hours | V13: Total monthly actual staff hours | W13: Total monthly planned staff hours | X13: Total monthly actual staff hours | Y13: Total monthly planned staff hours | Z13: Total monthly actual staff hours | AA13: Total monthly planned staff hours | AB13: Total monthly actual staff hours | AV13: Specialties | AX13: =IF(J622>0, "Please do not enter negative numbers","") ->  | AY13: speciality codes not in list | BG13: SITE CODE | BH13: WARD NAME | BI13: Carriage Return | BR13: NLXHANHAM HEALTH | BS13: NLX27 | BT13: HANHAM HEALTH | BU13: NLX27 | BV13: HANHAM HEALTH | BW13: NLX | BZ13: WOTTON LAWN HOSPITAL | CA13: Greyfriars
A14: =IF(Q215=1,"No Site Selected",IF(R215=1,"No Ward Name","")) ->  | B14: =IF(SUM(E215:G215,Q215:R215)>0,1,IF(AU215>0,2,0)) ->  | D14: =IF(ISNA(VLOOKUP($E$5&E14,$BR:$BS,2,FALSE)),"",VLOOKUP($E$5&E14,$BR:$BS,2,FALSE)) -> RWG02 | E14: WATFORD GENERAL HOSPITAL | F14: AAU Blue Level 1 | G14: 326 - ACUTE INTERNAL MEDICINE | I14: 1069.5 | J14: 943 | K14: 708.75 | L14: 857.5 | M14: 0 | N14: 0 | O14: 0 | P14: 0 | Q14: 1069 | R14: 1007.5 | S14: 713 | T14: 851 | U14: 0 | V14: 0 | W14: 0 | X14: 0 | AC14: 398 | AD14: =IF(ISERROR(IF(#REF!="","",SUM(J14,R14)/#REF!)),"-",(IF(#REF!="","",SUM(J14,R14)/#REF!))) -> - | AE14: =IF(ISERROR(IF(#REF!="","",SUM(L14,T14)/#REF!)),"-",(IF(#REF!="","",SUM(L14,T14)/#REF!))) -> - | AF14: =IF(ISERROR(IF(#REF!="","",SUM(N14,V14)/#REF!)),"-",(IF(#REF!="","",SUM(N14,V14)/#REF!))) -> - | AG14: =IF(ISERROR(IF(#REF!="","",SUM(P14,X14)/#REF!)),"-",(IF(#REF!="","",SUM(P14,X14)/#REF!))) -> - | AH14: =IF(ISERROR(IF(#REF!="","",Z14/#REF!)),"-",(IF(#REF!="","",Z14/#REF!))) -> - | AI14: =IF(ISERROR(IF(#REF!="","",AB14/#REF!)),"-",(IF(#REF!="","",AB14/#REF!))) -> - | AJ14: =IF(ISERROR(IF(#REF!="","",SUM(J14,L14,R14,T14,Z14,AB14,X14,P14,V14,N14)/#REF!)),"-",(IF(#REF!="","",SUM(J14,L14,R14,T14,Z14,AB14,X14,P14,V14,N14)/#REF!))) -> - | AK14: =IF(ISERROR(IF($I14="","",J14/I14)),"-",(IF($I14="","",J14/I14))) -> 0.8817204301 | AL14: =IF(ISERROR(IF(K14="","",L14/K14)),"-",(IF(K14="","",L14/K14))) -> 1.209876543 | AM14: =IF(ISERROR(IF(M14="","",N14/M14)),"-",(IF(M14="","",N14/M14))) -> - | AN14: =IF(ISERROR(IF(O14="","",P14/O14)),"-",(IF(O14="","",P14/O14))) -> - | AO14: =IF(ISERROR(IF(Q14="","",R14/Q14)),"-",(IF(Q14="","",R14/Q14))) -> 0.9424695978 | AP14: =IF(ISERROR(IF(S14="","",T14/S14)),"-",IF(S14="","",T14/S14)) -> 1.193548387 | AQ14: =IF(ISERROR(IF(U14="","",V14/U14)),"-",IF(U14="","",V14/U14)) -> - | AR14: =IF(ISERROR(IF(W14="","",X14/W14)),"-",IF(W14="","",X14/W14)) -> - | AS14: =IF(ISERROR(IF(Y14="","",Z14/Y14)),"-",IF(Y14="","",Z14/Y14)) ->  | AT14: =IF(ISERROR(IF(AA14="","",AB14/AA14)),"-",IF(AA14="","",AB14/AA14)) ->  | AV14: 100 - GENERAL SURGERY | AW14: 0 | AX14: =IF(SUM(D834:E834)>0,"Please enter valid speciality codes","") ->  | AY14: AHP Data entered but not required | BG14: =IF(Q215=1,"No Site Selected","") ->  | BH14: =IF(R215=1,"No Ward Name","") ->  | BI14: =IF(ISNUMBER((IFERROR(FIND(CHAR(10),F14),"")))=TRUE,1,"") ->  | BM14: =IF(C215=1,"Incorrect Ward Name","") ->  | BR14: NLXHOMELINK & COMMUNITY OPTIONS | BS14: NLX14 | BT14: HOMELINK & COMMUNITY OPTIONS | BU14: NLX14 | BV14: HOMELINK & COMMUNITY OPTIONS | BW14: NLX | BZ14: WOTTON LAWN HOSPITAL | CA14: Kingsholm | CB14: =$E14 -> WATFORD GENERAL HOSPITAL | CD14: Match: | CE14: =MATCH($CB14,$BZ$1:$BZ$6663,0) -> 6283 | CF14: Countif: | CG14: =SUM(COUNTIF($BZ$1:$BZ$6663,$CB14)+$CE14-1) -> 6312 | CH14: Concat Items: | CI14: $CA | CJ14: :$CA | CL14: Concat Final: | CM14: =CONCATENATE($CI14,$CE14,$CJ14,$CG14) -> $CA6283:$CA6312
A15: =IF(Q216=1,"No Site Selected",IF(R216=1,"No Ward Name","")) ->  | B15: 2 | D15: RWG02 | E15: WATFORD GENERAL HOSPITAL | F15: AAU Green Level 1 | G15: 326 - ACUTE INTERNAL MEDICINE | I15: 1069.5 | J15: 996.5 | K15: 713 | L15: 700.67 | M15: 0 | N15: 0 | O15: 0 | P15: 0 | Q15: 1069.5 | R15: 1081 | S15: 712.25 | T15: 689.25 | U15: 0 | V15: 0 | W15: 0 | X15: 0 | AC15: 401 | AD15: =IF(ISERROR(IF($AC15="","",SUM(J15,R15)/$AC15)),"-",(IF($AC15="","",SUM(J15,R15)/$AC15))) -> 5.180798005 | AE15: =IF(ISERROR(IF($AC15="","",SUM(L15,T15)/$AC15)),"-",(IF($AC15="","",SUM(L15,T15)/$AC15))) -> 3.466134663 | AF15: =IF(ISERROR(IF($AC15="","",SUM(N15,V15)/$AC15)),"-",(IF($AC15="","",SUM(N15,V15)/$AC15))) -> 0 | AG15: =IF(ISERROR(IF($AC15="","",SUM(P15,X15)/$AC15)),"-",(IF($AC15="","",SUM(P15,X15)/$AC15))) -> 0 | AH15: =IF(ISERROR(IF($AC15="","",Z15/$AC15)),"-",(IF($AC15="","",Z15/$AC15))) -> 0 | AI15: =IF(ISERROR(IF($AC15="","",AB15/$AC15)),"-",(IF($AC15="","",AB15/$AC15))) -> 0 | AJ15: =IF(ISERROR(IF($AC15="","",SUM(J15,L15,R15,T15,Z15,AB15,X15,P15,V15,N15)/$AC15)),"-",(IF($AC15="","",SUM(J15,L15,R15,T15,Z15,AB15,X15,P15,V15,N15)/$AC15))) -> 8.646932668 | AK15: =IF(ISERROR(IF($I15="","",J15/I15)),"-",(IF($I15="","",J15/I15))) -> 0.9317438055 | AL15: =IF(ISERROR(IF(K15="","",L15/K15)),"-",(IF(K15="","",L15/K15))) -> 0.9827068724 | AM15: =IF(ISERROR(IF(M15="","",N15/M15)),"-",(IF(M15="","",N15/M15))) -> - | AN15: =IF(ISERROR(IF(O15="","",P15/O15)),"-",(IF(O15="","",P15/O15))) -> - | AO15: =IF(ISERROR(IF(Q15="","",R15/Q15)),"-",(IF(Q15="","",R15/Q15))) -> 1.010752688 | AP15: =IF(ISERROR(IF(S15="","",T15/S15)),"-",IF(S15="","",T15/S15)) -> 0.9677079677 | AQ15: =IF(ISERROR(IF(U15="","",V15/U15)),"-",IF(U15="","",V15/U15)) -> - | AR15: =IF(ISERROR(IF(W15="","",X15/W15)),"-",IF(W15="","",X15/W15)) -> - | AS15: =IF(ISERROR(IF(Y15="","",Z15/Y15)),"-",IF(Y15="","",Z15/Y15)) ->  | AT15: =IF(ISERROR(IF(AA15="","",AB15/AA15)),"-",IF(AA15="","",AB15/AA15)) ->  | AV15: 101 - UROLOGY | AW15: 0 | AX15: =IF(SUM(J625)>0,"AHP Data entered but not required","") ->  | BG15: =IF(Q216=1,"No Site Selected","") ->  | BH15: =IF(R216=1,"No Ward Name","") ->  | BI15: =IF(ISNUMBER((IFERROR(FIND(CHAR(10),F15),"")))=TRUE,1,"") ->  | BM15: =IF(C216=1,"Incorrect Ward Name","") ->  | BR15: NLXMELKSHAM COMMUNITY HOSPITAL | BS15: NLX19 | BT15: MELKSHAM COMMUNITY HOSPITAL | BU15: NLX19 | BV15: MELKSHAM COMMUNITY HOSPITAL | BW15: NLX | BZ15: WOTTON LAWN HOSPITAL | CA15: Montpellier | CB15: =$E15 -> WATFORD GENERAL HOSPITAL | CD15: Match: | CE15: =MATCH($CB15,$BZ$1:$BZ$6663,0) -> 6283 | CF15: Countif: | CG15: =SUM(COUNTIF($BZ$1:$BZ$6663,$CB15)+$CE15-1) -> 6312 | CH15: Concat Items: | CI15: $CA | CJ15: :$CA | CL15: Concat Final: | CM15: =CONCATENATE($CI15,$CE15,$CJ15,$CG15) -> $CA6283:$CA6312
A16: =IF(Q217=1,"No Site Selected",IF(R217=1,"No Ward Name","")) ->  | B16: 2 | D16: RWG02 | E16: WATFORD GENERAL HOSPITAL | F16: AAU Yellow Level 1 | G16: 326 - ACUTE INTERNAL MEDICINE | I16: 1069.5 | J16: 971.9166667 | K16: 713 | L16: 712.25 | M16: 0 | N16: 0 | O16: 0 | P16: 0 | Q16: 1069.5 | R16: 1058 | S16: 713 | T16: 724.5 | U16: 0 | V16: 0 | W16: 0 | X16: 0 | AC16: 407 | AD16: 4.987510238 | AE16: 3.53009828 | AF16: 0 | AG16: 0 | AH16: 0 | AI16: 0 | AJ16: 8.517608518 | AK16: 0.9087579866 | AL16: 0.9989481066 | AM16: - | AN16: - | AO16: 0.9892473118 | AP16: 1.016129032 | AQ16: - | AR16: - | AV16: 103 - BREAST SURGERY | AW16: 0 | AX16: =IF(BI214>0,"Do not enter carriage returns in the ward names field","") ->  | BR16: NLXPAULTON MEMORIAL HOSPITAL | BS16: NLX02 | BT16: PAULTON MEMORIAL HOSPITAL | BU16: NLX02 | BV16: PAULTON MEMORIAL HOSPITAL | BW16: NLX | BZ16: WOTTON LAWN HOSPITAL | CA16: Priory | CB16: WATFORD GENERAL HOSPITAL | CD16: Match: | CE16: 6283 | CF16: Countif: | CG16: 6312 | CH16: Concat Items: | CI16: $CA | CJ16: :$CA | CL16: Concat Final: | CM16: $CA6283:$CA6312
A17: =IF(Q218=1,"No Site Selected",IF(R218=1,"No Ward Name","")) ->  | B17: 2 | D17: RWG02 | E17: WATFORD GENERAL HOSPITAL | F17: AAU Purple Level 1 | G17: 326 - ACUTE INTERNAL MEDICINE | I17: 1069.5 | J17: 1058 | K17: 713 | L17: 784 | M17: 0 | N17: 0 | O17: 0 | P17: 0 | Q17: 1069.5 | R17: 1081 | S17: 702 | T17: 818.75 | U17: 0 | V17: 0 | W17: 0 | X17: 0 | AC17: 383 | AD17: 5.584856397 | AE17: 4.184725849 | AF17: 0 | AG17: 0 | AH17: 0 | AI17: 0 | AJ17: 9.769582245 | AK17: 0.9892473118 | AL17: 1.099579243 | AM17: - | AN17: - | AO17: 1.010752688 | AP17: 1.166310541 | AQ17: - | AR17: - | AV17: 110 - TRAUMA & ORTHOPAEDICS | AW17: 0 | BR17: NLXST MARTINS HOSPITAL | BS17: NLX01 | BT17: ST MARTINS HOSPITAL | BU17: NLX01 | BV17: ST MARTINS HOSPITAL | BW17: NLX | BY17: Selected Org: | BZ17: UNIVERSITY HOSPITAL AINTREE | CA17: A2H | CB17: WATFORD GENERAL HOSPITAL | CD17: Match: | CE17: 6283 | CF17: Countif: | CG17: 6312 | CH17: Concat Items: | CI17: $CA | CJ17: :$CA | CL17: Concat Final: | CM17: $CA6283:$CA6312
B18: 2 | D18: RWG02 | E18: WATFORD GENERAL HOSPITAL | F18: AAU Blue & Yellow Level 3 | G18: 326 - ACUTE INTERNAL MEDICINE | I18: 2139 | J18: 1894.083333 | K18: 2496 | L18: 3125.25 | M18: 0 | N18: 0 | O18: 0 | P18: 0 | Q18: 2139 | R18: 2058.5 | S18: 1069.5 | T18: 1667.5 | U18: 0 | V18: 0 | W18: 0 | X18: 0 | AC18: 1103 | AD18: 3.583484436 | AE18: 4.345194923 | AF18: 0 | AG18: 0 | AH18: 0 | AI18: 0 | AJ18: 7.928679359 | AK18: 0.8854994546 | AL18: 1.252103365 | AM18: - | AN18: - | AO18: 0.9623655914 | AP18: 1.559139785 | AQ18: - | AR18: - | AV18: 120 - ENT | AW18: 0 | BR18: NLXTHORNBURY HOSPITAL | BS18: NLX22 | BT18: THORNBURY HOSPITAL | BU18: NLX22 | BV18: THORNBURY HOSPITAL | BW18: NLX | BY18: =$E$5 -> RWG | BZ18: UNIVERSITY HOSPITAL AINTREE | CA18: ACCU | CB18: WATFORD GENERAL HOSPITAL | CD18: Match: | CE18: 6283 | CF18: Countif: | CG18: 6312 | CH18: Concat Items: | CI18: $CA | CJ18: :$CA | CL18: Concat Final: | CM18: $CA6283:$CA6312
B19: 2 | D19: RWG02 | E19: WATFORD GENERAL HOSPITAL | F19: AAU Red Suite | G19: 430 - GERIATRIC MEDICINE | I19: 810.5 | J19: 992 | K19: 1068.25 | L19: 991.75 | M19: 0 | N19: 0 | O19: 0 | P19: 0 | Q19: 1069.5 | R19: 1012 | S19: 356.5 | T19: 667 | U19: 0 | V19: 0 | W19: 0 | X19: 0 | AC19: 521 | AD19: 3.846449136 | AE19: 3.18378119 | AF19: 0 | AG19: 0 | AH19: 0 | AI19: 0 | AJ19: 7.030230326 | AK19: 1.223935842 | AL19: 0.9283875497 | AM19: - | AN19: - | AO19: 0.9462365591 | AP19: 1.870967742 | AQ19: - | AR19: - | AV19: 130 - OPHTHALMOLOGY | AW19: 0 | BR19: NLXTROWBRIDGE COMMUNITY HOSPITAL | BS19: NLX20 | BT19: TROWBRIDGE COMMUNITY HOSPITAL | BU19: NLX20 | BV19: TROWBRIDGE COMMUNITY HOSPITAL | BW19: NLX | BZ19: UNIVERSITY HOSPITAL AINTREE | CA19: AMU | CB19: WATFORD GENERAL HOSPITAL | CD19: Match: | CE19: 6283 | CF19: Countif: | CG19: 6312 | CH19: Concat Items: | CI19: $CA | CJ19: :$CA | CL19: Concat Final: | CM19: $CA6283:$CA6312
B20: 2 | D20: RWG02 | E20: WATFORD GENERAL HOSPITAL | F20: Acute Stroke Unit | G20: 328 - STROKE MEDICINE | I20: 2358.7 | J20: 2168.366667 | K20: 1425.5 | L20: 1376.75 | M20: 0 | N20: 0 | O20: 0 | P20: 181.5 | Q20: 2139 | R20: 2093 | S20: 1426 | T20: 1518 | U20: 0 | V20: 0 | W20: 0 | X20: 34.5 | AC20: 971 | AD20: 4.388637144 | AE20: 2.981204943 | AF20: 0 | AG20: 0.2224510814 | AH20: 0 | AI20: 0 | AJ20: 7.592293169 | AK20: 0.9193058323 | AL20: 0.9658014732 | AM20: - | AN20: - | AO20: 0.9784946237 | AP20: 1.064516129 | AQ20: - | AR20: - | AV20: 140 - ORAL SURGERY | AW20: 0 | BR20: NQ1ACE (THE CRESCENT, COLCHESTER) | BS20: NQ114 | BT20: ACE (THE CRESCENT, COLCHESTER) | BU20: NQ114 | BV20: ACE (THE CRESCENT, COLCHESTER) | BW20: NQ1 | BY20: Match: | BZ20: UNIVERSITY HOSPITAL AINTREE | CA20: Critical care | CB20: WATFORD GENERAL HOSPITAL | CD20: Match: | CE20: 6283 | CF20: Countif: | CG20: 6312 | CH20: Concat Items: | CI20: $CA | CJ20: :$CA | CL20: Concat Final: | CM20: $CA6283:$CA6312
B21: 2 | D21: RWG02 | E21: WATFORD GENERAL HOSPITAL | F21: Aldenham | G21: 340 - RESPIRATORY MEDICINE | I21: 1786.833333 | J21: 1638.333333 | K21: 1426 | L21: 1299.5 | M21: 0 | N21: 0 | O21: 0 | P21: 0 | Q21: 1426 | R21: 1495 | S21: 851 | T21: 989 | U21: 0 | V21: 0 | W21: 0 | X21: 0 | AC21: 806 | AD21: 3.887510339 | AE21: 2.839330025 | AF21: 0 | AG21: 0 | AH21: 0 | AI21: 0 | AJ21: 6.726840364 | AK21: 0.916892081 | AL21: 0.9112903226 | AM21: - | AN21: - | AO21: 1.048387097 | AP21: 1.162162162 | AQ21: - | AR21: - | AV21: 141 - RESTORATIVE DENTISTRY | AW21: 0 | BR21: NQ1ACE CIC (CLACTON ON SEA) | BS21: NQ101 | BT21: ACE CIC (CLACTON ON SEA) | BU21: NQ101 | BV21: ACE CIC (CLACTON ON SEA) | BW21: NQ1 | BY21: =MATCH($BY$18,$BW$1:$BW$5058,0) -> 3129 | BZ21: UNIVERSITY HOSPITAL AINTREE | CA21: FAU | CB21: WATFORD GENERAL HOSPITAL | CD21: Match: | CE21: 6283 | CF21: Countif: | CG21: 6312 | CH21: Concat Items: | CI21: $CA | CJ21: :$CA | CL21: Concat Final: | CM21: $CA6283:$CA6312
B22: 2 | D22: RWG02 | E22: WATFORD GENERAL HOSPITAL | F22: Bluebell | G22: 430 - GERIATRIC MEDICINE | I22: 713 | J22: 747.5 | K22: 2139 | L22: 1822.75 | M22: 0 | N22: 0 | O22: 0 | P22: 46 | Q22: 713 | R22: 920 | S22: 2139 | T22: 1667.5 | U22: 0 | V22: 0 | W22: 0 | X22: 103.5 | AC22: 463 | AD22: 3.601511879 | AE22: 7.538336933 | AF22: 0 | AG22: 0.3228941685 | AH22: 0 | AI22: 0 | AJ22: 11.46274298 | AK22: 1.048387097 | AL22: 0.8521505376 | AM22: - | AN22: - | AO22: 1.290322581 | AP22: 0.7795698925 | AQ22: - | AR22: - | AV22: 142 - PAEDIATRIC DENTISTRY | AW22: 0 | BR22: NQ1CLACTON HOSPITAL | BS22: NQ108 | BT22: CLACTON HOSPITAL | BU22: NQ108 | BV22: CLACTON HOSPITAL | BW22: NQ1 | BY22: Countif: | BZ22: UNIVERSITY HOSPITAL AINTREE | CA22: MTW | CB22: WATFORD GENERAL HOSPITAL | CD22: Match: | CE22: 6283 | CF22: Countif: | CG22: 6312 | CH22: Concat Items: | CI22: $CA | CJ22: :$CA | CL22: Concat Final: | CM22: $CA6283:$CA6312
B23: 2 | D23: RWG02 | E23: WATFORD GENERAL HOSPITAL | F23: Cardiac Care | G23: 320 - CARDIOLOGY | I23: 2139 | J23: 1966.5 | K23: 713 | L23: 747.5 | M23: 0 | N23: 0 | O23: 0 | P23: 0 | Q23: 1782.25 | R23: 1747.75 | S23: 356.5 | T23: 391 | U23: 0 | V23: 0 | W23: 0 | X23: 0 | AC23: 739 | AD23: =IF(ISERROR(IF($AC14="","",SUM(J23,R23)/$AC14)),"-",(IF($AC14="","",SUM(J23,R23)/$AC14))) -> 9.332286432 | AE23: =IF(ISERROR(IF($AC14="","",SUM(L23,T23)/$AC14)),"-",(IF($AC14="","",SUM(L23,T23)/$AC14))) -> 2.860552764 | AF23: =IF(ISERROR(IF($AC14="","",SUM(N23,V23)/$AC14)),"-",(IF($AC14="","",SUM(N23,V23)/$AC14))) -> 0 | AG23: =IF(ISERROR(IF($AC14="","",SUM(P23,X23)/$AC14)),"-",(IF($AC14="","",SUM(P23,X23)/$AC14))) -> 0 | AH23: =IF(ISERROR(IF($AC14="","",Z23/$AC14)),"-",(IF($AC14="","",Z23/$AC14))) -> 0 | AI23: =IF(ISERROR(IF($AC14="","",AB23/$AC14)),"-",(IF($AC14="","",AB23/$AC14))) -> 0 | AJ23: =IF(ISERROR(IF($AC14="","",SUM(J23,L23,R23,T23,Z23,AB23,X23,P23,V23,N23)/$AC14)),"-",(IF($AC14="","",SUM(J23,L23,R23,T23,Z23,AB23,X23,P23,V23,N23)/$AC14))) -> 12.1928392 | AK23: 0.9193548387 | AL23: 1.048387097 | AM23: - | AN23: - | AO23: 0.9806424463 | AP23: 1.096774194 | AQ23: - | AR23: - | AV23: 143 - ORTHODONTICS | AW23: 0 | BR23: NQ1COLCHESTER GENERAL HOSPITAL | BS23: NQ107 | BT23: COLCHESTER GENERAL HOSPITAL | BU23: NQ107 | BV23: COLCHESTER GENERAL HOSPITAL | BW23: NQ1 | BY23: =SUM(COUNTIF($BV$1:$BW$5058,$BY$18)+$BY$21-1) -> 3133 | BZ23: UNIVERSITY HOSPITAL AINTREE | CA23: Sefton Suite | CB23: WATFORD GENERAL HOSPITAL | CD23: Match: | CE23: 6283 | CF23: Countif: | CG23: 6312 | CH23: Concat Items: | CI23: $CA | CJ23: :$CA | CL23: Concat Final: | CM23: $CA6283:$CA6312
B24: 2 | D24: RWG02 | E24: WATFORD GENERAL HOSPITAL | F24: Cassio | G24: 301 - GASTROENTEROLOGY | I24: 717.75 | J24: 828.92 | K24: 1075.75 | L24: 980.08 | M24: 0 | N24: 0 | O24: 0 | P24: 74 | Q24: 713 | R24: 759 | S24: 713 | T24: 1046.5 | U24: 0 | V24: 0 | W24: 0 | X24: 11.5 | AC24: 613 | AD24: 2.59040783 | AE24: 3.306003263 | AF24: 0 | AG24: 0.1394779772 | AH24: 0 | AI24: 0 | AJ24: 6.03588907 | AK24: 1.154886799 | AL24: 0.9110666977 | AM24: - | AN24: - | AO24: 1.064516129 | AP24: 1.467741935 | AQ24: - | AR24: - | AV24: 145 - ORAL & MAXILLO FACIAL SURGERY | AW24: 0 | BR24: NQ1CONNAUGHT MEWS SUITES 6-10 | BS24: NQ126 | BT24: CONNAUGHT MEWS SUITES 6-10 | BU24: NQ126 | BV24: CONNAUGHT MEWS SUITES 6-10 | BW24: NQ1 | BY24: Concat Items: | BZ24: UNIVERSITY HOSPITAL AINTREE | CA24: Ward 01 | CB24: WATFORD GENERAL HOSPITAL | CD24: Match: | CE24: 6283 | CF24: Countif: | CG24: 6312 | CH24: Concat Items: | CI24: $CA | CJ24: :$CA | CL24: Concat Final: | CM24: $CA6283:$CA6312
B25: 2 | D25: RWG02 | E25: WATFORD GENERAL HOSPITAL | F25: Croxley | G25: 430 - GERIATRIC MEDICINE | I25: 1060.916667 | J25: 1122 | K25: 1780.25 | L25: 1623.25 | M25: 0 | N25: 0 | O25: 0 | P25: 0 | Q25: 1069.5 | R25: 1219 | S25: 1427 | T25: 1496 | U25: 0 | V25: 0 | W25: 0 | X25: 0 | AC25: 860 | AD25: 2.722093023 | AE25: 3.627034884 | AF25: 0 | AG25: 0 | AH25: 0 | AI25: 0 | AJ25: 6.349127907 | AK25: 1.057575996 | AL25: 0.911810139 | AM25: - | AN25: - | AO25: 1.139784946 | AP25: 1.048353189 | AQ25: - | AR25: - | AV25: 150 - NEUROSURGERY | AW25: 0 | BR25: NQ1CORNERSTONE | BS25: NQ123 | BT25: CORNERSTONE | BU25: NQ123 | BV25: CORNERSTONE | BW25: NQ1 | BY25: $BT | BZ25: UNIVERSITY HOSPITAL AINTREE | CA25: Ward 10 | CB25: WATFORD GENERAL HOSPITAL | CD25: Match: | CE25: 6283 | CF25: Countif: | CG25: 6312 | CH25: Concat Items: | CI25: $CA | CJ25: :$CA | CL25: Concat Final: | CM25: $CA6283:$CA6312
B26: 2 | D26: RWG02 | E26: WATFORD GENERAL HOSPITAL | F26: Heronsgate & Gade | G26: 302 - ENDOCRINOLOGY | I26: 1589.5 | J26: 1422.42 | K26: 2139 | L26: 2079.5 | M26: 0 | N26: 92 | O26: 0 | P26: 0 | Q26: 1426 | R26: 1414.5 | S26: 1781.75 | T26: 1954.25 | U26: 0 | V26: 0 | W26: 0 | X26: 0 | AC26: 1139 | AD26: 2.49071115 | AE26: 3.541483758 | AF26: 0.08077260755 | AG26: 0 | AH26: 0 | AI26: 0 | AJ26: 6.112967515 | AK26: 0.894885184 | AL26: 0.9721832632 | AM26: - | AN26: - | AO26: 0.9919354839 | AP26: 1.096814929 | AQ26: - | AR26: - | AV26: 160 - PLASTIC SURGERY | AW26: 0 | BR26: NQ1FRYATT HOSPITAL | BS26: NQ106 | BT26: FRYATT HOSPITAL | BU26: NQ106 | BV26: FRYATT HOSPITAL | BW26: NQ1 | BY26: :$BT | BZ26: UNIVERSITY HOSPITAL AINTREE | CA26: Ward 11 | CB26: WATFORD GENERAL HOSPITAL | CD26: Match: | CE26: 6283 | CF26: Countif: | CG26: 6312 | CH26: Concat Items: | CI26: $CA | CJ26: :$CA | CL26: Concat Final: | CM26: $CA6283:$CA6312
B27: 2 | D27: RWG02 | E27: WATFORD GENERAL HOSPITAL | F27: Oxhey | G27: 326 - ACUTE INTERNAL MEDICINE | I27: 708.75 | J27: 721.75 | K27: 535.5 | L27: 635.75 | M27: 0 | N27: 0 | O27: 0 | P27: 115 | Q27: 701.5 | R27: 713 | S27: 356.5 | T27: 621 | U27: 0 | V27: 0 | W27: 0 | X27: 126.5 | AC27: 352 | AD27: 4.075994318 | AE27: 3.5703125 | AF27: 0 | AG27: 0.6860795455 | AH27: 0 | AI27: 0 | AJ27: 8.332386364 | AK27: 1.018342152 | AL27: 1.187208217 | AM27: - | AN27: - | AO27: 1.016393443 | AP27: 1.741935484 | AQ27: - | AR27: - | AV27: 170 - CARDIOTHORACIC SURGERY | AW27: 0 | BR27: NVCASHTEAD HOSPITAL | BS27: NVC01 | BT27: ASHTEAD HOSPITAL | BU27: NVC01 | BV27: ASHTEAD HOSPITAL | BW27: NVC | BZ27: UNIVERSITY HOSPITAL AINTREE | CA27: Ward 15 | CB27: WATFORD GENERAL HOSPITAL | CD27: Match: | CE27: 6283 | CF27: Countif: | CG27: 6312 | CH27: Concat Items: | CI27: $CA | CJ27: :$CA | CL27: Concat Final: | CM27: $CA6283:$CA6312
B28: 2 | D28: RWG02 | E28: WATFORD GENERAL HOSPITAL | F28: Sarratt | G28: 430 - GERIATRIC MEDICINE | I28: 1690.5 | J28: 1682.25 | K28: 2144 | L28: 1928.37 | M28: 0 | N28: 0 | O28: 0 | P28: 150.08 | Q28: 1426 | R28: 1449 | S28: 2136.75 | T28: 2535.666667 | U28: 0 | V28: 0 | W28: 0 | X28: 0 | AC28: 1104 | AD28: 2.836277174 | AE28: 4.043511473 | AF28: 0 | AG28: 0.135942029 | AH28: 0 | AI28: 0 | AJ28: 7.015730676 | AK28: 0.995119787 | AL28: 0.899426306 | AM28: - | AN28: - | AO28: 1.016129032 | AP28: 1.186693187 | AQ28: - | AR28: - | AV28: 171 - PAEDIATRIC SURGERY | AW28: 0 | BR28: NVCBLAKELANDS HOSPITAL | BS28: NVC31 | BT28: BLAKELANDS HOSPITAL | BU28: NVC31 | BV28: BLAKELANDS HOSPITAL | BW28: NVC | BY28: Concat Final: | BZ28: UNIVERSITY HOSPITAL AINTREE | CA28: Ward 16 | CB28: WATFORD GENERAL HOSPITAL | CD28: Match: | CE28: 6283 | CF28: Countif: | CG28: 6312 | CH28: Concat Items: | CI28: $CA | CJ28: :$CA | CL28: Concat Final: | CM28: $CA6283:$CA6312
B29: 2 | D29: RWG08 | E29: HEMEL HEMPSTEAD HOSPITAL | F29: Simpson HH | G29: 430 - GERIATRIC MEDICINE | I29: 1069.5 | J29: 787.5 | K29: 1069.5 | L29: 1287.25 | M29: 0 | N29: 57.5 | O29: 0 | P29: 0 | Q29: 1069.5 | R29: 931.5 | S29: 713 | T29: 1069.5 | U29: 0 | V29: 57.5 | W29: 0 | X29: 0 | AC29: 712 | AD29: 2.414325843 | AE29: 3.310042135 | AF29: 0.1615168539 | AG29: 0 | AH29: 0 | AI29: 0 | AJ29: 5.885884831 | AK29: 0.7363253857 | AL29: 1.203599813 | AM29: - | AN29: - | AO29: 0.8709677419 | AP29: 1.5 | AQ29: - | AR29: - | AV29: 180 - ACCIDENT & EMERGENCY | AW29: 0 | BM29: Incorrect Ward Name | BR29: NVCBODMIN NHS TREATMENT CENTRE | BS29: NVC24 | BT29: BODMIN NHS TREATMENT CENTRE | BU29: NVC24 | BV29: BODMIN NHS TREATMENT CENTRE | BW29: NVC | BY29: =CONCATENATE($BY$25,$BY$21,$BY$26,$BY$23) -> $BT3129:$BT3133 | BZ29: UNIVERSITY HOSPITAL AINTREE | CA29: Ward 17 | CB29: HEMEL HEMPSTEAD HOSPITAL | CD29: Match: | CF29: Countif: | CH29: Concat Items: | CI29: $CA | CJ29: :$CA | CL29: Concat Final:
B30: 2 | D30: RWG02 | E30: WATFORD GENERAL HOSPITAL | F30: Tudor & Castle | G30: 430 - GERIATRIC MEDICINE | I30: 1782.5 | J30: 1760.75 | K30: 2131.25 | L30: 2259.166667 | M30: 0 | N30: 172.5 | O30: 0 | P30: 0 | Q30: 1782.5 | R30: 2311.5 | S30: 2139 | T30: 2376.75 | U30: 0 | V30: 0 | W30: 0 | X30: 0 | AC30: 1261 | AD30: 3.229381443 | AE30: 3.676381179 | AF30: 0.1367961935 | AG30: 0 | AH30: 0 | AI30: 0 | AJ30: 7.042558816 | AK30: 0.9877980365 | AL30: 1.06001955 | AM30: - | AN30: - | AO30: 1.296774194 | AP30: 1.11115007 | AQ30: - | AR30: - | AV30: 190 - ANAESTHETICS | AW30: 0 | BR30: NVCBOSTON WEST HOSPITAL | BS30: NVC27 | BT30: BOSTON WEST HOSPITAL | BU30: NVC27 | BV30: BOSTON WEST HOSPITAL | BW30: NVC | BZ30: UNIVERSITY HOSPITAL AINTREE | CA30: Ward 20 | CB30: WATFORD GENERAL HOSPITAL | CD30: Match: | CE30: 6283 | CF30: Countif: | CG30: 6312 | CH30: Concat Items: | CI30: $CA | CJ30: :$CA | CL30: Concat Final: | CM30: $CA6283:$CA6312
B31: 2 | D31: RWG02 | E31: WATFORD GENERAL HOSPITAL | F31: Winyard | G31: 430 - GERIATRIC MEDICINE | I31: 714.5 | J31: 857.25 | K31: 1069.5 | L31: 1120.416667 | M31: 0 | N31: 0 | O31: 0 | P31: 0 | Q31: 713 | R31: 943 | S31: 713 | T31: 816.5 | U31: 0 | V31: 0 | W31: 0 | X31: 0 | AC31: 541 | AD31: 3.327634011 | AE31: 3.580252619 | AF31: 0 | AG31: 0 | AH31: 0 | AI31: 0 | AJ31: 6.90788663 | AK31: 1.199790063 | AL31: 1.047607916 | AM31: - | AN31: - | AO31: 1.322580645 | AP31: 1.14516129 | AQ31: - | AR31: - | AV31: 192 - CRITICAL CARE MEDICINE | AW31: 0 | BR31: NVCCLIFTON PARK HOSPITAL | BS31: NVC28 | BT31: CLIFTON PARK HOSPITAL | BU31: NVC28 | BV31: CLIFTON PARK HOSPITAL | BW31: NVC | BZ31: UNIVERSITY HOSPITAL AINTREE | CA31: Ward 21 | CB31: WATFORD GENERAL HOSPITAL | CD31: Match: | CE31: 6283 | CF31: Countif: | CG31: 6312 | CH31: Concat Items: | CI31: $CA | CJ31: :$CA | CL31: Concat Final: | CM31: $CA6283:$CA6312
B32: 2 | D32: RWG02 | E32: WATFORD GENERAL HOSPITAL | F32: Combined ITU | G32: 192 - CRITICAL CARE MEDICINE | I32: 3559 | J32: 3703 | K32: 471.5 | L32: 506 | M32: 0 | N32: 0 | O32: 0 | P32: 0 | Q32: 3549 | R32: 3411 | S32: 345 | T32: 356.5 | U32: 0 | V32: 0 | W32: 0 | X32: 0 | AC32: 420 | AD32: 16.93809524 | AE32: 2.053571429 | AF32: 0 | AG32: 0 | AH32: 0 | AI32: 0 | AJ32: 18.99166667 | AK32: 1.040460804 | AL32: 1.073170732 | AM32: - | AN32: - | AO32: 0.9611158073 | AP32: 1.033333333 | AQ32: - | AR32: - | AV32: 300 - GENERAL MEDICINE | AW32: 0 | BR32: NVCCOBALT HOSPITAL | BS32: NVC29 | BT32: COBALT HOSPITAL | BU32: NVC29 | BV32: COBALT HOSPITAL | BW32: NVC | BZ32: UNIVERSITY HOSPITAL AINTREE | CA32: Ward 22 | CB32: WATFORD GENERAL HOSPITAL | CD32: Match: | CE32: 6283 | CF32: Countif: | CG32: 6312 | CH32: Concat Items: | CI32: $CA | CJ32: :$CA | CL32: Concat Final: | CM32: $CA6283:$CA6312
B33: 2 | D33: RWG02 | E33: WATFORD GENERAL HOSPITAL | F33: Cleves | G33: 100 - GENERAL SURGERY | I33: 713 | J33: 1058 | K33: 1069.5 | L33: 632.5 | M33: 0 | N33: 0 | O33: 0 | P33: 0 | Q33: 1069.5 | R33: 1069.5 | S33: 356.5 | T33: 356.5 | U33: 0 | V33: 0 | W33: 0 | X33: 0 | AC33: 583 | AD33: 3.64922813 | AE33: 1.696397942 | AF33: 0 | AG33: 0 | AH33: 0 | AI33: 0 | AJ33: 5.345626072 | AK33: 1.483870968 | AL33: 0.5913978495 | AM33: - | AN33: - | AO33: 1 | AP33: 1 | AQ33: - | AR33: - | AV33: 301 - GASTROENTEROLOGY | AW33: 0 | BR33: NVCDUCHY HOSPITAL | BS33: NVC04 | BT33: DUCHY HOSPITAL | BU33: NVC04 | BV33: DUCHY HOSPITAL | BW33: =LEFT(BU33,3) -> NVC | BZ33: UNIVERSITY HOSPITAL AINTREE | CA33: Ward 23 | CB33: WATFORD GENERAL HOSPITAL | CD33: Match: | CE33: 6283 | CF33: Countif: | CG33: 6312 | CH33: Concat Items: | CI33: $CA | CJ33: :$CA | CL33: Concat Final: | CM33: $CA6283:$CA6312
B34: 2 | D34: RWG03 | E34: ST ALBANS CITY HOSPITAL | F34: De La Mare/Beckett | G34: 110 - TRAUMA & ORTHOPAEDICS | I34: 1925.25 | J34: 1806.916667 | K34: 1724 | L34: 1698.916667 | M34: 0 | N34: 0 | O34: 0 | P34: 0 | Q34: 1524.5 | R34: 1495 | S34: 1184.5 | T34: 1252.5 | U34: 0 | V34: 0 | W34: 0 | X34: 0 | AC34: 606 | AD34: 5.448707371 | AE34: 4.870324532 | AF34: 0 | AG34: 0 | AH34: 0 | AI34: 0 | AJ34: 10.3190319 | AK34: 0.9385361209 | AL34: 0.9854505027 | AM34: - | AN34: - | AO34: 0.9806493932 | AP34: 1.057408189 | AQ34: - | AR34: - | AV34: 302 - ENDOCRINOLOGY | AW34: 0 | BR34: NVCEUXTON HALL HOSPITAL | BS34: NVC05 | BT34: EUXTON HALL HOSPITAL | BU34: NVC05 | BV34: EUXTON HALL HOSPITAL | BW34: NVC | BZ34: UNIVERSITY HOSPITAL AINTREE | CA34: Ward 24 | CB34: ST ALBANS CITY HOSPITAL | CD34: Match: | CE34: 6282 | CF34: Countif: | CG34: 6282 | CH34: Concat Items: | CI34: $CA | CJ34: :$CA | CL34: Concat Final: | CM34: $CA6282:$CA6282
B35: 2 | D35: RWG02 | E35: WATFORD GENERAL HOSPITAL | F35: Elizabeth | G35: 502 - GYNAECOLOGY | I35: 1069.5 | J35: 1323 | K35: 1426 | L35: 1236.25 | M35: 0 | N35: 0 | O35: 0 | P35: 11.5 | Q35: 1069.5 | R35: 1230.5 | S35: 713 | T35: 862.5 | U35: 0 | V35: 0 | W35: 0 | X35: 0 | AC35: 834 | AD35: 3.0617506 | AE35: 2.516486811 | AF35: 0 | AG35: 0.01378896882 | AH35: 0 | AI35: 0 | AJ35: 5.592026379 | AK35: 1.237026648 | AL35: 0.8669354839 | AM35: - | AN35: - | AO35: 1.150537634 | AP35: 1.209677419 | AQ35: - | AR35: - | AV35: 303 - CLINICAL HAEMATOLOGY | AW35: 0 | BR35: NVCFITZWILLIAM HOSPITAL | BS35: NVC06 | BT35: FITZWILLIAM HOSPITAL | BU35: NVC06 | BV35: FITZWILLIAM HOSPITAL | BW35: NVC | BZ35: UNIVERSITY HOSPITAL AINTREE | CA35: Ward 25 | CB35: WATFORD GENERAL HOSPITAL | CD35: Match: | CE35: 6283 | CF35: Countif: | CG35: 6312 | CH35: Concat Items: | CI35: $CA | CJ35: :$CA | CL35: Concat Final: | CM35: $CA6283:$CA6312
B36: 2 | D36: RWG02 | E36: WATFORD GENERAL HOSPITAL | F36: Flaunden | G36: 100 - GENERAL SURGERY | I36: 1061.666667 | J36: 1012 | K36: 1782.5 | L36: 1295.25 | M36: 0 | N36: 92 | O36: 0 | P36: 69 | Q36: 1425.5 | R36: 1184 | S36: 713 | T36: 782 | U36: 0 | V36: 57.5 | W36: 0 | X36: 0 | AC36: 763 | AD36: 2.878112713 | AE36: 2.722477064 | AF36: 0.1959370904 | AG36: 0.09043250328 | AH36: 0 | AI36: 0 | AJ36: 5.886959371 | AK36: 0.9532182104 | AL36: 0.7266479663 | AM36: - | AN36: - | AO36: 0.8305857594 | AP36: 1.096774194 | AQ36: - | AR36: - | AV36: 304 - CLINICAL PHYSIOLOGY | AW36: 0 | BR36: NVCFULWOOD HALL HOSPITAL | BS36: NVC07 | BT36: FULWOOD HALL HOSPITAL | BU36: NVC07 | BV36: FULWOOD HALL HOSPITAL | BW36: NVC | BZ36: UNIVERSITY HOSPITAL AINTREE | CA36: Ward 28 | CB36: WATFORD GENERAL HOSPITAL | CD36: Match: | CE36: 6283 | CF36: Countif: | CG36: 6312 | CH36: Concat Items: | CI36: $CA | CJ36: :$CA | CL36: Concat Final: | CM36: $CA6283:$CA6312
B37: 2 | D37: RWG02 | E37: WATFORD GENERAL HOSPITAL | F37: Langley | G37: 110 - TRAUMA & ORTHOPAEDICS | I37: 710.5 | J37: 739.25 | K37: 713 | L37: 877.67 | M37: 0 | N37: 0 | O37: 0 | P37: 0 | Q37: 713 | R37: 713 | S37: 356.5 | T37: 575 | U37: 0 | V37: 0 | W37: 0 | X37: 0 | AC37: 467 | AD37: 3.109743041 | AE37: 3.110642398 | AF37: 0 | AG37: 0 | AH37: 0 | AI37: 0 | AJ37: 6.220385439 | AK37: 1.040464462 | AL37: 1.230953717 | AM37: - | AN37: - | AO37: 1 | AP37: 1.612903226 | AQ37: - | AR37: - | AV37: 305 - CLINICAL PHARMACOLOGY | AW37: 0 | BR37: NVCHORTON NHS TREATMENT CENTRE | BS37: NVC25 | BT37: HORTON NHS TREATMENT CENTRE | BU37: NVC25 | BV37: HORTON NHS TREATMENT CENTRE | BW37: NVC | BZ37: UNIVERSITY HOSPITAL AINTREE | CA37: Ward 29/SAU | CB37: WATFORD GENERAL HOSPITAL | CD37: Match: | CE37: 6283 | CF37: Countif: | CG37: 6312 | CH37: Concat Items: | CI37: $CA | CJ37: :$CA | CL37: Concat Final: | CM37: $CA6283:$CA6312
B38: 2 | D38: RWG02 | E38: WATFORD GENERAL HOSPITAL | F38: Letchmore | G38: 100 - GENERAL SURGERY | I38: 1167 | J38: 1077.333333 | K38: 1069.5 | L38: 798.25 | M38: 0 | N38: 0 | O38: 0 | P38: 138 | Q38: 1069.5 | R38: 1058 | S38: 713 | T38: 897 | U38: 0 | V38: 0 | W38: 0 | X38: 23 | AC38: 670 | AD38: 3.187064677 | AE38: 2.530223881 | AF38: 0 | AG38: 0.2402985075 | AH38: 0 | AI38: 0 | AJ38: 5.957587065 | AK38: 0.9231648101 | AL38: 0.7463768116 | AM38: - | AN38: - | AO38: 0.9892473118 | AP38: 1.258064516 | AQ38: - | AR38: - | AV38: 307 - DIABETIC MEDICINE | AW38: 0 | BR38: NVCMOUNT STUART HOSPITAL | BS38: NVC08 | BT38: MOUNT STUART HOSPITAL | BU38: NVC08 | BV38: MOUNT STUART HOSPITAL | BW38: NVC | BZ38: UNIVERSITY HOSPITAL AINTREE | CA38: Ward 3 | CB38: WATFORD GENERAL HOSPITAL | CD38: Match: | CE38: 6283 | CF38: Countif: | CG38: 6312 | CH38: Concat Items: | CI38: $CA | CJ38: :$CA | CL38: Concat Final: | CM38: $CA6283:$CA6312
B39: 2 | D39: RWG02 | E39: WATFORD GENERAL HOSPITAL | F39: Ridge | G39: 110 - TRAUMA & ORTHOPAEDICS | I39: 1421.75 | J39: 1234 | K39: 1426 | L39: 1435.5 | M39: 0 | N39: 138 | O39: 0 | P39: 0 | Q39: 1426 | R39: 1403 | S39: 1069.5 | T39: 1184.5 | U39: 0 | V39: 0 | W39: 0 | X39: 0 | AC39: 877 | AD39: 3.006841505 | AE39: 2.987457241 | AF39: 0.157354618 | AG39: 0 | AH39: 0 | AI39: 0 | AJ39: 6.151653364 | AK39: 0.8679444347 | AL39: 1.006661992 | AM39: - | AN39: - | AO39: 0.9838709677 | AP39: 1.107526882 | AQ39: - | AR39: - | AV39: 310 - AUDIOLOGICAL MEDICINE | AW39: 0 | BR39: NVCNEW HALL HOSPITAL | BS39: NVC09 | BT39: NEW HALL HOSPITAL | BU39: NVC09 | BV39: NEW HALL HOSPITAL | BW39: NVC | BZ39: UNIVERSITY HOSPITAL AINTREE | CA39: Ward 30 | CB39: WATFORD GENERAL HOSPITAL | CD39: Match: | CE39: 6283 | CF39: Countif: | CG39: 6312 | CH39: Concat Items: | CI39: $CA | CJ39: :$CA | CL39: Concat Final: | CM39: $CA6283:$CA6312
B40: 2 | D40: RWG02 | E40: WATFORD GENERAL HOSPITAL | F40: ABC | G40: 501 - OBSTETRICS | I40: 1058.5 | J40: 997.25 | K40: 356.5 | L40: 299 | M40: 0 | N40: 0 | O40: 0 | P40: 0 | Q40: 1070 | R40: 1005 | S40: 356.5 | T40: 345 | U40: 0 | V40: 0 | W40: 0 | X40: 0 | AC40: 104 | AD40: 19.25240385 | AE40: 6.192307692 | AF40: 0 | AG40: 0 | AH40: 0 | AI40: 0 | AJ40: 25.44471154 | AK40: 0.9421350968 | AL40: 0.8387096774 | AM40: - | AN40: - | AO40: 0.9392523364 | AP40: 0.9677419355 | AQ40: - | AR40: - | AV40: 313 - CLINICAL IMMUNOLOGY AND ALLERGY | AW40: 0 | BR40: NVCNORTH DOWNS HOSPITAL | BS40: NVC11 | BT40: NORTH DOWNS HOSPITAL | BU40: NVC11 | BV40: NORTH DOWNS HOSPITAL | BW40: NVC | BZ40: UNIVERSITY HOSPITAL AINTREE | CA40: Ward 32 | CB40: WATFORD GENERAL HOSPITAL | CD40: Match: | CE40: 6283 | CF40: Countif: | CG40: 6312 | CH40: Concat Items: | CI40: $CA | CJ40: :$CA | CL40: Concat Final: | CM40: $CA6283:$CA6312
B41: 2 | D41: RWG02 | E41: WATFORD GENERAL HOSPITAL | F41: Delivery Suite | G41: 501 - OBSTETRICS | I41: 2665.75 | J41: 2528.5 | K41: 713 | L41: 598 | M41: 0 | N41: 0 | O41: 0 | P41: 0 | Q41: 2501.333333 | R41: 2465.083333 | S41: 713 | T41: 713 | U41: 0 | V41: 0 | W41: 0 | X41: 0 | AC41: 273 | AD41: 18.29151404 | AE41: 4.802197802 | AF41: 0 | AG41: 0 | AH41: 0 | AI41: 0 | AJ41: 23.09371184 | AK41: 0.9485135515 | AL41: 0.8387096774 | AM41: - | AN41: - | AO41: 0.9855077292 | AP41: 1 | AQ41: - | AR41: - | AV41: 314 - REHABILITATION | AW41: 0 | BR41: NVCNOTTINGHAM WOODTHORPE HOSPITAL | BS41: NVC40 | BT41: NOTTINGHAM WOODTHORPE HOSPITAL | BU41: NVC40 | BV41: NOTTINGHAM WOODTHORPE HOSPITAL | BW41: NVC | BZ41: UNIVERSITY HOSPITAL AINTREE | CA41: Ward 33 | CB41: WATFORD GENERAL HOSPITAL | CD41: Match: | CE41: 6283 | CF41: Countif: | CG41: 6312 | CH41: Concat Items: | CI41: $CA | CJ41: :$CA | CL41: Concat Final: | CM41: $CA6283:$CA6312
B42: 2 | D42: RWG02 | E42: WATFORD GENERAL HOSPITAL | F42: Katherine | G42: 501 - OBSTETRICS | I42: 1454 | J42: 1069.83 | K42: 1427.5 | L42: 853.5 | M42: 0 | N42: 281.5 | O42: 0 | P42: 92 | Q42: 1069.5 | R42: 1046.5 | S42: 1426 | T42: 1068.5 | U42: 0 | V42: 0 | W42: 0 | X42: 92 | AC42: 1045 | AD42: 2.025196172 | AE42: 1.83923445 | AF42: 0.2693779904 | AG42: 0.176076555 | AH42: 0 | AI42: 0 | AJ42: 4.309885167 | AK42: 0.735784044 | AL42: 0.5978984238 | AM42: - | AN42: - | AO42: 0.9784946237 | AP42: 0.7492987377 | AQ42: - | AR42: - | AV42: 315 - PALLIATIVE MEDICINE | AW42: 0 | BR42: NVCOAKLANDS HOSPITAL | BS42: NVC12 | BT42: OAKLANDS HOSPITAL | BU42: NVC12 | BV42: OAKLANDS HOSPITAL | BW42: NVC | BZ42: UNIVERSITY HOSPITAL AINTREE | CA42: Ward 34 | CB42: WATFORD GENERAL HOSPITAL | CD42: Match: | CE42: 6283 | CF42: Countif: | CG42: 6312 | CH42: Concat Items: | CI42: $CA | CJ42: :$CA | CL42: Concat Final: | CM42: $CA6283:$CA6312
B43: 2 | D43: RWG02 | E43: WATFORD GENERAL HOSPITAL | F43: Victoria | G43: 501 - OBSTETRICS | I43: 713 | J43: 713 | K43: 356.5 | L43: 299 | M43: 0 | N43: 0 | O43: 0 | P43: 0 | Q43: 713 | R43: 713 | S43: 356.5 | T43: 333.5 | U43: 0 | V43: 0 | W43: 0 | X43: 0 | AC43: 265 | AD43: 5.381132075 | AE43: 2.386792453 | AF43: 0 | AG43: 0 | AH43: 0 | AI43: 0 | AJ43: 7.767924528 | AK43: 1 | AL43: 0.8387096774 | AM43: - | AN43: - | AO43: 1 | AP43: 0.935483871 | AQ43: - | AR43: - | AV43: 318 - INTERMEDIATE CARE | AW43: 0 | BR43: NVCOAKS HOSPITAL | BS43: NVC13 | BT43: OAKS HOSPITAL | BU43: NVC13 | BV43: OAKS HOSPITAL | BW43: NVC | BZ43: UNIVERSITY HOSPITAL AINTREE | CA43: Ward 4 | CB43: WATFORD GENERAL HOSPITAL | CD43: Match: | CE43: 6283 | CF43: Countif: | CG43: 6312 | CH43: Concat Items: | CI43: $CA | CJ43: :$CA | CL43: Concat Final: | CM43: $CA6283:$CA6312
B44: 2 | D44: RWG02 | E44: WATFORD GENERAL HOSPITAL | F44: SCBU | G44: 501 - OBSTETRICS | I44: 1529.5 | J44: 1660.583333 | K44: 184 | L44: 168.5 | M44: 0 | N44: 0 | O44: 0 | P44: 0 | Q44: 1597.5 | R44: 1631 | S44: 149.5 | T44: 149.5 | U44: 0 | V44: 0 | W44: 0 | X44: 0 | AC44: 361 | AD44: 9.117959372 | AE44: 0.8808864266 | AF44: 0 | AG44: 0 | AH44: 0 | AI44: 0 | AJ44: 9.998845799 | AK44: 1.085703389 | AL44: 0.9157608696 | AM44: - | AN44: - | AO44: 1.020970266 | AP44: 1 | AQ44: - | AR44: - | AV44: 319 - RESPITE CARE | AW44: 0 | BR44: NVCPARK HILL HOSPITAL | BS44: NVC14 | BT44: PARK HILL HOSPITAL | BU44: NVC14 | BV44: PARK HILL HOSPITAL | BW44: NVC | BZ44: UNIVERSITY HOSPITAL AINTREE | CA44: Ward 6 | CB44: WATFORD GENERAL HOSPITAL | CD44: Match: | CE44: 6283 | CF44: Countif: | CG44: 6312 | CH44: Concat Items: | CI44: $CA | CJ44: :$CA | CL44: Concat Final: | CM44: $CA6283:$CA6312
B45: 2 | D45: RWG02 | E45: WATFORD GENERAL HOSPITAL | F45: Starfish | G45: 420 - PAEDIATRICS | I45: 1426 | J45: 1316 | K45: 356.5 | L45: 345 | M45: 0 | N45: 0 | O45: 0 | P45: 0 | Q45: 1069.5 | R45: 1081 | S45: 356.5 | T45: 379.5 | U45: 0 | V45: 0 | W45: 0 | X45: 0 | AC45: 283 | AD45: 8.469964664 | AE45: 2.560070671 | AF45: 0 | AG45: 0 | AH45: 0 | AI45: 0 | AJ45: 11.03003534 | AK45: 0.9228611501 | AL45: 0.9677419355 | AM45: - | AN45: - | AO45: 1.010752688 | AP45: 1.064516129 | AQ45: - | AR45: - | AV45: 320 - CARDIOLOGY | AW45: 0 | BR45: NVCPINEHILL HOSPITAL | BS45: NVC15 | BT45: PINEHILL HOSPITAL | BU45: NVC15 | BV45: PINEHILL HOSPITAL | BW45: NVC | BZ45: UNIVERSITY HOSPITAL AINTREE | CA45: Ward 8 | CB45: WATFORD GENERAL HOSPITAL | CD45: Match: | CE45: 6283 | CF45: Countif: | CG45: 6312 | CH45: Concat Items: | CI45: $CA | CJ45: :$CA | CL45: Concat Final: | CM45: $CA6283:$CA6312
B46: =IF(SUM(E247:G247,Q247:R247)>0,1,IF(AU247>0,2,0)) -> 0 | AV46: 321 - PAEDIATRIC CARDIOLOGY | AW46: 0 | BR46: NVCRENACRES HOSPITAL | BS46: NVC16 | BT46: RENACRES HOSPITAL | BU46: NVC16 | BV46: RENACRES HOSPITAL | BW46: NVC | BZ46: AIREDALE GENERAL HOSPITAL | CA46: Acute Assessment Unit | CB46: 0 | CD46: Match: | CF46: Countif: | CH46: Concat Items: | CI46: $CA | CJ46: :$CA | CL46: Concat Final:
B47: 0 | D47: =IF(ISNA(VLOOKUP($E$5&E47,$BR:$BS,2,FALSE)),"",VLOOKUP($E$5&E47,$BR:$BS,2,FALSE)) ->  | AV47: 323 - SPINAL INJURIES | AW47: 0 | BR47: NVCRIVERS HOSPITAL | BS47: NVC19 | BT47: RIVERS HOSPITAL | BU47: NVC19 | BV47: RIVERS HOSPITAL | BW47: NVC | BZ47: AIREDALE GENERAL HOSPITAL | CA47: Labour Suite | CB47: 0 | CD47: Match: | CF47: Countif: | CH47: Concat Items: | CI47: $CA | CJ47: :$CA | CL47: Concat Final:
B48: 0 | AV48: 325 - SPORTS AND EXERCISE MEDICINE | AW48: 0 | BR48: NVCROWLEY HALL HOSPITAL | BS48: NVC17 | BT48: ROWLEY HALL HOSPITAL | BU48: NVC17 | BV48: ROWLEY HALL HOSPITAL | BW48: NVC | BZ48: AIREDALE GENERAL HOSPITAL | CA48: Neonatal Unit | CB48: 0 | CD48: Match: | CF48: Countif: | CH48: Concat Items: | CI48: $CA | CJ48: :$CA | CL48: Concat Final:
B49: 0 | AV49: 326 - ACUTE INTERNAL MEDICINE | AW49: 0 | BR49: NVCSPRINGFIELD HOSPITAL | BS49: NVC18 | BT49: SPRINGFIELD HOSPITAL | BU49: NVC18 | BV49: SPRINGFIELD HOSPITAL | BW49: NVC | BZ49: AIREDALE GENERAL HOSPITAL | CA49: Ward 01 | CB49: 0 | CD49: Match: | CF49: Countif: | CH49: Concat Items: | CI49: $CA | CJ49: :$CA | CL49: Concat Final:
B50: 0 | AV50: 328 - STROKE MEDICINE | AW50: 0 | BR50: NVCTEES VALLEY TREATMENT CENTRE | BS50: NVC35 | BT50: TEES VALLEY TREATMENT CENTRE | BU50: NVC35 | BV50: TEES VALLEY TREATMENT CENTRE | BW50: NVC | BZ50: AIREDALE GENERAL HOSPITAL | CA50: Ward 02 | CB50: 0 | CD50: Match: | CF50: Countif: | CH50: Concat Items: | CI50: $CA | CJ50: :$CA | CL50: Concat Final:
B51: 0 | AV51: 330 - DERMATOLOGY | AW51: 0 | BR51: NVCTHE BERKSHIRE INDEPENDENT HOSPITAL | BS51: NVC02 | BT51: THE BERKSHIRE INDEPENDENT HOSPITAL | BU51: NVC02 | BV51: THE BERKSHIRE INDEPENDENT HOSPITAL | BW51: NVC | BZ51: AIREDALE GENERAL HOSPITAL | CA51: Ward 04 | CB51: 0 | CD51: Match: | CF51: Countif: | CH51: Concat Items: | CI51: $CA | CJ51: :$CA | CL51: Concat Final:
B52: 0 | AV52: 340 - RESPIRATORY MEDICINE | AW52: 0 | BR52: NVCTHE WESTBOURNE CENTRE | BS52: NVC44 | BT52: THE WESTBOURNE CENTRE | BU52: NVC44 | BV52: THE WESTBOURNE CENTRE | BW52: NVC | BZ52: AIREDALE GENERAL HOSPITAL | CA52: Ward 05 | CB52: 0 | CD52: Match: | CF52: Countif: | CH52: Concat Items: | CI52: $CA | CJ52: :$CA | CL52: Concat Final:
B53: 0 | AV53: 350 - INFECTIOUS DISEASES | AW53: 0 | BR53: NVCTHE YORKSHIRE CLINIC | BS53: NVC20 | BT53: THE YORKSHIRE CLINIC | BU53: NVC20 | BV53: THE YORKSHIRE CLINIC | BW53: NVC | BZ53: AIREDALE GENERAL HOSPITAL | CA53: Ward 06 | CB53: 0 | CD53: Match: | CF53: Countif: | CH53: Concat Items: | CI53: $CA | CJ53: :$CA | CL53: Concat Final:
B54: 0 | AV54: 352 - TROPICAL MEDICINE | AW54: 0 | BR54: NVCWEST MIDLANDS HOSPITAL | BS54: NVC21 | BT54: WEST MIDLANDS HOSPITAL | BU54: NVC21 | BV54: WEST MIDLANDS HOSPITAL | BW54: NVC | BZ54: AIREDALE GENERAL HOSPITAL | CA54: Ward 07 | CB54: 0 | CD54: Match: | CF54: Countif: | CH54: Concat Items: | CI54: $CA | CJ54: :$CA | CL54: Concat Final:
B55: 0 | AV55: 360 - GENITOURINARY MEDICINE | AW55: 0 | BR55: NVCWINFIELD HOSPITAL | BS55: NVC22 | BT55: WINFIELD HOSPITAL | BU55: NVC22 | BV55: WINFIELD HOSPITAL | BW55: NVC | BZ55: AIREDALE GENERAL HOSPITAL | CA55: Ward 09 | CB55: 0 | CD55: Match: | CF55: Countif: | CH55: Concat Items: | CI55: $CA | CJ55: :$CA | CL55: Concat Final:
B56: 0 | AV56: 361 - NEPHROLOGY | AW56: 0 | BR56: NVCWOODLAND HOSPITAL | BS56: NVC23 | BT56: WOODLAND HOSPITAL | BU56: NVC23 | BV56: WOODLAND HOSPITAL | BW56: NVC | BZ56: AIREDALE GENERAL HOSPITAL | CA56: Ward 10 | CB56: 0 | CD56: Match: | CF56: Countif: | CH56: Concat Items: | CI56: $CA | CJ56: :$CA | CL56: Concat Final:
B57: 0 | AV57: 370 - MEDICAL ONCOLOGY | AW57: 0 | BR57: R0AMANCHESTER ROYAL EYE HOSPITAL | BS57: R0A04 | BT57: MANCHESTER ROYAL EYE HOSPITAL | BU57: R0A04 | BV57: MANCHESTER ROYAL EYE HOSPITAL | BW57: R0A | BZ57: AIREDALE GENERAL HOSPITAL | CA57: Ward 13 | CB57: 0 | CD57: Match: | CF57: Countif: | CH57: Concat Items: | CI57: $CA | CJ57: :$CA | CL57: Concat Final:
B58: 0 | AV58: 399 - PSYCHIATRY SERVICES | AW58: 0 | BR58: R0AMANCHESTER ROYAL INFIRMARY | BS58: R0A02 | BT58: MANCHESTER ROYAL INFIRMARY | BU58: R0A02 | BV58: MANCHESTER ROYAL INFIRMARY | BW58: R0A | BZ58: AIREDALE GENERAL HOSPITAL | CA58: Ward 14 | CB58: 0 | CD58: Match: | CF58: Countif: | CH58: Concat Items: | CI58: $CA | CJ58: :$CA | CL58: Concat Final:
B59: 0 | AV59: 400 - NEUROLOGY | AW59: 0 | BR59: R0AROYAL MANCHESTER CHILDREN'S HOSPITAL | BS59: R0A03 | BT59: ROYAL MANCHESTER CHILDREN'S HOSPITAL | BU59: R0A03 | BV59: ROYAL MANCHESTER CHILDREN'S HOSPITAL | BW59: R0A | BZ59: AIREDALE GENERAL HOSPITAL | CA59: Ward 15 | CB59: 0 | CD59: Match: | CF59: Countif: | CH59: Concat Items: | CI59: $CA | CJ59: :$CA | CL59: Concat Final:
B60: 0 | AV60: 401 - CLINICAL NEURO-PHYSIOLOGY | AW60: 0 | BR60: R0AST MARY'S HOSPITAL | BS60: R0A05 | BT60: ST MARY'S HOSPITAL | BU60: R0A05 | BV60: ST MARY'S HOSPITAL | BW60: R0A | BZ60: AIREDALE GENERAL HOSPITAL | CA60: Ward 16 | CB60: 0 | CD60: Match: | CF60: Countif: | CH60: Concat Items: | CI60: $CA | CJ60: :$CA | CL60: Concat Final:
B61: 0 | AV61: 410 - RHEUMATOLOGY | AW61: 0 | BR61: R0ATRAFFORD GENERAL HOSPITAL | BS61: R0A09 | BT61: TRAFFORD GENERAL HOSPITAL | BU61: R0A09 | BV61: TRAFFORD GENERAL HOSPITAL | BW61: R0A | BZ61: AIREDALE GENERAL HOSPITAL | CA61: Ward 17 | CB61: 0 | CD61: Match: | CF61: Countif: | CH61: Concat Items: | CI61: $CA | CJ61: :$CA | CL61: Concat Final:
B62: 0 | AV62: 420 - PAEDIATRICS | AW62: 0 | BR62: R0AUNIVERSITY DENTAL HOSPITAL | BS62: R0A06 | BT62: UNIVERSITY DENTAL HOSPITAL | BU62: R0A06 | BV62: UNIVERSITY DENTAL HOSPITAL | BW62: R0A | BZ62: AIREDALE GENERAL HOSPITAL | CA62: Ward 18 | CB62: 0 | CD62: Match: | CF62: Countif: | CH62: Concat Items: | CI62: $CA | CJ62: :$CA | CL62: Concat Final:
B63: 0 | AV63: 421 - PAEDIATRIC NEUROLOGY | AW63: 0 | BR63: R0AWYTHENSHAWE HOSPITAL | BS63: R0A07 | BT63: WYTHENSHAWE HOSPITAL | BU63: R0A07 | BV63: WYTHENSHAWE HOSPITAL | BW63: R0A | BZ63: AIREDALE GENERAL HOSPITAL | CA63: Ward 19 | CB63: 0 | CD63: Match: | CF63: Countif: | CH63: Concat Items: | CI63: $CA | CJ63: :$CA | CL63: Concat Final:
B64: 0 | AV64: 422 - NEONATOLOGY | AW64: 0 | BR64: R0BMONKTON HALL HOSPITAL | BS64: R0B1J | BT64: MONKTON HALL HOSPITAL | BU64: R0B1J | BV64: MONKTON HALL HOSPITAL | BW64: R0B | BZ64: AIREDALE GENERAL HOSPITAL | CA64: Ward 21 | CB64: 0 | CD64: Match: | CF64: Countif: | CH64: Concat Items: | CI64: $CA | CJ64: :$CA | CL64: Concat Final:
B65: 0 | AV65: 424 - WELL BABIES | AW65: 0 | BR65: =CONCATENATE(LEFT(BS65, 3),BT65) -> R0BSOUTH TYNESIDE DISTRICT HOSPITAL | BS65: R0B0Q | BT65: SOUTH TYNESIDE DISTRICT HOSPITAL | BU65: R0B0Q | BV65: SOUTH TYNESIDE DISTRICT HOSPITAL | BW65: R0B | BZ65: CASTLEBERG HOSPITAL | CA65: Harden Ward | CB65: 0 | CD65: Match: | CF65: Countif: | CH65: Concat Items: | CI65: $CA | CJ65: :$CA | CL65: Concat Final:
B66: 0 | AV66: 430 - GERIATRIC MEDICINE | AW66: 0 | BR66: R0BST BENEDICT'S HOSPICE | BS66: R0B0U | BT66: ST BENEDICT'S HOSPICE | BU66: R0B0U | BV66: ST BENEDICT'S HOSPICE | BW66: R0B | BZ66: ALDER HEY CHILDREN'S NHS | CA66: 1B - Burns | CB66: 0 | CD66: Match: | CF66: Countif: | CH66: Concat Items: | CI66: $CA | CJ66: :$CA | CL66: Concat Final:
B67: 0 | AV67: 450 - DENTAL MEDICINE SPECIALTIES | AW67: 0 | BR67: R0BSUNDERLAND EYE INFIRMARY | BS67: R0B0X | BT67: SUNDERLAND EYE INFIRMARY | BU67: R0B0X | BV67: SUNDERLAND EYE INFIRMARY | BW67: R0B | BZ67: ALDER HEY CHILDREN'S NHS | CA67: 1B - HDU | CB67: 0 | CD67: Match: | CF67: Countif: | CH67: Concat Items: | CI67: $CA | CJ67: :$CA | CL67: Concat Final:
B68: 0 | AV68: 460 - MEDICAL OPHTHALMOLOGY | AW68: 0 | BR68: R0BSUNDERLAND ROYAL HOSPITAL | BS68: R0B01 | BT68: SUNDERLAND ROYAL HOSPITAL | BU68: R0B01 | BV68: SUNDERLAND ROYAL HOSPITAL | BW68: R0B | BZ68: ALDER HEY CHILDREN'S NHS | CA68: 1B - ICU | CB68: 0 | CD68: Match: | CF68: Countif: | CH68: Concat Items: | CI68: $CA | CJ68: :$CA | CL68: Concat Final:
B69: 0 | AV69: 501 - OBSTETRICS | AW69: 0 | BR69: R1AACONBURY UNIT | BS69: R1ADY | BT69: ACONBURY UNIT | BU69: R1ADY | BV69: ACONBURY UNIT | BW69: =LEFT(BU69,3) -> R1A | BZ69: ALDER HEY CHILDREN'S NHS | CA69: 1C - Cardiac | CB69: 0 | CD69: Match: | CF69: Countif: | CH69: Concat Items: | CI69: $CA | CJ69: :$CA | CL69: Concat Final:
B70: 0 | AV70: 502 - GYNAECOLOGY | AW70: 0 | BR70: R1AALEXANDRA HOSPITAL | BS70: R1AAL | BT70: ALEXANDRA HOSPITAL | BU70: R1AAL | BV70: ALEXANDRA HOSPITAL | BW70: R1A | BZ70: ALDER HEY CHILDREN'S NHS | CA70: 1C - Neonatology | CB70: 0 | CD70: Match: | CF70: Countif: | CH70: Concat Items: | CI70: $CA | CJ70: :$CA | CL70: Concat Final:
B71: 0 | AV71: 560 - MIDWIFE LED CARE | AW71: 0 | BR71: R1AARROWSIDE UNIT (ALEXANDRA HOSPITAL) | BS71: R1A1X | BT71: ARROWSIDE UNIT (ALEXANDRA HOSPITAL) | BU71: R1A1X | BV71: ARROWSIDE UNIT (ALEXANDRA HOSPITAL) | BW71: R1A | BZ71: ALDER HEY CHILDREN'S NHS | CA71: 3A | CB71: 0 | CD71: Match: | CF71: Countif: | CH71: Concat Items: | CI71: $CA | CJ71: :$CA | CL71: Concat Final:
B72: 0 | AV72: 700 - LEARNING DISABILITY | AW72: 0 | BR72: R1ABATCHLEY FIRST NURSERY PLUS | BS72: R1AHC | BT72: BATCHLEY FIRST NURSERY PLUS | BU72: R1AHC | BV72: BATCHLEY FIRST NURSERY PLUS | BW72: R1A | BZ72: ALDER HEY CHILDREN'S NHS | CA72: 3B | CB72: 0 | CD72: Match: | CF72: Countif: | CH72: Concat Items: | CI72: $CA | CJ72: :$CA | CL72: Concat Final:
B73: 0 | AV73: 710 - ADULT MENTAL ILLNESS | AW73: 0 | BR73: R1ABEACONSIDE AUTISM BASE | BS73: R1A05 | BT73: BEACONSIDE AUTISM BASE | BU73: R1A05 | BV73: BEACONSIDE AUTISM BASE | BW73: R1A | BZ73: ALDER HEY CHILDREN'S NHS | CA73: 3C | CB73: 0 | CD73: Match: | CF73: Countif: | CH73: Concat Items: | CI73: $CA | CJ73: :$CA | CL73: Concat Final:
B74: 0 | AV74: 711 - CHILD AND ADOLESCENT PSYCHIATRY | AW74: 0 | BR74: R1ABIRMINGHAM CHILDREN'S HOSPITAL | BS74: R1A03 | BT74: BIRMINGHAM CHILDREN'S HOSPITAL | BU74: R1A03 | BV74: BIRMINGHAM CHILDREN'S HOSPITAL | BW74: R1A | BZ74: ALDER HEY CHILDREN'S NHS | CA74: 4A | CB74: 0 | CD74: Match: | CF74: Countif: | CH74: Concat Items: | CI74: $CA | CJ74: :$CA | CL74: Concat Final:
B75: 0 | AV75: 712 - FORENSIC PSYCHIATRY | AW75: 0 | BR75: R1ACHURCHVIEW HOUSE | BS75: R1ACD | BT75: CHURCHVIEW HOUSE | BU75: R1ACD | BV75: CHURCHVIEW HOUSE | BW75: R1A | BZ75: ALDER HEY CHILDREN'S NHS | CA75: 4B | CB75: 0 | CD75: Match: | CF75: Countif: | CH75: Concat Items: | CI75: $CA | CJ75: :$CA | CL75: Concat Final:
B76: 0 | AV76: 713 - PSYCHOTHERAPY | AW76: 0 | BR76: R1ACOMM HOSP WARDS (EVESHAM) | BS76: R1ARE | BT76: COMM HOSP WARDS (EVESHAM) | BU76: R1ARE | BV76: COMM HOSP WARDS (EVESHAM) | BW76: R1A | BZ76: ALDER HEY CHILDREN'S NHS | CA76: 4C | CB76: 0 | CD76: Match: | CF76: Countif: | CH76: Concat Items: | CI76: $CA | CJ76: :$CA | CL76: Concat Final:
B77: 0 | AV77: 715 - OLD AGE PSYCHIATRY | AW77: 0 | BR77: R1ACOMM HOSP WARDS (MALVERN) | BS77: R1ARG | BT77: COMM HOSP WARDS (MALVERN) | BU77: R1ARG | BV77: COMM HOSP WARDS (MALVERN) | BW77: R1A | BZ77: ALDER HEY CHILDREN'S NHS | CA77: DJU | CB77: 0 | CD77: Match: | CF77: Countif: | CH77: Concat Items: | CI77: $CA | CJ77: :$CA | CL77: Concat Final:
B78: =IF(SUM(E279:G279,Q279:R279)>0,1,IF(AU279>0,2,0)) -> 0 | AV78: 800 - CLINICAL ONCOLOGY | AW78: 0 | BR78: R1ACOMM HOSP WARDS (PERSHORE) | BS78: R1ARJ | BT78: COMM HOSP WARDS (PERSHORE) | BU78: R1ARJ | BV78: COMM HOSP WARDS (PERSHORE) | BW78: R1A | BZ78: ASHFORD HOSPITAL | CA78: Dickens | CB78: 0 | CD78: Match: | CF78: Countif: | CH78: Concat Items: | CI78: $CA | CJ78: :$CA | CL78: Concat Final:
B79: 0 | D79: =IF(ISNA(VLOOKUP($E$5&E79,$BR:$BS,2,FALSE)),"",VLOOKUP($E$5&E79,$BR:$BS,2,FALSE)) ->  | AD79: =IF(ISERROR(IF($AC79="","",SUM(J79,R79)/$AC79)),"-",(IF($AC79="","",SUM(J79,R79)/$AC79))) ->  | AE79: =IF(ISERROR(IF($AC79="","",SUM(L79,T79)/$AC79)),"-",(IF($AC79="","",SUM(L79,T79)/$AC79))) ->  | AF79: =IF(ISERROR(IF($AC79="","",SUM(N79,V79)/$AC79)),"-",(IF($AC79="","",SUM(N79,V79)/$AC79))) ->  | AG79: =IF(ISERROR(IF($AC79="","",SUM(P79,X79)/$AC79)),"-",(IF($AC79="","",SUM(P79,X79)/$AC79))) ->  | AH79: =IF(ISERROR(IF($AC79="","",Z79/$AC79)),"-",(IF($AC79="","",Z79/$AC79))) ->  | AI79: =IF(ISERROR(IF($AC79="","",AB79/$AC79)),"-",(IF($AC79="","",AB79/$AC79))) ->  | AJ79: =IF(ISERROR(IF($AC79="","",SUM(J79,L79,R79,T79,Z79,AB79,X79,P79,V79,N79)/$AC79)),"-",(IF($AC79="","",SUM(J79,L79,R79,T79,Z79,AB79,X79,P79,V79,N79)/$AC79))) ->  | AK79: =IF(ISERROR(IF($I79="","",J79/I79)),"-",(IF($I79="","",J79/I79))) ->  | AL79: =IF(ISERROR(IF(K79="","",L79/K79)),"-",(IF(K79="","",L79/K79))) ->  | AM79: =IF(ISERROR(IF(M79="","",N79/M79)),"-",(IF(M79="","",N79/M79))) ->  | AN79: =IF(ISERROR(IF(O79="","",P79/O79)),"-",(IF(O79="","",P79/O79))) ->  | AO79: =IF(ISERROR(IF(Q79="","",R79/Q79)),"-",(IF(Q79="","",R79/Q79))) ->  | AP79: =IF(ISERROR(IF(S79="","",T79/S79)),"-",IF(S79="","",T79/S79)) ->  | AQ79: =IF(ISERROR(IF(U79="","",V79/U79)),"-",IF(U79="","",V79/U79)) ->  | AR79: =IF(ISERROR(IF(W79="","",X79/W79)),"-",IF(W79="","",X79/W79)) ->  | AS79: =IF(ISERROR(IF(Y79="","",Z79/Y79)),"-",IF(Y79="","",Z79/Y79)) ->  | AT79: =IF(ISERROR(IF(AA79="","",AB79/AA79)),"-",IF(AA79="","",AB79/AA79)) ->  | AV79: 810 - RADIOLOGY | AW79: 0 | BG79: =IF(Q280=1,"No Site Selected","") ->  | BH79: =IF(R280=1,"No Ward Name","") ->  | BI79: =IF(ISNUMBER((IFERROR(FIND(CHAR(10),F79),"")))=TRUE,1,"") ->  | BM79: =IF(C280=1,"Incorrect Ward Name","") ->  | BR79: R1ACOMM HOSP WARDS (TENBURY) | BS79: R1ARL | BT79: COMM HOSP WARDS (TENBURY) | BU79: R1ARL | BV79: COMM HOSP WARDS (TENBURY) | BW79: R1A | BZ79: ST PETER'S HOSPITAL | CA79: Abbey Birth Centre | CB79: =$E79 -> 0 | CD79: Match: | CE79: =MATCH($CB79,$BZ$1:$BZ$6663,0) ->  | CF79: Countif: | CG79: =SUM(COUNTIF($BZ$1:$BZ$6663,$CB79)+$CE79-1) ->  | CH79: Concat Items: | CI79: $CA | CJ79: :$CA | CL79: Concat Final: | CM79: =CONCATENATE($CI79,$CE79,$CJ79,$CG79) -> 
B80: 0 | AV80: 822 - CHEMICAL PATHOLOGY | AW80: 0 | BR80: R1ACOMM HOSP WARDS (WF GP UNIT) | BS80: R1ARN | BT80: COMM HOSP WARDS (WF GP UNIT) | BU80: R1ARN | BV80: COMM HOSP WARDS (WF GP UNIT) | BW80: R1A | BZ80: ST PETER'S HOSPITAL | CA80: ACU | CB80: 0 | CD80: Match: | CF80: Countif: | CH80: Concat Items: | CI80: $CA | CJ80: :$CA | CL80: Concat Final:
A81: =IF(Q282=1,"No Site Selected",IF(R282=1,"No Ward Name","")) ->  | B81: 0 | AV81: 823 - HAEMATOLOGY | AW81: 0 | BR81: R1ACOMMUNITY FIRST | BS81: R1A94 | BT81: COMMUNITY FIRST | BU81: R1A94 | BV81: COMMUNITY FIRST | BW81: R1A | BZ81: ST PETER'S HOSPITAL | CA81: AMU | CB81: 0 | CD81: Match: | CF81: Countif: | CH81: Concat Items: | CI81: $CA | CJ81: :$CA | CL81: Concat Final:
B82: 0 | AV82: 879 - COMMUNITY NURSING | AW82: 0 | BR82: R1ACOMMUNITY HOSP WARDS (POWCH) | BS82: R1ARK | BT82: COMMUNITY HOSP WARDS (POWCH) | BU82: R1ARK | BV82: COMMUNITY HOSP WARDS (POWCH) | BW82: R1A | BZ82: ST PETER'S HOSPITAL | CA82: Ash | CB82: 0 | CD82: Match: | CF82: Countif: | CH82: Concat Items: | CI82: $CA | CJ82: :$CA | CL82: Concat Final:
B83: 0 | AV83: 901 - OCCUPATIONAL MEDICINE | AW83: 0 | BR83: R1ACOMMUNITY INREACH EVESHAM | BS83: R1AJX | BT83: COMMUNITY INREACH EVESHAM | BU83: R1AJX | BV83: COMMUNITY INREACH EVESHAM | BW83: R1A | BZ83: ST PETER'S HOSPITAL | CA83: Aspen | CB83: 0 | CD83: Match: | CF83: Countif: | CH83: Concat Items: | CI83: $CA | CJ83: :$CA | CL83: Concat Final:
B84: 0 | AV84: 903 - PUBLIC HEALTH MEDICINE | AW84: 0 | BR84: R1ACOMMUNITY INREACH REDDITCH 6 | BS84: R1AJV | BT84: COMMUNITY INREACH REDDITCH 6 | BU84: R1AJV | BV84: COMMUNITY INREACH REDDITCH 6 | BW84: R1A | BZ84: ST PETER'S HOSPITAL | CA84: BACU | CB84: 0 | CD84: Match: | CF84: Countif: | CH84: Concat Items: | CI84: $CA | CJ84: :$CA | CL84: Concat Final:
B85: 0 | AV85: 920 - ORTHOTICS AND PROSTHETICS | AW85: 0 | BR85: R1ACOMMUNITY INREACH REDDITCH 8 | BS85: R1AJY | BT85: COMMUNITY INREACH REDDITCH 8 | BU85: R1AJY | BV85: COMMUNITY INREACH REDDITCH 8 | BW85: R1A | BZ85: ST PETER'S HOSPITAL | CA85: BRAD | CB85: 0 | CD85: Match: | CF85: Countif: | CH85: Concat Items: | CI85: $CA | CJ85: :$CA | CL85: Concat Final:
B86: 0 | AV86: 921 - GENETICS | AW86: 0 | BR86: R1ACOMMUNITY PAEDESTRICIANS-1 | BS86: R1AQQ | BT86: COMMUNITY PAEDESTRICIANS-1 | BU86: R1AQQ | BV86: COMMUNITY PAEDESTRICIANS-1 | BW86: R1A | BZ86: ST PETER'S HOSPITAL | CA86: Cedar | CB86: 0 | CD86: Match: | CF86: Countif: | CH86: Concat Items: | CI86: $CA | CJ86: :$CA | CL86: Concat Final:
B87: 0 | AV87: 922 - SEXUAL HEALTH SERVICES | AW87: 0 | BR87: R1ACOMMUNITY UNIT | BS87: R1ADV | BT87: COMMUNITY UNIT | BU87: R1ADV | BV87: COMMUNITY UNIT | BW87: R1A | BZ87: ST PETER'S HOSPITAL | CA87: Cherry | CB87: 0 | CD87: Match: | CF87: Countif: | CH87: Concat Items: | CI87: $CA | CJ87: :$CA | CL87: Concat Final:
B88: 0 | AV88: 923 - DIAGNOSTIC PATHOLOGY | AW88: 0 | BR88: R1ACOMMUNITY VENUE | BS88: R1A76 | BT88: COMMUNITY VENUE | BU88: R1A76 | BV88: COMMUNITY VENUE | BW88: R1A | BZ88: ST PETER'S HOSPITAL | CA88: Falcon | CB88: 0 | CD88: Match: | CF88: Countif: | CH88: Concat Items: | CI88: $CA | CJ88: :$CA | CL88: Concat Final:
B89: 0 | AV89: 924 - BLOOD DONOR CENTRES | AW89: 0 | BR89: R1ACOVERCROFT | BS89: R1APF | BT89: COVERCROFT | BU89: R1APF | BV89: COVERCROFT | BW89: R1A | BZ89: ST PETER'S HOSPITAL | CA89: Heron | CB89: 0 | CD89: Match: | CF89: Countif: | CH89: Concat Items: | CI89: $CA | CJ89: :$CA | CL89: Concat Final:
B90: 0 | AV90: 925 - COMMUNITY CARE SERVICES | AW90: 0 | BR90: R1ACROMWELL HOUSE | BS90: R1AAV | BT90: CROMWELL HOUSE | BU90: R1AAV | BV90: CROMWELL HOUSE | BW90: R1A | BZ90: ST PETER'S HOSPITAL | CA90: Holly | CB90: 0 | CD90: Match: | CF90: Countif: | CH90: Concat Items: | CI90: $CA | CJ90: :$CA | CL90: Concat Final:
B91: 0 | AV91: 926 - THERAPY SERVICES | AW91: 0 | BR91: R1ACROWNGATE PHYSIOTHERAPY | BS91: R1A82 | BT91: CROWNGATE PHYSIOTHERAPY | BU91: R1A82 | BV91: CROWNGATE PHYSIOTHERAPY | BW91: R1A | BZ91: ST PETER'S HOSPITAL | CA91: ITU | CB91: 0 | CD91: Match: | CF91: Countif: | CH91: Concat Items: | CI91: $CA | CJ91: :$CA | CL91: Concat Final:
B92: 0 | AV92: 927 - PHYSICAL HEALTH REHABILITATION | AW92: 0 | BR92: R1ADROITWICH SPA PRIVATE HOSPITAL | BS92: R1AFT | BT92: DROITWICH SPA PRIVATE HOSPITAL | BU92: R1AFT | BV92: DROITWICH SPA PRIVATE HOSPITAL | BW92: R1A | BZ92: ST PETER'S HOSPITAL | CA92: Joan Booker | CB92: 0 | CD92: Match: | CF92: Countif: | CH92: Concat Items: | CI92: $CA | CJ92: :$CA | CL92: Concat Final:
B93: 0 | AV93: 928 - MENTAL HEALTH REHABILITATION | AW93: 0 | BR93: R1AELGAR UNIT | BS93: R1ADW | BT93: ELGAR UNIT | BU93: R1ADW | BV93: ELGAR UNIT | BW93: R1A | BZ93: ST PETER'S HOSPITAL | CA93: Kingfisher | CB93: 0 | CD93: Match: | CF93: Countif: | CH93: Concat Items: | CI93: $CA | CJ93: :$CA | CL93: Concat Final:
B94: 0 | AV94: 929 - NEURO-REHABILITATION | AW94: 0 | BR94: R1AESTATES BUILDING | BS94: R1ACE | BT94: ESTATES BUILDING | BU94: R1ACE | BV94: ESTATES BUILDING | BW94: R1A | BZ94: ST PETER'S HOSPITAL | CA94: Labour | CB94: 0 | CD94: Match: | CF94: Countif: | CH94: Concat Items: | CI94: $CA | CJ94: :$CA | CL94: Concat Final:
B95: 0 | AV95: 996 - PSYCHIATRIC INTENSIVE CARE UNIT | AW95: 0 | BR95: R1AEVESHAM COMMUNITY HOSPITAL | BS95: R1A1P | BT95: EVESHAM COMMUNITY HOSPITAL | BU95: R1A1P | BV95: EVESHAM COMMUNITY HOSPITAL | BW95: R1A | BZ95: ST PETER'S HOSPITAL | CA95: Maple | CB95: 0 | CD95: Match: | CF95: Countif: | CH95: Concat Items: | CI95: $CA | CJ95: :$CA | CL95: Concat Final:
B96: 0 | BR96: R1AGOLD HILL CARE HOME | BS96: R1AKK | BT96: GOLD HILL CARE HOME | BU96: R1AKK | BV96: GOLD HILL CARE HOME | BW96: R1A | BZ96: ST PETER'S HOSPITAL | CA96: May | CB96: 0 | CD96: Match: | CF96: Countif: | CH96: Concat Items: | CI96: $CA | CJ96: :$CA | CL96: Concat Final:
B97: 0 | BR97: R1AHASTINGS CARE HOME | BS97: R1AKG | BT97: HASTINGS CARE HOME | BU97: R1AKG | BV97: HASTINGS CARE HOME | BW97: R1A | BZ97: ST PETER'S HOSPITAL | CA97: NICU | CB97: 0 | CD97: Match: | CF97: Countif: | CH97: Concat Items: | CI97: $CA | CJ97: :$CA | CL97: Concat Final:
B98: 0 | BR98: R1AHILL CREST 1 | BS98: R1APM | BT98: HILL CREST 1 | BU98: R1APM | BV98: HILL CREST 1 | BW98: R1A | BZ98: ST PETER'S HOSPITAL | CA98: SAU | CB98: 0 | CD98: Match: | CF98: Countif: | CH98: Concat Items: | CI98: $CA | CJ98: :$CA | CL98: Concat Final:
B99: 0 | BR99: R1AHILL CREST 2 | BS99: R1APQ | BT99: HILL CREST 2 | BU99: R1APQ | BV99: HILL CREST 2 | BW99: R1A | BZ99: ST PETER'S HOSPITAL | CA99: Swan | CB99: 0 | CD99: Match: | CF99: Countif: | CH99: Concat Items: | CI99: $CA | CJ99: :$CA | CL99: Concat Final:
B100: 0 | BR100: R1AHILL CREST MENTAL HEALTH UNIT | BS100: R1A49 | BT100: HILL CREST MENTAL HEALTH UNIT | BU100: R1A49 | BV100: HILL CREST MENTAL HEALTH UNIT | BW100: R1A | BZ100: ST PETER'S HOSPITAL | CA100: Swift | CB100: 0 | CD100: Match: | CF100: Countif: | CH100: Concat Items: | CI100: $CA | CJ100: :$CA | CL100: Concat Final:
B101: 0 | BR101: R1AHOME FARM TRUST | BS101: R1A89 | BT101: HOME FARM TRUST | BU101: R1A89 | BV101: HOME FARM TRUST | BW101: R1A | BZ101: BLACKBERRY HILL HOSPITAL | CA101: CAMHS Riverside Unit | CB101: 0 | CD101: Match: | CF101: Countif: | CH101: Concat Items: | CI101: $CA | CJ101: :$CA | CL101: Concat Final:
B102: 0 | BR102: R1AHOME TREATMENT 1 | BS102: R1APL | BT102: HOME TREATMENT 1 | BU102: R1APL | BV102: HOME TREATMENT 1 | BW102: R1A | BZ102: BLACKBERRY HILL HOSPITAL | CA102: Secure Low Wickham IP Cromwell | CB102: 0 | CD102: Match: | CF102: Countif: | CH102: Concat Items: | CI102: $CA | CJ102: :$CA | CL102: Concat Final:
B103: 0 | BR103: R1AHOME TREATMENT 2 | BS103: R1APN | BT103: HOME TREATMENT 2 | BU103: R1APN | BV103: HOME TREATMENT 2 | BW103: R1A | BZ103: BLACKBERRY HILL HOSPITAL | CA103: Secure Low Wickham IP Fairfax | CB103: 0 | CD103: Match: | CF103: Countif: | CH103: Concat Items: | CI103: $CA | CJ103: :$CA | CL103: Concat Final:
B104: 0 | BR104: R1AHOMEWARD BOUND UNIT | BS104: R1ADE | BT104: HOMEWARD BOUND UNIT | BU104: R1ADE | BV104: HOMEWARD BOUND UNIT | BW104: R1A | BZ104: BLACKBERRY HILL HOSPITAL | CA104: Secure Low Wickham IP Hopton | CB104: 0 | CD104: Match: | CF104: Countif: | CH104: Concat Items: | CI104: $CA | CJ104: :$CA | CL104: Concat Final:
B105: 0 | BR105: R1AKEITH WINTER CLOSE MENTAL HEALTH UNIT | BS105: R1A22 | BT105: KEITH WINTER CLOSE MENTAL HEALTH UNIT | BU105: R1A22 | BV105: KEITH WINTER CLOSE MENTAL HEALTH UNIT | BW105: R1A | BZ105: BLACKBERRY HILL HOSPITAL | CA105: Secure Medium IP Bradley Brook | CB105: 0 | CD105: Match: | CF105: Countif: | CH105: Concat Items: | CI105: $CA | CJ105: :$CA | CL105: Concat Final:
B106: 0 | BR106: R1AKEMPSEY PARISH HALL | BS106: R1AHL | BT106: KEMPSEY PARISH HALL | BU106: R1AHL | BV106: KEMPSEY PARISH HALL | BW106: R1A | BZ106: BLACKBERRY HILL HOSPITAL | CA106: Secure Medium IP Cary | CB106: 0 | CD106: Match: | CF106: Countif: | CH106: Concat Items: | CI106: $CA | CJ106: :$CA | CL106: Concat Final:
B107: 0 | BR107: R1ALICKEY LANGUAGE UNIT | BS107: R1AHV | BT107: LICKEY LANGUAGE UNIT | BU107: R1AHV | BV107: LICKEY LANGUAGE UNIT | BW107: R1A | BZ107: BLACKBERRY HILL HOSPITAL | CA107: Secure Medium IP Kennet | CB107: 0 | CD107: Match: | CF107: Countif: | CH107: Concat Items: | CI107: $CA | CJ107: :$CA | CL107: Concat Final:
B108: 0 | BR108: R1ALINK HORTICULTURIAL NURSERIES - SHELTERED EMPLOYMENT | BS108: R1AAE | BT108: LINK HORTICULTURIAL NURSERIES - SHELTERED EMPLOYMENT | BU108: R1AAE | BV108: LINK HORTICULTURIAL NURSERIES - SHELTERED EMPLOYMENT | BW108: R1A | BZ108: BLACKBERRY HILL HOSPITAL | CA108: Secure Medium IP Ladden Brook | CB108: 0 | CD108: Match: | CF108: Countif: | CH108: Concat Items: | CI108: $CA | CJ108: :$CA | CL108: Concat Final:
B109: 0 | BR109: R1ALUDLOW ROAD | BS109: R1A58 | BT109: LUDLOW ROAD | BU109: R1A58 | BV109: LUDLOW ROAD | BW109: R1A | BZ109: BLACKBERRY HILL HOSPITAL | CA109: Secure Medium IP Severn | CB109: 0 | CD109: Match: | CF109: Countif: | CH109: Concat Items: | CI109: $CA | CJ109: :$CA | CL109: Concat Final:
B110: =IF(SUM(E311:G311,Q311:R311)>0,1,IF(AU311>0,2,0)) -> 0 | BR110: R1AMALVERN COMMUNITY HOSPITAL | BS110: R1ADC | BT110: MALVERN COMMUNITY HOSPITAL | BU110: R1ADC | BV110: MALVERN COMMUNITY HOSPITAL | BW110: R1A | BZ110: BLACKBERRY HILL HOSPITAL | CA110: Secure Medium IP Teign | CB110: 0 | CD110: Match: | CF110: Countif: | CH110: Concat Items: | CI110: $CA | CJ110: :$CA | CL110: Concat Final:
B111: 0 | D111: =IF(ISNA(VLOOKUP($E$5&E111,$BR:$BS,2,FALSE)),"",VLOOKUP($E$5&E111,$BR:$BS,2,FALSE)) ->  | BR111: R1AMATCHBOROUGH FIRST NURSERY PLUS | BS111: R1AHF | BT111: MATCHBOROUGH FIRST NURSERY PLUS | BU111: R1AHF | BV111: MATCHBOROUGH FIRST NURSERY PLUS | BW111: R1A | BZ111: BLACKBERRY HILL HOSPITAL | CA111: Secure Medium IP Wellow | CB111: 0 | CD111: Match: | CF111: Countif: | CH111: Concat Items: | CI111: $CA | CJ111: :$CA | CL111: Concat Final:
B112: 0 | BR112: R1ANEW BROOK | BS112: R1ACF | BT112: NEW BROOK | BU112: R1ACF | BV112: NEW BROOK | BW112: R1A | BZ112: BRISTOL ADULT | CA112: Specialised Eating Disorders IP Clifton | CB112: 0 | CD112: Match: | CF112: Countif: | CH112: Concat Items: | CI112: $CA | CJ112: :$CA | CL112: Concat Final:
B113: 0 | BR113: R1ANEW BROOK UNIT 1 | BS113: R1APK | BT113: NEW BROOK UNIT 1 | BU113: R1APK | BV113: NEW BROOK UNIT 1 | BW113: R1A | BZ113: BRISTOL SDAS | CA113: Specialised D&A Bristol IP Acer Unit | CB113: 0 | CD113: Match: | CF113: Countif: | CH113: Concat Items: | CI113: $CA | CJ113: :$CA | CL113: Concat Final:
B114: 0 | BR114: R1ANEW BROOK UNIT 2 | BS114: R1APP | BT114: NEW BROOK UNIT 2 | BU114: R1APP | BV114: NEW BROOK UNIT 2 | BW114: R1A | BZ114: CALLINGTON ROAD | CA114: Bristol Acute IP Lime | CB114: 0 | CD114: Match: | CF114: Countif: | CH114: Concat Items: | CI114: $CA | CJ114: :$CA | CL114: Concat Final:
B115: 0 | BR115: R1ANEW CROSS HOSPITAL | BS115: R1A1N | BT115: NEW CROSS HOSPITAL | BU115: R1A1N | BV115: NEW CROSS HOSPITAL | BW115: R1A | BZ115: CALLINGTON ROAD | CA115: Bristol Acute IP Silver Birch | CB115: 0 | CD115: Match: | CF115: Countif: | CH115: Concat Items: | CI115: $CA | CJ115: :$CA | CL115: Concat Final:
B116: 0 | BR116: R1ANEW HAVEN (MENTAL HEALTH UNIT) | BS116: R1ACC | BT116: NEW HAVEN (MENTAL HEALTH UNIT) | BU116: R1ACC | BV116: NEW HAVEN (MENTAL HEALTH UNIT) | BW116: R1A | BZ116: CALLINGTON ROAD | CA116: Bristol LL IP Aspen | CB116: 0 | CD116: Match: | CF116: Countif: | CH116: Concat Items: | CI116: $CA | CJ116: :$CA | CL116: Concat Final:
B117: 0 | BR117: R1ANEWTOWN HOSPITAL | BS117: R1A07 | BT117: NEWTOWN HOSPITAL | BU117: R1A07 | BV117: NEWTOWN HOSPITAL | BW117: R1A | BZ117: CALLINGTON ROAD | CA117: Bristol PICU Elizabeth Casson | CB117: 0 | CD117: Match: | CF117: Countif: | CH117: Concat Items: | CI117: $CA | CJ117: :$CA | CL117: Concat Final:
B118: 0 | BR118: R1AORCHARD PLACE | BS118: R1A37 | BT118: ORCHARD PLACE | BU118: R1A37 | BV118: ORCHARD PLACE | BW118: R1A | BZ118: CALLINGTON ROAD | CA118: Bristol PICU Hazel | CB118: 0 | CD118: Match: | CF118: Countif: | CH118: Concat Items: | CI118: $CA | CJ118: :$CA | CL118: Concat Final:
B119: 0 | BR119: R1AOSBORNE COURT | BS119: R1ACY | BT119: OSBORNE COURT | BU119: R1ACY | BV119: OSBORNE COURT | BW119: R1A | BZ119: CALLINGTON ROAD | CA119: Bristol Rehab Alder | CB119: 0 | CD119: Match: | CF119: Countif: | CH119: Concat Items: | CI119: $CA | CJ119: :$CA | CL119: Concat Final:
B120: 0 | BR120: R1AOT STORES | BS120: R1AGK | BT120: OT STORES | BU120: R1AGK | BV120: OT STORES | BW120: R1A | BZ120: CALLINGTON ROAD | CA120: Bristol Rehab Larch | CB120: 0 | CD120: Match: | CF120: Countif: | CH120: Concat Items: | CI120: $CA | CJ120: :$CA | CL120: Concat Final:
B121: 0 | BR121: R1APALLIATIVE CARE (R&B) | BS121: R1AQP | BT121: PALLIATIVE CARE (R&B) | BU121: R1AQP | BV121: PALLIATIVE CARE (R&B) | BW121: R1A | BZ121: FOUNTAIN WAY, SALISBURY | CA121: Wiltshire Acute IP Beechlydene | CB121: 0 | CD121: Match: | CF121: Countif: | CH121: Concat Items: | CI121: $CA | CJ121: :$CA | CL121: Concat Final:
B122: 0 | BR122: R1APALLIATIVE CARE (SW) | BS122: R1ART | BT122: PALLIATIVE CARE (SW) | BU122: R1ART | BV122: PALLIATIVE CARE (SW) | BW122: R1A | BZ122: FOUNTAIN WAY, SALISBURY | CA122: Wiltshire LL IP Amblescroft North | CB122: 0 | CD122: Match: | CF122: Countif: | CH122: Concat Items: | CI122: $CA | CJ122: :$CA | CL122: Concat Final:
B123: 0 | BR123: R1APALLIATIVE CARE (WF) | BS123: R1ARR | BT123: PALLIATIVE CARE (WF) | BU123: R1ARR | BV123: PALLIATIVE CARE (WF) | BW123: R1A | BZ123: FOUNTAIN WAY, SALISBURY | CA123: Wiltshire LL IP Amblescroft South | CB123: 0 | CD123: Match: | CF123: Countif: | CH123: Concat Items: | CI123: $CA | CJ123: :$CA | CL123: Concat Final:
B124: 0 | BR124: R1APARKSIDE MIDDLE AUTISM BASE | BS124: R1AEM | BT124: PARKSIDE MIDDLE AUTISM BASE | BU124: R1AEM | BV124: PARKSIDE MIDDLE AUTISM BASE | BW124: R1A | BZ124: FOUNTAIN WAY, SALISBURY | CA124: Wiltshire PICU Ashdown | CB124: 0 | CD124: Match: | CF124: Countif: | CH124: Concat Items: | CI124: $CA | CJ124: :$CA | CL124: Concat Final:
B125: 0 | BR125: R1APERSHORE HOSPITAL | BS125: R1ACW | BT125: PERSHORE HOSPITAL | BU125: R1ACW | BV125: PERSHORE HOSPITAL | BW125: R1A | BZ125: GREEN LANE HOSPITAL, DEVIZES | CA125: Specialised LD IP Daisy | CB125: 0 | CD125: Match: | CF125: Countif: | CH125: Concat Items: | CI125: $CA | CJ125: :$CA | CL125: Concat Final:
B126: 0 | BR126: R1APHYSIO UNIT ROSEHILL | BS126: R1AA6 | BT126: PHYSIO UNIT ROSEHILL | BU126: R1AA6 | BV126: PHYSIO UNIT ROSEHILL | BW126: R1A | BZ126: GREEN LANE HOSPITAL, DEVIZES | CA126: Wiltshire Acute IP Poppy | CB126: 0 | CD126: Match: | CF126: Countif: | CH126: Concat Items: | CI126: $CA | CJ126: :$CA | CL126: Concat Final:
B127: 0 | BR127: R1APHYSIO UNIT THORNTON | BS127: R1A1A | BT127: PHYSIO UNIT THORNTON | BU127: R1A1A | BV127: PHYSIO UNIT THORNTON | BW127: R1A | BZ127: HILLVIEW LODGE | CA127: BANES Acute IP Sycamore | CB127: 0 | CD127: Match: | CF127: Countif: | CH127: Concat Items: | CI127: $CA | CJ127: :$CA | CL127: Concat Final:
B128: 0 | BR128: R1APOSTNATAL UNIT | BS128: R1ADM | BT128: POSTNATAL UNIT | BU128: R1ADM | BV128: POSTNATAL UNIT | BW128: R1A | BZ128: NORTH SOMERSET ADULT | CA128: N.Som Acute IP Juniper | CB128: 0 | CD128: Match: | CF128: Countif: | CH128: Concat Items: | CI128: $CA | CJ128: :$CA | CL128: Concat Final:
B129: 0 | BR129: =CONCATENATE(LEFT(BS129, 3),BT129) -> R1APRINCESS OF WALES HOSPITAL | BS129: R1ACG | BT129: PRINCESS OF WALES HOSPITAL | BU129: R1ACG | BV129: PRINCESS OF WALES HOSPITAL | BW129: R1A | BZ129: NORTH SOMERSET ADULT | CA129: N.Som Rehab Elmham Way | CB129: 0 | CD129: Match: | CF129: Countif: | CH129: Concat Items: | CI129: $CA | CJ129: :$CA | CL129: Concat Final:
B130: 0 | BR130: R1APUPIL REFERRAL UNIT | BS130: R1A60 | BT130: PUPIL REFERRAL UNIT | BU130: R1A60 | BV130: PUPIL REFERRAL UNIT | BW130: R1A | BZ130: NORTH SOMERSET OLDER ADULT | CA130: N.Som LL IP Cove | CB130: 0 | CD130: Match: | CF130: Countif: | CH130: Concat Items: | CI130: $CA | CJ130: :$CA | CL130: Concat Final:
B131: 0 | BR131: R1AQUEEN ELIZABETH HOSPITAL | BS131: R1A02 | BT131: QUEEN ELIZABETH HOSPITAL | BU131: R1A02 | BV131: QUEEN ELIZABETH HOSPITAL | BW131: R1A | BZ131: NORTH SOMERSET OLDER ADULT | CA131: N.Som LL IP Dune | CB131: 0 | CD131: Match: | CF131: Countif: | CH131: Concat Items: | CI131: $CA | CJ131: :$CA | CL131: Concat Final:
B132: 0 | BR132: R1ARIVENDELL | BS132: R1A14 | BT132: RIVENDELL | BU132: R1A14 | BV132: RIVENDELL | BW132: R1A | BZ132: SANDALWOOD COURT, SWINDON | CA132: Swindon Acute IP Applewood | CB132: 0 | CD132: Match: | CF132: Countif: | CH132: Concat Items: | CI132: $CA | CJ132: :$CA | CL132: Concat Final:
B133: 0 | BR133: R1ARIVERBANK NEONATAL UNIT | BS133: R1ADN | BT133: RIVERBANK NEONATAL UNIT | BU133: R1ADN | BV133: RIVERBANK NEONATAL UNIT | BW133: =LEFT(BU133,3) -> R1A | BZ133: SOUTHMEAD HOSPITAL AWP | CA133: Bristol Acute IP Oakwood | CB133: 0 | CD133: Match: | CF133: Countif: | CH133: Concat Items: | CI133: $CA | CJ133: :$CA | CL133: Concat Final:
B134: 0 | BR134: R1ARUSSELLS HALL HOSPITAL | BS134: R1A56 | BT134: RUSSELLS HALL HOSPITAL | BU134: R1A56 | BV134: RUSSELLS HALL HOSPITAL | BW134: R1A | BZ134: SOUTHMEAD HOSPITAL AWP | CA134: Specialised Mother and Baby IP Unit | CB134: 0 | CD134: Match: | CF134: Countif: | CH134: Concat Items: | CI134: $CA | CJ134: :$CA | CL134: Concat Final:
B135: 0 | BR135: R1ASILVERBIRCH | BS135: R1ACH | BT135: SILVERBIRCH | BU135: R1ACH | BV135: SILVERBIRCH | BW135: R1A | BZ135: ST MARTINS HOSPITAL (BATH) | CA135: BANES LL IP Ward 4 | CB135: 0 | CD135: Match: | CF135: Countif: | CH135: Concat Items: | CI135: $CA | CJ135: :$CA | CL135: Concat Final:
B136: 0 | BR136: R1ASTUDDERT KENNEDY OA | BS136: R1APG | BT136: STUDDERT KENNEDY OA | BU136: R1APG | BV136: STUDDERT KENNEDY OA | BW136: R1A | BZ136: VICTORIA CENTRE, SWINDON | CA136: Swindon LL IP Hodson | CB136: 0 | CD136: Match: | CF136: Countif: | CH136: Concat Items: | CI136: $CA | CJ136: :$CA | CL136: Concat Final:
B137: 0 | BR137: R1ATENBURY COMMUNITY HOSPITAL | BS137: R1AAN | BT137: TENBURY COMMUNITY HOSPITAL | BU137: R1AAN | BV137: TENBURY COMMUNITY HOSPITAL | BW137: R1A | BZ137: VICTORIA CENTRE, SWINDON | CA137: Swindon LL IP Liddington | CB137: 0 | CD137: Match: | CF137: Countif: | CH137: Concat Items: | CI137: $CA | CJ137: :$CA | CL137: Concat Final:
B138: 0 | BR138: R1ATESCO KIDDERMINSTER | BS138: R1A67 | BT138: TESCO KIDDERMINSTER | BU138: R1A67 | BV138: TESCO KIDDERMINSTER | BW138: R1A | BZ138: WHITTUCKS ROAD, HANHAM | CA138: S.Glos Rehab Whittucks Road | CB138: 0 | CD138: Match: | CF138: Countif: | CH138: Concat Items: | CI138: $CA | CJ138: :$CA | CL138: Concat Final:
B139: 0 | BR139: R1ATESCO REDDITCH | BS139: R1A43 | BT139: TESCO REDDITCH | BU139: R1A43 | BV139: TESCO REDDITCH | BW139: R1A | BZ139: WINDSWEPT | CA139: Swindon Rehab Windswept | CB139: 0 | CD139: Match: | CF139: Countif: | CH139: Concat Items: | CI139: $CA | CJ139: :$CA | CL139: Concat Final:
B140: 0 | BR140: R1ATESCO ST PETERS | BS140: R1A1G | BT140: TESCO ST PETERS | BU140: R1A1G | BV140: TESCO ST PETERS | BW140: R1A | BZ140: KING GEORGE HOSPITAL | CA140: Ash | CB140: 0 | CD140: Match: | CF140: Countif: | CH140: Concat Items: | CI140: $CA | CJ140: :$CA | CL140: Concat Final:
B141: 0 | BR141: R1ATESCO WARNDON | BS141: R1AA1 | BT141: TESCO WARNDON | BU141: R1AA1 | BV141: TESCO WARNDON | BW141: R1A | BZ141: KING GEORGE HOSPITAL | CA141: Beech | CB141: 0 | CD141: Match: | CF141: Countif: | CH141: Concat Items: | CI141: $CA | CJ141: :$CA | CL141: Concat Final:
B142: =IF(SUM(E343:G343,Q343:R343)>0,1,IF(AU343>0,2,0)) -> 0 | BR142: R1ATHE FIRS REST HOME | BS142: R1A1F | BT142: THE FIRS REST HOME | BU142: R1A1F | BV142: THE FIRS REST HOME | BW142: R1A | BZ142: KING GEORGE HOSPITAL | CA142: CAU KGH | CB142: 0 | CD142: Match: | CF142: Countif: | CH142: Concat Items: | CI142: $CA | CJ142: :$CA | CL142: Concat Final:
B143: 0 | D143: =IF(ISNA(VLOOKUP($E$5&E143,$BR:$BS,2,FALSE)),"",VLOOKUP($E$5&E143,$BR:$BS,2,FALSE)) ->  | AD143: =IF(ISERROR(IF($AC143="","",SUM(J143,R143)/$AC143)),"-",(IF($AC143="","",SUM(J143,R143)/$AC143))) ->  | AE143: =IF(ISERROR(IF($AC143="","",SUM(L143,T143)/$AC143)),"-",(IF($AC143="","",SUM(L143,T143)/$AC143))) ->  | AF143: =IF(ISERROR(IF($AC143="","",SUM(N143,V143)/$AC143)),"-",(IF($AC143="","",SUM(N143,V143)/$AC143))) ->  | AG143: =IF(ISERROR(IF($AC143="","",SUM(P143,X143)/$AC143)),"-",(IF($AC143="","",SUM(P143,X143)/$AC143))) ->  | AH143: =IF(ISERROR(IF($AC143="","",Z143/$AC143)),"-",(IF($AC143="","",Z143/$AC143))) ->  | AI143: =IF(ISERROR(IF($AC143="","",AB143/$AC143)),"-",(IF($AC143="","",AB143/$AC143))) ->  | AJ143: =IF(ISERROR(IF($AC143="","",SUM(J143,L143,R143,T143,Z143,AB143,X143,P143,V143,N143)/$AC143)),"-",(IF($AC143="","",SUM(J143,L143,R143,T143,Z143,AB143,X143,P143,V143,N143)/$AC143))) ->  | AK143: =IF(ISERROR(IF($I143="","",J143/I143)),"-",(IF($I143="","",J143/I143))) ->  | AL143: =IF(ISERROR(IF(K143="","",L143/K143)),"-",(IF(K143="","",L143/K143))) ->  | AM143: =IF(ISERROR(IF(M143="","",N143/M143)),"-",(IF(M143="","",N143/M143))) ->  | AN143: =IF(ISERROR(IF(O143="","",P143/O143)),"-",(IF(O143="","",P143/O143))) ->  | AO143: =IF(ISERROR(IF(Q143="","",R143/Q143)),"-",(IF(Q143="","",R143/Q143))) ->  | AP143: =IF(ISERROR(IF(S143="","",T143/S143)),"-",IF(S143="","",T143/S143)) ->  | AQ143: =IF(ISERROR(IF(U143="","",V143/U143)),"-",IF(U143="","",V143/U143)) ->  | AR143: =IF(ISERROR(IF(W143="","",X143/W143)),"-",IF(W143="","",X143/W143)) ->  | AS143: =IF(ISERROR(IF(Y143="","",Z143/Y143)),"-",IF(Y143="","",Z143/Y143)) ->  | AT143: =IF(ISERROR(IF(AA143="","",AB143/AA143)),"-",IF(AA143="","",AB143/AA143)) ->  | BG143: =IF(Q344=1,"No Site Selected","") ->  | BH143: =IF(R344=1,"No Ward Name","") ->  | BI143: =IF(ISNUMBER((IFERROR(FIND(CHAR(10),F143),"")))=TRUE,1,"") ->  | BM143: =IF(C344=1,"Incorrect Ward Name","") ->  | BR143: R1ATHE GRANGE | BS143: R1A66 | BT143: THE GRANGE | BU143: R1A66 | BV143: THE GRANGE | BW143: R1A | BZ143: KING GEORGE HOSPITAL | CA143: Clover | CB143: =$E143 -> 0 | CD143: Match: | CE143: =MATCH($CB143,$BZ$1:$BZ$6663,0) ->  | CF143: Countif: | CG143: =SUM(COUNTIF($BZ$1:$BZ$6663,$CB143)+$CE143-1) ->  | CH143: Concat Items: | CI143: $CA | CJ143: :$CA | CL143: Concat Final: | CM143: =CONCATENATE($CI143,$CE143,$CJ143,$CG143) -> 
B144: 0 | BR144: R1ATHE HIVE | BS144: R1AKX | BT144: THE HIVE | BU144: R1AKX | BV144: THE HIVE | BW144: R1A | BZ144: KING GEORGE HOSPITAL | CA144: Dahlia | CB144: 0 | CD144: Match: | CF144: Countif: | CH144: Concat Items: | CI144: $CA | CJ144: :$CA | CL144: Concat Final:
A145: =IF(Q346=1,"No Site Selected",IF(R346=1,"No Ward Name","")) ->  | B145: 0 | BR145: R1ATHE OLD VICARAGE | BS145: R1AKL | BT145: THE OLD VICARAGE | BU145: R1AKL | BV145: THE OLD VICARAGE | BW145: R1A | BZ145: KING GEORGE HOSPITAL | CA145: Erica | CB145: 0 | CD145: Match: | CF145: Countif: | CH145: Concat Items: | CI145: $CA | CJ145: :$CA | CL145: Concat Final:
B146: 0 | BR146: R1ATHE PINES | BS146: R1AHX | BT146: THE PINES | BU146: R1AHX | BV146: THE PINES | BW146: R1A | BZ146: KING GEORGE HOSPITAL | CA146: Fern | CB146: 0 | CD146: Match: | CF146: Countif: | CH146: Concat Items: | CI146: $CA | CJ146: :$CA | CL146: Concat Final:
B147: 0 | BR147: R1ATHE ROBERTSON CENTRE (D BLOCK) | BS147: R1ACN | BT147: THE ROBERTSON CENTRE (D BLOCK) | BU147: R1ACN | BV147: THE ROBERTSON CENTRE (D BLOCK) | BW147: R1A | BZ147: KING GEORGE HOSPITAL | CA147: Gardenia | CB147: 0 | CD147: Match: | CF147: Countif: | CH147: Concat Items: | CI147: $CA | CJ147: :$CA | CL147: Concat Final:
B148: 0 | BR148: R1ATHE WOODLANDS | BS148: R1A44 | BT148: THE WOODLANDS | BU148: R1A44 | BV148: THE WOODLANDS | BW148: R1A | BZ148: KING GEORGE HOSPITAL | CA148: Gentian | CB148: 0 | CD148: Match: | CF148: Countif: | CH148: Concat Items: | CI148: $CA | CJ148: :$CA | CL148: Concat Final:
B149: 0 | BR149: R1ATIMBERDINE HOME RESIDENTIAL CARE | BS149: R1AHM | BT149: TIMBERDINE HOME RESIDENTIAL CARE | BU149: R1AHM | BV149: TIMBERDINE HOME RESIDENTIAL CARE | BW149: R1A | BZ149: KING GEORGE HOSPITAL | CA149: Heather | CB149: 0 | CD149: Match: | CF149: Countif: | CH149: Concat Items: | CI149: $CA | CJ149: :$CA | CL149: Concat Final:
B150: 0 | BR150: R1ATOUCHSTONE UNIT | BS150: R1AAD | BT150: TOUCHSTONE UNIT | BU150: R1AAD | BV150: TOUCHSTONE UNIT | BW150: R1A | BZ150: KING GEORGE HOSPITAL | CA150: Holly | CB150: 0 | CD150: Match: | CF150: Countif: | CH150: Concat Items: | CI150: $CA | CJ150: :$CA | CL150: Concat Final:
B151: 0 | BR151: R1AWALKWOOD MIDDLE AUTISM BASE | BS151: R1A31 | BT151: WALKWOOD MIDDLE AUTISM BASE | BU151: R1A31 | BV151: WALKWOOD MIDDLE AUTISM BASE | BW151: R1A | BZ151: KING GEORGE HOSPITAL | CA151: Iris | CB151: 0 | CD151: Match: | CF151: Countif: | CH151: Concat Items: | CI151: $CA | CJ151: :$CA | CL151: Concat Final:
B152: 0 | BR152: R1AWALSGRAVE HOSPITAL | BS152: R1A55 | BT152: WALSGRAVE HOSPITAL | BU152: R1A55 | BV152: WALSGRAVE HOSPITAL | BW152: R1A | BZ152: KING GEORGE HOSPITAL | CA152: KGH ITU | CB152: 0 | CD152: Match: | CF152: Countif: | CH152: Concat Items: | CI152: $CA | CJ152: :$CA | CL152: Concat Final:
B153: 0 | BR153: R1AWASELY HIGH AUTISM BASE | BS153: R1A06 | BT153: WASELY HIGH AUTISM BASE | BU153: R1A06 | BV153: WASELY HIGH AUTISM BASE | BW153: R1A | BZ153: QUEEN'S HOSPITAL | CA153: Amber A | CB153: 0 | CD153: Match: | CF153: Countif: | CH153: Concat Items: | CI153: $CA | CJ153: :$CA | CL153: Concat Final:
B154: 0 | BR154: R1AWATERSIDE | BS154: R1AQG | BT154: WATERSIDE | BU154: R1AQG | BV154: WATERSIDE | BW154: R1A | BZ154: QUEEN'S HOSPITAL | CA154: Amber B | CB154: 0 | CD154: Match: | CF154: Countif: | CH154: Concat Items: | CI154: $CA | CJ154: :$CA | CL154: Concat Final:
B155: 0 | BR155: R1AWATERSIDE CARE HOME | BS155: R1AKR | BT155: WATERSIDE CARE HOME | BU155: R1AKR | BV155: WATERSIDE CARE HOME | BW155: R1A | BZ155: QUEEN'S HOSPITAL | CA155: Antenatal | CB155: 0 | CD155: Match: | CF155: Countif: | CH155: Concat Items: | CI155: $CA | CJ155: :$CA | CL155: Concat Final:
B156: 0 | BR156: R1AWATERSIDE MENTAL HEALTH DAY HOSPITAL | BS156: R1A1V | BT156: WATERSIDE MENTAL HEALTH DAY HOSPITAL | BU156: R1A1V | BV156: WATERSIDE MENTAL HEALTH DAY HOSPITAL | BW156: R1A | BZ156: QUEEN'S HOSPITAL | CA156: Bluebell A | CB156: 0 | CD156: Match: | CF156: Countif: | CH156: Concat Items: | CI156: $CA | CJ156: :$CA | CL156: Concat Final:
B157: 0 | BR157: R1AWHCT HEALTHCARE FEATHERSTONE | BS157: R1AHY | BT157: WHCT HEALTHCARE FEATHERSTONE | BU157: R1AHY | BV157: WHCT HEALTHCARE FEATHERSTONE | BW157: R1A | BZ157: QUEEN'S HOSPITAL | CA157: Bluebell B | CB157: 0 | CD157: Match: | CF157: Countif: | CH157: Concat Items: | CI157: $CA | CJ157: :$CA | CL157: Concat Final:
B158: 0 | BR158: R1AWILDMOOR MILL FARM | BS158: R1A21 | BT158: WILDMOOR MILL FARM | BU158: R1A21 | BV158: WILDMOOR MILL FARM | BW158: R1A | BZ158: QUEEN'S HOSPITAL | CA158: CCU | CB158: 0 | CD158: Match: | CF158: Countif: | CH158: Concat Items: | CI158: $CA | CJ158: :$CA | CL158: Concat Final:
B159: 0 | BR159: R1AWISHMOOR REST HOME | BS159: R1AKN | BT159: WISHMOOR REST HOME | BU159: R1AKN | BV159: WISHMOOR REST HOME | BW159: R1A | BZ159: QUEEN'S HOSPITAL | CA159: Clementine A | CB159: 0 | CD159: Match: | CF159: Countif: | CH159: Concat Items: | CI159: $CA | CJ159: :$CA | CL159: Concat Final:
B160: 0 | BR160: R1AWOODSIDE | BS160: R1A1C | BT160: WOODSIDE | BU160: R1A1C | BV160: WOODSIDE | BW160: R1A | BZ160: QUEEN'S HOSPITAL | CA160: Clementine B | CB160: 0 | CD160: Match: | CF160: Countif: | CH160: Concat Items: | CI160: $CA | CJ160: :$CA | CL160: Concat Final:
B161: 0 | BR161: R1AWORCESTER CITY MH 1 | BS161: R1AQF | BT161: WORCESTER CITY MH 1 | BU161: R1AQF | BV161: WORCESTER CITY MH 1 | BW161: R1A | BZ161: QUEEN'S HOSPITAL | CA161: Coral | CB161: 0 | CD161: Match: | CF161: Countif: | CH161: Concat Items: | CI161: $CA | CJ161: :$CA | CL161: Concat Final:
B162: 0 | BR162: R1AWORCESTER CITY MH 2 | BS162: R1AQH | BT162: WORCESTER CITY MH 2 | BU162: R1AQH | BV162: WORCESTER CITY MH 2 | BW162: R1A | BZ162: QUEEN'S HOSPITAL | CA162: Cornflower B | CB162: 0 | CD162: Match: | CF162: Countif: | CH162: Concat Items: | CI162: $CA | CJ162: :$CA | CL162: Concat Final:
B163: 0 | BR163: R1AWORCESTER CITY MH 3 | BS163: R1AQK | BT163: WORCESTER CITY MH 3 | BU163: R1AQK | BV163: WORCESTER CITY MH 3 | BW163: R1A | BZ163: QUEEN'S HOSPITAL | CA163: ERU | CB163: 0 | CD163: Match: | CF163: Countif: | CH163: Concat Items: | CI163: $CA | CJ163: :$CA | CL163: Concat Final:
B164: 0 | BR164: R1AWORCESTER INTERMEDIATE CARE UNIT (WICU) | BS164: R1A1Q | BT164: WORCESTER INTERMEDIATE CARE UNIT (WICU) | BU164: R1A1Q | BV164: WORCESTER INTERMEDIATE CARE UNIT (WICU) | BW164: R1A | BZ164: QUEEN'S HOSPITAL | CA164: Harvest A | CB164: 0 | CD164: Match: | CF164: Countif: | CH164: Concat Items: | CI164: $CA | CJ164: :$CA | CL164: Concat Final:
B165: 0 | BR165: R1AWORCESTERSHIRE ROYAL HOSPITAL | BS165: R1ADP | BT165: WORCESTERSHIRE ROYAL HOSPITAL | BU165: R1ADP | BV165: WORCESTERSHIRE ROYAL HOSPITAL | BW165: R1A | BZ165: QUEEN'S HOSPITAL | CA165: Harvest B | CB165: 0 | CD165: Match: | CF165: Countif: | CH165: Concat Items: | CI165: $CA | CJ165: :$CA | CL165: Concat Final:
B166: 0 | BR166: R1AWULSTAN UNIT | BS166: R1AEC | BT166: WULSTAN UNIT | BU166: R1AEC | BV166: WULSTAN UNIT | BW166: R1A | BZ166: QUEEN'S HOSPITAL | CA166: HASU | CB166: 0 | CD166: Match: | CF166: Countif: | CH166: Concat Items: | CI166: $CA | CJ166: :$CA | CL166: Concat Final:
B167: 0 | BR167: R1AWULSTAN UNIT REHABILITATION | BS167: R1AED | BT167: WULSTAN UNIT REHABILITATION | BU167: R1AED | BV167: WULSTAN UNIT REHABILITATION | BW167: R1A | BZ167: QUEEN'S HOSPITAL | CA167: Mandarin A | CB167: 0 | CD167: Match: | CF167: Countif: | CH167: Concat Items: | CI167: $CA | CJ167: :$CA | CL167: Concat Final:
B168: 0 | BR168: R1AWYCHAVON OA | BS168: R1AQJ | BT168: WYCHAVON OA | BU168: R1AQJ | BV168: WYCHAVON OA | BW168: R1A | BZ168: QUEEN'S HOSPITAL | CA168: Mandarin B | CB168: 0 | CD168: Match: | CF168: Countif: | CH168: Concat Items: | CI168: $CA | CJ168: :$CA | CL168: Concat Final:
B169: 0 | BR169: R1CADULT MENTAL HEALTH | BS169: R1C19 | BT169: ADULT MENTAL HEALTH | BU169: R1C19 | BV169: ADULT MENTAL HEALTH | BW169: R1C | BZ169: QUEEN'S HOSPITAL | CA169: MRU | CB169: 0 | CD169: Match: | CF169: Countif: | CH169: Concat Items: | CI169: $CA | CJ169: :$CA | CL169: Concat Final:
B170: 0 | BR170: R1CAMULREE DAY HOSPITAL | BS170: R1C14 | BT170: AMULREE DAY HOSPITAL | BU170: R1C14 | BV170: AMULREE DAY HOSPITAL | BW170: R1C | BZ170: QUEEN'S HOSPITAL | CA170: Ocean A | CB170: 0 | CD170: Match: | CF170: Countif: | CH170: Concat Items: | CI170: $CA | CJ170: :$CA | CL170: Concat Final:
B171: 0 | BR171: R1CASHURST HOSPITAL | BS171: R1C07 | BT171: ASHURST HOSPITAL | BU171: R1C07 | BV171: ASHURST HOSPITAL | BW171: R1C | BZ171: QUEEN'S HOSPITAL | CA171: Ocean B | CB171: 0 | CD171: Match: | CF171: Countif: | CH171: Concat Items: | CI171: $CA | CJ171: :$CA | CL171: Concat Final:
B172: 0 | BR172: R1CBEHAVIOUR RESOURCE (BRS) | BS172: R1C54 | BT172: BEHAVIOUR RESOURCE (BRS) | BU172: R1C54 | BV172: BEHAVIOUR RESOURCE (BRS) | BW172: R1C | BZ172: QUEEN'S HOSPITAL | CA172: Postnatal | CB172: 0 | CD172: Match: | CF172: Countif: | CH172: Concat Items: | CI172: $CA | CJ172: :$CA | CL172: Concat Final:
B173: 0 | BR173: R1CBRAMBLES WARD | BS173: R1C48 | BT173: BRAMBLES WARD | BU173: R1C48 | BV173: BRAMBLES WARD | BW173: R1C | BZ173: QUEEN'S HOSPITAL | CA173: Queens ITU | CB173: 0 | CD173: Match: | CF173: Countif: | CH173: Concat Items: | CI173: $CA | CJ173: :$CA | CL173: Concat Final:
B174: =IF(SUM(E375:G375,Q375:R375)>0,1,IF(AU375>0,2,0)) -> 0 | BR174: R1CC&SH ANDOVER | BS174: R1C62 | BT174: C&SH ANDOVER | BU174: R1C62 | BV174: C&SH ANDOVER | BW174: R1C | BZ174: QUEEN'S HOSPITAL | CA174: Queens Neuro ITU | CB174: 0 | CD174: Match: | CF174: Countif: | CH174: Concat Items: | CI174: $CA | CJ174: :$CA | CL174: Concat Final:
B175: 0 | D175: =IF(ISNA(VLOOKUP($E$5&E175,$BR:$BS,2,FALSE)),"",VLOOKUP($E$5&E175,$BR:$BS,2,FALSE)) ->  | BR175: R1CC&SH BASINGSTOKE | BS175: R1C45 | BT175: C&SH BASINGSTOKE | BU175: R1C45 | BV175: C&SH BASINGSTOKE | BW175: R1C | BZ175: QUEEN'S HOSPITAL | CA175: Sahara A | CB175: 0 | CD175: Match: | CF175: Countif: | CH175: Concat Items: | CI175: $CA | CJ175: :$CA | CL175: Concat Final:
B176: 0 | BR176: R1CC&SH PORTSMOUTH | BS176: R1C17 | BT176: C&SH PORTSMOUTH | BU176: R1C17 | BV176: C&SH PORTSMOUTH | BW176: R1C | BZ176: QUEEN'S HOSPITAL | CA176: Sahara B | CB176: 0 | CD176: Match: | CF176: Countif: | CH176: Concat Items: | CI176: $CA | CJ176: :$CA | CL176: Concat Final:
B177: 0 | BR177: R1CC&SH SOUTHAMPTON | BS177: R1C51 | BT177: C&SH SOUTHAMPTON | BU177: R1C51 | BV177: C&SH SOUTHAMPTON | BW177: R1C | BZ177: QUEEN'S HOSPITAL | CA177: SAU | CB177: 0 | CD177: Match: | CF177: Countif: | CH177: Concat Items: | CI177: $CA | CJ177: :$CA | CL177: Concat Final:
B178: 0 | BR178: R1CC&SH WINCHESTER | BS178: R1C58 | BT178: C&SH WINCHESTER | BU178: R1C58 | BV178: C&SH WINCHESTER | BW178: R1C | BZ178: QUEEN'S HOSPITAL | CA178: SCBU | CB178: 0 | CD178: Match: | CF178: Countif: | CH178: Concat Items: | CI178: $CA | CJ178: :$CA | CL178: Concat Final:
B179: 0 | BR179: R1CCAMPION PLACE | BS179: R1C90 | BT179: CAMPION PLACE | BU179: R1C90 | BV179: CAMPION PLACE | BW179: R1C | BZ179: QUEEN'S HOSPITAL | CA179: Sunrise A | CB179: 0 | CD179: Match: | CF179: Countif: | CH179: Concat Items: | CI179: $CA | CJ179: :$CA | CL179: Concat Final:
B180: 0 | BR180: R1CCHASE COMMUNITY HOSPITAL | BS180: R1CG1 | BT180: CHASE COMMUNITY HOSPITAL | BU180: R1CG1 | BV180: CHASE COMMUNITY HOSPITAL | BW180: R1C | BZ180: QUEEN'S HOSPITAL | CA180: Sunrise B | CB180: 0 | CD180: Match: | CF180: Countif: | CH180: Concat Items: | CI180: $CA | CJ180: :$CA | CL180: Concat Final:
B181: 0 | BR181: R1CCOMMUNITY PAEDIATRICS - EAST | BS181: R1C22 | BT181: COMMUNITY PAEDIATRICS - EAST | BU181: R1C22 | BV181: COMMUNITY PAEDIATRICS - EAST | BW181: R1C | BZ181: QUEEN'S HOSPITAL | CA181: Tropical Lagoon | CB181: 0 | CD181: Match: | CF181: Countif: | CH181: Concat Items: | CI181: $CA | CJ181: :$CA | CL181: Concat Final:
B182: 0 | BR182: R1CCOMMUNITY PAEDIATRICS - WEST | BS182: R1C55 | BT182: COMMUNITY PAEDIATRICS - WEST | BU182: R1C55 | BV182: COMMUNITY PAEDIATRICS - WEST | BW182: R1C | BZ182: BARNET GENERAL HOSPITAL | CA182: Ken Porter | CB182: 0 | CD182: Match: | CF182: Countif: | CH182: Concat Items: | CI182: $CA | CJ182: :$CA | CL182: Concat Final:
B183: 0 | BR183: R1CCOMMUNITY PAEDS N.FOREST | BS183: R1CA6 | BT183: COMMUNITY PAEDS N.FOREST | BU183: R1CA6 | BV183: COMMUNITY PAEDS N.FOREST | BW183: R1C | BZ183: CHASE FARM HOSPITAL | CA183: Blue Nile | CB183: 0 | CD183: Match: | CF183: Countif: | CH183: Concat Items: | CI183: $CA | CJ183: :$CA | CL183: Concat Final:
B184: 0 | BR184: R1CCROWN HEIGHTS | BS184: R1CH3 | BT184: CROWN HEIGHTS | BU184: R1CH3 | BV184: CROWN HEIGHTS | BW184: R1C | BZ184: CHASE FARM HOSPITAL | CA184: Cape Town | CB184: 0 | CD184: Match: | CF184: Countif: | CH184: Concat Items: | CI184: $CA | CJ184: :$CA | CL184: Concat Final:
B185: 0 | BR185: R1CEASTLEIGH DAS | BS185: R1CR3 | BT185: EASTLEIGH DAS | BU185: R1CR3 | BV185: EASTLEIGH DAS | BW185: R1C | BZ185: CHASE FARM HOSPITAL | CA185: Cardamom | CB185: 0 | CD185: Match: | CF185: Countif: | CH185: Concat Items: | CI185: $CA | CJ185: :$CA | CL185: Concat Final:
B186: 0 | BR186: R1CELMLEIGH HOSPITAL | BS186: R1CM8 | BT186: ELMLEIGH HOSPITAL | BU186: R1CM8 | BV186: ELMLEIGH HOSPITAL | BW186: R1C | BZ186: CHASE FARM HOSPITAL | CA186: Complex Rehab Ward (formerly Somerset Villa) | CB186: 0 | CD186: Match: | CF186: Countif: | CH186: Concat Items: | CI186: $CA | CJ186: :$CA | CL186: Concat Final:
B187: 0 | BR187: R1CFANSHAWE WARD | BS187: R1C49 | BT187: FANSHAWE WARD | BU187: R1C49 | BV187: FANSHAWE WARD | BW187: R1C | BZ187: CHASE FARM HOSPITAL | CA187: Cornwall Villa | CB187: 0 | CD187: Match: | CF187: Countif: | CH187: Concat Items: | CI187: $CA | CJ187: :$CA | CL187: Concat Final:
B188: 0 | BR188: R1CFAREHAM COMMUNITY HOSPITAL | BS188: R1CF4 | BT188: FAREHAM COMMUNITY HOSPITAL | BU188: R1CF4 | BV188: FAREHAM COMMUNITY HOSPITAL | BW188: R1C | BZ188: CHASE FARM HOSPITAL | CA188: Derwent | CB188: 0 | CD188: Match: | CF188: Countif: | CH188: Concat Items: | CI188: $CA | CJ188: :$CA | CL188: Concat Final:
B189: 0 | BR189: R1CFAREHAM REACH UNIT | BS189: R1C89 | BT189: FAREHAM REACH UNIT | BU189: R1C89 | BV189: FAREHAM REACH UNIT | BW189: R1C | BZ189: CHASE FARM HOSPITAL | CA189: Dorset | CB189: 0 | CD189: Match: | CF189: Countif: | CH189: Concat Items: | CI189: $CA | CJ189: :$CA | CL189: Concat Final:
B190: 0 | BR190: R1CFENWICK HOSPITAL | BS190: R1CT7 | BT190: FENWICK HOSPITAL | BU190: R1CT7 | BV190: FENWICK HOSPITAL | BW190: R1C | BZ190: CHASE FARM HOSPITAL | CA190: Eden House | CB190: 0 | CD190: Match: | CF190: Countif: | CH190: Concat Items: | CI190: $CA | CJ190: :$CA | CL190: Concat Final:
B191: 0 | BR191: R1CFLEET COMMUNITY HOSPITAL | BS191: R1CG3 | BT191: FLEET COMMUNITY HOSPITAL | BU191: R1CG3 | BV191: FLEET COMMUNITY HOSPITAL | BW191: R1C | BZ191: CHASE FARM HOSPITAL | CA191: Fennel | CB191: 0 | CD191: Match: | CF191: Countif: | CH191: Concat Items: | CI191: $CA | CJ191: :$CA | CL191: Concat Final:
B192: 0 | BR192: R1CFRITH COTTAGE DAS | BS192: R1C09 | BT192: FRITH COTTAGE DAS | BU192: R1C09 | BV192: FRITH COTTAGE DAS | BW192: R1C | BZ192: CHASE FARM HOSPITAL | CA192: Juniper | CB192: 0 | CD192: Match: | CF192: Countif: | CH192: Concat Items: | CI192: $CA | CJ192: :$CA | CL192: Concat Final:
B193: 0 | BR193: =CONCATENATE(LEFT(BS193, 3),BT193) -> R1CGOSPORT WAR MEMORIAL HOSPITAL | BS193: R1C70 | BT193: GOSPORT WAR MEMORIAL HOSPITAL | BU193: R1C70 | BV193: GOSPORT WAR MEMORIAL HOSPITAL | BW193: R1C | BZ193: CHASE FARM HOSPITAL | CA193: Mint | CB193: 0 | CD193: Match: | CF193: Countif: | CH193: Concat Items: | CI193: $CA | CJ193: :$CA | CL193: Concat Final:
B194: 0 | BR194: R1CHAVANT WAR MEMORIAL HOSPITAL | BS194: R1CJ2 | BT194: HAVANT WAR MEMORIAL HOSPITAL | BU194: R1CJ2 | BV194: HAVANT WAR MEMORIAL HOSPITAL | BW194: R1C | BZ194: CHASE FARM HOSPITAL | CA194: Moselle House | CB194: 0 | CD194: Match: | CF194: Countif: | CH194: Concat Items: | CI194: $CA | CJ194: :$CA | CL194: Concat Final:
B195: 0 | BR195: R1CHOOK SHADIE AT THE BASE | BS195: R1CE8 | BT195: HOOK SHADIE AT THE BASE | BU195: R1CE8 | BV195: HOOK SHADIE AT THE BASE | BW195: R1C | BZ195: CHASE FARM HOSPITAL | CA195: Paprika | CB195: 0 | CD195: Match: | CF195: Countif: | CH195: Concat Items: | CI195: $CA | CJ195: :$CA | CL195: Concat Final:
B196: 0 | BR196: R1CHUNTERCOMBE MANOR HOSPITAL | BS196: R1CA9 | BT196: HUNTERCOMBE MANOR HOSPITAL | BU196: R1CA9 | BV196: HUNTERCOMBE MANOR HOSPITAL | BW196: R1C | BZ196: CHASE FARM HOSPITAL | CA196: Sage | CB196: 0 | CD196: Match: | CF196: Countif: | CH196: Concat Items: | CI196: $CA | CJ196: :$CA | CL196: Concat Final:
B197: 0 | BR197: R1CHYTHE HOSPITAL | BS197: R1CG7 | BT197: HYTHE HOSPITAL | BU197: R1CG7 | BV197: HYTHE HOSPITAL | BW197: =LEFT(BU197,3) -> R1C | BZ197: CHASE FARM HOSPITAL | CA197: Severn | CB197: 0 | CD197: Match: | CF197: Countif: | CH197: Concat Items: | CI197: $CA | CJ197: :$CA | CL197: Concat Final:
B198: 0 | BR198: R1CINSCAPE | BS198: R1C95 | BT198: INSCAPE | BU198: R1C95 | BV198: INSCAPE | BW198: R1C | BZ198: CHASE FARM HOSPITAL | CA198: Silver Birches | CB198: 0 | CD198: Match: | CF198: Countif: | CH198: Concat Items: | CI198: $CA | CJ198: :$CA | CL198: Concat Final:
B199: 0 | BR199: R1CINTEGRATED DRUG TREATMENT | BS199: R1C59 | BT199: INTEGRATED DRUG TREATMENT | BU199: R1C59 | BV199: INTEGRATED DRUG TREATMENT | BW199: R1C | BZ199: CHASE FARM HOSPITAL | CA199: Suffolk Ward | CB199: 0 | CD199: Match: | CF199: Countif: | CH199: Concat Items: | CI199: $CA | CJ199: :$CA | CL199: Concat Final:
B200: 0 | BR200: R1CJUBILEE HOUSE | BS200: R1CF5 | BT200: JUBILEE HOUSE | BU200: R1CF5 | BV200: JUBILEE HOUSE | BW200: R1C | BZ200: CHASE FARM HOSPITAL | CA200: Sussex | CB200: 0 | CD200: Match: | CF200: Countif: | CH200: Concat Items: | CI200: $CA | CJ200: :$CA | CL200: Concat Final:
... 925 more rows

Sheet Validation (hidden)
A2: Requested validations | B2: FFT IP validation code
A4: ERRORS:
A5: 1) Organisation code must be selected;
A6: 3) An ODS site code must be selected for each row;
A7: 4) A ward name must be entered for each row;
A8: 5) At least one specialty must be selected (Specialty 1) for each row;
A9: 6) Specialties (Specialty 1 and Specialty 2) must be selected from drop downs; | B9: internal?
A10: 7) Total planned hours for each row must be greater than zero;
A11: 8) Total actual hours for each row must be greater than zero;
A12: 9) There should be no gaps between each row; | B12: ?
A13: 10) Duplication of a ward name within a site. | B13: "=IF($AA$816>0,"Duplicate 'Ward name' (Col D), with the same specialty(s) (Col L and Col M), has been provided for at least 1 'Hospital Site'(Col C)","")" | C13: does not work in the other sheets!!
A14: WARNINGS:
A15: 1) One or more wards has a day nurse fill rate > 100%;
A16: 2) One or more wards has a day care staff fill rate > 100%;
A17: 3) One or more wards has a night nurse fill rate > 100%;
A18: 4) One or more wards has a night care staff fill rate > 100%;
A19: 5) One or more wards has less than 1448 actual hours (approx. 2 full time staff);
A20: 6) One or more wards has more than 30 000 actual hours (approx. 40 full time staff);
A21: 7) One or more wards has submitted actual hours but zero CHPPD patients.
A25: Other
A27: no duplicate speciality codes | B27: "=IF(Y816>0,"The same 'Specialty' (Col L and Col M) can not be selected twice","")"
A28: all relevant cells to be filled in | B28: "=IF(T816>0,"Data not complete for all rows",IF(W816>0,"Data not complete for all rows",""))"
A30: Fix ODS ref data
C47: a | D47: 1 | E47: p | K47: =CONCATENATE(C47,D47,E47,F47) -> a1p | L47: =(IF(COUNTIF($K$47:$K$59,K47)>1,1,0))=1 -> FALSE
C48: b | D48: 2 | E48: o | K48: =CONCATENATE(C48,D48,E48,F48) -> b2o | L48: =(IF(COUNTIF($K$47:$K$59,K48)>1,1,0))=1 -> FALSE
C49: c | D49: 3 | E49: i | K49: c3i | L49: FALSE
C50: d | D50: 4 | E50: u | K50: d4u | L50: FALSE
C51: e | D51: 5 | E51: y | K51: e5y | L51: FALSE
C52: f | D52: 6 | E52: t | K52: f6t | L52: FALSE
C53: g | D53: 7 | E53: r | K53: g7r | L53: FALSE
C54: h | D54: 8 | E54: e | K54: h8e | L54: FALSE
C55: i | D55: 9 | E55: s | K55: i9s | L55: FALSE
C56: j | D56: 10 | E56: w | K56: j10w | L56: FALSE
C57: w | D57: 13 | E57: w | K57: w13w | L57: TRUE
C58: w | D58: 13 | E58: w | K58: w13w | L58: TRUE
C59: w | D59: 13 | E59: w | F59: q | K59: w13wq | L59: FALSE

Sheet Wards
A1: Concatenate | B1: Org code | C1: Org name | D1: Site Code | E1: Site Name | F1: Ward
A2: =CONCATENATE(D2,"-",F2) -> AXG01-Cedar | B2: AXG | C2: WILTSHIRE HEALTH & CARE | D2: AXG01 | E2: WILTSHIRE HEALTH & CARE (CHIPPENHAM COMMUNITY HOSPITAL) | F2: Cedar
A3: =CONCATENATE(D3,"-",F3) -> AXG01-Mulberry | B3: AXG | C3: WILTSHIRE HEALTH & CARE | D3: AXG01 | E3: WILTSHIRE HEALTH & CARE (CHIPPENHAM COMMUNITY HOSPITAL) | F3: Mulberry
A4: AXG02-Ailesbury | B4: AXG | C4: WILTSHIRE HEALTH & CARE | D4: AXG02 | E4: SAVERNAKE COMMUNITY HOSPITAL | F4: Ailesbury
A5: AXG03-Longleat | B5: AXG | C5: WILTSHIRE HEALTH & CARE | D5: AXG03 | E5: WARMINSTER COMMUNITY HOSPITAL | F5: Longleat
A6: R0A02-11M+12M - Ward 11 & 12 | B6: R0A | C6: MANCHESTER UNIVERSITY NHS FOUNDATION TRUST | D6: R0A02 | E6: MANCHESTER ROYAL INFIRMARY | F6: 11M+12M - Ward 11 & 12
A7: R0A02-30M - 30M | B7: R0A | C7: MANCHESTER UNIVERSITY NHS FOUNDATION TRUST | D7: R0A02 | E7: MANCHESTER ROYAL INFIRMARY | F7: 30M - 30M
A8: R0A02-31 - Ward 31 | B8: R0A | C8: MANCHESTER UNIVERSITY NHS FOUNDATION TRUST | D8: R0A02 | E8: MANCHESTER ROYAL INFIRMARY | F8: 31 - Ward 31
A9: R0A02-32M - 32M | B9: R0A | C9: MANCHESTER UNIVERSITY NHS FOUNDATION TRUST | D9: R0A02 | E9: MANCHESTER ROYAL INFIRMARY | F9: 32M - 32M
A10: R0A02-35 - Ward 35 (ACC) | B10: R0A | C10: MANCHESTER UNIVERSITY NHS FOUNDATION TRUST | D10: R0A02 | E10: MANCHESTER ROYAL INFIRMARY | F10: 35 - Ward 35 (ACC)
A11: R0A02-3M - Ward 3 | B11: R0A | C11: MANCHESTER UNIVERSITY NHS FOUNDATION TRUST | D11: R0A02 | E11: MANCHESTER ROYAL INFIRMARY | F11: 3M - Ward 3
A12: R0A02-44 - Ward 44 | B12: R0A | C12: MANCHESTER UNIVERSITY NHS FOUNDATION TRUST | D12: R0A02 | E12: MANCHESTER ROYAL INFIRMARY | F12: 44 - Ward 44
A13: R0A02-45 - Ward 45 | B13: R0A | C13: MANCHESTER UNIVERSITY NHS FOUNDATION TRUST | D13: R0A02 | E13: MANCHESTER ROYAL INFIRMARY | F13: 45 - Ward 45
A14: R0A02-46 - Ward 46 | B14: R0A | C14: MANCHESTER UNIVERSITY NHS FOUNDATION TRUST | D14: R0A02 | E14: MANCHESTER ROYAL INFIRMARY | F14: 46 - Ward 46
A15: R0A02-4M - Ward 4 | B15: R0A | C15: MANCHESTER UNIVERSITY NHS FOUNDATION TRUST | D15: R0A02 | E15: MANCHESTER ROYAL INFIRMARY | F15: 4M - Ward 4
A16: R0A02-8HPB - Ward 8 HPB | B16: R0A | C16: MANCHESTER UNIVERSITY NHS FOUNDATION TRUST | D16: R0A02 | E16: MANCHESTER ROYAL INFIRMARY | F16: 8HPB - Ward 8 HPB
A17: R0A02-9M+10M - Ward 9 & 10 | B17: R0A | C17: MANCHESTER UNIVERSITY NHS FOUNDATION TRUST | D17: R0A02 | E17: MANCHESTER ROYAL INFIRMARY | F17: 9M+10M - Ward 9 & 10
A18: R0A02-AM1 - Am1 | B18: R0A | C18: MANCHESTER UNIVERSITY NHS FOUNDATION TRUST | D18: R0A02 | E18: MANCHESTER ROYAL INFIRMARY | F18: AM1 - Am1
A19: R0A02-AM2 - Am2 | B19: R0A | C19: MANCHESTER UNIVERSITY NHS FOUNDATION TRUST | D19: R0A02 | E19: MANCHESTER ROYAL INFIRMARY | F19: AM2 - Am2
A20: R0A02-AM3 - Am3 | B20: R0A | C20: MANCHESTER UNIVERSITY NHS FOUNDATION TRUST | D20: R0A02 | E20: MANCHESTER ROYAL INFIRMARY | F20: AM3 - Am3
A21: R0A02-AM4 - Am4 | B21: R0A | C21: MANCHESTER UNIVERSITY NHS FOUNDATION TRUST | D21: R0A02 | E21: MANCHESTER ROYAL INFIRMARY | F21: AM4 - Am4
A22: R0A02-AMU | B22: R0A | C22: MANCHESTER UNIVERSITY NHS FOUNDATION TRUST | D22: R0A02 | E22: MANCHESTER ROYAL INFIRMARY | F22: AMU
A23: R0A02-Critical Care Unit | B23: R0A | C23: MANCHESTER UNIVERSITY NHS FOUNDATION TRUST | D23: R0A02 | E23: MANCHESTER ROYAL INFIRMARY | F23: Critical Care Unit
A24: R0A02-CSITU | B24: R0A | C24: MANCHESTER UNIVERSITY NHS FOUNDATION TRUST | D24: R0A02 | E24: MANCHESTER ROYAL INFIRMARY | F24: CSITU
A25: R0A02-ESTU - Emergency Surgical Trauma Unit | B25: R0A | C25: MANCHESTER UNIVERSITY NHS FOUNDATION TRUST | D25: R0A02 | E25: MANCHESTER ROYAL INFIRMARY | F25: ESTU - Emergency Surgical Trauma Unit
A26: R0A02-ETCS - Etc Short Stay | B26: R0A | C26: MANCHESTER UNIVERSITY NHS FOUNDATION TRUST | D26: R0A02 | E26: MANCHESTER ROYAL INFIRMARY | F26: ETCS - Etc Short Stay
A27: R0A02-HNSU - Head and Neck Surgical Unit | B27: R0A | C27: MANCHESTER UNIVERSITY NHS FOUNDATION TRUST | D27: R0A02 | E27: MANCHESTER ROYAL INFIRMARY | F27: HNSU - Head and Neck Surgical Unit
A28: R0A02-MANCHESTER WARD - MANW | B28: R0A | C28: MANCHESTER UNIVERSITY NHS FOUNDATION TRUST | D28: R0A02 | E28: MANCHESTER ROYAL INFIRMARY | F28: MANCHESTER WARD - MANW
A29: R0A02-MVC - MANCHESTER VASCULAR CENTRE | B29: R0A | C29: MANCHESTER UNIVERSITY NHS FOUNDATION TRUST | D29: R0A02 | E29: MANCHESTER ROYAL INFIRMARY | F29: MVC - MANCHESTER VASCULAR CENTRE
A30: R0A02-Ward 36/37 | B30: R0A | C30: MANCHESTER UNIVERSITY NHS FOUNDATION TRUST | D30: R0A02 | E30: MANCHESTER ROYAL INFIRMARY | F30: Ward 36/37
A31: R0A03-75 - Ward 75 | B31: R0A | C31: MANCHESTER UNIVERSITY NHS FOUNDATION TRUST | D31: R0A03 | E31: ROYAL MANCHESTER CHILDREN'S HOSPITAL | F31: 75 - Ward 75
A32: R0A03-76 - Ward 76 | B32: R0A | C32: MANCHESTER UNIVERSITY NHS FOUNDATION TRUST | D32: R0A03 | E32: ROYAL MANCHESTER CHILDREN'S HOSPITAL | F32: 76 - Ward 76
A33: R0A03-77 - Ward 77 | B33: R0A | C33: MANCHESTER UNIVERSITY NHS FOUNDATION TRUST | D33: R0A03 | E33: ROYAL MANCHESTER CHILDREN'S HOSPITAL | F33: 77 - Ward 77
A34: R0A03-78 - Ward 78 | B34: R0A | C34: MANCHESTER UNIVERSITY NHS FOUNDATION TRUST | D34: R0A03 | E34: ROYAL MANCHESTER CHILDREN'S HOSPITAL | F34: 78 - Ward 78
A35: R0A03-81 - Ward 81 Burns | B35: R0A | C35: MANCHESTER UNIVERSITY NHS FOUNDATION TRUST | D35: R0A03 | E35: ROYAL MANCHESTER CHILDREN'S HOSPITAL | F35: 81 - Ward 81 Burns
A36: R0A03-83 - Ward 83 | B36: R0A | C36: MANCHESTER UNIVERSITY NHS FOUNDATION TRUST | D36: R0A03 | E36: ROYAL MANCHESTER CHILDREN'S HOSPITAL | F36: 83 - Ward 83
A37: R0A03-84 - Ward 84 | B37: R0A | C37: MANCHESTER UNIVERSITY NHS FOUNDATION TRUST | D37: R0A03 | E37: ROYAL MANCHESTER CHILDREN'S HOSPITAL | F37: 84 - Ward 84
A38: R0A03-84A - Ward 84 Bmtu | B38: R0A | C38: MANCHESTER UNIVERSITY NHS FOUNDATION TRUST | D38: R0A03 | E38: ROYAL MANCHESTER CHILDREN'S HOSPITAL | F38: 84A - Ward 84 Bmtu
A39: R0A03-85 - Ward 85 | B39: R0A | C39: MANCHESTER UNIVERSITY NHS FOUNDATION TRUST | D39: R0A03 | E39: ROYAL MANCHESTER CHILDREN'S HOSPITAL | F39: 85 - Ward 85
A40: R0A03-87 - Ward 87 Galaxy | B40: R0A | C40: MANCHESTER UNIVERSITY NHS FOUNDATION TRUST | D40: R0A03 | E40: ROYAL MANCHESTER CHILDREN'S HOSPITAL | F40: 87 - Ward 87 Galaxy
A41: R0A03-Paediatric Critical Care | B41: R0A | C41: MANCHESTER UNIVERSITY NHS FOUNDATION TRUST | D41: R0A03 | E41: ROYAL MANCHESTER CHILDREN'S HOSPITAL | F41: Paediatric Critical Care
A42: R0A04-55I - Ward 55 Inpatients Reh | B42: R0A | C42: MANCHESTER UNIVERSITY NHS FOUNDATION TRUST | D42: R0A04 | E42: MANCHESTER ROYAL EYE HOSPITAL | F42: 55I - Ward 55 Inpatients Reh
A43: R0A05-62 - Ward 62 - Gynae Inpatients | B43: R0A | C43: MANCHESTER UNIVERSITY NHS FOUNDATION TRUST | D43: R0A05 | E43: ST MARY'S HOSPITAL | F43: 62 - Ward 62 - Gynae Inpatients
A44: R0A05-NICU - Neonatal Intensive Care Unit | B44: R0A | C44: MANCHESTER UNIVERSITY NHS FOUNDATION TRUST | D44: R0A05 | E44: ST MARY'S HOSPITAL | F44: NICU - Neonatal Intensive Care Unit
A45: R0A05-Ward 47a Midwifery Led Unit | B45: R0A | C45: MANCHESTER UNIVERSITY NHS FOUNDATION TRUST | D45: R0A05 | E45: ST MARY'S HOSPITAL | F45: Ward 47a Midwifery Led Unit
A46: R0A05-Ward 47b Postnatal | B46: R0A | C46: MANCHESTER UNIVERSITY NHS FOUNDATION TRUST | D46: R0A05 | E46: ST MARY'S HOSPITAL | F46: Ward 47b Postnatal
A47: R0A05-Ward 64 Delivery Unit | B47: R0A | C47: MANCHESTER UNIVERSITY NHS FOUNDATION TRUST | D47: R0A05 | E47: ST MARY'S HOSPITAL | F47: Ward 64 Delivery Unit
A48: R0A05-Ward 65 Antenatal | B48: R0A | C48: MANCHESTER UNIVERSITY NHS FOUNDATION TRUST | D48: R0A05 | E48: ST MARY'S HOSPITAL | F48: Ward 65 Antenatal
A49: R0A05-Ward 66 Postnatal | B49: R0A | C49: MANCHESTER UNIVERSITY NHS FOUNDATION TRUST | D49: R0A05 | E49: ST MARY'S HOSPITAL | F49: Ward 66 Postnatal
A50: R0A07-A1 | B50: R0A | C50: MANCHESTER UNIVERSITY NHS FOUNDATION TRUST | D50: R0A07 | E50: WYTHENSHAWE HOSPITAL | F50: A1
A51: R0A07-A2 | B51: R0A | C51: MANCHESTER UNIVERSITY NHS FOUNDATION TRUST | D51: R0A07 | E51: WYTHENSHAWE HOSPITAL | F51: A2
A52: R0A07-A3 | B52: R0A | C52: MANCHESTER UNIVERSITY NHS FOUNDATION TRUST | D52: R0A07 | E52: WYTHENSHAWE HOSPITAL | F52: A3
A53: R0A07-A4 | B53: R0A | C53: MANCHESTER UNIVERSITY NHS FOUNDATION TRUST | D53: R0A07 | E53: WYTHENSHAWE HOSPITAL | F53: A4
A54: R0A07-A5 | B54: R0A | C54: MANCHESTER UNIVERSITY NHS FOUNDATION TRUST | D54: R0A07 | E54: WYTHENSHAWE HOSPITAL | F54: A5
A55: R0A07-A6 | B55: R0A | C55: MANCHESTER UNIVERSITY NHS FOUNDATION TRUST | D55: R0A07 | E55: WYTHENSHAWE HOSPITAL | F55: A6
A56: R0A07-A7 | B56: R0A | C56: MANCHESTER UNIVERSITY NHS FOUNDATION TRUST | D56: R0A07 | E56: WYTHENSHAWE HOSPITAL | F56: A7
A57: R0A07-A9 | B57: R0A | C57: MANCHESTER UNIVERSITY NHS FOUNDATION TRUST | D57: R0A07 | E57: WYTHENSHAWE HOSPITAL | F57: A9
A58: R0A07-ACCU | B58: R0A | C58: MANCHESTER UNIVERSITY NHS FOUNDATION TRUST | D58: R0A07 | E58: WYTHENSHAWE HOSPITAL | F58: ACCU
A59: R0A07-ACUTE ICU | B59: R0A | C59: MANCHESTER UNIVERSITY NHS FOUNDATION TRUST | D59: R0A07 | E59: WYTHENSHAWE HOSPITAL | F59: ACUTE ICU
A60: R0A07-AMU | B60: R0A | C60: MANCHESTER UNIVERSITY NHS FOUNDATION TRUST | D60: R0A07 | E60: WYTHENSHAWE HOSPITAL | F60: AMU
A61: R0A07-Burns Unit | B61: R0A | C61: MANCHESTER UNIVERSITY NHS FOUNDATION TRUST | D61: R0A07 | E61: WYTHENSHAWE HOSPITAL | F61: Burns Unit
A62: R0A07-C2 - Post Natal Ward | B62: R0A | C62: MANCHESTER UNIVERSITY NHS FOUNDATION TRUST | D62: R0A07 | E62: WYTHENSHAWE HOSPITAL | F62: C2 - Post Natal Ward
A63: R0A07-C3 - Antenatal Ward | B63: R0A | C63: MANCHESTER UNIVERSITY NHS FOUNDATION TRUST | D63: R0A07 | E63: WYTHENSHAWE HOSPITAL | F63: C3 - Antenatal Ward
A64: R0A07-CTCCU | B64: R0A | C64: MANCHESTER UNIVERSITY NHS FOUNDATION TRUST | D64: R0A07 | E64: WYTHENSHAWE HOSPITAL | F64: CTCCU
A65: R0A07-DELIVERY SUITE | B65: R0A | C65: MANCHESTER UNIVERSITY NHS FOUNDATION TRUST | D65: R0A07 | E65: WYTHENSHAWE HOSPITAL | F65: DELIVERY SUITE
A66: R0A07-Doyle Ward | B66: R0A | C66: MANCHESTER UNIVERSITY NHS FOUNDATION TRUST | D66: R0A07 | E66: WYTHENSHAWE HOSPITAL | F66: Doyle Ward
A67: =CONCATENATE(D67,"-",F67) -> R0A07-F1 - Plastics Day Care | B67: R0A | C67: MANCHESTER UNIVERSITY NHS FOUNDATION TRUST | D67: R0A07 | E67: WYTHENSHAWE HOSPITAL | F67: F1 - Plastics Day Care
A68: R0A07-F11/PITU | B68: R0A | C68: MANCHESTER UNIVERSITY NHS FOUNDATION TRUST | D68: R0A07 | E68: WYTHENSHAWE HOSPITAL | F68: F11/PITU
A69: R0A07-F12 | B69: R0A | C69: MANCHESTER UNIVERSITY NHS FOUNDATION TRUST | D69: R0A07 | E69: WYTHENSHAWE HOSPITAL | F69: F12
A70: R0A07-F14 | B70: R0A | C70: MANCHESTER UNIVERSITY NHS FOUNDATION TRUST | D70: R0A07 | E70: WYTHENSHAWE HOSPITAL | F70: F14
A71: R0A07-F15 | B71: R0A | C71: MANCHESTER UNIVERSITY NHS FOUNDATION TRUST | D71: R0A07 | E71: WYTHENSHAWE HOSPITAL | F71: F15
A72: R0A07-F16 | B72: R0A | C72: MANCHESTER UNIVERSITY NHS FOUNDATION TRUST | D72: R0A07 | E72: WYTHENSHAWE HOSPITAL | F72: F16
A73: R0A07-F2 LUNG | B73: R0A | C73: MANCHESTER UNIVERSITY NHS FOUNDATION TRUST | D73: R0A07 | E73: WYTHENSHAWE HOSPITAL | F73: F2 LUNG
A74: R0A07-F2/F5 | B74: R0A | C74: MANCHESTER UNIVERSITY NHS FOUNDATION TRUST | D74: R0A07 | E74: WYTHENSHAWE HOSPITAL | F74: F2/F5
A75: R0A07-F3 | B75: R0A | C75: MANCHESTER UNIVERSITY NHS FOUNDATION TRUST | D75: R0A07 | E75: WYTHENSHAWE HOSPITAL | F75: F3
A76: R0A07-F4 | B76: R0A | C76: MANCHESTER UNIVERSITY NHS FOUNDATION TRUST | D76: R0A07 | E76: WYTHENSHAWE HOSPITAL | F76: F4
A77: R0A07-F6 | B77: R0A | C77: MANCHESTER UNIVERSITY NHS FOUNDATION TRUST | D77: R0A07 | E77: WYTHENSHAWE HOSPITAL | F77: F6
A78: R0A07-F7 | B78: R0A | C78: MANCHESTER UNIVERSITY NHS FOUNDATION TRUST | D78: R0A07 | E78: WYTHENSHAWE HOSPITAL | F78: F7
A79: R0A07-F9 | B79: R0A | C79: MANCHESTER UNIVERSITY NHS FOUNDATION TRUST | D79: R0A07 | E79: WYTHENSHAWE HOSPITAL | F79: F9
A80: R0A07-JIM QUICK TRANSPLANT | B80: R0A | C80: MANCHESTER UNIVERSITY NHS FOUNDATION TRUST | D80: R0A07 | E80: WYTHENSHAWE HOSPITAL | F80: JIM QUICK TRANSPLANT
A81: R0A07-NeonatalUnit | B81: R0A | C81: MANCHESTER UNIVERSITY NHS FOUNDATION TRUST | D81: R0A07 | E81: WYTHENSHAWE HOSPITAL | F81: NeonatalUnit
A82: R0A07-NWVU | B82: R0A | C82: MANCHESTER UNIVERSITY NHS FOUNDATION TRUST | D82: R0A07 | E82: WYTHENSHAWE HOSPITAL | F82: NWVU
A83: R0A07-OPAL House | B83: R0A | C83: MANCHESTER UNIVERSITY NHS FOUNDATION TRUST | D83: R0A07 | E83: WYTHENSHAWE HOSPITAL | F83: OPAL House
A84: R0A07-Pearce Ward | B84: R0A | C84: MANCHESTER UNIVERSITY NHS FOUNDATION TRUST | D84: R0A07 | E84: WYTHENSHAWE HOSPITAL | F84: Pearce Ward
A85: R0A07-POU | B85: R0A | C85: MANCHESTER UNIVERSITY NHS FOUNDATION TRUST | D85: R0A07 | E85: WYTHENSHAWE HOSPITAL | F85: POU
A86: R0A07-Starlight Unit (F8) | B86: R0A | C86: MANCHESTER UNIVERSITY NHS FOUNDATION TRUST | D86: R0A07 | E86: WYTHENSHAWE HOSPITAL | F86: Starlight Unit (F8)
A87: R0A07-Wilson Ward | B87: R0A | C87: MANCHESTER UNIVERSITY NHS FOUNDATION TRUST | D87: R0A07 | E87: WYTHENSHAWE HOSPITAL | F87: Wilson Ward
A88: R0A09-AMU - Trafford | B88: R0A | C88: MANCHESTER UNIVERSITY NHS FOUNDATION TRUST | D88: R0A09 | E88: TRAFFORD GENERAL HOSPITAL | F88: AMU - Trafford
A89: R0A09-ICU - High Care Unit’ | B89: R0A | C89: MANCHESTER UNIVERSITY NHS FOUNDATION TRUST | D89: R0A09 | E89: TRAFFORD GENERAL HOSPITAL | F89: ICU - High Care Unit’
A90: R0A09-TINRU - INRU | B90: R0A | C90: MANCHESTER UNIVERSITY NHS FOUNDATION TRUST | D90: R0A09 | E90: TRAFFORD GENERAL HOSPITAL | F90: TINRU - INRU
A91: R0A09-TSRU - Stroke-Rehab | B91: R0A | C91: MANCHESTER UNIVERSITY NHS FOUNDATION TRUST | D91: R0A09 | E91: TRAFFORD GENERAL HOSPITAL | F91: TSRU - Stroke-Rehab
A92: R0A09-W2 - Ward 2 | B92: R0A | C92: MANCHESTER UNIVERSITY NHS FOUNDATION TRUST | D92: R0A09 | E92: TRAFFORD GENERAL HOSPITAL | F92: W2 - Ward 2
A93: R0A09-W4 - Ward 4 | B93: R0A | C93: MANCHESTER UNIVERSITY NHS FOUNDATION TRUST | D93: R0A09 | E93: TRAFFORD GENERAL HOSPITAL | F93: W4 - Ward 4
A94: R0A09-W6 - Ward 6 | B94: R0A | C94: MANCHESTER UNIVERSITY NHS FOUNDATION TRUST | D94: R0A09 | E94: TRAFFORD GENERAL HOSPITAL | F94: W6 - Ward 6
A95: R0A09-Ward 12 Orthopeadic Unit | B95: R0A | C95: MANCHESTER UNIVERSITY NHS FOUNDATION TRUST | D95: R0A09 | E95: TRAFFORD GENERAL HOSPITAL | F95: Ward 12 Orthopeadic Unit
A96: R0B01-CPAU | B96: R0B | C96: SOUTH TYNESIDE AND SUNDERLAND NHS FOUNDATION TRUST | D96: R0B01 | E96: SUNDERLAND ROYAL HOSPITAL | F96: CPAU
A97: R0B01-DGANPN | B97: R0B | C97: SOUTH TYNESIDE AND SUNDERLAND NHS FOUNDATION TRUST | D97: R0B01 | E97: SUNDERLAND ROYAL HOSPITAL | F97: DGANPN
A98: R0B01-DGB20 | B98: R0B | C98: SOUTH TYNESIDE AND SUNDERLAND NHS FOUNDATION TRUST | D98: R0B01 | E98: SUNDERLAND ROYAL HOSPITAL | F98: DGB20
A99: R0B01-DGB21 | B99: R0B | C99: SOUTH TYNESIDE AND SUNDERLAND NHS FOUNDATION TRUST | D99: R0B01 | E99: SUNDERLAND ROYAL HOSPITAL | F99: DGB21
A100: R0B01-DGB26 | B100: R0B | C100: SOUTH TYNESIDE AND SUNDERLAND NHS FOUNDATION TRUST | D100: R0B01 | E100: SUNDERLAND ROYAL HOSPITAL | F100: DGB26
A101: R0B01-DGB28 | B101: R0B | C101: SOUTH TYNESIDE AND SUNDERLAND NHS FOUNDATION TRUST | D101: R0B01 | E101: SUNDERLAND ROYAL HOSPITAL | F101: DGB28
A102: R0B01-DGC30 | B102: R0B | C102: SOUTH TYNESIDE AND SUNDERLAND NHS FOUNDATION TRUST | D102: R0B01 | E102: SUNDERLAND ROYAL HOSPITAL | F102: DGC30
A103: R0B01-DGC31 | B103: R0B | C103: SOUTH TYNESIDE AND SUNDERLAND NHS FOUNDATION TRUST | D103: R0B01 | E103: SUNDERLAND ROYAL HOSPITAL | F103: DGC31
A104: R0B01-DGC33 | B104: R0B | C104: SOUTH TYNESIDE AND SUNDERLAND NHS FOUNDATION TRUST | D104: R0B01 | E104: SUNDERLAND ROYAL HOSPITAL | F104: DGC33
A105: R0B01-DGC36 | B105: R0B | C105: SOUTH TYNESIDE AND SUNDERLAND NHS FOUNDATION TRUST | D105: R0B01 | E105: SUNDERLAND ROYAL HOSPITAL | F105: DGC36
A106: R0B01-DGD41 | B106: R0B | C106: SOUTH TYNESIDE AND SUNDERLAND NHS FOUNDATION TRUST | D106: R0B01 | E106: SUNDERLAND ROYAL HOSPITAL | F106: DGD41
A107: R0B01-DGD42 | B107: R0B | C107: SOUTH TYNESIDE AND SUNDERLAND NHS FOUNDATION TRUST | D107: R0B01 | E107: SUNDERLAND ROYAL HOSPITAL | F107: DGD42
A108: R0B01-DGD43 | B108: R0B | C108: SOUTH TYNESIDE AND SUNDERLAND NHS FOUNDATION TRUST | D108: R0B01 | E108: SUNDERLAND ROYAL HOSPITAL | F108: DGD43
A109: R0B01-DGD47 | B109: R0B | C109: SOUTH TYNESIDE AND SUNDERLAND NHS FOUNDATION TRUST | D109: R0B01 | E109: SUNDERLAND ROYAL HOSPITAL | F109: DGD47
A110: R0B01-DGD48 | B110: R0B | C110: SOUTH TYNESIDE AND SUNDERLAND NHS FOUNDATION TRUST | D110: R0B01 | E110: SUNDERLAND ROYAL HOSPITAL | F110: DGD48
A111: R0B01-DGDNNU | B111: R0B | C111: SOUTH TYNESIDE AND SUNDERLAND NHS FOUNDATION TRUST | D111: R0B01 | E111: SUNDERLAND ROYAL HOSPITAL | F111: DGDNNU
A112: R0B01-DGDS | B112: R0B | C112: SOUTH TYNESIDE AND SUNDERLAND NHS FOUNDATION TRUST | D112: R0B01 | E112: SUNDERLAND ROYAL HOSPITAL | F112: DGDS
A113: R0B01-DGE50 | B113: R0B | C113: SOUTH TYNESIDE AND SUNDERLAND NHS FOUNDATION TRUST | D113: R0B01 | E113: SUNDERLAND ROYAL HOSPITAL | F113: DGE50
A114: R0B01-DGE51 | B114: R0B | C114: SOUTH TYNESIDE AND SUNDERLAND NHS FOUNDATION TRUST | D114: R0B01 | E114: SUNDERLAND ROYAL HOSPITAL | F114: DGE51
A115: R0B01-DGE52 | B115: R0B | C115: SOUTH TYNESIDE AND SUNDERLAND NHS FOUNDATION TRUST | D115: R0B01 | E115: SUNDERLAND ROYAL HOSPITAL | F115: DGE52
A116: R0B01-DGE53 | B116: R0B | C116: SOUTH TYNESIDE AND SUNDERLAND NHS FOUNDATION TRUST | D116: R0B01 | E116: SUNDERLAND ROYAL HOSPITAL | F116: DGE53
A117: R0B01-DGE54 | B117: R0B | C117: SOUTH TYNESIDE AND SUNDERLAND NHS FOUNDATION TRUST | D117: R0B01 | E117: SUNDERLAND ROYAL HOSPITAL | F117: DGE54
A118: R0B01-DGE56 | B118: R0B | C118: SOUTH TYNESIDE AND SUNDERLAND NHS FOUNDATION TRUST | D118: R0B01 | E118: SUNDERLAND ROYAL HOSPITAL | F118: DGE56
A119: R0B01-DGE58 | B119: R0B | C119: SOUTH TYNESIDE AND SUNDERLAND NHS FOUNDATION TRUST | D119: R0B01 | E119: SUNDERLAND ROYAL HOSPITAL | F119: DGE58
A120: R0B01-DGF61 | B120: R0B | C120: SOUTH TYNESIDE AND SUNDERLAND NHS FOUNDATION TRUST | D120: R0B01 | E120: SUNDERLAND ROYAL HOSPITAL | F120: DGF61
A121: R0B01-DGF62 | B121: R0B | C121: SOUTH TYNESIDE AND SUNDERLAND NHS FOUNDATION TRUST | D121: R0B01 | E121: SUNDERLAND ROYAL HOSPITAL | F121: DGF62
A122: R0B01-DGF63 | B122: R0B | C122: SOUTH TYNESIDE AND SUNDERLAND NHS FOUNDATION TRUST | D122: R0B01 | E122: SUNDERLAND ROYAL HOSPITAL | F122: DGF63
A123: R0B01-DGF64 | B123: R0B | C123: SOUTH TYNESIDE AND SUNDERLAND NHS FOUNDATION TRUST | D123: R0B01 | E123: SUNDERLAND ROYAL HOSPITAL | F123: DGF64
A124: R0B01-DGF65 | B124: R0B | C124: SOUTH TYNESIDE AND SUNDERLAND NHS FOUNDATION TRUST | D124: R0B01 | E124: SUNDERLAND ROYAL HOSPITAL | F124: DGF65
A125: R0B01-DGICCU | B125: R0B | C125: SOUTH TYNESIDE AND SUNDERLAND NHS FOUNDATION TRUST | D125: R0B01 | E125: SUNDERLAND ROYAL HOSPITAL | F125: DGICCU
A126: R0B01-IAU | B126: R0B | C126: SOUTH TYNESIDE AND SUNDERLAND NHS FOUNDATION TRUST | D126: R0B01 | E126: SUNDERLAND ROYAL HOSPITAL | F126: IAU
A127: R0B0Q-DELIVERY SUITE | B127: R0B | C127: SOUTH TYNESIDE AND SUNDERLAND NHS FOUNDATION TRUST | D127: R0B0Q | E127: SOUTH TYNESIDE DISTRICT HOSPITAL | F127: DELIVERY SUITE
A128: R0B0Q-EAU - EMERGENCY ADMISSION UNIT | B128: R0B | C128: SOUTH TYNESIDE AND SUNDERLAND NHS FOUNDATION TRUST | D128: R0B0Q | E128: SOUTH TYNESIDE DISTRICT HOSPITAL | F128: EAU - EMERGENCY ADMISSION UNIT
A129: R0B0Q-ITU / HDU | B129: R0B | C129: SOUTH TYNESIDE AND SUNDERLAND NHS FOUNDATION TRUST | D129: R0B0Q | E129: SOUTH TYNESIDE DISTRICT HOSPITAL | F129: ITU / HDU
A130: R0B0Q-PRIMROSE WARD | B130: R0B | C130: SOUTH TYNESIDE AND SUNDERLAND NHS FOUNDATION TRUST | D130: R0B0Q | E130: SOUTH TYNESIDE DISTRICT HOSPITAL | F130: PRIMROSE WARD
A131: =CONCATENATE(D131,"-",F131) -> R0B0Q-SPECIAL CARE BABY UNIT | B131: R0B | C131: SOUTH TYNESIDE AND SUNDERLAND NHS FOUNDATION TRUST | D131: R0B0Q | E131: SOUTH TYNESIDE DISTRICT HOSPITAL | F131: SPECIAL CARE BABY UNIT
A132: R0B0Q-STDH Surgical Centre (IP) | B132: R0B | C132: SOUTH TYNESIDE AND SUNDERLAND NHS FOUNDATION TRUST | D132: R0B0Q | E132: SOUTH TYNESIDE DISTRICT HOSPITAL | F132: STDH Surgical Centre (IP)
A133: R0B0Q-WARD 10 | B133: R0B | C133: SOUTH TYNESIDE AND SUNDERLAND NHS FOUNDATION TRUST | D133: R0B0Q | E133: SOUTH TYNESIDE DISTRICT HOSPITAL | F133: WARD 10
A134: R0B0Q-WARD 19 | B134: R0B | C134: SOUTH TYNESIDE AND SUNDERLAND NHS FOUNDATION TRUST | D134: R0B0Q | E134: SOUTH TYNESIDE DISTRICT HOSPITAL | F134: WARD 19
A135: R0B0Q-WARD 2 | B135: R0B | C135: SOUTH TYNESIDE AND SUNDERLAND NHS FOUNDATION TRUST | D135: R0B0Q | E135: SOUTH TYNESIDE DISTRICT HOSPITAL | F135: WARD 2
A136: R0B0Q-WARD 22 | B136: R0B | C136: SOUTH TYNESIDE AND SUNDERLAND NHS FOUNDATION TRUST | D136: R0B0Q | E136: SOUTH TYNESIDE DISTRICT HOSPITAL | F136: WARD 22
A137: R0B0Q-WARD 3 | B137: R0B | C137: SOUTH TYNESIDE AND SUNDERLAND NHS FOUNDATION TRUST | D137: R0B0Q | E137: SOUTH TYNESIDE DISTRICT HOSPITAL | F137: WARD 3
A138: R0B0Q-WARD 5 | B138: R0B | C138: SOUTH TYNESIDE AND SUNDERLAND NHS FOUNDATION TRUST | D138: R0B0Q | E138: SOUTH TYNESIDE DISTRICT HOSPITAL | F138: WARD 5
A139: R0B0Q-WARD 6 / CCU (CORONARY CARE UNIT) | B139: R0B | C139: SOUTH TYNESIDE AND SUNDERLAND NHS FOUNDATION TRUST | D139: R0B0Q | E139: SOUTH TYNESIDE DISTRICT HOSPITAL | F139: WARD 6 / CCU (CORONARY CARE UNIT)
A140: R0B0Q-WARD 9 | B140: R0B | C140: SOUTH TYNESIDE AND SUNDERLAND NHS FOUNDATION TRUST | D140: R0B0Q | E140: SOUTH TYNESIDE DISTRICT HOSPITAL | F140: WARD 9
A141: R0B0U-ST BENEDICTS | B141: R0B | C141: SOUTH TYNESIDE AND SUNDERLAND NHS FOUNDATION TRUST | D141: R0B0U | E141: ST BENEDICT'S HOSPICE | F141: ST BENEDICTS
A142: R0B0X-Haygarth | B142: R0B | C142: SOUTH TYNESIDE AND SUNDERLAND NHS FOUNDATION TRUST | D142: R0B0X | E142: SUNDERLAND EYE INFIRMARY | F142: Haygarth
A143: R0B1J-ELMVILLE | B143: R0B | C143: SOUTH TYNESIDE AND SUNDERLAND NHS FOUNDATION TRUST | D143: R0B1J | E143: MONKTON HALL HOSPITAL | F143: ELMVILLE
A144: R1A07-ATHELON WARD | B144: R1A | C144: WORCESTERSHIRE HEALTH AND CARE NHS TRUST | D144: R1A07 | E144: NEWTOWN HOSPITAL | F144: ATHELON WARD
A145: R1A07-HADLEY UNIT (PICU) | B145: R1A | C145: WORCESTERSHIRE HEALTH AND CARE NHS TRUST | D145: R1A07 | E145: NEWTOWN HOSPITAL | F145: HADLEY UNIT (PICU)
A146: R1A07-HOLT WARD | B146: R1A | C146: WORCESTERSHIRE HEALTH AND CARE NHS TRUST | D146: R1A07 | E146: NEWTOWN HOSPITAL | F146: HOLT WARD
A147: R1A22-KEITH WINTER CLOSE | B147: R1A | C147: WORCESTERSHIRE HEALTH AND CARE NHS TRUST | D147: R1A22 | E147: KEITH WINTER CLOSE MENTAL HEALTH UNIT | F147: KEITH WINTER CLOSE
A148: R1A49-HILL CREST WARD | B148: R1A | C148: WORCESTERSHIRE HEALTH AND CARE NHS TRUST | D148: R1A49 | E148: HILL CREST MENTAL HEALTH UNIT | F148: HILL CREST WARD
A149: R1A58-LUDLOW ROAD | B149: R1A | C149: WORCESTERSHIRE HEALTH AND CARE NHS TRUST | D149: R1A58 | E149: LUDLOW ROAD | F149: LUDLOW ROAD
A150: R1AAV-CROMWELL HOUSE | B150: R1A | C150: WORCESTERSHIRE HEALTH AND CARE NHS TRUST | D150: R1AAV | E150: CROMWELL HOUSE | F150: CROMWELL HOUSE
A151: R1ACC-MEADOW WARD (NEW HAVEN) | B151: R1A | C151: WORCESTERSHIRE HEALTH AND CARE NHS TRUST | D151: R1ACC | E151: NEW HAVEN (MENTAL HEALTH UNIT) | F151: MEADOW WARD (NEW HAVEN)
A152: R1ACC-WOODLAND WARD (NEW HAVEN) | B152: R1A | C152: WORCESTERSHIRE HEALTH AND CARE NHS TRUST | D152: R1ACC | E152: NEW HAVEN (MENTAL HEALTH UNIT) | F152: WOODLAND WARD (NEW HAVEN)
A153: R1ACD-CHURCHVIEW HOUSE | B153: R1A | C153: WORCESTERSHIRE HEALTH AND CARE NHS TRUST | D153: R1ACD | E153: CHURCHVIEW HOUSE | F153: CHURCHVIEW HOUSE
A154: R1ACY-OSBORNE COURT | B154: R1A | C154: WORCESTERSHIRE HEALTH AND CARE NHS TRUST | D154: R1ACY | E154: OSBORNE COURT | F154: OSBORNE COURT
A155: R1AHM-APPLE ORCHARD WARD | B155: R1A | C155: WORCESTERSHIRE HEALTH AND CARE NHS TRUST | D155: R1AHM | E155: TIMBERDINE HOME RESIDENTIAL CARE | F155: APPLE ORCHARD WARD
A156: R1AHM-CHERRY ORCHARD WARD | B156: R1A | C156: WORCESTERSHIRE HEALTH AND CARE NHS TRUST | D156: R1AHM | E156: TIMBERDINE HOME RESIDENTIAL CARE | F156: CHERRY ORCHARD WARD
A157: R1ARE-ABBOTT WARD | B157: R1A | C157: WORCESTERSHIRE HEALTH AND CARE NHS TRUST | D157: R1ARE | E157: COMM HOSP WARDS (EVESHAM) | F157: ABBOTT WARD
A158: R1ARE-IZOD WARD | B158: R1A | C158: WORCESTERSHIRE HEALTH AND CARE NHS TRUST | D158: R1ARE | E158: COMM HOSP WARDS (EVESHAM) | F158: IZOD WARD
A159: R1ARE-WA ORTHOPAEDIC REHABILITATION UNIT | B159: R1A | C159: WORCESTERSHIRE HEALTH AND CARE NHS TRUST | D159: R1ARE | E159: COMM HOSP WARDS (EVESHAM) | F159: WA ORTHOPAEDIC REHABILITATION UNIT
A160: R1ARE-WILLOWS STROKE WARD | B160: R1A | C160: WORCESTERSHIRE HEALTH AND CARE NHS TRUST | D160: R1ARE | E160: COMM HOSP WARDS (EVESHAM) | F160: WILLOWS STROKE WARD
A161: R1ARG-MALVERN COMMUNITY HOSPITAL | B161: R1A | C161: WORCESTERSHIRE HEALTH AND CARE NHS TRUST | D161: R1ARG | E161: COMM HOSP WARDS (MALVERN) | F161: MALVERN COMMUNITY HOSPITAL
A162: R1ARJ-PERSHORE COMMUNITY HOSPITAL | B162: R1A | C162: WORCESTERSHIRE HEALTH AND CARE NHS TRUST | D162: R1ARJ | E162: COMM HOSP WARDS (PERSHORE) | F162: PERSHORE COMMUNITY HOSPITAL
A163: R1ARK-COTTAGE WARD | B163: R1A | C163: WORCESTERSHIRE HEALTH AND CARE NHS TRUST | D163: R1ARK | E163: COMMUNITY HOSP WARDS (POWCH) | F163: COTTAGE WARD
A164: R1ARK-LICKEY WARD | B164: R1A | C164: WORCESTERSHIRE HEALTH AND CARE NHS TRUST | D164: R1ARK | E164: COMMUNITY HOSP WARDS (POWCH) | F164: LICKEY WARD
A165: R1ARK-PRIMROSE UNIT | B165: R1A | C165: WORCESTERSHIRE HEALTH AND CARE NHS TRUST | D165: R1ARK | E165: COMMUNITY HOSP WARDS (POWCH) | F165: PRIMROSE UNIT
A166: R1ARK-WYRE FOREST WARD | B166: R1A | C166: WORCESTERSHIRE HEALTH AND CARE NHS TRUST | D166: R1ARK | E166: COMMUNITY HOSP WARDS (POWCH) | F166: WYRE FOREST WARD
A167: R1ARL-TENBURY COMMUNITY HOSPITAL | B167: R1A | C167: WORCESTERSHIRE HEALTH AND CARE NHS TRUST | D167: R1ARL | E167: COMM HOSP WARDS (TENBURY) | F167: TENBURY COMMUNITY HOSPITAL
A168: R1C03-ADS Snowdon Ward | B168: R1C | C168: SOLENT NHS TRUST | D168: R1C03 | E168: WESTERN COMMUNITY HOSPITAL | F168: ADS Snowdon Ward
A169: R1C03-ADS The Kite Unit | B169: R1C | C169: SOLENT NHS TRUST | D169: R1C03 | E169: WESTERN COMMUNITY HOSPITAL | F169: ADS The Kite Unit
A170: R1C34-ADS Fanshawe Ward | B170: R1C | C170: SOLENT NHS TRUST | D170: R1C34 | E170: THE ROYAL SOUTH HANTS HOSPITAL | F170: ADS Fanshawe Ward
A171: R1C34-ADS Lower Brambles Ward | B171: R1C | C171: SOLENT NHS TRUST | D171: R1C34 | E171: THE ROYAL SOUTH HANTS HOSPITAL | F171: ADS Lower Brambles Ward
A172: R1CD4-ADP Spinnaker Ward | B172: R1C | C172: SOLENT NHS TRUST | D172: R1CD4 | E172: ST MARY'S HEALTH CAMPUS | F172: ADP Spinnaker Ward
A173: R1CF2-MHS Brooker | B173: R1C | C173: SOLENT NHS TRUST | D173: R1CF2 | E173: ST JAMES' HOSPITAL | F173: MHS Brooker
A174: R1CF2-MHS Oakdene | B174: R1C | C174: SOLENT NHS TRUST | D174: R1CF2 | E174: ST JAMES' HOSPITAL | F174: MHS Oakdene
A175: R1CF2-MHS The Orchards Acute - Hawthorn | B175: R1C | C175: SOLENT NHS TRUST | D175: R1CF2 | E175: ST JAMES' HOSPITAL | F175: MHS The Orchards Acute - Hawthorn
A176: R1CF2-MHS The Orchards PICU - Maples | B176: R1C | C176: SOLENT NHS TRUST | D176: R1CF2 | E176: ST JAMES' HOSPITAL | F176: MHS The Orchards PICU - Maples
A177: R1CF5-ADP Jubilee House Continuing Care | B177: R1C | C177: SOLENT NHS TRUST | D177: R1CF5 | E177: JUBILEE HOUSE | F177: ADP Jubilee House Continuing Care
A178: R1D21-Dinham | B178: R1D | C178: SHROPSHIRE COMMUNITY HEALTH NHS TRUST | D178: R1D21 | E178: LUDLOW HOSPITAL | F178: Dinham
A179: R1D22-Agnes Campbell | B179: R1D | C179: SHROPSHIRE COMMUNITY HEALTH NHS TRUST | D179: R1D22 | E179: BRIDGNORTH HOSPITAL | F179: Agnes Campbell
A180: R1D25-Stonehouse Ward | B180: R1D | C180: SHROPSHIRE COMMUNITY HEALTH NHS TRUST | D180: R1D25 | E180: BISHOPS CASTLE HOSPITAL | F180: Stonehouse Ward
A181: R1D34-Whitchurch Rehab Ward | B181: R1D | C181: SHROPSHIRE COMMUNITY HEALTH NHS TRUST | D181: R1D34 | E181: WHITCHURCH HOSPITAL | F181: Whitchurch Rehab Ward
A182: R1F01-Afton Ward | B182: R1F | C182: ISLE OF WIGHT NHS TRUST | D182: R1F01 | E182: ST MARY'S HOSPITAL | F182: Afton Ward
A183: R1F01-Alverstone Ward | B183: R1F | C183: ISLE OF WIGHT NHS TRUST | D183: R1F01 | E183: ST MARY'S HOSPITAL | F183: Alverstone Ward
A184: R1F01-Appley Ward | B184: R1F | C184: ISLE OF WIGHT NHS TRUST | D184: R1F01 | E184: ST MARY'S HOSPITAL | F184: Appley Ward
A185: R1F01-Colwell Ward | B185: R1F | C185: ISLE OF WIGHT NHS TRUST | D185: R1F01 | E185: ST MARY'S HOSPITAL | F185: Colwell Ward
A186: R1F01-Coronary Care | B186: R1F | C186: ISLE OF WIGHT NHS TRUST | D186: R1F01 | E186: ST MARY'S HOSPITAL | F186: Coronary Care
A187: R1F01-Intensive Care Unit | B187: R1F | C187: ISLE OF WIGHT NHS TRUST | D187: R1F01 | E187: ST MARY'S HOSPITAL | F187: Intensive Care Unit
A188: R1F01-Luccombe Ward | B188: R1F | C188: ISLE OF WIGHT NHS TRUST | D188: R1F01 | E188: ST MARY'S HOSPITAL | F188: Luccombe Ward
A189: R1F01-MAAU | B189: R1F | C189: ISLE OF WIGHT NHS TRUST | D189: R1F01 | E189: ST MARY'S HOSPITAL | F189: MAAU
A190: R1F01-Maternity Services | B190: R1F | C190: ISLE OF WIGHT NHS TRUST | D190: R1F01 | E190: ST MARY'S HOSPITAL | F190: Maternity Services
A191: R1F01-Mottistone Ward | B191: R1F | C191: ISLE OF WIGHT NHS TRUST | D191: R1F01 | E191: ST MARY'S HOSPITAL | F191: Mottistone Ward
A192: R1F01-Osborne Ward | B192: R1F | C192: ISLE OF WIGHT NHS TRUST | D192: R1F01 | E192: ST MARY'S HOSPITAL | F192: Osborne Ward
A193: R1F01-Paediatric Ward | B193: R1F | C193: ISLE OF WIGHT NHS TRUST | D193: R1F01 | E193: ST MARY'S HOSPITAL | F193: Paediatric Ward
A194: R1F01-Seagrove Ward | B194: R1F | C194: ISLE OF WIGHT NHS TRUST | D194: R1F01 | E194: ST MARY'S HOSPITAL | F194: Seagrove Ward
A195: =CONCATENATE(D195,"-",F195) -> R1F01-Shackleton Ward | B195: R1F | C195: ISLE OF WIGHT NHS TRUST | D195: R1F01 | E195: ST MARY'S HOSPITAL | F195: Shackleton Ward
A196: R1F01-Special Care Unit | B196: R1F | C196: ISLE OF WIGHT NHS TRUST | D196: R1F01 | E196: ST MARY'S HOSPITAL | F196: Special Care Unit
A197: R1F01-St Helens Ward | B197: R1F | C197: ISLE OF WIGHT NHS TRUST | D197: R1F01 | E197: ST MARY'S HOSPITAL | F197: St Helens Ward
A198: R1F01-The Stroke Unit | B198: R1F | C198: ISLE OF WIGHT NHS TRUST | D198: R1F01 | E198: ST MARY'S HOSPITAL | F198: The Stroke Unit
A199: R1F01-Whippingham Ward | B199: R1F | C199: ISLE OF WIGHT NHS TRUST | D199: R1F01 | E199: ST MARY'S HOSPITAL | F199: Whippingham Ward
A200: R1F01-Woodlands | B200: R1F | C200: ISLE OF WIGHT NHS TRUST | D200: R1F01 | E200: ST MARY'S HOSPITAL | F200: Woodlands
... 6471 more rows

Sheet Index (hidden)
A1: Lookups | F1: Provider Orgs | J1: Concatenation | K1: Natural Key | N1: Provider Orgs | O1: AHP Activity?
A2: Columns | B2: Row | F2: RTQ | G2: Gloucestershire Health and Care NHS Foundation Trust | J2: April_2017-18 | K2: 10166 | N2: RTQ | O2: Y
A3: 1 | B3: 1 | F3: REM | G3: Liverpool University Hosptials NHS Foundation Trust | J3: May_2017-18 | K3: 10167 | N3: REM | O3: Y
A4: 1 | B4: 2 | F4: RCF | G4: Airedale NHS Foundation Trust | J4: June_2017-18 | K4: 10168 | N4: RCF | O4: Y
A5: 1 | B5: 3 | F5: RBS | G5: Alder Hey Children's NHS Foundation Trust | J5: July_2017-18 | K5: 10169 | N5: RBS | O5: Y
A6: 1 | B6: 4 | F6: RTK | G6: Ashford And St Peter's Hospitals NHS Foundation Trust | J6: August_2017-18 | K6: 10170 | N6: RTK | O6: Y
A7: 1 | B7: 5 | F7: RVN | G7: Avon and Wiltshire Mental Health Partnership NHS Trust | J7: September_2017-18 | K7: 10171 | N7: RVN | O7: Y
A8: 1 | B8: 6 | F8: RF4 | G8: Barking, Havering And Redbridge University Hospitals NHS Trust | J8: October_2017-18 | K8: 10172 | N8: RF4 | O8: Y
A9: 1 | B9: 7 | F9: RRP | G9: Barnet, Enfield and Haringey Mental Health NHS Trust | J9: November_2017-18 | K9: 10173 | N9: RRP | O9: Y
A10: 1 | B10: 8 | F10: RFF | G10: Barnsley Hospital NHS Foundation Trust | J10: December_2017-18 | K10: 10174 | N10: RFF | O10: Y
A11: 1 | B11: 9 | F11: R1H | G11: Barts Health NHS Trust | J11: January_2017-18 | K11: 10175 | N11: R1H | O11: Y
A12: 1 | B12: 10 | F12: RDD | G12: Basildon And Thurrock University Hospitals NHS Foundation Trust | J12: February_2017-18 | K12: 10176 | N12: RDD | O12: Y
A13: 1 | B13: 11 | F13: RC1 | G13: Bedford Hospital NHS Trust | J13: March_2017-18 | K13: 10177 | N13: RC1 | O13: Y
A14: 1 | B14: 12 | F14: RWX | G14: Berkshire Healthcare NHS Foundation Trust | N14: RWX | O14: Y
A15: 1 | B15: 13 | F15: RXT | G15: Birmingham and Solihull Mental Health NHS Foundation Trust | N15: RXT | O15: Y
A16: 1 | B16: 14 | F16: RYW | G16: Birmingham Community HealthCare NHS Trust | N16: RYW | O16: Y
A17: 1 | B17: 15 | F17: RQ3 | G17: Birmingham Women's and Children's Hospital NHS Foundation Trust | N17: RQ3 | O17: Y
A18: 1 | B18: 16 | F18: TAJ | G18: Black Country Partnership NHS Foundation Trust | N18: TAJ | O18: Y
A19: 1 | B19: 17 | F19: RXL | G19: Blackpool Teaching Hospitals NHS Foundation Trust | N19: RXL | O19: Y
A20: 1 | B20: 18 | F20: RMC | G20: Bolton NHS Foundation Trust | N20: RMC | O20: Y
A21: 1 | B21: 19 | F21: TAD | G21: Bradford District Care Trust | N21: TAD | O21: Y
A22: 1 | B22: 20 | F22: RAE | G22: Bradford Teaching Hospitals NHS Foundation Trust | N22: RAE | O22: Y
A23: 1 | B23: 21 | F23: RY2 | G23: Bridgewater Community Healthcare NHS Trust | N23: RY2 | O23: Y
A24: 1 | B24: 22 | F24: RXH | G24: Brighton And Sussex University Hospitals NHS Trust | N24: RXH | O24: Y
A25: 1 | B25: 23 | F25: RXQ | G25: Buckinghamshire Healthcare NHS Trust | N25: RXQ | O25: Y
A26: 1 | B26: 24 | F26: RWY | G26: Calderdale And Huddersfield NHS Foundation Trust | N26: RWY | O26: Y
A27: 1 | B27: 25 | F27: RGT | G27: Cambridge University Hospitals NHS Foundation Trust | N27: RGT | O27: Y
A28: 1 | B28: 26 | F28: RT1 | G28: Cambridgeshire And Peterborough NHS Foundation Trust | N28: RT1 | O28: Y
A29: 1 | B29: 27 | F29: RYV | G29: Cambridgeshire Community Services NHS Trust | N29: RYV | O29: Y
A30: 1 | B30: 28 | F30: TAF | G30: Camden And Islington NHS Foundation Trust | N30: TAF | O30: Y
A31: 1 | B31: 29 | F31: RV3 | G31: Central and North West London NHS Foundation Trust | N31: RV3 | O31: Y
A32: 1 | B32: 30 | F32: RYX | G32: Central London Community Healthcare NHS Trust | N32: RYX | O32: Y
A33: 1 | B33: 31 | F33: RQM | G33: Chelsea And Westminster Hospital NHS Foundation Trust | N33: RQM | O33: Y
A34: 1 | B34: 32 | F34: RXA | G34: Cheshire and Wirral Partnership NHS Foundation Trust | N34: RXA | O34: Y
A35: 1 | B35: 33 | F35: RFS | G35: Chesterfield Royal Hospital NHS Foundation Trust | N35: RFS | O35: Y
A36: 1 | B36: 34 | F36: RLN | G36: City Hospitals Sunderland NHS Foundation Trust | N36: RLN | O36: Y
A37: 1 | B37: 35 | F37: RJ8 | G37: Cornwall Partnership NHS Foundation Trust | N37: RJ8 | O37: Y
A38: 1 | B38: 36 | F38: RJR | G38: Countess of Chester Hospital NHS Foundation Trust | N38: RJR | O38: Y
A39: 1 | B39: 37 | F39: RXP | G39: County Durham And Darlington NHS Foundation Trust | N39: RXP | O39: Y
A40: 1 | B40: 38 | F40: RYG | G40: Coventry and Warwickshire Partnership NHS Trust | N40: RYG | O40: Y
A41: 1 | B41: 39 | F41: RJ6 | G41: Croydon Health Services NHS Trust | N41: RJ6 | O41: Y
A42: 1 | B42: 40 | F42: RNN | G42: North Cumbria Integrated Care NHS Foundation Trust | N42: RNN | O42: Y
A43: 1 | B43: 41 | F43: RN7 | G43: Dartford And Gravesham NHS Trust | N43: RN7 | O43: Y
A44: 1 | B44: 42 | F44: RY8 | G44: Derbyshire Community Health Services NHS Trust | N44: RY8 | O44: Y
A45: 1 | B45: 43 | F45: RXM | G45: Derbyshire Healthcare NHS Foundation Trust | N45: RXM | O45: Y
A46: 1 | B46: 44 | F46: RWV | G46: Devon Partnership NHS Trust | N46: RWV | O46: Y
A47: 1 | B47: 45 | F47: RP5 | G47: Doncaster And Bassetlaw Hospitals NHS Foundation Trust | N47: RP5 | O47: Y
A48: 1 | B48: 46 | F48: RBD | G48: Dorset County Hospital NHS Foundation Trust | N48: RBD | O48: Y
A49: 1 | B49: 47 | F49: RDY | G49: Dorset HealthCare University NHS Foundation Trust | N49: RDY | O49: Y
A50: 1 | B50: 48 | F50: RYK | G50: Dudley and Walsall Mental Health Partnership NHS Trust | N50: RYK | O50: Y
A51: 1 | B51: 49 | F51: RWH | G51: East And North Hertfordshire NHS Trust | N51: RWH | O51: Y
A52: 1 | B52: 50 | F52: RJN | G52: East Cheshire NHS Trust | N52: RJN | O52: Y
A53: 1 | B53: 51 | F53: RVV | G53: East Kent Hospitals University NHS Foundation Trust | N53: RVV | O53: Y
A54: 1 | B54: 52 | F54: RXR | G54: East Lancashire Hospitals NHS Trust | N54: RXR | O54: Y
A55: 1 | B55: 53 | F55: RWK | G55: East London Foundation Trust | N55: RWK | O55: Y
A56: 1 | B56: 54 | F56: RDE | G56: East Suffolk and North Essex NHS Foundation Trust | N56: RDE | O56: Y
A57: 1 | B57: 55 | F57: RXC | G57: East Sussex Healthcare NHS Trust | N57: RXC | O57: Y
A58: 1 | B58: 56 | F58: RVR | G58: Epsom And St Helier University Hospitals NHS Trust | N58: RVR | O58: Y
A59: 1 | B59: 57 | F59: R1L | G59: Essex Partnership University NHS Foundation Trust | N59: R1L | O59: Y
A60: 1 | B60: 58 | F60: RDU | G60: Frimley Park Hospital NHS Foundation Trust | N60: RDU | O60: Y
A61: 1 | B61: 59 | F61: RR7 | G61: Gateshead Health NHS Foundation Trust | N61: RR7 | O61: Y
A62: 1 | B62: 60 | F62: RLT | G62: George Eliot Hospital NHS Trust | N62: RLT | O62: Y
A63: 1 | B63: 61 | F63: RTE | G63: Gloucestershire Hospitals NHS Foundation Trust | N63: RTE | O63: Y
A64: 1 | B64: 62 | F64: RP4 | G64: Great Ormond Street Hospital For Children NHS Foundation Trust | N64: RP4 | O64: Y
A65: 1 | B65: 63 | F65: RN3 | G65: Great Western Hospitals NHS Foundation Trust | N65: RN3 | O65: Y
A66: 1 | B66: 64 | F66: RXV | G66: Greater Manchester Mental Health NHS Foundation Trust | N66: RXV | O66: Y
A67: 1 | B67: 65 | F67: RN5 | G67: Hampshire Hospitals NHS Foundation Trust | N67: RJ1 | O67: Y
A68: 1 | B68: 66 | F68: RCD | G68: Harrogate And District NHS Foundation Trust | N68: RN5 | O68: Y
A69: 1 | B69: 67 | F69: RY4 | G69: Hertfordshire Community NHS Trust | N69: RCD | O69: Y
A70: 1 | B70: 68 | F70: RWR | G70: Hertfordshire Partnership University NHS Foundation Trust | N70: RY4 | O70: Y
A71: 1 | B71: 69 | F71: RQX | G71: Homerton University Hospital NHS Foundation Trust | N71: RWR | O71: Y
A72: 1 | B72: 70 | F72: RY9 | G72: Hounslow And Richmond Community Healthcare NHS Trust | N72: RQX | O72: Y
A73: 1 | B73: 71 | F73: RWA | G73: Hull And East Yorkshire Hospitals NHS Trust | N73: RY9 | O73: Y
A74: 1 | B74: 72 | F74: RV9 | G74: Humber NHS Foundation Trust | N74: RWA | O74: Y
A75: 1 | B75: 73 | F75: RYJ | G75: Imperial College Healthcare NHS Trust | N75: RV9 | O75: Y
A76: 1 | B76: 74 | F76: R1F | G76: Isle of Wight NHS Trust | N76: RYJ | O76: Y
A77: 1 | B77: 75 | F77: RGP | G77: James Paget University Hospitals NHS Foundation Trust | N77: R1F | O77: Y
A78: 1 | B78: 76 | F78: RXY | G78: Kent And Medway NHS And Social Care Partnership Trust | N78: RGP | O78: Y
A79: 1 | B79: 77 | F79: RYY | G79: Kent Community Health NHS Trust | N79: RXY | O79: Y
A80: 1 | B80: 78 | F80: RNQ | G80: Kettering General Hospital NHS Foundation Trust | N80: RYY | O80: Y
A81: 1 | B81: 79 | F81: RJZ | G81: King's College Hospital NHS Foundation Trust | N81: RNQ | O81: Y
A82: 1 | B82: 80 | F82: RAX | G82: Kingston Hospital NHS Trust | N82: RJZ | O82: Y
A83: 1 | B83: 81 | F83: RW5 | G83: Lancashire Care NHS Foundation trust | N83: RAX | O83: Y
A84: 1 | B84: 82 | F84: RXN | G84: Lancashire Teaching Hospitals NHS Foundation Trust | N84: RW5 | O84: Y
A85: 1 | B85: 83 | F85: RGD | G85: Leeds and York Partnership NHS Foundation Trust | N85: RXN | O85: Y
A86: 1 | B86: 84 | F86: RY6 | G86: Leeds Community Healthcare NHS Trust | N86: RGD | O86: Y
A87: 1 | B87: 85 | F87: RR8 | G87: Leeds Teaching Hospitals NHS Trust | N87: RY6 | O87: Y
A88: 1 | B88: 86 | F88: RT5 | G88: Leicestershire Partnership NHS Trust | N88: RR8 | O88: Y
A89: 1 | B89: 87 | F89: RJ2 | G89: Lewisham and Greenwich NHS Trust | N89: RT5 | O89: Y
A90: 1 | B90: 88 | F90: RY5 | G90: Lincolnshire Community Health Services NHS Trust | N90: RJ2 | O90: Y
A91: 1 | B91: 89 | F91: RP7 | G91: Lincolnshire Partnership NHS Foundation Trust | N91: RY5 | O91: Y
A92: 1 | B92: 90 | F92: RBQ | G92: Liverpool Heart And Chest NHS Foundation Trust | N92: RP7 | O92: Y
A93: 1 | B93: 91 | F93: REP | G93: Liverpool Women's NHS Foundation Trust | N93: RBQ | O93: Y
A94: 1 | B94: 92 | F94: R1K | G94: London North West Healthcare NHS Trust | N94: REP | O94: Y
A95: 1 | B95: 93 | F95: RC9 | G95: Luton And Dunstable Hospital NHS Foundation Trust | N95: R1K | O95: Y
A96: 1 | B96: 94 | F96: RWF | G96: Maidstone And Tunbridge Wells NHS Trust | N96: RC9 | O96: Y
A97: 1 | B97: 95 | F97: R0A | G97: Manchester University NHS Foundation Trust | N97: RWF | O97: Y
A98: 1 | B98: 96 | F98: RPA | G98: Medway NHS Foundation Trust | N98: R0A | O98: Y
A99: 1 | B99: 97 | F99: RW4 | G99: Mersey Care NHS Trust | N99: RPA | O99: Y
A100: 1 | B100: 98 | F100: RBT | G100: Mid Cheshire Hospitals NHS Foundation Trust | N100: RW4 | O100: Y
A101: 1 | B101: 99 | F101: RQ8 | G101: Mid Essex Hospital Services NHS Trust | N101: RBT | O101: Y
A102: 1 | B102: 100 | F102: RXF | G102: Mid Yorkshire Hospitals NHS Trust | N102: RQ8 | O102: Y
A103: 1 | B103: 101 | F103: RRE | G103: Midlands Partnership NHS Foundation Trust | N103: RXF | O103: Y
A104: 1 | B104: 102 | F104: RD8 | G104: Milton Keynes Hospital NHS Foundation Trust | N104: RRE | O104: Y
A105: 1 | B105: 103 | F105: RP6 | G105: Moorfields Eye Hospital NHS Foundation Trust | N105: RD8 | O105: Y
A106: 1 | B106: 104 | F106: RM1 | G106: Norfolk And Norwich University Hospitals NHS Foundation Trust | N106: RP6 | O106: Y
A107: 1 | B107: 105 | F107: RMY | G107: Norfolk and Suffolk NHS Foundation Trust | N107: RM1 | O107: Y
A108: 1 | B108: 106 | F108: RY3 | G108: Norfolk Community Health And Care NHS Trust | N108: RMY | O108: Y
A109: 1 | B109: 107 | F109: RVJ | G109: North Bristol NHS Trust | N109: RY3 | O109: Y
A110: 1 | B110: 108 | F110: RAT | G110: North East London NHS Foundation Trust | N110: RVJ | O110: Y
A111: 1 | B111: 109 | F111: RAP | G111: North Middlesex University Hospital NHS Trust | N111: RAT | O111: Y
A112: 1 | B112: 110 | F112: RLY | G112: North Staffordshire Combined Healthcare NHS Trust | N112: RAP | O112: Y
A113: 1 | B113: 111 | F113: RVW | G113: North Tees And Hartlepool NHS Foundation Trust | N113: RLY | O113: Y
A114: 1 | B114: 112 | F114: RGN | G114: North West Anglia NHS Foundation Trust | N114: RVW | O114: Y
A115: 1 | B115: 113 | F115: RTV | G115: North West Boroughs Healthcare NHS Foundation Trust | N115: RGN | O115: Y
A116: 1 | B116: 114 | F116: RNS | G116: Northampton General Hospital NHS Trust | N116: RTV | O116: Y
A117: 1 | B117: 115 | F117: RP1 | G117: Northamptonshire Healthcare NHS Foundation Trust | N117: RNS | O117: Y
A118: 1 | B118: 116 | F118: RBZ | G118: Northern Devon Healthcare NHS Trust | N118: RP1 | O118: Y
A119: 1 | B119: 117 | F119: RJL | G119: Northern Lincolnshire And Goole Hospitals NHS Foundation Trust | N119: RBZ | O119: Y
A120: 1 | B120: 118 | F120: RX4 | G120: Cumbria, Northumberland, Tyne and Wear NHS Foundation Trust | N120: RJL | O120: Y
A121: 1 | B121: 119 | F121: RTF | G121: Northumbria Healthcare NHS Foundation Trust | N121: RX4 | O121: Y
A122: 1 | B122: 120 | F122: RX1 | G122: Nottingham University Hospitals NHS Trust | N122: RTF | O122: Y
A123: 1 | B123: 121 | F123: RHA | G123: Nottinghamshire Healthcare NHS Trust | N123: RX1 | O123: Y
A124: 1 | B124: 122 | F124: RNU | G124: Oxford Health NHS Foundation Trust | N124: RHA | O124: Y
A125: 1 | B125: 123 | F125: RTH | G125: Oxford University Hospitals NHS Trust | N125: RNU | O125: Y
A126: 1 | B126: 124 | F126: RPG | G126: Oxleas NHS Foundation Trust | N126: RTH | O126: Y
A127: 1 | B127: 125 | F127: RW6 | G127: Pennine Acute Hospitals NHS Trust | N127: RPG | O127: Y
A128: 1 | B128: 126 | F128: RT2 | G128: Pennine Care NHS Foundation Trust | N128: RGM | O128: Y
A129: 1 | B129: 127 | F129: RK9 | G129: Plymouth Hospitals NHS Trust | N129: RW6 | O129: Y
A130: 1 | B130: 128 | F130: RD3 | G130: Poole Hospital NHS Foundation Trust | N130: RT2 | O130: Y
A131: 1 | B131: 129 | F131: RHU | G131: Portsmouth Hospitals NHS Trust | N131: RK9 | O131: Y
A132: 1 | B132: 130 | F132: RPC | G132: Queen Victoria Hospital NHS Foundation Trust | N132: RD3 | O132: Y
A133: 1 | B133: 131 | F133: RXE | G133: Rotherham Doncaster and South Humber NHS Foundation Trust | N133: RHU | O133: Y
A134: 1 | B134: 132 | F134: RHW | G134: Royal Berkshire NHS Foundation Trust | N134: RPC | O134: Y
A135: 1 | B135: 133 | F135: RT3 | G135: Royal Brompton And Harefield NHS Foundation Trust | N135: RXE | O135: Y
A136: 1 | B136: 134 | F136: REF | G136: Royal Cornwall Hospitals NHS Trust | N136: RHW | O136: Y
A137: 1 | B137: 135 | F137: RH8 | G137: Royal Devon And Exeter NHS Foundation Trust | N137: RT3 | O137: Y
A138: 1 | B138: 136 | F138: RAL | G138: Royal Free London NHS Foundation Trust | N138: REF | O138: Y
A139: 1 | B139: 137 | F139: RAN | G139: Royal National Orthopaedic Hospital NHS Trust | N139: RH8 | O139: Y
A140: 1 | B140: 138 | F140: RGM | G140: Royal Papworth Hospital NHS Foundation Trust | N140: RAL | O140: Y
A141: 1 | B141: 139 | F141: RA2 | G141: Royal Surrey County Hospital NHS Foundation Trust | N141: RAN | O141: Y
A142: 1 | B142: 140 | F142: RD1 | G142: Royal United Hospital Bath NHS Trust | N142: RA2 | O142: Y
A143: 1 | B143: 141 | F143: RM3 | G143: Salford Royal NHS Foundation Trust | N143: RD1 | O143: Y
A144: 1 | B144: 142 | F144: RNZ | G144: Salisbury NHS Foundation Trust | N144: RM3 | O144: Y
A145: 1 | B145: 143 | F145: RXK | G145: Sandwell And West Birmingham Hospitals NHS Trust | N145: RNZ | O145: Y
A146: 1 | B146: 144 | F146: RCU | G146: Sheffield Children's NHS Foundation Trust | N146: RXK | O146: Y
A147: 1 | B147: 145 | F147: TAH | G147: Sheffield Health & Social Care NHS Foundation Trust | N147: RCU | O147: Y
A148: 1 | B148: 146 | F148: RHQ | G148: Sheffield Teaching Hospitals NHS Foundation Trust | N148: TAH | O148: Y
A149: 1 | B149: 147 | F149: RK5 | G149: Sherwood Forest Hospitals NHS Foundation Trust | N149: RHQ | O149: Y
A150: 1 | B150: 148 | F150: RXW | G150: Shrewsbury And Telford Hospital NHS Trust | N150: RK5 | O150: Y
A151: 1 | B151: 149 | F151: R1D | G151: Shropshire Community Health NHS Trust | N151: RXW | O151: Y
A152: 1 | B152: 150 | F152: R1C | G152: Solent NHS Trust | N152: R1D | O152: Y
A153: 1 | B153: 151 | F153: RH5 | G153: Somerset Partnership NHS Foundation Trust | N153: R1C | O153: Y
A154: 1 | B154: 152 | F154: RV5 | G154: South London And Maudsley NHS Foundation Trust | N154: RH5 | O154: Y
A155: 1 | B155: 153 | F155: RTR | G155: South Tees Hospitals NHS Foundation Trust | N155: RV5 | O155: Y
A156: 1 | B156: 154 | F156: R0B | G156: South Tyneside and Sunderland NHS Foundation Trust | N156: RTR | O156: Y
A157: 1 | B157: 155 | F157: RE9 | G157: South Tyneside NHS Foundation Trust | N157: RE9 | O157: Y
A158: 1 | B158: 156 | F158: RJC | G158: South Warwickshire NHS Foundation Trust | N158: RJC | O158: Y
A159: 1 | B159: 157 | F159: RQY | G159: South West London And St George's Mental Health NHS Trust | N159: RQY | O159: Y
A160: 1 | B160: 158 | F160: RXG | G160: South West Yorkshire Partnership NHS Foundation Trust | N160: RXG | O160: Y
A161: 1 | B161: 159 | F161: RAJ | G161: Southend University Hospital NHS Foundation Trust | N161: RAJ | O161: Y
A162: 1 | B162: 160 | F162: RW1 | G162: Southern Health NHS Foundation Trust | N162: RW1 | O162: Y
A163: 1 | B163: 161 | F163: RVY | G163: Southport And Ormskirk Hospital NHS Trust | N163: RVY | O163: Y
A164: 1 | B164: 162 | F164: RJ7 | G164: St George's Healthcare NHS Trust | N164: RJ7 | O164: Y
A165: 1 | B165: 163 | F165: RBN | G165: St Helens And Knowsley Hospitals NHS Trust | N165: RBN | O165: Y
A166: 1 | B166: 164 | F166: RWJ | G166: Stockport NHS Foundation Trust | N166: RWJ | O166: Y
A167: 1 | B167: 165 | F167: RXX | G167: Surrey and Borders Partnership NHS Foundation Trust | N167: RXX | O167: Y
A168: 1 | B168: 166 | F168: RTP | G168: Surrey And Sussex Healthcare NHS Trust | N168: RTP | O168: Y
A169: 1 | B169: 167 | F169: RDR | G169: Sussex Community NHS Trust | N169: RDR | O169: Y
A170: 1 | B170: 168 | F170: RX2 | G170: Sussex Partnership NHS Foundation Trust | N170: RX2 | O170: Y
A171: 1 | B171: 169 | F171: RMP | G171: Tameside Hospital NHS Foundation Trust | N171: RMP | O171: Y
A172: 1 | B172: 170 | F172: RBA | G172: Taunton And Somerset NHS Foundation Trust | N172: RBA | O172: Y
A173: 1 | B173: 171 | F173: RX3 | G173: Tees, Esk and Wear Valleys NHS Foundation Trust | N173: RX3 | O173: Y
A174: 1 | B174: 172 | F174: RBV | G174: The Christie NHS Foundation Trust | N174: RBV | O174: Y
A175: 1 | B175: 173 | F175: REN | G175: The Clatterbridge Cancer Centre NHS Foundation Trust | N175: REN | O175: Y
A176: 1 | B176: 174 | F176: RNA | G176: The Dudley Group NHS Foundation Trust | N176: RNA | O176: Y
A177: 1 | B177: 175 | F177: RAS | G177: The Hillingdon Hospitals NHS Foundation Trust | N177: RAS | O177: Y
A178: 1 | B178: 176 | F178: RTD | G178: The Newcastle Upon Tyne Hospitals NHS Foundation Trust | N178: RTD | O178: Y
A179: 1 | B179: 177 | F179: RQW | G179: The Princess Alexandra Hospital NHS Trust | N179: RQW | O179: Y
A180: 1 | B180: 178 | F180: RCX | G180: The Queen Elizabeth Hospital, King's Lynn, NHS Foundation Trust | N180: RCX | O180: Y
A181: 1 | B181: 179 | F181: RL1 | G181: The Robert Jones And Agnes Hunt Orthopaedic Hospital NHS Foundation Trust | N181: RL1 | O181: Y
A182: 1 | B182: 180 | F182: RFR | G182: The Rotherham NHS Foundation Trust | N182: RFR | O182: Y
A183: 1 | B183: 181 | F183: RDZ | G183: The Royal Bournemouth And Christchurch Hospitals NHS Foundation Trust | N183: RDZ | O183: Y
A184: 1 | B184: 182 | F184: RPY | G184: The Royal Marsden NHS Foundation Trust | N184: RPY | O184: Y
A185: 1 | B185: 183 | F185: RRJ | G185: The Royal Orthopaedic Hospital NHS Foundation Trust | N185: RRJ | O185: Y
A186: 1 | B186: 184 | F186: RL4 | G186: The Royal Wolverhampton NHS Trust | N186: RL4 | O186: Y
A187: 1 | B187: 185 | F187: RET | G187: The Walton Centre NHS Foundation Trust | N187: RET | O187: Y
A188: 1 | B188: 186 | F188: RKE | G188: The Whittington Hospital NHS Trust | N188: RKE | O188: Y
A189: 1 | B189: 187 | F189: RA9 | G189: Torbay and South Devon NHS Foundation Trust | N189: RA9 | O189: Y
A190: 1 | B190: 188 | F190: RWD | G190: United Lincolnshire Hospitals NHS Trust | N190: RWD | O190: Y
A191: 1 | B191: 189 | F191: RRV | G191: University College London Hospitals NHS Foundation Trust | N191: RRV | O191: Y
A192: 1 | B192: 190 | F192: RJE | G192: University Hospital of North Midlands NHS Trust | N192: RJE | O192: Y
A193: 1 | B193: 191 | F193: RHM | G193: University Hospital Southampton NHS Foundation Trust | N193: RHM | O193: Y
A194: 1 | B194: 192 | F194: RRK | G194: University Hospitals Birmingham NHS Foundation Trust | N194: RRK | O194: Y
A195: 1 | B195: 193 | F195: RA7 | G195: University Hospitals Bristol NHS Foundation Trust | N195: RA7 | O195: Y
A196: 1 | B196: 194 | F196: RKB | G196: University Hospitals Coventry And Warwickshire NHS Trust | N196: RKB | O196: Y
A197: 1 | B197: 195 | F197: RTG | G197: University Hospitals of Derby and Burton NHS Foundation Trust | N197: RTG | O197: Y
A198: 1 | B198: 196 | F198: RWE | G198: University Hospitals of Leicester NHS Trust | N198: RWE | O198: Y
A199: 1 | B199: 197 | F199: RTX | G199: University Hospitals of Morecambe Bay NHS Foundation Trust | N199: RTX | O199: Y
A200: 1 | B200: 198 | F200: RBK | G200: Walsall Healthcare NHS Trust | N200: RBK | O200: Y
... 2602 more rows

Sheet Backsheet (hidden)
A1: Site Code:K | B1: Site Name | C1: Ward | D1: Specialty 1 | E1: Specialty 2 | F1: Day Nurse Plan:N | G1: Day Nurse Actual:N | H1: Day Care Plan:N | I1: Day Care Actual:N | J1: Day Reg Assoc Plan:N | K1: Day Reg Assoc Actual:N | L1: Day Reg Non Assoc Plan:N | M1: Day Reg Non Assoc Actual:N | N1: Night Nurse Plan:N | O1: Night Nurse Actual:N | P1: Night Care Plan:N | Q1: Night Care Actual:N | R1: Night Reg Assoc Plan:N | S1: Night Reg Assoc Actual:N | T1: Night Reg Non Assoc Plan:N | U1: Night Reg Non Assoc Actual:N | V1: Registered AHP Plan:N | W1: Registered AHP Actual:N | X1: Non-registered AHP Plan:N | Y1: Non-registered AHP Actual:N | Z1: Day Nurse Fill Rate:N | AA1: Day Care Fill Rate:N | AB1: Day Reg Assoc Fill Rate:N | AC1: Day Non Reg Assoc Fill Rate:N | AD1: Night Nurse Fill Rate:N | AE1: Night Care Fill Rate:N | AF1: Night Reg Assoc Fill Rate:N | AG1: Night Non Reg Assoc Fill Rate:N | AH1: Registered AHP Fill Rate:N | AI1: Non-Registered AHP Fill Rate:N | AJ1: Total Patients (CHPPD):N | AK1: Nurse CHPPD:N | AL1: Care CHPPD:N | AM1: Reg Nursing Assoc CHPPD:N | AN1: Non Reg Nursing Assoc CHPPD:N | AO1: Registered AHP CHPPD:N | AP1: Non-registered AHP CHPPD:N | AQ1: Overall CHPPD:N | AR1: Url Staffing Url
A2: =IF('Trust - Frontsheet'!D14=0,"",IF('Trust - Frontsheet'!D14="","",'Trust - Frontsheet'!D14)) -> RWG02 | B2: =IF(ISBLANK('Trust - Frontsheet'!E14),"",'Trust - Frontsheet'!E14) -> WATFORD GENERAL HOSPITAL | C2: =IF(ISBLANK('Trust - Frontsheet'!F14),"","'" & 'Trust - Frontsheet'!F14 & "'") -> 'AAU Blue Level 1' | D2: =IF(ISBLANK('Trust - Frontsheet'!G14),"",'Trust - Frontsheet'!G14) -> 326 - ACUTE INTERNAL MEDICINE | E2: =IF(ISBLANK('Trust - Frontsheet'!H14),"",'Trust - Frontsheet'!H14) ->  | F2: ='Trust - Frontsheet'!I14 -> 1069.5 | G2: ='Trust - Frontsheet'!J14 -> 943 | H2: ='Trust - Frontsheet'!K14 -> 708.75 | I2: ='Trust - Frontsheet'!L14 -> 857.5 | J2: ='Trust - Frontsheet'!M14 -> 0 | K2: ='Trust - Frontsheet'!N14 -> 0 | L2: ='Trust - Frontsheet'!O14 -> 0 | M2: ='Trust - Frontsheet'!P14 -> 0 | N2: ='Trust - Frontsheet'!Q14 -> 1069 | O2: ='Trust - Frontsheet'!R14 -> 1007.5 | P2: ='Trust - Frontsheet'!S14 -> 713 | Q2: ='Trust - Frontsheet'!T14 -> 851 | R2: ='Trust - Frontsheet'!U14 -> 0 | S2: ='Trust - Frontsheet'!V14 -> 0 | T2: ='Trust - Frontsheet'!W14 -> 0 | U2: ='Trust - Frontsheet'!X14 -> 0 | V2: ='Trust - Frontsheet'!Y14 -> 0 | W2: ='Trust - Frontsheet'!Z14 -> 0 | X2: ='Trust - Frontsheet'!AA14 -> 0 | Y2: ='Trust - Frontsheet'!AB14 -> 0 | Z2: =IF(OR('Trust - Frontsheet'!AK14="",'Trust - Frontsheet'!AK14="-"),0,('Trust - Frontsheet'!AK14)) -> 0.8817204301 | AA2: =IF(OR('Trust - Frontsheet'!AL14="",'Trust - Frontsheet'!AL14="-"),0,('Trust - Frontsheet'!AL14)) -> 1.209876543 | AB2: =IF(OR('Trust - Frontsheet'!AM14="",'Trust - Frontsheet'!AM14="-"),0,('Trust - Frontsheet'!AM14)) -> 0 | AC2: =IF(OR('Trust - Frontsheet'!AN14="",'Trust - Frontsheet'!AN14="-"),0,('Trust - Frontsheet'!AN14)) -> 0 | AD2: =IF(OR('Trust - Frontsheet'!AO14="",'Trust - Frontsheet'!AO14="-"),0,('Trust - Frontsheet'!AO14)) -> 0.9424695978 | AE2: =IF(OR('Trust - Frontsheet'!AP14="",'Trust - Frontsheet'!AP14="-"),0,('Trust - Frontsheet'!AP14)) -> 1.193548387 | AF2: =IF(OR('Trust - Frontsheet'!AQ14="",'Trust - Frontsheet'!AQ14="-"),0,('Trust - Frontsheet'!AQ14)) -> 0 | AG2: =IF(OR('Trust - Frontsheet'!AR14="",'Trust - Frontsheet'!AR14="-"),0,('Trust - Frontsheet'!AR14)) -> 0 | AH2: =IF(OR('Trust - Frontsheet'!AS14="",'Trust - Frontsheet'!AS14="-"),0,('Trust - Frontsheet'!AS14)) -> 0 | AI2: =IF(OR('Trust - Frontsheet'!AT14="",'Trust - Frontsheet'!AT14="-"),0,('Trust - Frontsheet'!AT14)) -> 0 | AJ2: ='Trust - Frontsheet'!#REF! ->  | AK2: =IF(OR('Trust - Frontsheet'!AD14="",'Trust - Frontsheet'!AD14="-"),0,('Trust - Frontsheet'!AD14)) -> 0 | AL2: =IF(OR('Trust - Frontsheet'!AE14="",'Trust - Frontsheet'!AE14="-"),0,('Trust - Frontsheet'!AE14)) -> 0 | AM2: =IF(OR('Trust - Frontsheet'!AF14="",'Trust - Frontsheet'!AF14="-"),0,('Trust - Frontsheet'!AF14)) -> 0 | AN2: =IF(OR('Trust - Frontsheet'!AG14="",'Trust - Frontsheet'!AG14="-"),0,('Trust - Frontsheet'!AG14)) -> 0 | AO2: =IF(OR('Trust - Frontsheet'!AH14="",'Trust - Frontsheet'!AH14="-"),0,('Trust - Frontsheet'!AH14)) -> 0 | AP2: =IF(OR('Trust - Frontsheet'!AI14="",'Trust - Frontsheet'!AI14="-"),0,('Trust - Frontsheet'!AI14)) -> 0 | AQ2: =IF(OR('Trust - Frontsheet'!AJ14="",'Trust - Frontsheet'!AJ14="-"),0,('Trust - Frontsheet'!AJ14)) -> 0 | AR2: =IF(A2="","",(IF(ISBLANK('Trust - Frontsheet'!F9),"",'Trust - Frontsheet'!F9))) -> 
A3: =IF('Trust - Frontsheet'!D15=0,"",IF('Trust - Frontsheet'!D15="","",'Trust - Frontsheet'!D15)) -> RWG02 | B3: =IF(ISBLANK('Trust - Frontsheet'!E15),"",'Trust - Frontsheet'!E15) -> WATFORD GENERAL HOSPITAL | C3: =IF(ISBLANK('Trust - Frontsheet'!F15),"","'" & 'Trust - Frontsheet'!F15 & "'") -> 'AAU Green Level 1' | D3: =IF(ISBLANK('Trust - Frontsheet'!G15),"",'Trust - Frontsheet'!G15) -> 326 - ACUTE INTERNAL MEDICINE | E3: =IF(ISBLANK('Trust - Frontsheet'!H15),"",'Trust - Frontsheet'!H15) ->  | F3: ='Trust - Frontsheet'!I15 -> 1069.5 | G3: ='Trust - Frontsheet'!J15 -> 996.5 | H3: ='Trust - Frontsheet'!K15 -> 713 | I3: ='Trust - Frontsheet'!L15 -> 700.67 | J3: ='Trust - Frontsheet'!M15 -> 0 | K3: ='Trust - Frontsheet'!N15 -> 0 | L3: ='Trust - Frontsheet'!O15 -> 0 | M3: ='Trust - Frontsheet'!P15 -> 0 | N3: ='Trust - Frontsheet'!Q15 -> 1069.5 | O3: ='Trust - Frontsheet'!R15 -> 1081 | P3: ='Trust - Frontsheet'!S15 -> 712.25 | Q3: ='Trust - Frontsheet'!T15 -> 689.25 | R3: ='Trust - Frontsheet'!U15 -> 0 | S3: ='Trust - Frontsheet'!V15 -> 0 | T3: ='Trust - Frontsheet'!W15 -> 0 | U3: ='Trust - Frontsheet'!X15 -> 0 | V3: ='Trust - Frontsheet'!Y15 -> 0 | W3: ='Trust - Frontsheet'!Z15 -> 0 | X3: ='Trust - Frontsheet'!AA15 -> 0 | Y3: ='Trust - Frontsheet'!AB15 -> 0 | Z3: =IF(OR('Trust - Frontsheet'!AK15="",'Trust - Frontsheet'!AK15="-"),0,('Trust - Frontsheet'!AK15)) -> 0.9317438055 | AA3: =IF(OR('Trust - Frontsheet'!AL15="",'Trust - Frontsheet'!AL15="-"),0,('Trust - Frontsheet'!AL15)) -> 0.9827068724 | AB3: =IF(OR('Trust - Frontsheet'!AM15="",'Trust - Frontsheet'!AM15="-"),0,('Trust - Frontsheet'!AM15)) -> 0 | AC3: =IF(OR('Trust - Frontsheet'!AN15="",'Trust - Frontsheet'!AN15="-"),0,('Trust - Frontsheet'!AN15)) -> 0 | AD3: =IF(OR('Trust - Frontsheet'!AO15="",'Trust - Frontsheet'!AO15="-"),0,('Trust - Frontsheet'!AO15)) -> 1.010752688 | AE3: =IF(OR('Trust - Frontsheet'!AP15="",'Trust - Frontsheet'!AP15="-"),0,('Trust - Frontsheet'!AP15)) -> 0.9677079677 | AF3: =IF(OR('Trust - Frontsheet'!AQ15="",'Trust - Frontsheet'!AQ15="-"),0,('Trust - Frontsheet'!AQ15)) -> 0 | AG3: =IF(OR('Trust - Frontsheet'!AR15="",'Trust - Frontsheet'!AR15="-"),0,('Trust - Frontsheet'!AR15)) -> 0 | AH3: =IF(OR('Trust - Frontsheet'!AS15="",'Trust - Frontsheet'!AS15="-"),0,('Trust - Frontsheet'!AS15)) -> 0 | AI3: =IF(OR('Trust - Frontsheet'!AT15="",'Trust - Frontsheet'!AT15="-"),0,('Trust - Frontsheet'!AT15)) -> 0 | AJ3: ='Trust - Frontsheet'!AC15 -> 401 | AK3: =IF(OR('Trust - Frontsheet'!AD15="",'Trust - Frontsheet'!AD15="-"),0,('Trust - Frontsheet'!AD15)) -> 5.180798005 | AL3: =IF(OR('Trust - Frontsheet'!AE15="",'Trust - Frontsheet'!AE15="-"),0,('Trust - Frontsheet'!AE15)) -> 3.466134663 | AM3: =IF(OR('Trust - Frontsheet'!AF15="",'Trust - Frontsheet'!AF15="-"),0,('Trust - Frontsheet'!AF15)) -> 0 | AN3: =IF(OR('Trust - Frontsheet'!AG15="",'Trust - Frontsheet'!AG15="-"),0,('Trust - Frontsheet'!AG15)) -> 0 | AO3: =IF(OR('Trust - Frontsheet'!AH15="",'Trust - Frontsheet'!AH15="-"),0,('Trust - Frontsheet'!AH15)) -> 0 | AP3: =IF(OR('Trust - Frontsheet'!AI15="",'Trust - Frontsheet'!AI15="-"),0,('Trust - Frontsheet'!AI15)) -> 0 | AQ3: =IF(OR('Trust - Frontsheet'!AJ15="",'Trust - Frontsheet'!AJ15="-"),0,('Trust - Frontsheet'!AJ15)) -> 8.646932668 | AR3: =IF(A3="","",(IF(ISBLANK('Trust - Frontsheet'!F9),"",'Trust - Frontsheet'!F9))) -> 
A4: =IF('Trust - Frontsheet'!D16=0,"",IF('Trust - Frontsheet'!D16="","",'Trust - Frontsheet'!D16)) -> RWG02 | B4: =IF(ISBLANK('Trust - Frontsheet'!E16),"",'Trust - Frontsheet'!E16) -> WATFORD GENERAL HOSPITAL | C4: =IF(ISBLANK('Trust - Frontsheet'!F16),"","'" & 'Trust - Frontsheet'!F16 & "'") -> 'AAU Yellow Level 1' | D4: =IF(ISBLANK('Trust - Frontsheet'!G16),"",'Trust - Frontsheet'!G16) -> 326 - ACUTE INTERNAL MEDICINE | E4: =IF(ISBLANK('Trust - Frontsheet'!H16),"",'Trust - Frontsheet'!H16) ->  | F4: ='Trust - Frontsheet'!I16 -> 1069.5 | G4: ='Trust - Frontsheet'!J16 -> 971.9166667 | H4: ='Trust - Frontsheet'!K16 -> 713 | I4: ='Trust - Frontsheet'!L16 -> 712.25 | J4: ='Trust - Frontsheet'!M16 -> 0 | K4: ='Trust - Frontsheet'!N16 -> 0 | L4: ='Trust - Frontsheet'!O16 -> 0 | M4: ='Trust - Frontsheet'!P16 -> 0 | N4: ='Trust - Frontsheet'!Q16 -> 1069.5 | O4: ='Trust - Frontsheet'!R16 -> 1058 | P4: ='Trust - Frontsheet'!S16 -> 713 | Q4: ='Trust - Frontsheet'!T16 -> 724.5 | R4: ='Trust - Frontsheet'!U16 -> 0 | S4: ='Trust - Frontsheet'!V16 -> 0 | T4: ='Trust - Frontsheet'!W16 -> 0 | U4: ='Trust - Frontsheet'!X16 -> 0 | V4: ='Trust - Frontsheet'!Y16 -> 0 | W4: ='Trust - Frontsheet'!Z16 -> 0 | X4: ='Trust - Frontsheet'!AA16 -> 0 | Y4: ='Trust - Frontsheet'!AB16 -> 0 | Z4: =IF(OR('Trust - Frontsheet'!AK16="",'Trust - Frontsheet'!AK16="-"),0,('Trust - Frontsheet'!AK16)) -> 0.9087579866 | AA4: =IF(OR('Trust - Frontsheet'!AL16="",'Trust - Frontsheet'!AL16="-"),0,('Trust - Frontsheet'!AL16)) -> 0.9989481066 | AB4: =IF(OR('Trust - Frontsheet'!AM16="",'Trust - Frontsheet'!AM16="-"),0,('Trust - Frontsheet'!AM16)) -> 0 | AC4: =IF(OR('Trust - Frontsheet'!AN16="",'Trust - Frontsheet'!AN16="-"),0,('Trust - Frontsheet'!AN16)) -> 0 | AD4: =IF(OR('Trust - Frontsheet'!AO16="",'Trust - Frontsheet'!AO16="-"),0,('Trust - Frontsheet'!AO16)) -> 0.9892473118 | AE4: =IF(OR('Trust - Frontsheet'!AP16="",'Trust - Frontsheet'!AP16="-"),0,('Trust - Frontsheet'!AP16)) -> 1.016129032 | AF4: =IF(OR('Trust - Frontsheet'!AQ16="",'Trust - Frontsheet'!AQ16="-"),0,('Trust - Frontsheet'!AQ16)) -> 0 | AG4: =IF(OR('Trust - Frontsheet'!AR16="",'Trust - Frontsheet'!AR16="-"),0,('Trust - Frontsheet'!AR16)) -> 0 | AH4: =IF(OR('Trust - Frontsheet'!AS16="",'Trust - Frontsheet'!AS16="-"),0,('Trust - Frontsheet'!AS16)) -> 0 | AI4: =IF(OR('Trust - Frontsheet'!AT16="",'Trust - Frontsheet'!AT16="-"),0,('Trust - Frontsheet'!AT16)) -> 0 | AJ4: ='Trust - Frontsheet'!AC16 -> 407 | AK4: =IF(OR('Trust - Frontsheet'!AD16="",'Trust - Frontsheet'!AD16="-"),0,('Trust - Frontsheet'!AD16)) -> 4.987510238 | AL4: =IF(OR('Trust - Frontsheet'!AE16="",'Trust - Frontsheet'!AE16="-"),0,('Trust - Frontsheet'!AE16)) -> 3.53009828 | AM4: =IF(OR('Trust - Frontsheet'!AF16="",'Trust - Frontsheet'!AF16="-"),0,('Trust - Frontsheet'!AF16)) -> 0 | AN4: =IF(OR('Trust - Frontsheet'!AG16="",'Trust - Frontsheet'!AG16="-"),0,('Trust - Frontsheet'!AG16)) -> 0 | AO4: =IF(OR('Trust - Frontsheet'!AH16="",'Trust - Frontsheet'!AH16="-"),0,('Trust - Frontsheet'!AH16)) -> 0 | AP4: =IF(OR('Trust - Frontsheet'!AI16="",'Trust - Frontsheet'!AI16="-"),0,('Trust - Frontsheet'!AI16)) -> 0 | AQ4: =IF(OR('Trust - Frontsheet'!AJ16="",'Trust - Frontsheet'!AJ16="-"),0,('Trust - Frontsheet'!AJ16)) -> 8.517608518 | AR4: =IF(A4="","",(IF(ISBLANK('Trust - Frontsheet'!F9),"",'Trust - Frontsheet'!F9))) -> 
A5: =IF('Trust - Frontsheet'!D17=0,"",IF('Trust - Frontsheet'!D17="","",'Trust - Frontsheet'!D17)) -> RWG02 | B5: =IF(ISBLANK('Trust - Frontsheet'!E17),"",'Trust - Frontsheet'!E17) -> WATFORD GENERAL HOSPITAL | C5: =IF(ISBLANK('Trust - Frontsheet'!F17),"","'" & 'Trust - Frontsheet'!F17 & "'") -> 'AAU Purple Level 1' | D5: =IF(ISBLANK('Trust - Frontsheet'!G17),"",'Trust - Frontsheet'!G17) -> 326 - ACUTE INTERNAL MEDICINE | E5: =IF(ISBLANK('Trust - Frontsheet'!H17),"",'Trust - Frontsheet'!H17) ->  | F5: ='Trust - Frontsheet'!I17 -> 1069.5 | G5: ='Trust - Frontsheet'!J17 -> 1058 | H5: ='Trust - Frontsheet'!K17 -> 713 | I5: ='Trust - Frontsheet'!L17 -> 784 | J5: ='Trust - Frontsheet'!M17 -> 0 | K5: ='Trust - Frontsheet'!N17 -> 0 | L5: ='Trust - Frontsheet'!O17 -> 0 | M5: ='Trust - Frontsheet'!P17 -> 0 | N5: ='Trust - Frontsheet'!Q17 -> 1069.5 | O5: ='Trust - Frontsheet'!R17 -> 1081 | P5: ='Trust - Frontsheet'!S17 -> 702 | Q5: ='Trust - Frontsheet'!T17 -> 818.75 | R5: ='Trust - Frontsheet'!U17 -> 0 | S5: ='Trust - Frontsheet'!V17 -> 0 | T5: ='Trust - Frontsheet'!W17 -> 0 | U5: ='Trust - Frontsheet'!X17 -> 0 | V5: ='Trust - Frontsheet'!Y17 -> 0 | W5: ='Trust - Frontsheet'!Z17 -> 0 | X5: ='Trust - Frontsheet'!AA17 -> 0 | Y5: ='Trust - Frontsheet'!AB17 -> 0 | Z5: =IF(OR('Trust - Frontsheet'!AK17="",'Trust - Frontsheet'!AK17="-"),0,('Trust - Frontsheet'!AK17)) -> 0.9892473118 | AA5: =IF(OR('Trust - Frontsheet'!AL17="",'Trust - Frontsheet'!AL17="-"),0,('Trust - Frontsheet'!AL17)) -> 1.099579243 | AB5: =IF(OR('Trust - Frontsheet'!AM17="",'Trust - Frontsheet'!AM17="-"),0,('Trust - Frontsheet'!AM17)) -> 0 | AC5: =IF(OR('Trust - Frontsheet'!AN17="",'Trust - Frontsheet'!AN17="-"),0,('Trust - Frontsheet'!AN17)) -> 0 | AD5: =IF(OR('Trust - Frontsheet'!AO17="",'Trust - Frontsheet'!AO17="-"),0,('Trust - Frontsheet'!AO17)) -> 1.010752688 | AE5: =IF(OR('Trust - Frontsheet'!AP17="",'Trust - Frontsheet'!AP17="-"),0,('Trust - Frontsheet'!AP17)) -> 1.166310541 | AF5: =IF(OR('Trust - Frontsheet'!AQ17="",'Trust - Frontsheet'!AQ17="-"),0,('Trust - Frontsheet'!AQ17)) -> 0 | AG5: =IF(OR('Trust - Frontsheet'!AR17="",'Trust - Frontsheet'!AR17="-"),0,('Trust - Frontsheet'!AR17)) -> 0 | AH5: =IF(OR('Trust - Frontsheet'!AS17="",'Trust - Frontsheet'!AS17="-"),0,('Trust - Frontsheet'!AS17)) -> 0 | AI5: =IF(OR('Trust - Frontsheet'!AT17="",'Trust - Frontsheet'!AT17="-"),0,('Trust - Frontsheet'!AT17)) -> 0 | AJ5: ='Trust - Frontsheet'!AC17 -> 383 | AK5: =IF(OR('Trust - Frontsheet'!AD17="",'Trust - Frontsheet'!AD17="-"),0,('Trust - Frontsheet'!AD17)) -> 5.584856397 | AL5: =IF(OR('Trust - Frontsheet'!AE17="",'Trust - Frontsheet'!AE17="-"),0,('Trust - Frontsheet'!AE17)) -> 4.184725849 | AM5: =IF(OR('Trust - Frontsheet'!AF17="",'Trust - Frontsheet'!AF17="-"),0,('Trust - Frontsheet'!AF17)) -> 0 | AN5: =IF(OR('Trust - Frontsheet'!AG17="",'Trust - Frontsheet'!AG17="-"),0,('Trust - Frontsheet'!AG17)) -> 0 | AO5: =IF(OR('Trust - Frontsheet'!AH17="",'Trust - Frontsheet'!AH17="-"),0,('Trust - Frontsheet'!AH17)) -> 0 | AP5: =IF(OR('Trust - Frontsheet'!AI17="",'Trust - Frontsheet'!AI17="-"),0,('Trust - Frontsheet'!AI17)) -> 0 | AQ5: =IF(OR('Trust - Frontsheet'!AJ17="",'Trust - Frontsheet'!AJ17="-"),0,('Trust - Frontsheet'!AJ17)) -> 9.769582245 | AR5: =IF(A5="","",(IF(ISBLANK('Trust - Frontsheet'!F9),"",'Trust - Frontsheet'!F9))) -> 
A6: =IF('Trust - Frontsheet'!D18=0,"",IF('Trust - Frontsheet'!D18="","",'Trust - Frontsheet'!D18)) -> RWG02 | B6: =IF(ISBLANK('Trust - Frontsheet'!E18),"",'Trust - Frontsheet'!E18) -> WATFORD GENERAL HOSPITAL | C6: =IF(ISBLANK('Trust - Frontsheet'!F18),"","'" & 'Trust - Frontsheet'!F18 & "'") -> 'AAU Blue & Yellow Level 3' | D6: =IF(ISBLANK('Trust - Frontsheet'!G18),"",'Trust - Frontsheet'!G18) -> 326 - ACUTE INTERNAL MEDICINE | E6: =IF(ISBLANK('Trust - Frontsheet'!H18),"",'Trust - Frontsheet'!H18) ->  | F6: ='Trust - Frontsheet'!I18 -> 2139 | G6: ='Trust - Frontsheet'!J18 -> 1894.083333 | H6: ='Trust - Frontsheet'!K18 -> 2496 | I6: ='Trust - Frontsheet'!L18 -> 3125.25 | J6: ='Trust - Frontsheet'!M18 -> 0 | K6: ='Trust - Frontsheet'!N18 -> 0 | L6: ='Trust - Frontsheet'!O18 -> 0 | M6: ='Trust - Frontsheet'!P18 -> 0 | N6: ='Trust - Frontsheet'!Q18 -> 2139 | O6: ='Trust - Frontsheet'!R18 -> 2058.5 | P6: ='Trust - Frontsheet'!S18 -> 1069.5 | Q6: ='Trust - Frontsheet'!T18 -> 1667.5 | R6: ='Trust - Frontsheet'!U18 -> 0 | S6: ='Trust - Frontsheet'!V18 -> 0 | T6: ='Trust - Frontsheet'!W18 -> 0 | U6: ='Trust - Frontsheet'!X18 -> 0 | V6: ='Trust - Frontsheet'!Y18 -> 0 | W6: ='Trust - Frontsheet'!Z18 -> 0 | X6: ='Trust - Frontsheet'!AA18 -> 0 | Y6: ='Trust - Frontsheet'!AB18 -> 0 | Z6: =IF(OR('Trust - Frontsheet'!AK18="",'Trust - Frontsheet'!AK18="-"),0,('Trust - Frontsheet'!AK18)) -> 0.8854994546 | AA6: =IF(OR('Trust - Frontsheet'!AL18="",'Trust - Frontsheet'!AL18="-"),0,('Trust - Frontsheet'!AL18)) -> 1.252103365 | AB6: =IF(OR('Trust - Frontsheet'!AM18="",'Trust - Frontsheet'!AM18="-"),0,('Trust - Frontsheet'!AM18)) -> 0 | AC6: =IF(OR('Trust - Frontsheet'!AN18="",'Trust - Frontsheet'!AN18="-"),0,('Trust - Frontsheet'!AN18)) -> 0 | AD6: =IF(OR('Trust - Frontsheet'!AO18="",'Trust - Frontsheet'!AO18="-"),0,('Trust - Frontsheet'!AO18)) -> 0.9623655914 | AE6: =IF(OR('Trust - Frontsheet'!AP18="",'Trust - Frontsheet'!AP18="-"),0,('Trust - Frontsheet'!AP18)) -> 1.559139785 | AF6: =IF(OR('Trust - Frontsheet'!AQ18="",'Trust - Frontsheet'!AQ18="-"),0,('Trust - Frontsheet'!AQ18)) -> 0 | AG6: =IF(OR('Trust - Frontsheet'!AR18="",'Trust - Frontsheet'!AR18="-"),0,('Trust - Frontsheet'!AR18)) -> 0 | AH6: =IF(OR('Trust - Frontsheet'!AS18="",'Trust - Frontsheet'!AS18="-"),0,('Trust - Frontsheet'!AS18)) -> 0 | AI6: =IF(OR('Trust - Frontsheet'!AT18="",'Trust - Frontsheet'!AT18="-"),0,('Trust - Frontsheet'!AT18)) -> 0 | AJ6: ='Trust - Frontsheet'!AC18 -> 1103 | AK6: =IF(OR('Trust - Frontsheet'!AD18="",'Trust - Frontsheet'!AD18="-"),0,('Trust - Frontsheet'!AD18)) -> 3.583484436 | AL6: =IF(OR('Trust - Frontsheet'!AE18="",'Trust - Frontsheet'!AE18="-"),0,('Trust - Frontsheet'!AE18)) -> 4.345194923 | AM6: =IF(OR('Trust - Frontsheet'!AF18="",'Trust - Frontsheet'!AF18="-"),0,('Trust - Frontsheet'!AF18)) -> 0 | AN6: =IF(OR('Trust - Frontsheet'!AG18="",'Trust - Frontsheet'!AG18="-"),0,('Trust - Frontsheet'!AG18)) -> 0 | AO6: =IF(OR('Trust - Frontsheet'!AH18="",'Trust - Frontsheet'!AH18="-"),0,('Trust - Frontsheet'!AH18)) -> 0 | AP6: =IF(OR('Trust - Frontsheet'!AI18="",'Trust - Frontsheet'!AI18="-"),0,('Trust - Frontsheet'!AI18)) -> 0 | AQ6: =IF(OR('Trust - Frontsheet'!AJ18="",'Trust - Frontsheet'!AJ18="-"),0,('Trust - Frontsheet'!AJ18)) -> 7.928679359 | AR6: =IF(A6="","",(IF(ISBLANK('Trust - Frontsheet'!F9),"",'Trust - Frontsheet'!F9))) -> 
A7: =IF('Trust - Frontsheet'!D19=0,"",IF('Trust - Frontsheet'!D19="","",'Trust - Frontsheet'!D19)) -> RWG02 | B7: =IF(ISBLANK('Trust - Frontsheet'!E19),"",'Trust - Frontsheet'!E19) -> WATFORD GENERAL HOSPITAL | C7: =IF(ISBLANK('Trust - Frontsheet'!F19),"","'" & 'Trust - Frontsheet'!F19 & "'") -> 'AAU Red Suite' | D7: =IF(ISBLANK('Trust - Frontsheet'!G19),"",'Trust - Frontsheet'!G19) -> 430 - GERIATRIC MEDICINE | E7: =IF(ISBLANK('Trust - Frontsheet'!H19),"",'Trust - Frontsheet'!H19) ->  | F7: ='Trust - Frontsheet'!I19 -> 810.5 | G7: ='Trust - Frontsheet'!J19 -> 992 | H7: ='Trust - Frontsheet'!K19 -> 1068.25 | I7: ='Trust - Frontsheet'!L19 -> 991.75 | J7: ='Trust - Frontsheet'!M19 -> 0 | K7: ='Trust - Frontsheet'!N19 -> 0 | L7: ='Trust - Frontsheet'!O19 -> 0 | M7: ='Trust - Frontsheet'!P19 -> 0 | N7: ='Trust - Frontsheet'!Q19 -> 1069.5 | O7: ='Trust - Frontsheet'!R19 -> 1012 | P7: ='Trust - Frontsheet'!S19 -> 356.5 | Q7: ='Trust - Frontsheet'!T19 -> 667 | R7: ='Trust - Frontsheet'!U19 -> 0 | S7: ='Trust - Frontsheet'!V19 -> 0 | T7: ='Trust - Frontsheet'!W19 -> 0 | U7: ='Trust - Frontsheet'!X19 -> 0 | V7: ='Trust - Frontsheet'!Y19 -> 0 | W7: ='Trust - Frontsheet'!Z19 -> 0 | X7: ='Trust - Frontsheet'!AA19 -> 0 | Y7: ='Trust - Frontsheet'!AB19 -> 0 | Z7: =IF(OR('Trust - Frontsheet'!AK19="",'Trust - Frontsheet'!AK19="-"),0,('Trust - Frontsheet'!AK19)) -> 1.223935842 | AA7: =IF(OR('Trust - Frontsheet'!AL19="",'Trust - Frontsheet'!AL19="-"),0,('Trust - Frontsheet'!AL19)) -> 0.9283875497 | AB7: =IF(OR('Trust - Frontsheet'!AM19="",'Trust - Frontsheet'!AM19="-"),0,('Trust - Frontsheet'!AM19)) -> 0 | AC7: =IF(OR('Trust - Frontsheet'!AN19="",'Trust - Frontsheet'!AN19="-"),0,('Trust - Frontsheet'!AN19)) -> 0 | AD7: =IF(OR('Trust - Frontsheet'!AO19="",'Trust - Frontsheet'!AO19="-"),0,('Trust - Frontsheet'!AO19)) -> 0.9462365591 | AE7: =IF(OR('Trust - Frontsheet'!AP19="",'Trust - Frontsheet'!AP19="-"),0,('Trust - Frontsheet'!AP19)) -> 1.870967742 | AF7: =IF(OR('Trust - Frontsheet'!AQ19="",'Trust - Frontsheet'!AQ19="-"),0,('Trust - Frontsheet'!AQ19)) -> 0 | AG7: =IF(OR('Trust - Frontsheet'!AR19="",'Trust - Frontsheet'!AR19="-"),0,('Trust - Frontsheet'!AR19)) -> 0 | AH7: =IF(OR('Trust - Frontsheet'!AS19="",'Trust - Frontsheet'!AS19="-"),0,('Trust - Frontsheet'!AS19)) -> 0 | AI7: =IF(OR('Trust - Frontsheet'!AT19="",'Trust - Frontsheet'!AT19="-"),0,('Trust - Frontsheet'!AT19)) -> 0 | AJ7: ='Trust - Frontsheet'!AC19 -> 521 | AK7: =IF(OR('Trust - Frontsheet'!AD19="",'Trust - Frontsheet'!AD19="-"),0,('Trust - Frontsheet'!AD19)) -> 3.846449136 | AL7: =IF(OR('Trust - Frontsheet'!AE19="",'Trust - Frontsheet'!AE19="-"),0,('Trust - Frontsheet'!AE19)) -> 3.18378119 | AM7: =IF(OR('Trust - Frontsheet'!AF19="",'Trust - Frontsheet'!AF19="-"),0,('Trust - Frontsheet'!AF19)) -> 0 | AN7: =IF(OR('Trust - Frontsheet'!AG19="",'Trust - Frontsheet'!AG19="-"),0,('Trust - Frontsheet'!AG19)) -> 0 | AO7: =IF(OR('Trust - Frontsheet'!AH19="",'Trust - Frontsheet'!AH19="-"),0,('Trust - Frontsheet'!AH19)) -> 0 | AP7: =IF(OR('Trust - Frontsheet'!AI19="",'Trust - Frontsheet'!AI19="-"),0,('Trust - Frontsheet'!AI19)) -> 0 | AQ7: =IF(OR('Trust - Frontsheet'!AJ19="",'Trust - Frontsheet'!AJ19="-"),0,('Trust - Frontsheet'!AJ19)) -> 7.030230326 | AR7: =IF(A7="","",(IF(ISBLANK('Trust - Frontsheet'!F9),"",'Trust - Frontsheet'!F9))) -> 
A8: =IF('Trust - Frontsheet'!D20=0,"",IF('Trust - Frontsheet'!D20="","",'Trust - Frontsheet'!D20)) -> RWG02 | B8: =IF(ISBLANK('Trust - Frontsheet'!E20),"",'Trust - Frontsheet'!E20) -> WATFORD GENERAL HOSPITAL | C8: =IF(ISBLANK('Trust - Frontsheet'!F20),"","'" & 'Trust - Frontsheet'!F20 & "'") -> 'Acute Stroke Unit' | D8: =IF(ISBLANK('Trust - Frontsheet'!G20),"",'Trust - Frontsheet'!G20) -> 328 - STROKE MEDICINE | E8: =IF(ISBLANK('Trust - Frontsheet'!H20),"",'Trust - Frontsheet'!H20) ->  | F8: ='Trust - Frontsheet'!I20 -> 2358.7 | G8: ='Trust - Frontsheet'!J20 -> 2168.366667 | H8: ='Trust - Frontsheet'!K20 -> 1425.5 | I8: ='Trust - Frontsheet'!L20 -> 1376.75 | J8: ='Trust - Frontsheet'!M20 -> 0 | K8: ='Trust - Frontsheet'!N20 -> 0 | L8: ='Trust - Frontsheet'!O20 -> 0 | M8: ='Trust - Frontsheet'!P20 -> 181.5 | N8: ='Trust - Frontsheet'!Q20 -> 2139 | O8: ='Trust - Frontsheet'!R20 -> 2093 | P8: ='Trust - Frontsheet'!S20 -> 1426 | Q8: ='Trust - Frontsheet'!T20 -> 1518 | R8: ='Trust - Frontsheet'!U20 -> 0 | S8: ='Trust - Frontsheet'!V20 -> 0 | T8: ='Trust - Frontsheet'!W20 -> 0 | U8: ='Trust - Frontsheet'!X20 -> 34.5 | V8: ='Trust - Frontsheet'!Y20 -> 0 | W8: ='Trust - Frontsheet'!Z20 -> 0 | X8: ='Trust - Frontsheet'!AA20 -> 0 | Y8: ='Trust - Frontsheet'!AB20 -> 0 | Z8: =IF(OR('Trust - Frontsheet'!AK20="",'Trust - Frontsheet'!AK20="-"),0,('Trust - Frontsheet'!AK20)) -> 0.9193058323 | AA8: =IF(OR('Trust - Frontsheet'!AL20="",'Trust - Frontsheet'!AL20="-"),0,('Trust - Frontsheet'!AL20)) -> 0.9658014732 | AB8: =IF(OR('Trust - Frontsheet'!AM20="",'Trust - Frontsheet'!AM20="-"),0,('Trust - Frontsheet'!AM20)) -> 0 | AC8: =IF(OR('Trust - Frontsheet'!AN20="",'Trust - Frontsheet'!AN20="-"),0,('Trust - Frontsheet'!AN20)) -> 0 | AD8: =IF(OR('Trust - Frontsheet'!AO20="",'Trust - Frontsheet'!AO20="-"),0,('Trust - Frontsheet'!AO20)) -> 0.9784946237 | AE8: =IF(OR('Trust - Frontsheet'!AP20="",'Trust - Frontsheet'!AP20="-"),0,('Trust - Frontsheet'!AP20)) -> 1.064516129 | AF8: =IF(OR('Trust - Frontsheet'!AQ20="",'Trust - Frontsheet'!AQ20="-"),0,('Trust - Frontsheet'!AQ20)) -> 0 | AG8: =IF(OR('Trust - Frontsheet'!AR20="",'Trust - Frontsheet'!AR20="-"),0,('Trust - Frontsheet'!AR20)) -> 0 | AH8: =IF(OR('Trust - Frontsheet'!AS20="",'Trust - Frontsheet'!AS20="-"),0,('Trust - Frontsheet'!AS20)) -> 0 | AI8: =IF(OR('Trust - Frontsheet'!AT20="",'Trust - Frontsheet'!AT20="-"),0,('Trust - Frontsheet'!AT20)) -> 0 | AJ8: ='Trust - Frontsheet'!AC20 -> 971 | AK8: =IF(OR('Trust - Frontsheet'!AD20="",'Trust - Frontsheet'!AD20="-"),0,('Trust - Frontsheet'!AD20)) -> 4.388637144 | AL8: =IF(OR('Trust - Frontsheet'!AE20="",'Trust - Frontsheet'!AE20="-"),0,('Trust - Frontsheet'!AE20)) -> 2.981204943 | AM8: =IF(OR('Trust - Frontsheet'!AF20="",'Trust - Frontsheet'!AF20="-"),0,('Trust - Frontsheet'!AF20)) -> 0 | AN8: =IF(OR('Trust - Frontsheet'!AG20="",'Trust - Frontsheet'!AG20="-"),0,('Trust - Frontsheet'!AG20)) -> 0.2224510814 | AO8: =IF(OR('Trust - Frontsheet'!AH20="",'Trust - Frontsheet'!AH20="-"),0,('Trust - Frontsheet'!AH20)) -> 0 | AP8: =IF(OR('Trust - Frontsheet'!AI20="",'Trust - Frontsheet'!AI20="-"),0,('Trust - Frontsheet'!AI20)) -> 0 | AQ8: =IF(OR('Trust - Frontsheet'!AJ20="",'Trust - Frontsheet'!AJ20="-"),0,('Trust - Frontsheet'!AJ20)) -> 7.592293169 | AR8: =IF(A8="","",(IF(ISBLANK('Trust - Frontsheet'!F9),"",'Trust - Frontsheet'!F9))) -> 
A9: =IF('Trust - Frontsheet'!D21=0,"",IF('Trust - Frontsheet'!D21="","",'Trust - Frontsheet'!D21)) -> RWG02 | B9: =IF(ISBLANK('Trust - Frontsheet'!E21),"",'Trust - Frontsheet'!E21) -> WATFORD GENERAL HOSPITAL | C9: =IF(ISBLANK('Trust - Frontsheet'!F21),"","'" & 'Trust - Frontsheet'!F21 & "'") -> 'Aldenham' | D9: =IF(ISBLANK('Trust - Frontsheet'!G21),"",'Trust - Frontsheet'!G21) -> 340 - RESPIRATORY MEDICINE | E9: =IF(ISBLANK('Trust - Frontsheet'!H21),"",'Trust - Frontsheet'!H21) ->  | F9: ='Trust - Frontsheet'!I21 -> 1786.833333 | G9: ='Trust - Frontsheet'!J21 -> 1638.333333 | H9: ='Trust - Frontsheet'!K21 -> 1426 | I9: ='Trust - Frontsheet'!L21 -> 1299.5 | J9: ='Trust - Frontsheet'!M21 -> 0 | K9: ='Trust - Frontsheet'!N21 -> 0 | L9: ='Trust - Frontsheet'!O21 -> 0 | M9: ='Trust - Frontsheet'!P21 -> 0 | N9: ='Trust - Frontsheet'!Q21 -> 1426 | O9: ='Trust - Frontsheet'!R21 -> 1495 | P9: ='Trust - Frontsheet'!S21 -> 851 | Q9: ='Trust - Frontsheet'!T21 -> 989 | R9: ='Trust - Frontsheet'!U21 -> 0 | S9: ='Trust - Frontsheet'!V21 -> 0 | T9: ='Trust - Frontsheet'!W21 -> 0 | U9: ='Trust - Frontsheet'!X21 -> 0 | V9: ='Trust - Frontsheet'!Y21 -> 0 | W9: ='Trust - Frontsheet'!Z21 -> 0 | X9: ='Trust - Frontsheet'!AA21 -> 0 | Y9: ='Trust - Frontsheet'!AB21 -> 0 | Z9: =IF(OR('Trust - Frontsheet'!AK21="",'Trust - Frontsheet'!AK21="-"),0,('Trust - Frontsheet'!AK21)) -> 0.916892081 | AA9: =IF(OR('Trust - Frontsheet'!AL21="",'Trust - Frontsheet'!AL21="-"),0,('Trust - Frontsheet'!AL21)) -> 0.9112903226 | AB9: =IF(OR('Trust - Frontsheet'!AM21="",'Trust - Frontsheet'!AM21="-"),0,('Trust - Frontsheet'!AM21)) -> 0 | AC9: =IF(OR('Trust - Frontsheet'!AN21="",'Trust - Frontsheet'!AN21="-"),0,('Trust - Frontsheet'!AN21)) -> 0 | AD9: =IF(OR('Trust - Frontsheet'!AO21="",'Trust - Frontsheet'!AO21="-"),0,('Trust - Frontsheet'!AO21)) -> 1.048387097 | AE9: =IF(OR('Trust - Frontsheet'!AP21="",'Trust - Frontsheet'!AP21="-"),0,('Trust - Frontsheet'!AP21)) -> 1.162162162 | AF9: =IF(OR('Trust - Frontsheet'!AQ21="",'Trust - Frontsheet'!AQ21="-"),0,('Trust - Frontsheet'!AQ21)) -> 0 | AG9: =IF(OR('Trust - Frontsheet'!AR21="",'Trust - Frontsheet'!AR21="-"),0,('Trust - Frontsheet'!AR21)) -> 0 | AH9: =IF(OR('Trust - Frontsheet'!AS21="",'Trust - Frontsheet'!AS21="-"),0,('Trust - Frontsheet'!AS21)) -> 0 | AI9: =IF(OR('Trust - Frontsheet'!AT21="",'Trust - Frontsheet'!AT21="-"),0,('Trust - Frontsheet'!AT21)) -> 0 | AJ9: ='Trust - Frontsheet'!AC21 -> 806 | AK9: =IF(OR('Trust - Frontsheet'!AD21="",'Trust - Frontsheet'!AD21="-"),0,('Trust - Frontsheet'!AD21)) -> 3.887510339 | AL9: =IF(OR('Trust - Frontsheet'!AE21="",'Trust - Frontsheet'!AE21="-"),0,('Trust - Frontsheet'!AE21)) -> 2.839330025 | AM9: =IF(OR('Trust - Frontsheet'!AF21="",'Trust - Frontsheet'!AF21="-"),0,('Trust - Frontsheet'!AF21)) -> 0 | AN9: =IF(OR('Trust - Frontsheet'!AG21="",'Trust - Frontsheet'!AG21="-"),0,('Trust - Frontsheet'!AG21)) -> 0 | AO9: =IF(OR('Trust - Frontsheet'!AH21="",'Trust - Frontsheet'!AH21="-"),0,('Trust - Frontsheet'!AH21)) -> 0 | AP9: =IF(OR('Trust - Frontsheet'!AI21="",'Trust - Frontsheet'!AI21="-"),0,('Trust - Frontsheet'!AI21)) -> 0 | AQ9: =IF(OR('Trust - Frontsheet'!AJ21="",'Trust - Frontsheet'!AJ21="-"),0,('Trust - Frontsheet'!AJ21)) -> 6.726840364 | AR9: =IF(A9="","",(IF(ISBLANK('Trust - Frontsheet'!F9),"",'Trust - Frontsheet'!F9))) -> 
A10: =IF('Trust - Frontsheet'!D22=0,"",IF('Trust - Frontsheet'!D22="","",'Trust - Frontsheet'!D22)) -> RWG02 | B10: =IF(ISBLANK('Trust - Frontsheet'!E22),"",'Trust - Frontsheet'!E22) -> WATFORD GENERAL HOSPITAL | C10: =IF(ISBLANK('Trust - Frontsheet'!F22),"","'" & 'Trust - Frontsheet'!F22 & "'") -> 'Bluebell' | D10: =IF(ISBLANK('Trust - Frontsheet'!G22),"",'Trust - Frontsheet'!G22) -> 430 - GERIATRIC MEDICINE | E10: =IF(ISBLANK('Trust - Frontsheet'!H22),"",'Trust - Frontsheet'!H22) ->  | F10: ='Trust - Frontsheet'!I22 -> 713 | G10: ='Trust - Frontsheet'!J22 -> 747.5 | H10: ='Trust - Frontsheet'!K22 -> 2139 | I10: ='Trust - Frontsheet'!L22 -> 1822.75 | J10: ='Trust - Frontsheet'!M22 -> 0 | K10: ='Trust - Frontsheet'!N22 -> 0 | L10: ='Trust - Frontsheet'!O22 -> 0 | M10: ='Trust - Frontsheet'!P22 -> 46 | N10: ='Trust - Frontsheet'!Q22 -> 713 | O10: ='Trust - Frontsheet'!R22 -> 920 | P10: ='Trust - Frontsheet'!S22 -> 2139 | Q10: ='Trust - Frontsheet'!T22 -> 1667.5 | R10: ='Trust - Frontsheet'!U22 -> 0 | S10: ='Trust - Frontsheet'!V22 -> 0 | T10: ='Trust - Frontsheet'!W22 -> 0 | U10: ='Trust - Frontsheet'!X22 -> 103.5 | V10: ='Trust - Frontsheet'!Y22 -> 0 | W10: ='Trust - Frontsheet'!Z22 -> 0 | X10: ='Trust - Frontsheet'!AA22 -> 0 | Y10: ='Trust - Frontsheet'!AB22 -> 0 | Z10: =IF(OR('Trust - Frontsheet'!AK22="",'Trust - Frontsheet'!AK22="-"),0,('Trust - Frontsheet'!AK22)) -> 1.048387097 | AA10: =IF(OR('Trust - Frontsheet'!AL22="",'Trust - Frontsheet'!AL22="-"),0,('Trust - Frontsheet'!AL22)) -> 0.8521505376 | AB10: =IF(OR('Trust - Frontsheet'!AM22="",'Trust - Frontsheet'!AM22="-"),0,('Trust - Frontsheet'!AM22)) -> 0 | AC10: =IF(OR('Trust - Frontsheet'!AN22="",'Trust - Frontsheet'!AN22="-"),0,('Trust - Frontsheet'!AN22)) -> 0 | AD10: =IF(OR('Trust - Frontsheet'!AO22="",'Trust - Frontsheet'!AO22="-"),0,('Trust - Frontsheet'!AO22)) -> 1.290322581 | AE10: =IF(OR('Trust - Frontsheet'!AP22="",'Trust - Frontsheet'!AP22="-"),0,('Trust - Frontsheet'!AP22)) -> 0.7795698925 | AF10: =IF(OR('Trust - Frontsheet'!AQ22="",'Trust - Frontsheet'!AQ22="-"),0,('Trust - Frontsheet'!AQ22)) -> 0 | AG10: =IF(OR('Trust - Frontsheet'!AR22="",'Trust - Frontsheet'!AR22="-"),0,('Trust - Frontsheet'!AR22)) -> 0 | AH10: =IF(OR('Trust - Frontsheet'!AS22="",'Trust - Frontsheet'!AS22="-"),0,('Trust - Frontsheet'!AS22)) -> 0 | AI10: =IF(OR('Trust - Frontsheet'!AT22="",'Trust - Frontsheet'!AT22="-"),0,('Trust - Frontsheet'!AT22)) -> 0 | AJ10: ='Trust - Frontsheet'!AC22 -> 463 | AK10: =IF(OR('Trust - Frontsheet'!AD22="",'Trust - Frontsheet'!AD22="-"),0,('Trust - Frontsheet'!AD22)) -> 3.601511879 | AL10: =IF(OR('Trust - Frontsheet'!AE22="",'Trust - Frontsheet'!AE22="-"),0,('Trust - Frontsheet'!AE22)) -> 7.538336933 | AM10: =IF(OR('Trust - Frontsheet'!AF22="",'Trust - Frontsheet'!AF22="-"),0,('Trust - Frontsheet'!AF22)) -> 0 | AN10: =IF(OR('Trust - Frontsheet'!AG22="",'Trust - Frontsheet'!AG22="-"),0,('Trust - Frontsheet'!AG22)) -> 0.3228941685 | AO10: =IF(OR('Trust - Frontsheet'!AH22="",'Trust - Frontsheet'!AH22="-"),0,('Trust - Frontsheet'!AH22)) -> 0 | AP10: =IF(OR('Trust - Frontsheet'!AI22="",'Trust - Frontsheet'!AI22="-"),0,('Trust - Frontsheet'!AI22)) -> 0 | AQ10: =IF(OR('Trust - Frontsheet'!AJ22="",'Trust - Frontsheet'!AJ22="-"),0,('Trust - Frontsheet'!AJ22)) -> 11.46274298 | AR10: =IF(A10="","",(IF(ISBLANK('Trust - Frontsheet'!F9),"",'Trust - Frontsheet'!F9))) -> 
A11: =IF('Trust - Frontsheet'!D23=0,"",IF('Trust - Frontsheet'!D23="","",'Trust - Frontsheet'!D23)) -> RWG02 | B11: =IF(ISBLANK('Trust - Frontsheet'!E23),"",'Trust - Frontsheet'!E23) -> WATFORD GENERAL HOSPITAL | C11: =IF(ISBLANK('Trust - Frontsheet'!F23),"","'" & 'Trust - Frontsheet'!F23 & "'") -> 'Cardiac Care' | D11: =IF(ISBLANK('Trust - Frontsheet'!G23),"",'Trust - Frontsheet'!G23) -> 320 - CARDIOLOGY | E11: =IF(ISBLANK('Trust - Frontsheet'!H23),"",'Trust - Frontsheet'!H23) ->  | F11: ='Trust - Frontsheet'!I23 -> 2139 | G11: ='Trust - Frontsheet'!J23 -> 1966.5 | H11: ='Trust - Frontsheet'!K23 -> 713 | I11: ='Trust - Frontsheet'!L23 -> 747.5 | J11: ='Trust - Frontsheet'!M23 -> 0 | K11: ='Trust - Frontsheet'!N23 -> 0 | L11: ='Trust - Frontsheet'!O23 -> 0 | M11: ='Trust - Frontsheet'!P23 -> 0 | N11: ='Trust - Frontsheet'!Q23 -> 1782.25 | O11: ='Trust - Frontsheet'!R23 -> 1747.75 | P11: ='Trust - Frontsheet'!S23 -> 356.5 | Q11: ='Trust - Frontsheet'!T23 -> 391 | R11: ='Trust - Frontsheet'!U23 -> 0 | S11: ='Trust - Frontsheet'!V23 -> 0 | T11: ='Trust - Frontsheet'!W23 -> 0 | U11: ='Trust - Frontsheet'!X23 -> 0 | V11: ='Trust - Frontsheet'!Y23 -> 0 | W11: ='Trust - Frontsheet'!Z23 -> 0 | X11: ='Trust - Frontsheet'!AA23 -> 0 | Y11: ='Trust - Frontsheet'!AB23 -> 0 | Z11: =IF(OR('Trust - Frontsheet'!AK23="",'Trust - Frontsheet'!AK23="-"),0,('Trust - Frontsheet'!AK23)) -> 0.9193548387 | AA11: =IF(OR('Trust - Frontsheet'!AL23="",'Trust - Frontsheet'!AL23="-"),0,('Trust - Frontsheet'!AL23)) -> 1.048387097 | AB11: =IF(OR('Trust - Frontsheet'!AM23="",'Trust - Frontsheet'!AM23="-"),0,('Trust - Frontsheet'!AM23)) -> 0 | AC11: =IF(OR('Trust - Frontsheet'!AN23="",'Trust - Frontsheet'!AN23="-"),0,('Trust - Frontsheet'!AN23)) -> 0 | AD11: =IF(OR('Trust - Frontsheet'!AO23="",'Trust - Frontsheet'!AO23="-"),0,('Trust - Frontsheet'!AO23)) -> 0.9806424463 | AE11: =IF(OR('Trust - Frontsheet'!AP23="",'Trust - Frontsheet'!AP23="-"),0,('Trust - Frontsheet'!AP23)) -> 1.096774194 | AF11: =IF(OR('Trust - Frontsheet'!AQ23="",'Trust - Frontsheet'!AQ23="-"),0,('Trust - Frontsheet'!AQ23)) -> 0 | AG11: =IF(OR('Trust - Frontsheet'!AR23="",'Trust - Frontsheet'!AR23="-"),0,('Trust - Frontsheet'!AR23)) -> 0 | AH11: =IF(OR('Trust - Frontsheet'!AS23="",'Trust - Frontsheet'!AS23="-"),0,('Trust - Frontsheet'!AS23)) -> 0 | AI11: =IF(OR('Trust - Frontsheet'!AT23="",'Trust - Frontsheet'!AT23="-"),0,('Trust - Frontsheet'!AT23)) -> 0 | AJ11: ='Trust - Frontsheet'!AC14 -> 398 | AK11: =IF(OR('Trust - Frontsheet'!AD23="",'Trust - Frontsheet'!AD23="-"),0,('Trust - Frontsheet'!AD23)) -> 9.332286432 | AL11: =IF(OR('Trust - Frontsheet'!AE23="",'Trust - Frontsheet'!AE23="-"),0,('Trust - Frontsheet'!AE23)) -> 2.860552764 | AM11: =IF(OR('Trust - Frontsheet'!AF23="",'Trust - Frontsheet'!AF23="-"),0,('Trust - Frontsheet'!AF23)) -> 0 | AN11: =IF(OR('Trust - Frontsheet'!AG23="",'Trust - Frontsheet'!AG23="-"),0,('Trust - Frontsheet'!AG23)) -> 0 | AO11: =IF(OR('Trust - Frontsheet'!AH23="",'Trust - Frontsheet'!AH23="-"),0,('Trust - Frontsheet'!AH23)) -> 0 | AP11: =IF(OR('Trust - Frontsheet'!AI23="",'Trust - Frontsheet'!AI23="-"),0,('Trust - Frontsheet'!AI23)) -> 0 | AQ11: =IF(OR('Trust - Frontsheet'!AJ23="",'Trust - Frontsheet'!AJ23="-"),0,('Trust - Frontsheet'!AJ23)) -> 12.1928392 | AR11: =IF(A11="","",(IF(ISBLANK('Trust - Frontsheet'!F9),"",'Trust - Frontsheet'!F9))) -> 
A12: =IF('Trust - Frontsheet'!D24=0,"",IF('Trust - Frontsheet'!D24="","",'Trust - Frontsheet'!D24)) -> RWG02 | B12: =IF(ISBLANK('Trust - Frontsheet'!E24),"",'Trust - Frontsheet'!E24) -> WATFORD GENERAL HOSPITAL | C12: =IF(ISBLANK('Trust - Frontsheet'!F24),"","'" & 'Trust - Frontsheet'!F24 & "'") -> 'Cassio' | D12: =IF(ISBLANK('Trust - Frontsheet'!G24),"",'Trust - Frontsheet'!G24) -> 301 - GASTROENTEROLOGY | E12: =IF(ISBLANK('Trust - Frontsheet'!H24),"",'Trust - Frontsheet'!H24) ->  | F12: ='Trust - Frontsheet'!I24 -> 717.75 | G12: ='Trust - Frontsheet'!J24 -> 828.92 | H12: ='Trust - Frontsheet'!K24 -> 1075.75 | I12: ='Trust - Frontsheet'!L24 -> 980.08 | J12: ='Trust - Frontsheet'!M24 -> 0 | K12: ='Trust - Frontsheet'!N24 -> 0 | L12: ='Trust - Frontsheet'!O24 -> 0 | M12: ='Trust - Frontsheet'!P24 -> 74 | N12: ='Trust - Frontsheet'!Q24 -> 713 | O12: ='Trust - Frontsheet'!R24 -> 759 | P12: ='Trust - Frontsheet'!S24 -> 713 | Q12: ='Trust - Frontsheet'!T24 -> 1046.5 | R12: ='Trust - Frontsheet'!U24 -> 0 | S12: ='Trust - Frontsheet'!V24 -> 0 | T12: ='Trust - Frontsheet'!W24 -> 0 | U12: ='Trust - Frontsheet'!X24 -> 11.5 | V12: ='Trust - Frontsheet'!Y24 -> 0 | W12: ='Trust - Frontsheet'!Z24 -> 0 | X12: ='Trust - Frontsheet'!AA24 -> 0 | Y12: ='Trust - Frontsheet'!AB24 -> 0 | Z12: =IF(OR('Trust - Frontsheet'!AK24="",'Trust - Frontsheet'!AK24="-"),0,('Trust - Frontsheet'!AK24)) -> 1.154886799 | AA12: =IF(OR('Trust - Frontsheet'!AL24="",'Trust - Frontsheet'!AL24="-"),0,('Trust - Frontsheet'!AL24)) -> 0.9110666977 | AB12: =IF(OR('Trust - Frontsheet'!AM24="",'Trust - Frontsheet'!AM24="-"),0,('Trust - Frontsheet'!AM24)) -> 0 | AC12: =IF(OR('Trust - Frontsheet'!AN24="",'Trust - Frontsheet'!AN24="-"),0,('Trust - Frontsheet'!AN24)) -> 0 | AD12: =IF(OR('Trust - Frontsheet'!AO24="",'Trust - Frontsheet'!AO24="-"),0,('Trust - Frontsheet'!AO24)) -> 1.064516129 | AE12: =IF(OR('Trust - Frontsheet'!AP24="",'Trust - Frontsheet'!AP24="-"),0,('Trust - Frontsheet'!AP24)) -> 1.467741935 | AF12: =IF(OR('Trust - Frontsheet'!AQ24="",'Trust - Frontsheet'!AQ24="-"),0,('Trust - Frontsheet'!AQ24)) -> 0 | AG12: =IF(OR('Trust - Frontsheet'!AR24="",'Trust - Frontsheet'!AR24="-"),0,('Trust - Frontsheet'!AR24)) -> 0 | AH12: =IF(OR('Trust - Frontsheet'!AS24="",'Trust - Frontsheet'!AS24="-"),0,('Trust - Frontsheet'!AS24)) -> 0 | AI12: =IF(OR('Trust - Frontsheet'!AT24="",'Trust - Frontsheet'!AT24="-"),0,('Trust - Frontsheet'!AT24)) -> 0 | AJ12: ='Trust - Frontsheet'!AC24 -> 613 | AK12: =IF(OR('Trust - Frontsheet'!AD24="",'Trust - Frontsheet'!AD24="-"),0,('Trust - Frontsheet'!AD24)) -> 2.59040783 | AL12: =IF(OR('Trust - Frontsheet'!AE24="",'Trust - Frontsheet'!AE24="-"),0,('Trust - Frontsheet'!AE24)) -> 3.306003263 | AM12: =IF(OR('Trust - Frontsheet'!AF24="",'Trust - Frontsheet'!AF24="-"),0,('Trust - Frontsheet'!AF24)) -> 0 | AN12: =IF(OR('Trust - Frontsheet'!AG24="",'Trust - Frontsheet'!AG24="-"),0,('Trust - Frontsheet'!AG24)) -> 0.1394779772 | AO12: =IF(OR('Trust - Frontsheet'!AH24="",'Trust - Frontsheet'!AH24="-"),0,('Trust - Frontsheet'!AH24)) -> 0 | AP12: =IF(OR('Trust - Frontsheet'!AI24="",'Trust - Frontsheet'!AI24="-"),0,('Trust - Frontsheet'!AI24)) -> 0 | AQ12: =IF(OR('Trust - Frontsheet'!AJ24="",'Trust - Frontsheet'!AJ24="-"),0,('Trust - Frontsheet'!AJ24)) -> 6.03588907 | AR12: =IF(A12="","",(IF(ISBLANK('Trust - Frontsheet'!F9),"",'Trust - Frontsheet'!F9))) -> 
A13: =IF('Trust - Frontsheet'!D25=0,"",IF('Trust - Frontsheet'!D25="","",'Trust - Frontsheet'!D25)) -> RWG02 | B13: =IF(ISBLANK('Trust - Frontsheet'!E25),"",'Trust - Frontsheet'!E25) -> WATFORD GENERAL HOSPITAL | C13: =IF(ISBLANK('Trust - Frontsheet'!F25),"","'" & 'Trust - Frontsheet'!F25 & "'") -> 'Croxley' | D13: =IF(ISBLANK('Trust - Frontsheet'!G25),"",'Trust - Frontsheet'!G25) -> 430 - GERIATRIC MEDICINE | E13: =IF(ISBLANK('Trust - Frontsheet'!H25),"",'Trust - Frontsheet'!H25) ->  | F13: ='Trust - Frontsheet'!I25 -> 1060.916667 | G13: ='Trust - Frontsheet'!J25 -> 1122 | H13: ='Trust - Frontsheet'!K25 -> 1780.25 | I13: ='Trust - Frontsheet'!L25 -> 1623.25 | J13: ='Trust - Frontsheet'!M25 -> 0 | K13: ='Trust - Frontsheet'!N25 -> 0 | L13: ='Trust - Frontsheet'!O25 -> 0 | M13: ='Trust - Frontsheet'!P25 -> 0 | N13: ='Trust - Frontsheet'!Q25 -> 1069.5 | O13: ='Trust - Frontsheet'!R25 -> 1219 | P13: ='Trust - Frontsheet'!S25 -> 1427 | Q13: ='Trust - Frontsheet'!T25 -> 1496 | R13: ='Trust - Frontsheet'!U25 -> 0 | S13: ='Trust - Frontsheet'!V25 -> 0 | T13: ='Trust - Frontsheet'!W25 -> 0 | U13: ='Trust - Frontsheet'!X25 -> 0 | V13: ='Trust - Frontsheet'!Y25 -> 0 | W13: ='Trust - Frontsheet'!Z25 -> 0 | X13: ='Trust - Frontsheet'!AA25 -> 0 | Y13: ='Trust - Frontsheet'!AB25 -> 0 | Z13: =IF(OR('Trust - Frontsheet'!AK25="",'Trust - Frontsheet'!AK25="-"),0,('Trust - Frontsheet'!AK25)) -> 1.057575996 | AA13: =IF(OR('Trust - Frontsheet'!AL25="",'Trust - Frontsheet'!AL25="-"),0,('Trust - Frontsheet'!AL25)) -> 0.911810139 | AB13: =IF(OR('Trust - Frontsheet'!AM25="",'Trust - Frontsheet'!AM25="-"),0,('Trust - Frontsheet'!AM25)) -> 0 | AC13: =IF(OR('Trust - Frontsheet'!AN25="",'Trust - Frontsheet'!AN25="-"),0,('Trust - Frontsheet'!AN25)) -> 0 | AD13: =IF(OR('Trust - Frontsheet'!AO25="",'Trust - Frontsheet'!AO25="-"),0,('Trust - Frontsheet'!AO25)) -> 1.139784946 | AE13: =IF(OR('Trust - Frontsheet'!AP25="",'Trust - Frontsheet'!AP25="-"),0,('Trust - Frontsheet'!AP25)) -> 1.048353189 | AF13: =IF(OR('Trust - Frontsheet'!AQ25="",'Trust - Frontsheet'!AQ25="-"),0,('Trust - Frontsheet'!AQ25)) -> 0 | AG13: =IF(OR('Trust - Frontsheet'!AR25="",'Trust - Frontsheet'!AR25="-"),0,('Trust - Frontsheet'!AR25)) -> 0 | AH13: =IF(OR('Trust - Frontsheet'!AS25="",'Trust - Frontsheet'!AS25="-"),0,('Trust - Frontsheet'!AS25)) -> 0 | AI13: =IF(OR('Trust - Frontsheet'!AT25="",'Trust - Frontsheet'!AT25="-"),0,('Trust - Frontsheet'!AT25)) -> 0 | AJ13: ='Trust - Frontsheet'!AC25 -> 860 | AK13: =IF(OR('Trust - Frontsheet'!AD25="",'Trust - Frontsheet'!AD25="-"),0,('Trust - Frontsheet'!AD25)) -> 2.722093023 | AL13: =IF(OR('Trust - Frontsheet'!AE25="",'Trust - Frontsheet'!AE25="-"),0,('Trust - Frontsheet'!AE25)) -> 3.627034884 | AM13: =IF(OR('Trust - Frontsheet'!AF25="",'Trust - Frontsheet'!AF25="-"),0,('Trust - Frontsheet'!AF25)) -> 0 | AN13: =IF(OR('Trust - Frontsheet'!AG25="",'Trust - Frontsheet'!AG25="-"),0,('Trust - Frontsheet'!AG25)) -> 0 | AO13: =IF(OR('Trust - Frontsheet'!AH25="",'Trust - Frontsheet'!AH25="-"),0,('Trust - Frontsheet'!AH25)) -> 0 | AP13: =IF(OR('Trust - Frontsheet'!AI25="",'Trust - Frontsheet'!AI25="-"),0,('Trust - Frontsheet'!AI25)) -> 0 | AQ13: =IF(OR('Trust - Frontsheet'!AJ25="",'Trust - Frontsheet'!AJ25="-"),0,('Trust - Frontsheet'!AJ25)) -> 6.349127907 | AR13: =IF(A13="","",(IF(ISBLANK('Trust - Frontsheet'!F9),"",'Trust - Frontsheet'!F9))) -> 
A14: =IF('Trust - Frontsheet'!D26=0,"",IF('Trust - Frontsheet'!D26="","",'Trust - Frontsheet'!D26)) -> RWG02 | B14: =IF(ISBLANK('Trust - Frontsheet'!E26),"",'Trust - Frontsheet'!E26) -> WATFORD GENERAL HOSPITAL | C14: =IF(ISBLANK('Trust - Frontsheet'!F26),"","'" & 'Trust - Frontsheet'!F26 & "'") -> 'Heronsgate & Gade' | D14: =IF(ISBLANK('Trust - Frontsheet'!G26),"",'Trust - Frontsheet'!G26) -> 302 - ENDOCRINOLOGY | E14: =IF(ISBLANK('Trust - Frontsheet'!H26),"",'Trust - Frontsheet'!H26) ->  | F14: ='Trust - Frontsheet'!I26 -> 1589.5 | G14: ='Trust - Frontsheet'!J26 -> 1422.42 | H14: ='Trust - Frontsheet'!K26 -> 2139 | I14: ='Trust - Frontsheet'!L26 -> 2079.5 | J14: ='Trust - Frontsheet'!M26 -> 0 | K14: ='Trust - Frontsheet'!N26 -> 92 | L14: ='Trust - Frontsheet'!O26 -> 0 | M14: ='Trust - Frontsheet'!P26 -> 0 | N14: ='Trust - Frontsheet'!Q26 -> 1426 | O14: ='Trust - Frontsheet'!R26 -> 1414.5 | P14: ='Trust - Frontsheet'!S26 -> 1781.75 | Q14: ='Trust - Frontsheet'!T26 -> 1954.25 | R14: ='Trust - Frontsheet'!U26 -> 0 | S14: ='Trust - Frontsheet'!V26 -> 0 | T14: ='Trust - Frontsheet'!W26 -> 0 | U14: ='Trust - Frontsheet'!X26 -> 0 | V14: ='Trust - Frontsheet'!Y26 -> 0 | W14: ='Trust - Frontsheet'!Z26 -> 0 | X14: ='Trust - Frontsheet'!AA26 -> 0 | Y14: ='Trust - Frontsheet'!AB26 -> 0 | Z14: =IF(OR('Trust - Frontsheet'!AK26="",'Trust - Frontsheet'!AK26="-"),0,('Trust - Frontsheet'!AK26)) -> 0.894885184 | AA14: =IF(OR('Trust - Frontsheet'!AL26="",'Trust - Frontsheet'!AL26="-"),0,('Trust - Frontsheet'!AL26)) -> 0.9721832632 | AB14: =IF(OR('Trust - Frontsheet'!AM26="",'Trust - Frontsheet'!AM26="-"),0,('Trust - Frontsheet'!AM26)) -> 0 | AC14: =IF(OR('Trust - Frontsheet'!AN26="",'Trust - Frontsheet'!AN26="-"),0,('Trust - Frontsheet'!AN26)) -> 0 | AD14: =IF(OR('Trust - Frontsheet'!AO26="",'Trust - Frontsheet'!AO26="-"),0,('Trust - Frontsheet'!AO26)) -> 0.9919354839 | AE14: =IF(OR('Trust - Frontsheet'!AP26="",'Trust - Frontsheet'!AP26="-"),0,('Trust - Frontsheet'!AP26)) -> 1.096814929 | AF14: =IF(OR('Trust - Frontsheet'!AQ26="",'Trust - Frontsheet'!AQ26="-"),0,('Trust - Frontsheet'!AQ26)) -> 0 | AG14: =IF(OR('Trust - Frontsheet'!AR26="",'Trust - Frontsheet'!AR26="-"),0,('Trust - Frontsheet'!AR26)) -> 0 | AH14: =IF(OR('Trust - Frontsheet'!AS26="",'Trust - Frontsheet'!AS26="-"),0,('Trust - Frontsheet'!AS26)) -> 0 | AI14: =IF(OR('Trust - Frontsheet'!AT26="",'Trust - Frontsheet'!AT26="-"),0,('Trust - Frontsheet'!AT26)) -> 0 | AJ14: ='Trust - Frontsheet'!AC26 -> 1139 | AK14: =IF(OR('Trust - Frontsheet'!AD26="",'Trust - Frontsheet'!AD26="-"),0,('Trust - Frontsheet'!AD26)) -> 2.49071115 | AL14: =IF(OR('Trust - Frontsheet'!AE26="",'Trust - Frontsheet'!AE26="-"),0,('Trust - Frontsheet'!AE26)) -> 3.541483758 | AM14: =IF(OR('Trust - Frontsheet'!AF26="",'Trust - Frontsheet'!AF26="-"),0,('Trust - Frontsheet'!AF26)) -> 0.08077260755 | AN14: =IF(OR('Trust - Frontsheet'!AG26="",'Trust - Frontsheet'!AG26="-"),0,('Trust - Frontsheet'!AG26)) -> 0 | AO14: =IF(OR('Trust - Frontsheet'!AH26="",'Trust - Frontsheet'!AH26="-"),0,('Trust - Frontsheet'!AH26)) -> 0 | AP14: =IF(OR('Trust - Frontsheet'!AI26="",'Trust - Frontsheet'!AI26="-"),0,('Trust - Frontsheet'!AI26)) -> 0 | AQ14: =IF(OR('Trust - Frontsheet'!AJ26="",'Trust - Frontsheet'!AJ26="-"),0,('Trust - Frontsheet'!AJ26)) -> 6.112967515 | AR14: =IF(A14="","",(IF(ISBLANK('Trust - Frontsheet'!F9),"",'Trust - Frontsheet'!F9))) -> 
A15: =IF('Trust - Frontsheet'!D27=0,"",IF('Trust - Frontsheet'!D27="","",'Trust - Frontsheet'!D27)) -> RWG02 | B15: =IF(ISBLANK('Trust - Frontsheet'!E27),"",'Trust - Frontsheet'!E27) -> WATFORD GENERAL HOSPITAL | C15: =IF(ISBLANK('Trust - Frontsheet'!F27),"","'" & 'Trust - Frontsheet'!F27 & "'") -> 'Oxhey' | D15: =IF(ISBLANK('Trust - Frontsheet'!G27),"",'Trust - Frontsheet'!G27) -> 326 - ACUTE INTERNAL MEDICINE | E15: =IF(ISBLANK('Trust - Frontsheet'!H27),"",'Trust - Frontsheet'!H27) ->  | F15: ='Trust - Frontsheet'!I27 -> 708.75 | G15: ='Trust - Frontsheet'!J27 -> 721.75 | H15: ='Trust - Frontsheet'!K27 -> 535.5 | I15: ='Trust - Frontsheet'!L27 -> 635.75 | J15: ='Trust - Frontsheet'!M27 -> 0 | K15: ='Trust - Frontsheet'!N27 -> 0 | L15: ='Trust - Frontsheet'!O27 -> 0 | M15: ='Trust - Frontsheet'!P27 -> 115 | N15: ='Trust - Frontsheet'!Q27 -> 701.5 | O15: ='Trust - Frontsheet'!R27 -> 713 | P15: ='Trust - Frontsheet'!S27 -> 356.5 | Q15: ='Trust - Frontsheet'!T27 -> 621 | R15: ='Trust - Frontsheet'!U27 -> 0 | S15: ='Trust - Frontsheet'!V27 -> 0 | T15: ='Trust - Frontsheet'!W27 -> 0 | U15: ='Trust - Frontsheet'!X27 -> 126.5 | V15: ='Trust - Frontsheet'!Y27 -> 0 | W15: ='Trust - Frontsheet'!Z27 -> 0 | X15: ='Trust - Frontsheet'!AA27 -> 0 | Y15: ='Trust - Frontsheet'!AB27 -> 0 | Z15: =IF(OR('Trust - Frontsheet'!AK27="",'Trust - Frontsheet'!AK27="-"),0,('Trust - Frontsheet'!AK27)) -> 1.018342152 | AA15: =IF(OR('Trust - Frontsheet'!AL27="",'Trust - Frontsheet'!AL27="-"),0,('Trust - Frontsheet'!AL27)) -> 1.187208217 | AB15: =IF(OR('Trust - Frontsheet'!AM27="",'Trust - Frontsheet'!AM27="-"),0,('Trust - Frontsheet'!AM27)) -> 0 | AC15: =IF(OR('Trust - Frontsheet'!AN27="",'Trust - Frontsheet'!AN27="-"),0,('Trust - Frontsheet'!AN27)) -> 0 | AD15: =IF(OR('Trust - Frontsheet'!AO27="",'Trust - Frontsheet'!AO27="-"),0,('Trust - Frontsheet'!AO27)) -> 1.016393443 | AE15: =IF(OR('Trust - Frontsheet'!AP27="",'Trust - Frontsheet'!AP27="-"),0,('Trust - Frontsheet'!AP27)) -> 1.741935484 | AF15: =IF(OR('Trust - Frontsheet'!AQ27="",'Trust - Frontsheet'!AQ27="-"),0,('Trust - Frontsheet'!AQ27)) -> 0 | AG15: =IF(OR('Trust - Frontsheet'!AR27="",'Trust - Frontsheet'!AR27="-"),0,('Trust - Frontsheet'!AR27)) -> 0 | AH15: =IF(OR('Trust - Frontsheet'!AS27="",'Trust - Frontsheet'!AS27="-"),0,('Trust - Frontsheet'!AS27)) -> 0 | AI15: =IF(OR('Trust - Frontsheet'!AT27="",'Trust - Frontsheet'!AT27="-"),0,('Trust - Frontsheet'!AT27)) -> 0 | AJ15: ='Trust - Frontsheet'!AC27 -> 352 | AK15: =IF(OR('Trust - Frontsheet'!AD27="",'Trust - Frontsheet'!AD27="-"),0,('Trust - Frontsheet'!AD27)) -> 4.075994318 | AL15: =IF(OR('Trust - Frontsheet'!AE27="",'Trust - Frontsheet'!AE27="-"),0,('Trust - Frontsheet'!AE27)) -> 3.5703125 | AM15: =IF(OR('Trust - Frontsheet'!AF27="",'Trust - Frontsheet'!AF27="-"),0,('Trust - Frontsheet'!AF27)) -> 0 | AN15: =IF(OR('Trust - Frontsheet'!AG27="",'Trust - Frontsheet'!AG27="-"),0,('Trust - Frontsheet'!AG27)) -> 0.6860795455 | AO15: =IF(OR('Trust - Frontsheet'!AH27="",'Trust - Frontsheet'!AH27="-"),0,('Trust - Frontsheet'!AH27)) -> 0 | AP15: =IF(OR('Trust - Frontsheet'!AI27="",'Trust - Frontsheet'!AI27="-"),0,('Trust - Frontsheet'!AI27)) -> 0 | AQ15: =IF(OR('Trust - Frontsheet'!AJ27="",'Trust - Frontsheet'!AJ27="-"),0,('Trust - Frontsheet'!AJ27)) -> 8.332386364 | AR15: =IF(A15="","",(IF(ISBLANK('Trust - Frontsheet'!F9),"",'Trust - Frontsheet'!F9))) -> 
A16: =IF('Trust - Frontsheet'!D28=0,"",IF('Trust - Frontsheet'!D28="","",'Trust - Frontsheet'!D28)) -> RWG02 | B16: =IF(ISBLANK('Trust - Frontsheet'!E28),"",'Trust - Frontsheet'!E28) -> WATFORD GENERAL HOSPITAL | C16: =IF(ISBLANK('Trust - Frontsheet'!F28),"","'" & 'Trust - Frontsheet'!F28 & "'") -> 'Sarratt' | D16: =IF(ISBLANK('Trust - Frontsheet'!G28),"",'Trust - Frontsheet'!G28) -> 430 - GERIATRIC MEDICINE | E16: =IF(ISBLANK('Trust - Frontsheet'!H28),"",'Trust - Frontsheet'!H28) ->  | F16: ='Trust - Frontsheet'!I28 -> 1690.5 | G16: ='Trust - Frontsheet'!J28 -> 1682.25 | H16: ='Trust - Frontsheet'!K28 -> 2144 | I16: ='Trust - Frontsheet'!L28 -> 1928.37 | J16: ='Trust - Frontsheet'!M28 -> 0 | K16: ='Trust - Frontsheet'!N28 -> 0 | L16: ='Trust - Frontsheet'!O28 -> 0 | M16: ='Trust - Frontsheet'!P28 -> 150.08 | N16: ='Trust - Frontsheet'!Q28 -> 1426 | O16: ='Trust - Frontsheet'!R28 -> 1449 | P16: ='Trust - Frontsheet'!S28 -> 2136.75 | Q16: ='Trust - Frontsheet'!T28 -> 2535.666667 | R16: ='Trust - Frontsheet'!U28 -> 0 | S16: ='Trust - Frontsheet'!V28 -> 0 | T16: ='Trust - Frontsheet'!W28 -> 0 | U16: ='Trust - Frontsheet'!X28 -> 0 | V16: ='Trust - Frontsheet'!Y28 -> 0 | W16: ='Trust - Frontsheet'!Z28 -> 0 | X16: ='Trust - Frontsheet'!AA28 -> 0 | Y16: ='Trust - Frontsheet'!AB28 -> 0 | Z16: =IF(OR('Trust - Frontsheet'!AK28="",'Trust - Frontsheet'!AK28="-"),0,('Trust - Frontsheet'!AK28)) -> 0.995119787 | AA16: =IF(OR('Trust - Frontsheet'!AL28="",'Trust - Frontsheet'!AL28="-"),0,('Trust - Frontsheet'!AL28)) -> 0.899426306 | AB16: =IF(OR('Trust - Frontsheet'!AM28="",'Trust - Frontsheet'!AM28="-"),0,('Trust - Frontsheet'!AM28)) -> 0 | AC16: =IF(OR('Trust - Frontsheet'!AN28="",'Trust - Frontsheet'!AN28="-"),0,('Trust - Frontsheet'!AN28)) -> 0 | AD16: =IF(OR('Trust - Frontsheet'!AO28="",'Trust - Frontsheet'!AO28="-"),0,('Trust - Frontsheet'!AO28)) -> 1.016129032 | AE16: =IF(OR('Trust - Frontsheet'!AP28="",'Trust - Frontsheet'!AP28="-"),0,('Trust - Frontsheet'!AP28)) -> 1.186693187 | AF16: =IF(OR('Trust - Frontsheet'!AQ28="",'Trust - Frontsheet'!AQ28="-"),0,('Trust - Frontsheet'!AQ28)) -> 0 | AG16: =IF(OR('Trust - Frontsheet'!AR28="",'Trust - Frontsheet'!AR28="-"),0,('Trust - Frontsheet'!AR28)) -> 0 | AH16: =IF(OR('Trust - Frontsheet'!AS28="",'Trust - Frontsheet'!AS28="-"),0,('Trust - Frontsheet'!AS28)) -> 0 | AI16: =IF(OR('Trust - Frontsheet'!AT28="",'Trust - Frontsheet'!AT28="-"),0,('Trust - Frontsheet'!AT28)) -> 0 | AJ16: ='Trust - Frontsheet'!AC28 -> 1104 | AK16: =IF(OR('Trust - Frontsheet'!AD28="",'Trust - Frontsheet'!AD28="-"),0,('Trust - Frontsheet'!AD28)) -> 2.836277174 | AL16: =IF(OR('Trust - Frontsheet'!AE28="",'Trust - Frontsheet'!AE28="-"),0,('Trust - Frontsheet'!AE28)) -> 4.043511473 | AM16: =IF(OR('Trust - Frontsheet'!AF28="",'Trust - Frontsheet'!AF28="-"),0,('Trust - Frontsheet'!AF28)) -> 0 | AN16: =IF(OR('Trust - Frontsheet'!AG28="",'Trust - Frontsheet'!AG28="-"),0,('Trust - Frontsheet'!AG28)) -> 0.135942029 | AO16: =IF(OR('Trust - Frontsheet'!AH28="",'Trust - Frontsheet'!AH28="-"),0,('Trust - Frontsheet'!AH28)) -> 0 | AP16: =IF(OR('Trust - Frontsheet'!AI28="",'Trust - Frontsheet'!AI28="-"),0,('Trust - Frontsheet'!AI28)) -> 0 | AQ16: =IF(OR('Trust - Frontsheet'!AJ28="",'Trust - Frontsheet'!AJ28="-"),0,('Trust - Frontsheet'!AJ28)) -> 7.015730676 | AR16: =IF(A16="","",(IF(ISBLANK('Trust - Frontsheet'!F9),"",'Trust - Frontsheet'!F9))) -> 
A17: =IF('Trust - Frontsheet'!D29=0,"",IF('Trust - Frontsheet'!D29="","",'Trust - Frontsheet'!D29)) -> RWG08 | B17: =IF(ISBLANK('Trust - Frontsheet'!E29),"",'Trust - Frontsheet'!E29) -> HEMEL HEMPSTEAD HOSPITAL | C17: =IF(ISBLANK('Trust - Frontsheet'!F29),"","'" & 'Trust - Frontsheet'!F29 & "'") -> 'Simpson HH' | D17: =IF(ISBLANK('Trust - Frontsheet'!G29),"",'Trust - Frontsheet'!G29) -> 430 - GERIATRIC MEDICINE | E17: =IF(ISBLANK('Trust - Frontsheet'!H29),"",'Trust - Frontsheet'!H29) ->  | F17: ='Trust - Frontsheet'!I29 -> 1069.5 | G17: ='Trust - Frontsheet'!J29 -> 787.5 | H17: ='Trust - Frontsheet'!K29 -> 1069.5 | I17: ='Trust - Frontsheet'!L29 -> 1287.25 | J17: ='Trust - Frontsheet'!M29 -> 0 | K17: ='Trust - Frontsheet'!N29 -> 57.5 | L17: ='Trust - Frontsheet'!O29 -> 0 | M17: ='Trust - Frontsheet'!P29 -> 0 | N17: ='Trust - Frontsheet'!Q29 -> 1069.5 | O17: ='Trust - Frontsheet'!R29 -> 931.5 | P17: ='Trust - Frontsheet'!S29 -> 713 | Q17: ='Trust - Frontsheet'!T29 -> 1069.5 | R17: ='Trust - Frontsheet'!U29 -> 0 | S17: ='Trust - Frontsheet'!V29 -> 57.5 | T17: ='Trust - Frontsheet'!W29 -> 0 | U17: ='Trust - Frontsheet'!X29 -> 0 | V17: ='Trust - Frontsheet'!Y29 -> 0 | W17: ='Trust - Frontsheet'!Z29 -> 0 | X17: ='Trust - Frontsheet'!AA29 -> 0 | Y17: ='Trust - Frontsheet'!AB29 -> 0 | Z17: =IF(OR('Trust - Frontsheet'!AK29="",'Trust - Frontsheet'!AK29="-"),0,('Trust - Frontsheet'!AK29)) -> 0.7363253857 | AA17: =IF(OR('Trust - Frontsheet'!AL29="",'Trust - Frontsheet'!AL29="-"),0,('Trust - Frontsheet'!AL29)) -> 1.203599813 | AB17: =IF(OR('Trust - Frontsheet'!AM29="",'Trust - Frontsheet'!AM29="-"),0,('Trust - Frontsheet'!AM29)) -> 0 | AC17: =IF(OR('Trust - Frontsheet'!AN29="",'Trust - Frontsheet'!AN29="-"),0,('Trust - Frontsheet'!AN29)) -> 0 | AD17: =IF(OR('Trust - Frontsheet'!AO29="",'Trust - Frontsheet'!AO29="-"),0,('Trust - Frontsheet'!AO29)) -> 0.8709677419 | AE17: =IF(OR('Trust - Frontsheet'!AP29="",'Trust - Frontsheet'!AP29="-"),0,('Trust - Frontsheet'!AP29)) -> 1.5 | AF17: =IF(OR('Trust - Frontsheet'!AQ29="",'Trust - Frontsheet'!AQ29="-"),0,('Trust - Frontsheet'!AQ29)) -> 0 | AG17: =IF(OR('Trust - Frontsheet'!AR29="",'Trust - Frontsheet'!AR29="-"),0,('Trust - Frontsheet'!AR29)) -> 0 | AH17: =IF(OR('Trust - Frontsheet'!AS29="",'Trust - Frontsheet'!AS29="-"),0,('Trust - Frontsheet'!AS29)) -> 0 | AI17: =IF(OR('Trust - Frontsheet'!AT29="",'Trust - Frontsheet'!AT29="-"),0,('Trust - Frontsheet'!AT29)) -> 0 | AJ17: ='Trust - Frontsheet'!AC29 -> 712 | AK17: =IF(OR('Trust - Frontsheet'!AD29="",'Trust - Frontsheet'!AD29="-"),0,('Trust - Frontsheet'!AD29)) -> 2.414325843 | AL17: =IF(OR('Trust - Frontsheet'!AE29="",'Trust - Frontsheet'!AE29="-"),0,('Trust - Frontsheet'!AE29)) -> 3.310042135 | AM17: =IF(OR('Trust - Frontsheet'!AF29="",'Trust - Frontsheet'!AF29="-"),0,('Trust - Frontsheet'!AF29)) -> 0.1615168539 | AN17: =IF(OR('Trust - Frontsheet'!AG29="",'Trust - Frontsheet'!AG29="-"),0,('Trust - Frontsheet'!AG29)) -> 0 | AO17: =IF(OR('Trust - Frontsheet'!AH29="",'Trust - Frontsheet'!AH29="-"),0,('Trust - Frontsheet'!AH29)) -> 0 | AP17: =IF(OR('Trust - Frontsheet'!AI29="",'Trust - Frontsheet'!AI29="-"),0,('Trust - Frontsheet'!AI29)) -> 0 | AQ17: =IF(OR('Trust - Frontsheet'!AJ29="",'Trust - Frontsheet'!AJ29="-"),0,('Trust - Frontsheet'!AJ29)) -> 5.885884831 | AR17: =IF(A17="","",(IF(ISBLANK('Trust - Frontsheet'!F9),"",'Trust - Frontsheet'!F9))) -> 
A18: =IF('Trust - Frontsheet'!D30=0,"",IF('Trust - Frontsheet'!D30="","",'Trust - Frontsheet'!D30)) -> RWG02 | B18: =IF(ISBLANK('Trust - Frontsheet'!E30),"",'Trust - Frontsheet'!E30) -> WATFORD GENERAL HOSPITAL | C18: =IF(ISBLANK('Trust - Frontsheet'!F30),"","'" & 'Trust - Frontsheet'!F30 & "'") -> 'Tudor & Castle' | D18: =IF(ISBLANK('Trust - Frontsheet'!G30),"",'Trust - Frontsheet'!G30) -> 430 - GERIATRIC MEDICINE | E18: =IF(ISBLANK('Trust - Frontsheet'!H30),"",'Trust - Frontsheet'!H30) ->  | F18: ='Trust - Frontsheet'!I30 -> 1782.5 | G18: ='Trust - Frontsheet'!J30 -> 1760.75 | H18: ='Trust - Frontsheet'!K30 -> 2131.25 | I18: ='Trust - Frontsheet'!L30 -> 2259.166667 | J18: ='Trust - Frontsheet'!M30 -> 0 | K18: ='Trust - Frontsheet'!N30 -> 172.5 | L18: ='Trust - Frontsheet'!O30 -> 0 | M18: ='Trust - Frontsheet'!P30 -> 0 | N18: ='Trust - Frontsheet'!Q30 -> 1782.5 | O18: ='Trust - Frontsheet'!R30 -> 2311.5 | P18: ='Trust - Frontsheet'!S30 -> 2139 | Q18: ='Trust - Frontsheet'!T30 -> 2376.75 | R18: ='Trust - Frontsheet'!U30 -> 0 | S18: ='Trust - Frontsheet'!V30 -> 0 | T18: ='Trust - Frontsheet'!W30 -> 0 | U18: ='Trust - Frontsheet'!X30 -> 0 | V18: ='Trust - Frontsheet'!Y30 -> 0 | W18: ='Trust - Frontsheet'!Z30 -> 0 | X18: ='Trust - Frontsheet'!AA30 -> 0 | Y18: ='Trust - Frontsheet'!AB30 -> 0 | Z18: =IF(OR('Trust - Frontsheet'!AK30="",'Trust - Frontsheet'!AK30="-"),0,('Trust - Frontsheet'!AK30)) -> 0.9877980365 | AA18: =IF(OR('Trust - Frontsheet'!AL30="",'Trust - Frontsheet'!AL30="-"),0,('Trust - Frontsheet'!AL30)) -> 1.06001955 | AB18: =IF(OR('Trust - Frontsheet'!AM30="",'Trust - Frontsheet'!AM30="-"),0,('Trust - Frontsheet'!AM30)) -> 0 | AC18: =IF(OR('Trust - Frontsheet'!AN30="",'Trust - Frontsheet'!AN30="-"),0,('Trust - Frontsheet'!AN30)) -> 0 | AD18: =IF(OR('Trust - Frontsheet'!AO30="",'Trust - Frontsheet'!AO30="-"),0,('Trust - Frontsheet'!AO30)) -> 1.296774194 | AE18: =IF(OR('Trust - Frontsheet'!AP30="",'Trust - Frontsheet'!AP30="-"),0,('Trust - Frontsheet'!AP30)) -> 1.11115007 | AF18: =IF(OR('Trust - Frontsheet'!AQ30="",'Trust - Frontsheet'!AQ30="-"),0,('Trust - Frontsheet'!AQ30)) -> 0 | AG18: =IF(OR('Trust - Frontsheet'!AR30="",'Trust - Frontsheet'!AR30="-"),0,('Trust - Frontsheet'!AR30)) -> 0 | AH18: =IF(OR('Trust - Frontsheet'!AS30="",'Trust - Frontsheet'!AS30="-"),0,('Trust - Frontsheet'!AS30)) -> 0 | AI18: =IF(OR('Trust - Frontsheet'!AT30="",'Trust - Frontsheet'!AT30="-"),0,('Trust - Frontsheet'!AT30)) -> 0 | AJ18: ='Trust - Frontsheet'!AC30 -> 1261 | AK18: =IF(OR('Trust - Frontsheet'!AD30="",'Trust - Frontsheet'!AD30="-"),0,('Trust - Frontsheet'!AD30)) -> 3.229381443 | AL18: =IF(OR('Trust - Frontsheet'!AE30="",'Trust - Frontsheet'!AE30="-"),0,('Trust - Frontsheet'!AE30)) -> 3.676381179 | AM18: =IF(OR('Trust - Frontsheet'!AF30="",'Trust - Frontsheet'!AF30="-"),0,('Trust - Frontsheet'!AF30)) -> 0.1367961935 | AN18: =IF(OR('Trust - Frontsheet'!AG30="",'Trust - Frontsheet'!AG30="-"),0,('Trust - Frontsheet'!AG30)) -> 0 | AO18: =IF(OR('Trust - Frontsheet'!AH30="",'Trust - Frontsheet'!AH30="-"),0,('Trust - Frontsheet'!AH30)) -> 0 | AP18: =IF(OR('Trust - Frontsheet'!AI30="",'Trust - Frontsheet'!AI30="-"),0,('Trust - Frontsheet'!AI30)) -> 0 | AQ18: =IF(OR('Trust - Frontsheet'!AJ30="",'Trust - Frontsheet'!AJ30="-"),0,('Trust - Frontsheet'!AJ30)) -> 7.042558816 | AR18: =IF(A18="","",(IF(ISBLANK('Trust - Frontsheet'!F9),"",'Trust - Frontsheet'!F9))) -> 
A19: =IF('Trust - Frontsheet'!D31=0,"",IF('Trust - Frontsheet'!D31="","",'Trust - Frontsheet'!D31)) -> RWG02 | B19: =IF(ISBLANK('Trust - Frontsheet'!E31),"",'Trust - Frontsheet'!E31) -> WATFORD GENERAL HOSPITAL | C19: =IF(ISBLANK('Trust - Frontsheet'!F31),"","'" & 'Trust - Frontsheet'!F31 & "'") -> 'Winyard' | D19: =IF(ISBLANK('Trust - Frontsheet'!G31),"",'Trust - Frontsheet'!G31) -> 430 - GERIATRIC MEDICINE | E19: =IF(ISBLANK('Trust - Frontsheet'!H31),"",'Trust - Frontsheet'!H31) ->  | F19: ='Trust - Frontsheet'!I31 -> 714.5 | G19: ='Trust - Frontsheet'!J31 -> 857.25 | H19: ='Trust - Frontsheet'!K31 -> 1069.5 | I19: ='Trust - Frontsheet'!L31 -> 1120.416667 | J19: ='Trust - Frontsheet'!M31 -> 0 | K19: ='Trust - Frontsheet'!N31 -> 0 | L19: ='Trust - Frontsheet'!O31 -> 0 | M19: ='Trust - Frontsheet'!P31 -> 0 | N19: ='Trust - Frontsheet'!Q31 -> 713 | O19: ='Trust - Frontsheet'!R31 -> 943 | P19: ='Trust - Frontsheet'!S31 -> 713 | Q19: ='Trust - Frontsheet'!T31 -> 816.5 | R19: ='Trust - Frontsheet'!U31 -> 0 | S19: ='Trust - Frontsheet'!V31 -> 0 | T19: ='Trust - Frontsheet'!W31 -> 0 | U19: ='Trust - Frontsheet'!X31 -> 0 | V19: ='Trust - Frontsheet'!Y31 -> 0 | W19: ='Trust - Frontsheet'!Z31 -> 0 | X19: ='Trust - Frontsheet'!AA31 -> 0 | Y19: ='Trust - Frontsheet'!AB31 -> 0 | Z19: =IF(OR('Trust - Frontsheet'!AK31="",'Trust - Frontsheet'!AK31="-"),0,('Trust - Frontsheet'!AK31)) -> 1.199790063 | AA19: =IF(OR('Trust - Frontsheet'!AL31="",'Trust - Frontsheet'!AL31="-"),0,('Trust - Frontsheet'!AL31)) -> 1.047607916 | AB19: =IF(OR('Trust - Frontsheet'!AM31="",'Trust - Frontsheet'!AM31="-"),0,('Trust - Frontsheet'!AM31)) -> 0 | AC19: =IF(OR('Trust - Frontsheet'!AN31="",'Trust - Frontsheet'!AN31="-"),0,('Trust - Frontsheet'!AN31)) -> 0 | AD19: =IF(OR('Trust - Frontsheet'!AO31="",'Trust - Frontsheet'!AO31="-"),0,('Trust - Frontsheet'!AO31)) -> 1.322580645 | AE19: =IF(OR('Trust - Frontsheet'!AP31="",'Trust - Frontsheet'!AP31="-"),0,('Trust - Frontsheet'!AP31)) -> 1.14516129 | AF19: =IF(OR('Trust - Frontsheet'!AQ31="",'Trust - Frontsheet'!AQ31="-"),0,('Trust - Frontsheet'!AQ31)) -> 0 | AG19: =IF(OR('Trust - Frontsheet'!AR31="",'Trust - Frontsheet'!AR31="-"),0,('Trust - Frontsheet'!AR31)) -> 0 | AH19: =IF(OR('Trust - Frontsheet'!AS31="",'Trust - Frontsheet'!AS31="-"),0,('Trust - Frontsheet'!AS31)) -> 0 | AI19: =IF(OR('Trust - Frontsheet'!AT31="",'Trust - Frontsheet'!AT31="-"),0,('Trust - Frontsheet'!AT31)) -> 0 | AJ19: ='Trust - Frontsheet'!AC31 -> 541 | AK19: =IF(OR('Trust - Frontsheet'!AD31="",'Trust - Frontsheet'!AD31="-"),0,('Trust - Frontsheet'!AD31)) -> 3.327634011 | AL19: =IF(OR('Trust - Frontsheet'!AE31="",'Trust - Frontsheet'!AE31="-"),0,('Trust - Frontsheet'!AE31)) -> 3.580252619 | AM19: =IF(OR('Trust - Frontsheet'!AF31="",'Trust - Frontsheet'!AF31="-"),0,('Trust - Frontsheet'!AF31)) -> 0 | AN19: =IF(OR('Trust - Frontsheet'!AG31="",'Trust - Frontsheet'!AG31="-"),0,('Trust - Frontsheet'!AG31)) -> 0 | AO19: =IF(OR('Trust - Frontsheet'!AH31="",'Trust - Frontsheet'!AH31="-"),0,('Trust - Frontsheet'!AH31)) -> 0 | AP19: =IF(OR('Trust - Frontsheet'!AI31="",'Trust - Frontsheet'!AI31="-"),0,('Trust - Frontsheet'!AI31)) -> 0 | AQ19: =IF(OR('Trust - Frontsheet'!AJ31="",'Trust - Frontsheet'!AJ31="-"),0,('Trust - Frontsheet'!AJ31)) -> 6.90788663 | AR19: =IF(A19="","",(IF(ISBLANK('Trust - Frontsheet'!F9),"",'Trust - Frontsheet'!F9))) -> 
A20: =IF('Trust - Frontsheet'!D32=0,"",IF('Trust - Frontsheet'!D32="","",'Trust - Frontsheet'!D32)) -> RWG02 | B20: =IF(ISBLANK('Trust - Frontsheet'!E32),"",'Trust - Frontsheet'!E32) -> WATFORD GENERAL HOSPITAL | C20: =IF(ISBLANK('Trust - Frontsheet'!F32),"","'" & 'Trust - Frontsheet'!F32 & "'") -> 'Combined ITU' | D20: =IF(ISBLANK('Trust - Frontsheet'!G32),"",'Trust - Frontsheet'!G32) -> 192 - CRITICAL CARE MEDICINE | E20: =IF(ISBLANK('Trust - Frontsheet'!H32),"",'Trust - Frontsheet'!H32) ->  | F20: ='Trust - Frontsheet'!I32 -> 3559 | G20: ='Trust - Frontsheet'!J32 -> 3703 | H20: ='Trust - Frontsheet'!K32 -> 471.5 | I20: ='Trust - Frontsheet'!L32 -> 506 | J20: ='Trust - Frontsheet'!M32 -> 0 | K20: ='Trust - Frontsheet'!N32 -> 0 | L20: ='Trust - Frontsheet'!O32 -> 0 | M20: ='Trust - Frontsheet'!P32 -> 0 | N20: ='Trust - Frontsheet'!Q32 -> 3549 | O20: ='Trust - Frontsheet'!R32 -> 3411 | P20: ='Trust - Frontsheet'!S32 -> 345 | Q20: ='Trust - Frontsheet'!T32 -> 356.5 | R20: ='Trust - Frontsheet'!U32 -> 0 | S20: ='Trust - Frontsheet'!V32 -> 0 | T20: ='Trust - Frontsheet'!W32 -> 0 | U20: ='Trust - Frontsheet'!X32 -> 0 | V20: ='Trust - Frontsheet'!Y32 -> 0 | W20: ='Trust - Frontsheet'!Z32 -> 0 | X20: ='Trust - Frontsheet'!AA32 -> 0 | Y20: ='Trust - Frontsheet'!AB32 -> 0 | Z20: =IF(OR('Trust - Frontsheet'!AK32="",'Trust - Frontsheet'!AK32="-"),0,('Trust - Frontsheet'!AK32)) -> 1.040460804 | AA20: =IF(OR('Trust - Frontsheet'!AL32="",'Trust - Frontsheet'!AL32="-"),0,('Trust - Frontsheet'!AL32)) -> 1.073170732 | AB20: =IF(OR('Trust - Frontsheet'!AM32="",'Trust - Frontsheet'!AM32="-"),0,('Trust - Frontsheet'!AM32)) -> 0 | AC20: =IF(OR('Trust - Frontsheet'!AN32="",'Trust - Frontsheet'!AN32="-"),0,('Trust - Frontsheet'!AN32)) -> 0 | AD20: =IF(OR('Trust - Frontsheet'!AO32="",'Trust - Frontsheet'!AO32="-"),0,('Trust - Frontsheet'!AO32)) -> 0.9611158073 | AE20: =IF(OR('Trust - Frontsheet'!AP32="",'Trust - Frontsheet'!AP32="-"),0,('Trust - Frontsheet'!AP32)) -> 1.033333333 | AF20: =IF(OR('Trust - Frontsheet'!AQ32="",'Trust - Frontsheet'!AQ32="-"),0,('Trust - Frontsheet'!AQ32)) -> 0 | AG20: =IF(OR('Trust - Frontsheet'!AR32="",'Trust - Frontsheet'!AR32="-"),0,('Trust - Frontsheet'!AR32)) -> 0 | AH20: =IF(OR('Trust - Frontsheet'!AS32="",'Trust - Frontsheet'!AS32="-"),0,('Trust - Frontsheet'!AS32)) -> 0 | AI20: =IF(OR('Trust - Frontsheet'!AT32="",'Trust - Frontsheet'!AT32="-"),0,('Trust - Frontsheet'!AT32)) -> 0 | AJ20: ='Trust - Frontsheet'!AC32 -> 420 | AK20: =IF(OR('Trust - Frontsheet'!AD32="",'Trust - Frontsheet'!AD32="-"),0,('Trust - Frontsheet'!AD32)) -> 16.93809524 | AL20: =IF(OR('Trust - Frontsheet'!AE32="",'Trust - Frontsheet'!AE32="-"),0,('Trust - Frontsheet'!AE32)) -> 2.053571429 | AM20: =IF(OR('Trust - Frontsheet'!AF32="",'Trust - Frontsheet'!AF32="-"),0,('Trust - Frontsheet'!AF32)) -> 0 | AN20: =IF(OR('Trust - Frontsheet'!AG32="",'Trust - Frontsheet'!AG32="-"),0,('Trust - Frontsheet'!AG32)) -> 0 | AO20: =IF(OR('Trust - Frontsheet'!AH32="",'Trust - Frontsheet'!AH32="-"),0,('Trust - Frontsheet'!AH32)) -> 0 | AP20: =IF(OR('Trust - Frontsheet'!AI32="",'Trust - Frontsheet'!AI32="-"),0,('Trust - Frontsheet'!AI32)) -> 0 | AQ20: =IF(OR('Trust - Frontsheet'!AJ32="",'Trust - Frontsheet'!AJ32="-"),0,('Trust - Frontsheet'!AJ32)) -> 18.99166667 | AR20: =IF(A20="","",(IF(ISBLANK('Trust - Frontsheet'!F9),"",'Trust - Frontsheet'!F9))) -> 
A21: =IF('Trust - Frontsheet'!D33=0,"",IF('Trust - Frontsheet'!D33="","",'Trust - Frontsheet'!D33)) -> RWG02 | B21: =IF(ISBLANK('Trust - Frontsheet'!E33),"",'Trust - Frontsheet'!E33) -> WATFORD GENERAL HOSPITAL | C21: =IF(ISBLANK('Trust - Frontsheet'!F33),"","'" & 'Trust - Frontsheet'!F33 & "'") -> 'Cleves' | D21: =IF(ISBLANK('Trust - Frontsheet'!G33),"",'Trust - Frontsheet'!G33) -> 100 - GENERAL SURGERY | E21: =IF(ISBLANK('Trust - Frontsheet'!H33),"",'Trust - Frontsheet'!H33) ->  | F21: ='Trust - Frontsheet'!I33 -> 713 | G21: ='Trust - Frontsheet'!J33 -> 1058 | H21: ='Trust - Frontsheet'!K33 -> 1069.5 | I21: ='Trust - Frontsheet'!L33 -> 632.5 | J21: ='Trust - Frontsheet'!M33 -> 0 | K21: ='Trust - Frontsheet'!N33 -> 0 | L21: ='Trust - Frontsheet'!O33 -> 0 | M21: ='Trust - Frontsheet'!P33 -> 0 | N21: ='Trust - Frontsheet'!Q33 -> 1069.5 | O21: ='Trust - Frontsheet'!R33 -> 1069.5 | P21: ='Trust - Frontsheet'!S33 -> 356.5 | Q21: ='Trust - Frontsheet'!T33 -> 356.5 | R21: ='Trust - Frontsheet'!U33 -> 0 | S21: ='Trust - Frontsheet'!V33 -> 0 | T21: ='Trust - Frontsheet'!W33 -> 0 | U21: ='Trust - Frontsheet'!X33 -> 0 | V21: ='Trust - Frontsheet'!Y33 -> 0 | W21: ='Trust - Frontsheet'!Z33 -> 0 | X21: ='Trust - Frontsheet'!AA33 -> 0 | Y21: ='Trust - Frontsheet'!AB33 -> 0 | Z21: =IF(OR('Trust - Frontsheet'!AK33="",'Trust - Frontsheet'!AK33="-"),0,('Trust - Frontsheet'!AK33)) -> 1.483870968 | AA21: =IF(OR('Trust - Frontsheet'!AL33="",'Trust - Frontsheet'!AL33="-"),0,('Trust - Frontsheet'!AL33)) -> 0.5913978495 | AB21: =IF(OR('Trust - Frontsheet'!AM33="",'Trust - Frontsheet'!AM33="-"),0,('Trust - Frontsheet'!AM33)) -> 0 | AC21: =IF(OR('Trust - Frontsheet'!AN33="",'Trust - Frontsheet'!AN33="-"),0,('Trust - Frontsheet'!AN33)) -> 0 | AD21: =IF(OR('Trust - Frontsheet'!AO33="",'Trust - Frontsheet'!AO33="-"),0,('Trust - Frontsheet'!AO33)) -> 1 | AE21: =IF(OR('Trust - Frontsheet'!AP33="",'Trust - Frontsheet'!AP33="-"),0,('Trust - Frontsheet'!AP33)) -> 1 | AF21: =IF(OR('Trust - Frontsheet'!AQ33="",'Trust - Frontsheet'!AQ33="-"),0,('Trust - Frontsheet'!AQ33)) -> 0 | AG21: =IF(OR('Trust - Frontsheet'!AR33="",'Trust - Frontsheet'!AR33="-"),0,('Trust - Frontsheet'!AR33)) -> 0 | AH21: =IF(OR('Trust - Frontsheet'!AS33="",'Trust - Frontsheet'!AS33="-"),0,('Trust - Frontsheet'!AS33)) -> 0 | AI21: =IF(OR('Trust - Frontsheet'!AT33="",'Trust - Frontsheet'!AT33="-"),0,('Trust - Frontsheet'!AT33)) -> 0 | AJ21: ='Trust - Frontsheet'!AC33 -> 583 | AK21: =IF(OR('Trust - Frontsheet'!AD33="",'Trust - Frontsheet'!AD33="-"),0,('Trust - Frontsheet'!AD33)) -> 3.64922813 | AL21: =IF(OR('Trust - Frontsheet'!AE33="",'Trust - Frontsheet'!AE33="-"),0,('Trust - Frontsheet'!AE33)) -> 1.696397942 | AM21: =IF(OR('Trust - Frontsheet'!AF33="",'Trust - Frontsheet'!AF33="-"),0,('Trust - Frontsheet'!AF33)) -> 0 | AN21: =IF(OR('Trust - Frontsheet'!AG33="",'Trust - Frontsheet'!AG33="-"),0,('Trust - Frontsheet'!AG33)) -> 0 | AO21: =IF(OR('Trust - Frontsheet'!AH33="",'Trust - Frontsheet'!AH33="-"),0,('Trust - Frontsheet'!AH33)) -> 0 | AP21: =IF(OR('Trust - Frontsheet'!AI33="",'Trust - Frontsheet'!AI33="-"),0,('Trust - Frontsheet'!AI33)) -> 0 | AQ21: =IF(OR('Trust - Frontsheet'!AJ33="",'Trust - Frontsheet'!AJ33="-"),0,('Trust - Frontsheet'!AJ33)) -> 5.345626072 | AR21: =IF(A21="","",(IF(ISBLANK('Trust - Frontsheet'!F9),"",'Trust - Frontsheet'!F9))) -> 
A22: =IF('Trust - Frontsheet'!D34=0,"",IF('Trust - Frontsheet'!D34="","",'Trust - Frontsheet'!D34)) -> RWG03 | B22: =IF(ISBLANK('Trust - Frontsheet'!E34),"",'Trust - Frontsheet'!E34) -> ST ALBANS CITY HOSPITAL | C22: =IF(ISBLANK('Trust - Frontsheet'!F34),"","'" & 'Trust - Frontsheet'!F34 & "'") -> 'De La Mare/Beckett' | D22: =IF(ISBLANK('Trust - Frontsheet'!G34),"",'Trust - Frontsheet'!G34) -> 110 - TRAUMA & ORTHOPAEDICS | E22: =IF(ISBLANK('Trust - Frontsheet'!H34),"",'Trust - Frontsheet'!H34) ->  | F22: ='Trust - Frontsheet'!I34 -> 1925.25 | G22: ='Trust - Frontsheet'!J34 -> 1806.916667 | H22: ='Trust - Frontsheet'!K34 -> 1724 | I22: ='Trust - Frontsheet'!L34 -> 1698.916667 | J22: ='Trust - Frontsheet'!M34 -> 0 | K22: ='Trust - Frontsheet'!N34 -> 0 | L22: ='Trust - Frontsheet'!O34 -> 0 | M22: ='Trust - Frontsheet'!P34 -> 0 | N22: ='Trust - Frontsheet'!Q34 -> 1524.5 | O22: ='Trust - Frontsheet'!R34 -> 1495 | P22: ='Trust - Frontsheet'!S34 -> 1184.5 | Q22: ='Trust - Frontsheet'!T34 -> 1252.5 | R22: ='Trust - Frontsheet'!U34 -> 0 | S22: ='Trust - Frontsheet'!V34 -> 0 | T22: ='Trust - Frontsheet'!W34 -> 0 | U22: ='Trust - Frontsheet'!X34 -> 0 | V22: ='Trust - Frontsheet'!Y34 -> 0 | W22: ='Trust - Frontsheet'!Z34 -> 0 | X22: ='Trust - Frontsheet'!AA34 -> 0 | Y22: ='Trust - Frontsheet'!AB34 -> 0 | Z22: =IF(OR('Trust - Frontsheet'!AK34="",'Trust - Frontsheet'!AK34="-"),0,('Trust - Frontsheet'!AK34)) -> 0.9385361209 | AA22: =IF(OR('Trust - Frontsheet'!AL34="",'Trust - Frontsheet'!AL34="-"),0,('Trust - Frontsheet'!AL34)) -> 0.9854505027 | AB22: =IF(OR('Trust - Frontsheet'!AM34="",'Trust - Frontsheet'!AM34="-"),0,('Trust - Frontsheet'!AM34)) -> 0 | AC22: =IF(OR('Trust - Frontsheet'!AN34="",'Trust - Frontsheet'!AN34="-"),0,('Trust - Frontsheet'!AN34)) -> 0 | AD22: =IF(OR('Trust - Frontsheet'!AO34="",'Trust - Frontsheet'!AO34="-"),0,('Trust - Frontsheet'!AO34)) -> 0.9806493932 | AE22: =IF(OR('Trust - Frontsheet'!AP34="",'Trust - Frontsheet'!AP34="-"),0,('Trust - Frontsheet'!AP34)) -> 1.057408189 | AF22: =IF(OR('Trust - Frontsheet'!AQ34="",'Trust - Frontsheet'!AQ34="-"),0,('Trust - Frontsheet'!AQ34)) -> 0 | AG22: =IF(OR('Trust - Frontsheet'!AR34="",'Trust - Frontsheet'!AR34="-"),0,('Trust - Frontsheet'!AR34)) -> 0 | AH22: =IF(OR('Trust - Frontsheet'!AS34="",'Trust - Frontsheet'!AS34="-"),0,('Trust - Frontsheet'!AS34)) -> 0 | AI22: =IF(OR('Trust - Frontsheet'!AT34="",'Trust - Frontsheet'!AT34="-"),0,('Trust - Frontsheet'!AT34)) -> 0 | AJ22: ='Trust - Frontsheet'!AC34 -> 606 | AK22: =IF(OR('Trust - Frontsheet'!AD34="",'Trust - Frontsheet'!AD34="-"),0,('Trust - Frontsheet'!AD34)) -> 5.448707371 | AL22: =IF(OR('Trust - Frontsheet'!AE34="",'Trust - Frontsheet'!AE34="-"),0,('Trust - Frontsheet'!AE34)) -> 4.870324532 | AM22: =IF(OR('Trust - Frontsheet'!AF34="",'Trust - Frontsheet'!AF34="-"),0,('Trust - Frontsheet'!AF34)) -> 0 | AN22: =IF(OR('Trust - Frontsheet'!AG34="",'Trust - Frontsheet'!AG34="-"),0,('Trust - Frontsheet'!AG34)) -> 0 | AO22: =IF(OR('Trust - Frontsheet'!AH34="",'Trust - Frontsheet'!AH34="-"),0,('Trust - Frontsheet'!AH34)) -> 0 | AP22: =IF(OR('Trust - Frontsheet'!AI34="",'Trust - Frontsheet'!AI34="-"),0,('Trust - Frontsheet'!AI34)) -> 0 | AQ22: =IF(OR('Trust - Frontsheet'!AJ34="",'Trust - Frontsheet'!AJ34="-"),0,('Trust - Frontsheet'!AJ34)) -> 10.3190319 | AR22: =IF(A22="","",(IF(ISBLANK('Trust - Frontsheet'!F9),"",'Trust - Frontsheet'!F9))) -> 
A23: =IF('Trust - Frontsheet'!D35=0,"",IF('Trust - Frontsheet'!D35="","",'Trust - Frontsheet'!D35)) -> RWG02 | B23: =IF(ISBLANK('Trust - Frontsheet'!E35),"",'Trust - Frontsheet'!E35) -> WATFORD GENERAL HOSPITAL | C23: =IF(ISBLANK('Trust - Frontsheet'!F35),"","'" & 'Trust - Frontsheet'!F35 & "'") -> 'Elizabeth' | D23: =IF(ISBLANK('Trust - Frontsheet'!G35),"",'Trust - Frontsheet'!G35) -> 502 - GYNAECOLOGY | E23: =IF(ISBLANK('Trust - Frontsheet'!H35),"",'Trust - Frontsheet'!H35) ->  | F23: ='Trust - Frontsheet'!I35 -> 1069.5 | G23: ='Trust - Frontsheet'!J35 -> 1323 | H23: ='Trust - Frontsheet'!K35 -> 1426 | I23: ='Trust - Frontsheet'!L35 -> 1236.25 | J23: ='Trust - Frontsheet'!M35 -> 0 | K23: ='Trust - Frontsheet'!N35 -> 0 | L23: ='Trust - Frontsheet'!O35 -> 0 | M23: ='Trust - Frontsheet'!P35 -> 11.5 | N23: ='Trust - Frontsheet'!Q35 -> 1069.5 | O23: ='Trust - Frontsheet'!R35 -> 1230.5 | P23: ='Trust - Frontsheet'!S35 -> 713 | Q23: ='Trust - Frontsheet'!T35 -> 862.5 | R23: ='Trust - Frontsheet'!U35 -> 0 | S23: ='Trust - Frontsheet'!V35 -> 0 | T23: ='Trust - Frontsheet'!W35 -> 0 | U23: ='Trust - Frontsheet'!X35 -> 0 | V23: ='Trust - Frontsheet'!Y35 -> 0 | W23: ='Trust - Frontsheet'!Z35 -> 0 | X23: ='Trust - Frontsheet'!AA35 -> 0 | Y23: ='Trust - Frontsheet'!AB35 -> 0 | Z23: =IF(OR('Trust - Frontsheet'!AK35="",'Trust - Frontsheet'!AK35="-"),0,('Trust - Frontsheet'!AK35)) -> 1.237026648 | AA23: =IF(OR('Trust - Frontsheet'!AL35="",'Trust - Frontsheet'!AL35="-"),0,('Trust - Frontsheet'!AL35)) -> 0.8669354839 | AB23: =IF(OR('Trust - Frontsheet'!AM35="",'Trust - Frontsheet'!AM35="-"),0,('Trust - Frontsheet'!AM35)) -> 0 | AC23: =IF(OR('Trust - Frontsheet'!AN35="",'Trust - Frontsheet'!AN35="-"),0,('Trust - Frontsheet'!AN35)) -> 0 | AD23: =IF(OR('Trust - Frontsheet'!AO35="",'Trust - Frontsheet'!AO35="-"),0,('Trust - Frontsheet'!AO35)) -> 1.150537634 | AE23: =IF(OR('Trust - Frontsheet'!AP35="",'Trust - Frontsheet'!AP35="-"),0,('Trust - Frontsheet'!AP35)) -> 1.209677419 | AF23: =IF(OR('Trust - Frontsheet'!AQ35="",'Trust - Frontsheet'!AQ35="-"),0,('Trust - Frontsheet'!AQ35)) -> 0 | AG23: =IF(OR('Trust - Frontsheet'!AR35="",'Trust - Frontsheet'!AR35="-"),0,('Trust - Frontsheet'!AR35)) -> 0 | AH23: =IF(OR('Trust - Frontsheet'!AS35="",'Trust - Frontsheet'!AS35="-"),0,('Trust - Frontsheet'!AS35)) -> 0 | AI23: =IF(OR('Trust - Frontsheet'!AT35="",'Trust - Frontsheet'!AT35="-"),0,('Trust - Frontsheet'!AT35)) -> 0 | AJ23: ='Trust - Frontsheet'!AC35 -> 834 | AK23: =IF(OR('Trust - Frontsheet'!AD35="",'Trust - Frontsheet'!AD35="-"),0,('Trust - Frontsheet'!AD35)) -> 3.0617506 | AL23: =IF(OR('Trust - Frontsheet'!AE35="",'Trust - Frontsheet'!AE35="-"),0,('Trust - Frontsheet'!AE35)) -> 2.516486811 | AM23: =IF(OR('Trust - Frontsheet'!AF35="",'Trust - Frontsheet'!AF35="-"),0,('Trust - Frontsheet'!AF35)) -> 0 | AN23: =IF(OR('Trust - Frontsheet'!AG35="",'Trust - Frontsheet'!AG35="-"),0,('Trust - Frontsheet'!AG35)) -> 0.01378896882 | AO23: =IF(OR('Trust - Frontsheet'!AH35="",'Trust - Frontsheet'!AH35="-"),0,('Trust - Frontsheet'!AH35)) -> 0 | AP23: =IF(OR('Trust - Frontsheet'!AI35="",'Trust - Frontsheet'!AI35="-"),0,('Trust - Frontsheet'!AI35)) -> 0 | AQ23: =IF(OR('Trust - Frontsheet'!AJ35="",'Trust - Frontsheet'!AJ35="-"),0,('Trust - Frontsheet'!AJ35)) -> 5.592026379 | AR23: =IF(A23="","",(IF(ISBLANK('Trust - Frontsheet'!F9),"",'Trust - Frontsheet'!F9))) -> 
A24: =IF('Trust - Frontsheet'!D36=0,"",IF('Trust - Frontsheet'!D36="","",'Trust - Frontsheet'!D36)) -> RWG02 | B24: =IF(ISBLANK('Trust - Frontsheet'!E36),"",'Trust - Frontsheet'!E36) -> WATFORD GENERAL HOSPITAL | C24: =IF(ISBLANK('Trust - Frontsheet'!F36),"","'" & 'Trust - Frontsheet'!F36 & "'") -> 'Flaunden' | D24: =IF(ISBLANK('Trust - Frontsheet'!G36),"",'Trust - Frontsheet'!G36) -> 100 - GENERAL SURGERY | E24: =IF(ISBLANK('Trust - Frontsheet'!H36),"",'Trust - Frontsheet'!H36) ->  | F24: ='Trust - Frontsheet'!I36 -> 1061.666667 | G24: ='Trust - Frontsheet'!J36 -> 1012 | H24: ='Trust - Frontsheet'!K36 -> 1782.5 | I24: ='Trust - Frontsheet'!L36 -> 1295.25 | J24: ='Trust - Frontsheet'!M36 -> 0 | K24: ='Trust - Frontsheet'!N36 -> 92 | L24: ='Trust - Frontsheet'!O36 -> 0 | M24: ='Trust - Frontsheet'!P36 -> 69 | N24: ='Trust - Frontsheet'!Q36 -> 1425.5 | O24: ='Trust - Frontsheet'!R36 -> 1184 | P24: ='Trust - Frontsheet'!S36 -> 713 | Q24: ='Trust - Frontsheet'!T36 -> 782 | R24: ='Trust - Frontsheet'!U36 -> 0 | S24: ='Trust - Frontsheet'!V36 -> 57.5 | T24: ='Trust - Frontsheet'!W36 -> 0 | U24: ='Trust - Frontsheet'!X36 -> 0 | V24: ='Trust - Frontsheet'!Y36 -> 0 | W24: ='Trust - Frontsheet'!Z36 -> 0 | X24: ='Trust - Frontsheet'!AA36 -> 0 | Y24: ='Trust - Frontsheet'!AB36 -> 0 | Z24: =IF(OR('Trust - Frontsheet'!AK36="",'Trust - Frontsheet'!AK36="-"),0,('Trust - Frontsheet'!AK36)) -> 0.9532182104 | AA24: =IF(OR('Trust - Frontsheet'!AL36="",'Trust - Frontsheet'!AL36="-"),0,('Trust - Frontsheet'!AL36)) -> 0.7266479663 | AB24: =IF(OR('Trust - Frontsheet'!AM36="",'Trust - Frontsheet'!AM36="-"),0,('Trust - Frontsheet'!AM36)) -> 0 | AC24: =IF(OR('Trust - Frontsheet'!AN36="",'Trust - Frontsheet'!AN36="-"),0,('Trust - Frontsheet'!AN36)) -> 0 | AD24: =IF(OR('Trust - Frontsheet'!AO36="",'Trust - Frontsheet'!AO36="-"),0,('Trust - Frontsheet'!AO36)) -> 0.8305857594 | AE24: =IF(OR('Trust - Frontsheet'!AP36="",'Trust - Frontsheet'!AP36="-"),0,('Trust - Frontsheet'!AP36)) -> 1.096774194 | AF24: =IF(OR('Trust - Frontsheet'!AQ36="",'Trust - Frontsheet'!AQ36="-"),0,('Trust - Frontsheet'!AQ36)) -> 0 | AG24: =IF(OR('Trust - Frontsheet'!AR36="",'Trust - Frontsheet'!AR36="-"),0,('Trust - Frontsheet'!AR36)) -> 0 | AH24: =IF(OR('Trust - Frontsheet'!AS36="",'Trust - Frontsheet'!AS36="-"),0,('Trust - Frontsheet'!AS36)) -> 0 | AI24: =IF(OR('Trust - Frontsheet'!AT36="",'Trust - Frontsheet'!AT36="-"),0,('Trust - Frontsheet'!AT36)) -> 0 | AJ24: ='Trust - Frontsheet'!AC36 -> 763 | AK24: =IF(OR('Trust - Frontsheet'!AD36="",'Trust - Frontsheet'!AD36="-"),0,('Trust - Frontsheet'!AD36)) -> 2.878112713 | AL24: =IF(OR('Trust - Frontsheet'!AE36="",'Trust - Frontsheet'!AE36="-"),0,('Trust - Frontsheet'!AE36)) -> 2.722477064 | AM24: =IF(OR('Trust - Frontsheet'!AF36="",'Trust - Frontsheet'!AF36="-"),0,('Trust - Frontsheet'!AF36)) -> 0.1959370904 | AN24: =IF(OR('Trust - Frontsheet'!AG36="",'Trust - Frontsheet'!AG36="-"),0,('Trust - Frontsheet'!AG36)) -> 0.09043250328 | AO24: =IF(OR('Trust - Frontsheet'!AH36="",'Trust - Frontsheet'!AH36="-"),0,('Trust - Frontsheet'!AH36)) -> 0 | AP24: =IF(OR('Trust - Frontsheet'!AI36="",'Trust - Frontsheet'!AI36="-"),0,('Trust - Frontsheet'!AI36)) -> 0 | AQ24: =IF(OR('Trust - Frontsheet'!AJ36="",'Trust - Frontsheet'!AJ36="-"),0,('Trust - Frontsheet'!AJ36)) -> 5.886959371 | AR24: =IF(A24="","",(IF(ISBLANK('Trust - Frontsheet'!F9),"",'Trust - Frontsheet'!F9))) -> 
A25: =IF('Trust - Frontsheet'!D37=0,"",IF('Trust - Frontsheet'!D37="","",'Trust - Frontsheet'!D37)) -> RWG02 | B25: =IF(ISBLANK('Trust - Frontsheet'!E37),"",'Trust - Frontsheet'!E37) -> WATFORD GENERAL HOSPITAL | C25: =IF(ISBLANK('Trust - Frontsheet'!F37),"","'" & 'Trust - Frontsheet'!F37 & "'") -> 'Langley' | D25: =IF(ISBLANK('Trust - Frontsheet'!G37),"",'Trust - Frontsheet'!G37) -> 110 - TRAUMA & ORTHOPAEDICS | E25: =IF(ISBLANK('Trust - Frontsheet'!H37),"",'Trust - Frontsheet'!H37) ->  | F25: ='Trust - Frontsheet'!I37 -> 710.5 | G25: ='Trust - Frontsheet'!J37 -> 739.25 | H25: ='Trust - Frontsheet'!K37 -> 713 | I25: ='Trust - Frontsheet'!L37 -> 877.67 | J25: ='Trust - Frontsheet'!M37 -> 0 | K25: ='Trust - Frontsheet'!N37 -> 0 | L25: ='Trust - Frontsheet'!O37 -> 0 | M25: ='Trust - Frontsheet'!P37 -> 0 | N25: ='Trust - Frontsheet'!Q37 -> 713 | O25: ='Trust - Frontsheet'!R37 -> 713 | P25: ='Trust - Frontsheet'!S37 -> 356.5 | Q25: ='Trust - Frontsheet'!T37 -> 575 | R25: ='Trust - Frontsheet'!U37 -> 0 | S25: ='Trust - Frontsheet'!V37 -> 0 | T25: ='Trust - Frontsheet'!W37 -> 0 | U25: ='Trust - Frontsheet'!X37 -> 0 | V25: ='Trust - Frontsheet'!Y37 -> 0 | W25: ='Trust - Frontsheet'!Z37 -> 0 | X25: ='Trust - Frontsheet'!AA37 -> 0 | Y25: ='Trust - Frontsheet'!AB37 -> 0 | Z25: =IF(OR('Trust - Frontsheet'!AK37="",'Trust - Frontsheet'!AK37="-"),0,('Trust - Frontsheet'!AK37)) -> 1.040464462 | AA25: =IF(OR('Trust - Frontsheet'!AL37="",'Trust - Frontsheet'!AL37="-"),0,('Trust - Frontsheet'!AL37)) -> 1.230953717 | AB25: =IF(OR('Trust - Frontsheet'!AM37="",'Trust - Frontsheet'!AM37="-"),0,('Trust - Frontsheet'!AM37)) -> 0 | AC25: =IF(OR('Trust - Frontsheet'!AN37="",'Trust - Frontsheet'!AN37="-"),0,('Trust - Frontsheet'!AN37)) -> 0 | AD25: =IF(OR('Trust - Frontsheet'!AO37="",'Trust - Frontsheet'!AO37="-"),0,('Trust - Frontsheet'!AO37)) -> 1 | AE25: =IF(OR('Trust - Frontsheet'!AP37="",'Trust - Frontsheet'!AP37="-"),0,('Trust - Frontsheet'!AP37)) -> 1.612903226 | AF25: =IF(OR('Trust - Frontsheet'!AQ37="",'Trust - Frontsheet'!AQ37="-"),0,('Trust - Frontsheet'!AQ37)) -> 0 | AG25: =IF(OR('Trust - Frontsheet'!AR37="",'Trust - Frontsheet'!AR37="-"),0,('Trust - Frontsheet'!AR37)) -> 0 | AH25: =IF(OR('Trust - Frontsheet'!AS37="",'Trust - Frontsheet'!AS37="-"),0,('Trust - Frontsheet'!AS37)) -> 0 | AI25: =IF(OR('Trust - Frontsheet'!AT37="",'Trust - Frontsheet'!AT37="-"),0,('Trust - Frontsheet'!AT37)) -> 0 | AJ25: ='Trust - Frontsheet'!AC37 -> 467 | AK25: =IF(OR('Trust - Frontsheet'!AD37="",'Trust - Frontsheet'!AD37="-"),0,('Trust - Frontsheet'!AD37)) -> 3.109743041 | AL25: =IF(OR('Trust - Frontsheet'!AE37="",'Trust - Frontsheet'!AE37="-"),0,('Trust - Frontsheet'!AE37)) -> 3.110642398 | AM25: =IF(OR('Trust - Frontsheet'!AF37="",'Trust - Frontsheet'!AF37="-"),0,('Trust - Frontsheet'!AF37)) -> 0 | AN25: =IF(OR('Trust - Frontsheet'!AG37="",'Trust - Frontsheet'!AG37="-"),0,('Trust - Frontsheet'!AG37)) -> 0 | AO25: =IF(OR('Trust - Frontsheet'!AH37="",'Trust - Frontsheet'!AH37="-"),0,('Trust - Frontsheet'!AH37)) -> 0 | AP25: =IF(OR('Trust - Frontsheet'!AI37="",'Trust - Frontsheet'!AI37="-"),0,('Trust - Frontsheet'!AI37)) -> 0 | AQ25: =IF(OR('Trust - Frontsheet'!AJ37="",'Trust - Frontsheet'!AJ37="-"),0,('Trust - Frontsheet'!AJ37)) -> 6.220385439 | AR25: =IF(A25="","",(IF(ISBLANK('Trust - Frontsheet'!F9),"",'Trust - Frontsheet'!F9))) -> 
A26: =IF('Trust - Frontsheet'!D38=0,"",IF('Trust - Frontsheet'!D38="","",'Trust - Frontsheet'!D38)) -> RWG02 | B26: =IF(ISBLANK('Trust - Frontsheet'!E38),"",'Trust - Frontsheet'!E38) -> WATFORD GENERAL HOSPITAL | C26: =IF(ISBLANK('Trust - Frontsheet'!F38),"","'" & 'Trust - Frontsheet'!F38 & "'") -> 'Letchmore' | D26: =IF(ISBLANK('Trust - Frontsheet'!G38),"",'Trust - Frontsheet'!G38) -> 100 - GENERAL SURGERY | E26: =IF(ISBLANK('Trust - Frontsheet'!H38),"",'Trust - Frontsheet'!H38) ->  | F26: ='Trust - Frontsheet'!I38 -> 1167 | G26: ='Trust - Frontsheet'!J38 -> 1077.333333 | H26: ='Trust - Frontsheet'!K38 -> 1069.5 | I26: ='Trust - Frontsheet'!L38 -> 798.25 | J26: ='Trust - Frontsheet'!M38 -> 0 | K26: ='Trust - Frontsheet'!N38 -> 0 | L26: ='Trust - Frontsheet'!O38 -> 0 | M26: ='Trust - Frontsheet'!P38 -> 138 | N26: ='Trust - Frontsheet'!Q38 -> 1069.5 | O26: ='Trust - Frontsheet'!R38 -> 1058 | P26: ='Trust - Frontsheet'!S38 -> 713 | Q26: ='Trust - Frontsheet'!T38 -> 897 | R26: ='Trust - Frontsheet'!U38 -> 0 | S26: ='Trust - Frontsheet'!V38 -> 0 | T26: ='Trust - Frontsheet'!W38 -> 0 | U26: ='Trust - Frontsheet'!X38 -> 23 | V26: ='Trust - Frontsheet'!Y38 -> 0 | W26: ='Trust - Frontsheet'!Z38 -> 0 | X26: ='Trust - Frontsheet'!AA38 -> 0 | Y26: ='Trust - Frontsheet'!AB38 -> 0 | Z26: =IF(OR('Trust - Frontsheet'!AK38="",'Trust - Frontsheet'!AK38="-"),0,('Trust - Frontsheet'!AK38)) -> 0.9231648101 | AA26: =IF(OR('Trust - Frontsheet'!AL38="",'Trust - Frontsheet'!AL38="-"),0,('Trust - Frontsheet'!AL38)) -> 0.7463768116 | AB26: =IF(OR('Trust - Frontsheet'!AM38="",'Trust - Frontsheet'!AM38="-"),0,('Trust - Frontsheet'!AM38)) -> 0 | AC26: =IF(OR('Trust - Frontsheet'!AN38="",'Trust - Frontsheet'!AN38="-"),0,('Trust - Frontsheet'!AN38)) -> 0 | AD26: =IF(OR('Trust - Frontsheet'!AO38="",'Trust - Frontsheet'!AO38="-"),0,('Trust - Frontsheet'!AO38)) -> 0.9892473118 | AE26: =IF(OR('Trust - Frontsheet'!AP38="",'Trust - Frontsheet'!AP38="-"),0,('Trust - Frontsheet'!AP38)) -> 1.258064516 | AF26: =IF(OR('Trust - Frontsheet'!AQ38="",'Trust - Frontsheet'!AQ38="-"),0,('Trust - Frontsheet'!AQ38)) -> 0 | AG26: =IF(OR('Trust - Frontsheet'!AR38="",'Trust - Frontsheet'!AR38="-"),0,('Trust - Frontsheet'!AR38)) -> 0 | AH26: =IF(OR('Trust - Frontsheet'!AS38="",'Trust - Frontsheet'!AS38="-"),0,('Trust - Frontsheet'!AS38)) -> 0 | AI26: =IF(OR('Trust - Frontsheet'!AT38="",'Trust - Frontsheet'!AT38="-"),0,('Trust - Frontsheet'!AT38)) -> 0 | AJ26: ='Trust - Frontsheet'!AC38 -> 670 | AK26: =IF(OR('Trust - Frontsheet'!AD38="",'Trust - Frontsheet'!AD38="-"),0,('Trust - Frontsheet'!AD38)) -> 3.187064677 | AL26: =IF(OR('Trust - Frontsheet'!AE38="",'Trust - Frontsheet'!AE38="-"),0,('Trust - Frontsheet'!AE38)) -> 2.530223881 | AM26: =IF(OR('Trust - Frontsheet'!AF38="",'Trust - Frontsheet'!AF38="-"),0,('Trust - Frontsheet'!AF38)) -> 0 | AN26: =IF(OR('Trust - Frontsheet'!AG38="",'Trust - Frontsheet'!AG38="-"),0,('Trust - Frontsheet'!AG38)) -> 0.2402985075 | AO26: =IF(OR('Trust - Frontsheet'!AH38="",'Trust - Frontsheet'!AH38="-"),0,('Trust - Frontsheet'!AH38)) -> 0 | AP26: =IF(OR('Trust - Frontsheet'!AI38="",'Trust - Frontsheet'!AI38="-"),0,('Trust - Frontsheet'!AI38)) -> 0 | AQ26: =IF(OR('Trust - Frontsheet'!AJ38="",'Trust - Frontsheet'!AJ38="-"),0,('Trust - Frontsheet'!AJ38)) -> 5.957587065 | AR26: =IF(A26="","",(IF(ISBLANK('Trust - Frontsheet'!F9),"",'Trust - Frontsheet'!F9))) -> 
A27: =IF('Trust - Frontsheet'!D39=0,"",IF('Trust - Frontsheet'!D39="","",'Trust - Frontsheet'!D39)) -> RWG02 | B27: =IF(ISBLANK('Trust - Frontsheet'!E39),"",'Trust - Frontsheet'!E39) -> WATFORD GENERAL HOSPITAL | C27: =IF(ISBLANK('Trust - Frontsheet'!F39),"","'" & 'Trust - Frontsheet'!F39 & "'") -> 'Ridge' | D27: =IF(ISBLANK('Trust - Frontsheet'!G39),"",'Trust - Frontsheet'!G39) -> 110 - TRAUMA & ORTHOPAEDICS | E27: =IF(ISBLANK('Trust - Frontsheet'!H39),"",'Trust - Frontsheet'!H39) ->  | F27: ='Trust - Frontsheet'!I39 -> 1421.75 | G27: ='Trust - Frontsheet'!J39 -> 1234 | H27: ='Trust - Frontsheet'!K39 -> 1426 | I27: ='Trust - Frontsheet'!L39 -> 1435.5 | J27: ='Trust - Frontsheet'!M39 -> 0 | K27: ='Trust - Frontsheet'!N39 -> 138 | L27: ='Trust - Frontsheet'!O39 -> 0 | M27: ='Trust - Frontsheet'!P39 -> 0 | N27: ='Trust - Frontsheet'!Q39 -> 1426 | O27: ='Trust - Frontsheet'!R39 -> 1403 | P27: ='Trust - Frontsheet'!S39 -> 1069.5 | Q27: ='Trust - Frontsheet'!T39 -> 1184.5 | R27: ='Trust - Frontsheet'!U39 -> 0 | S27: ='Trust - Frontsheet'!V39 -> 0 | T27: ='Trust - Frontsheet'!W39 -> 0 | U27: ='Trust - Frontsheet'!X39 -> 0 | V27: ='Trust - Frontsheet'!Y39 -> 0 | W27: ='Trust - Frontsheet'!Z39 -> 0 | X27: ='Trust - Frontsheet'!AA39 -> 0 | Y27: ='Trust - Frontsheet'!AB39 -> 0 | Z27: =IF(OR('Trust - Frontsheet'!AK39="",'Trust - Frontsheet'!AK39="-"),0,('Trust - Frontsheet'!AK39)) -> 0.8679444347 | AA27: =IF(OR('Trust - Frontsheet'!AL39="",'Trust - Frontsheet'!AL39="-"),0,('Trust - Frontsheet'!AL39)) -> 1.006661992 | AB27: =IF(OR('Trust - Frontsheet'!AM39="",'Trust - Frontsheet'!AM39="-"),0,('Trust - Frontsheet'!AM39)) -> 0 | AC27: =IF(OR('Trust - Frontsheet'!AN39="",'Trust - Frontsheet'!AN39="-"),0,('Trust - Frontsheet'!AN39)) -> 0 | AD27: =IF(OR('Trust - Frontsheet'!AO39="",'Trust - Frontsheet'!AO39="-"),0,('Trust - Frontsheet'!AO39)) -> 0.9838709677 | AE27: =IF(OR('Trust - Frontsheet'!AP39="",'Trust - Frontsheet'!AP39="-"),0,('Trust - Frontsheet'!AP39)) -> 1.107526882 | AF27: =IF(OR('Trust - Frontsheet'!AQ39="",'Trust - Frontsheet'!AQ39="-"),0,('Trust - Frontsheet'!AQ39)) -> 0 | AG27: =IF(OR('Trust - Frontsheet'!AR39="",'Trust - Frontsheet'!AR39="-"),0,('Trust - Frontsheet'!AR39)) -> 0 | AH27: =IF(OR('Trust - Frontsheet'!AS39="",'Trust - Frontsheet'!AS39="-"),0,('Trust - Frontsheet'!AS39)) -> 0 | AI27: =IF(OR('Trust - Frontsheet'!AT39="",'Trust - Frontsheet'!AT39="-"),0,('Trust - Frontsheet'!AT39)) -> 0 | AJ27: ='Trust - Frontsheet'!AC39 -> 877 | AK27: =IF(OR('Trust - Frontsheet'!AD39="",'Trust - Frontsheet'!AD39="-"),0,('Trust - Frontsheet'!AD39)) -> 3.006841505 | AL27: =IF(OR('Trust - Frontsheet'!AE39="",'Trust - Frontsheet'!AE39="-"),0,('Trust - Frontsheet'!AE39)) -> 2.987457241 | AM27: =IF(OR('Trust - Frontsheet'!AF39="",'Trust - Frontsheet'!AF39="-"),0,('Trust - Frontsheet'!AF39)) -> 0.157354618 | AN27: =IF(OR('Trust - Frontsheet'!AG39="",'Trust - Frontsheet'!AG39="-"),0,('Trust - Frontsheet'!AG39)) -> 0 | AO27: =IF(OR('Trust - Frontsheet'!AH39="",'Trust - Frontsheet'!AH39="-"),0,('Trust - Frontsheet'!AH39)) -> 0 | AP27: =IF(OR('Trust - Frontsheet'!AI39="",'Trust - Frontsheet'!AI39="-"),0,('Trust - Frontsheet'!AI39)) -> 0 | AQ27: =IF(OR('Trust - Frontsheet'!AJ39="",'Trust - Frontsheet'!AJ39="-"),0,('Trust - Frontsheet'!AJ39)) -> 6.151653364 | AR27: =IF(A27="","",(IF(ISBLANK('Trust - Frontsheet'!F9),"",'Trust - Frontsheet'!F9))) -> 
A28: =IF('Trust - Frontsheet'!D40=0,"",IF('Trust - Frontsheet'!D40="","",'Trust - Frontsheet'!D40)) -> RWG02 | B28: =IF(ISBLANK('Trust - Frontsheet'!E40),"",'Trust - Frontsheet'!E40) -> WATFORD GENERAL HOSPITAL | C28: =IF(ISBLANK('Trust - Frontsheet'!F40),"","'" & 'Trust - Frontsheet'!F40 & "'") -> 'ABC' | D28: =IF(ISBLANK('Trust - Frontsheet'!G40),"",'Trust - Frontsheet'!G40) -> 501 - OBSTETRICS | E28: =IF(ISBLANK('Trust - Frontsheet'!H40),"",'Trust - Frontsheet'!H40) ->  | F28: ='Trust - Frontsheet'!I40 -> 1058.5 | G28: ='Trust - Frontsheet'!J40 -> 997.25 | H28: ='Trust - Frontsheet'!K40 -> 356.5 | I28: ='Trust - Frontsheet'!L40 -> 299 | J28: ='Trust - Frontsheet'!M40 -> 0 | K28: ='Trust - Frontsheet'!N40 -> 0 | L28: ='Trust - Frontsheet'!O40 -> 0 | M28: ='Trust - Frontsheet'!P40 -> 0 | N28: ='Trust - Frontsheet'!Q40 -> 1070 | O28: ='Trust - Frontsheet'!R40 -> 1005 | P28: ='Trust - Frontsheet'!S40 -> 356.5 | Q28: ='Trust - Frontsheet'!T40 -> 345 | R28: ='Trust - Frontsheet'!U40 -> 0 | S28: ='Trust - Frontsheet'!V40 -> 0 | T28: ='Trust - Frontsheet'!W40 -> 0 | U28: ='Trust - Frontsheet'!X40 -> 0 | V28: ='Trust - Frontsheet'!Y40 -> 0 | W28: ='Trust - Frontsheet'!Z40 -> 0 | X28: ='Trust - Frontsheet'!AA40 -> 0 | Y28: ='Trust - Frontsheet'!AB40 -> 0 | Z28: =IF(OR('Trust - Frontsheet'!AK40="",'Trust - Frontsheet'!AK40="-"),0,('Trust - Frontsheet'!AK40)) -> 0.9421350968 | AA28: =IF(OR('Trust - Frontsheet'!AL40="",'Trust - Frontsheet'!AL40="-"),0,('Trust - Frontsheet'!AL40)) -> 0.8387096774 | AB28: =IF(OR('Trust - Frontsheet'!AM40="",'Trust - Frontsheet'!AM40="-"),0,('Trust - Frontsheet'!AM40)) -> 0 | AC28: =IF(OR('Trust - Frontsheet'!AN40="",'Trust - Frontsheet'!AN40="-"),0,('Trust - Frontsheet'!AN40)) -> 0 | AD28: =IF(OR('Trust - Frontsheet'!AO40="",'Trust - Frontsheet'!AO40="-"),0,('Trust - Frontsheet'!AO40)) -> 0.9392523364 | AE28: =IF(OR('Trust - Frontsheet'!AP40="",'Trust - Frontsheet'!AP40="-"),0,('Trust - Frontsheet'!AP40)) -> 0.9677419355 | AF28: =IF(OR('Trust - Frontsheet'!AQ40="",'Trust - Frontsheet'!AQ40="-"),0,('Trust - Frontsheet'!AQ40)) -> 0 | AG28: =IF(OR('Trust - Frontsheet'!AR40="",'Trust - Frontsheet'!AR40="-"),0,('Trust - Frontsheet'!AR40)) -> 0 | AH28: =IF(OR('Trust - Frontsheet'!AS40="",'Trust - Frontsheet'!AS40="-"),0,('Trust - Frontsheet'!AS40)) -> 0 | AI28: =IF(OR('Trust - Frontsheet'!AT40="",'Trust - Frontsheet'!AT40="-"),0,('Trust - Frontsheet'!AT40)) -> 0 | AJ28: ='Trust - Frontsheet'!AC40 -> 104 | AK28: =IF(OR('Trust - Frontsheet'!AD40="",'Trust - Frontsheet'!AD40="-"),0,('Trust - Frontsheet'!AD40)) -> 19.25240385 | AL28: =IF(OR('Trust - Frontsheet'!AE40="",'Trust - Frontsheet'!AE40="-"),0,('Trust - Frontsheet'!AE40)) -> 6.192307692 | AM28: =IF(OR('Trust - Frontsheet'!AF40="",'Trust - Frontsheet'!AF40="-"),0,('Trust - Frontsheet'!AF40)) -> 0 | AN28: =IF(OR('Trust - Frontsheet'!AG40="",'Trust - Frontsheet'!AG40="-"),0,('Trust - Frontsheet'!AG40)) -> 0 | AO28: =IF(OR('Trust - Frontsheet'!AH40="",'Trust - Frontsheet'!AH40="-"),0,('Trust - Frontsheet'!AH40)) -> 0 | AP28: =IF(OR('Trust - Frontsheet'!AI40="",'Trust - Frontsheet'!AI40="-"),0,('Trust - Frontsheet'!AI40)) -> 0 | AQ28: =IF(OR('Trust - Frontsheet'!AJ40="",'Trust - Frontsheet'!AJ40="-"),0,('Trust - Frontsheet'!AJ40)) -> 25.44471154 | AR28: =IF(A28="","",(IF(ISBLANK('Trust - Frontsheet'!F9),"",'Trust - Frontsheet'!F9))) -> 
A29: =IF('Trust - Frontsheet'!D41=0,"",IF('Trust - Frontsheet'!D41="","",'Trust - Frontsheet'!D41)) -> RWG02 | B29: =IF(ISBLANK('Trust - Frontsheet'!E41),"",'Trust - Frontsheet'!E41) -> WATFORD GENERAL HOSPITAL | C29: =IF(ISBLANK('Trust - Frontsheet'!F41),"","'" & 'Trust - Frontsheet'!F41 & "'") -> 'Delivery Suite' | D29: =IF(ISBLANK('Trust - Frontsheet'!G41),"",'Trust - Frontsheet'!G41) -> 501 - OBSTETRICS | E29: =IF(ISBLANK('Trust - Frontsheet'!H41),"",'Trust - Frontsheet'!H41) ->  | F29: ='Trust - Frontsheet'!I41 -> 2665.75 | G29: ='Trust - Frontsheet'!J41 -> 2528.5 | H29: ='Trust - Frontsheet'!K41 -> 713 | I29: ='Trust - Frontsheet'!L41 -> 598 | J29: ='Trust - Frontsheet'!M41 -> 0 | K29: ='Trust - Frontsheet'!N41 -> 0 | L29: ='Trust - Frontsheet'!O41 -> 0 | M29: ='Trust - Frontsheet'!P41 -> 0 | N29: ='Trust - Frontsheet'!Q41 -> 2501.333333 | O29: ='Trust - Frontsheet'!R41 -> 2465.083333 | P29: ='Trust - Frontsheet'!S41 -> 713 | Q29: ='Trust - Frontsheet'!T41 -> 713 | R29: ='Trust - Frontsheet'!U41 -> 0 | S29: ='Trust - Frontsheet'!V41 -> 0 | T29: ='Trust - Frontsheet'!W41 -> 0 | U29: ='Trust - Frontsheet'!X41 -> 0 | V29: ='Trust - Frontsheet'!Y41 -> 0 | W29: ='Trust - Frontsheet'!Z41 -> 0 | X29: ='Trust - Frontsheet'!AA41 -> 0 | Y29: ='Trust - Frontsheet'!AB41 -> 0 | Z29: =IF(OR('Trust - Frontsheet'!AK41="",'Trust - Frontsheet'!AK41="-"),0,('Trust - Frontsheet'!AK41)) -> 0.9485135515 | AA29: =IF(OR('Trust - Frontsheet'!AL41="",'Trust - Frontsheet'!AL41="-"),0,('Trust - Frontsheet'!AL41)) -> 0.8387096774 | AB29: =IF(OR('Trust - Frontsheet'!AM41="",'Trust - Frontsheet'!AM41="-"),0,('Trust - Frontsheet'!AM41)) -> 0 | AC29: =IF(OR('Trust - Frontsheet'!AN41="",'Trust - Frontsheet'!AN41="-"),0,('Trust - Frontsheet'!AN41)) -> 0 | AD29: =IF(OR('Trust - Frontsheet'!AO41="",'Trust - Frontsheet'!AO41="-"),0,('Trust - Frontsheet'!AO41)) -> 0.9855077292 | AE29: =IF(OR('Trust - Frontsheet'!AP41="",'Trust - Frontsheet'!AP41="-"),0,('Trust - Frontsheet'!AP41)) -> 1 | AF29: =IF(OR('Trust - Frontsheet'!AQ41="",'Trust - Frontsheet'!AQ41="-"),0,('Trust - Frontsheet'!AQ41)) -> 0 | AG29: =IF(OR('Trust - Frontsheet'!AR41="",'Trust - Frontsheet'!AR41="-"),0,('Trust - Frontsheet'!AR41)) -> 0 | AH29: =IF(OR('Trust - Frontsheet'!AS41="",'Trust - Frontsheet'!AS41="-"),0,('Trust - Frontsheet'!AS41)) -> 0 | AI29: =IF(OR('Trust - Frontsheet'!AT41="",'Trust - Frontsheet'!AT41="-"),0,('Trust - Frontsheet'!AT41)) -> 0 | AJ29: ='Trust - Frontsheet'!AC41 -> 273 | AK29: =IF(OR('Trust - Frontsheet'!AD41="",'Trust - Frontsheet'!AD41="-"),0,('Trust - Frontsheet'!AD41)) -> 18.29151404 | AL29: =IF(OR('Trust - Frontsheet'!AE41="",'Trust - Frontsheet'!AE41="-"),0,('Trust - Frontsheet'!AE41)) -> 4.802197802 | AM29: =IF(OR('Trust - Frontsheet'!AF41="",'Trust - Frontsheet'!AF41="-"),0,('Trust - Frontsheet'!AF41)) -> 0 | AN29: =IF(OR('Trust - Frontsheet'!AG41="",'Trust - Frontsheet'!AG41="-"),0,('Trust - Frontsheet'!AG41)) -> 0 | AO29: =IF(OR('Trust - Frontsheet'!AH41="",'Trust - Frontsheet'!AH41="-"),0,('Trust - Frontsheet'!AH41)) -> 0 | AP29: =IF(OR('Trust - Frontsheet'!AI41="",'Trust - Frontsheet'!AI41="-"),0,('Trust - Frontsheet'!AI41)) -> 0 | AQ29: =IF(OR('Trust - Frontsheet'!AJ41="",'Trust - Frontsheet'!AJ41="-"),0,('Trust - Frontsheet'!AJ41)) -> 23.09371184 | AR29: =IF(A29="","",(IF(ISBLANK('Trust - Frontsheet'!F9),"",'Trust - Frontsheet'!F9))) -> 
A30: =IF('Trust - Frontsheet'!D42=0,"",IF('Trust - Frontsheet'!D42="","",'Trust - Frontsheet'!D42)) -> RWG02 | B30: =IF(ISBLANK('Trust - Frontsheet'!E42),"",'Trust - Frontsheet'!E42) -> WATFORD GENERAL HOSPITAL | C30: =IF(ISBLANK('Trust - Frontsheet'!F42),"","'" & 'Trust - Frontsheet'!F42 & "'") -> 'Katherine' | D30: =IF(ISBLANK('Trust - Frontsheet'!G42),"",'Trust - Frontsheet'!G42) -> 501 - OBSTETRICS | E30: =IF(ISBLANK('Trust - Frontsheet'!H42),"",'Trust - Frontsheet'!H42) ->  | F30: ='Trust - Frontsheet'!I42 -> 1454 | G30: ='Trust - Frontsheet'!J42 -> 1069.83 | H30: ='Trust - Frontsheet'!K42 -> 1427.5 | I30: ='Trust - Frontsheet'!L42 -> 853.5 | J30: ='Trust - Frontsheet'!M42 -> 0 | K30: ='Trust - Frontsheet'!N42 -> 281.5 | L30: ='Trust - Frontsheet'!O42 -> 0 | M30: ='Trust - Frontsheet'!P42 -> 92 | N30: ='Trust - Frontsheet'!Q42 -> 1069.5 | O30: ='Trust - Frontsheet'!R42 -> 1046.5 | P30: ='Trust - Frontsheet'!S42 -> 1426 | Q30: ='Trust - Frontsheet'!T42 -> 1068.5 | R30: ='Trust - Frontsheet'!U42 -> 0 | S30: ='Trust - Frontsheet'!V42 -> 0 | T30: ='Trust - Frontsheet'!W42 -> 0 | U30: ='Trust - Frontsheet'!X42 -> 92 | V30: ='Trust - Frontsheet'!Y42 -> 0 | W30: ='Trust - Frontsheet'!Z42 -> 0 | X30: ='Trust - Frontsheet'!AA42 -> 0 | Y30: ='Trust - Frontsheet'!AB42 -> 0 | Z30: =IF(OR('Trust - Frontsheet'!AK42="",'Trust - Frontsheet'!AK42="-"),0,('Trust - Frontsheet'!AK42)) -> 0.735784044 | AA30: =IF(OR('Trust - Frontsheet'!AL42="",'Trust - Frontsheet'!AL42="-"),0,('Trust - Frontsheet'!AL42)) -> 0.5978984238 | AB30: =IF(OR('Trust - Frontsheet'!AM42="",'Trust - Frontsheet'!AM42="-"),0,('Trust - Frontsheet'!AM42)) -> 0 | AC30: =IF(OR('Trust - Frontsheet'!AN42="",'Trust - Frontsheet'!AN42="-"),0,('Trust - Frontsheet'!AN42)) -> 0 | AD30: =IF(OR('Trust - Frontsheet'!AO42="",'Trust - Frontsheet'!AO42="-"),0,('Trust - Frontsheet'!AO42)) -> 0.9784946237 | AE30: =IF(OR('Trust - Frontsheet'!AP42="",'Trust - Frontsheet'!AP42="-"),0,('Trust - Frontsheet'!AP42)) -> 0.7492987377 | AF30: =IF(OR('Trust - Frontsheet'!AQ42="",'Trust - Frontsheet'!AQ42="-"),0,('Trust - Frontsheet'!AQ42)) -> 0 | AG30: =IF(OR('Trust - Frontsheet'!AR42="",'Trust - Frontsheet'!AR42="-"),0,('Trust - Frontsheet'!AR42)) -> 0 | AH30: =IF(OR('Trust - Frontsheet'!AS42="",'Trust - Frontsheet'!AS42="-"),0,('Trust - Frontsheet'!AS42)) -> 0 | AI30: =IF(OR('Trust - Frontsheet'!AT42="",'Trust - Frontsheet'!AT42="-"),0,('Trust - Frontsheet'!AT42)) -> 0 | AJ30: ='Trust - Frontsheet'!AC42 -> 1045 | AK30: =IF(OR('Trust - Frontsheet'!AD42="",'Trust - Frontsheet'!AD42="-"),0,('Trust - Frontsheet'!AD42)) -> 2.025196172 | AL30: =IF(OR('Trust - Frontsheet'!AE42="",'Trust - Frontsheet'!AE42="-"),0,('Trust - Frontsheet'!AE42)) -> 1.83923445 | AM30: =IF(OR('Trust - Frontsheet'!AF42="",'Trust - Frontsheet'!AF42="-"),0,('Trust - Frontsheet'!AF42)) -> 0.2693779904 | AN30: =IF(OR('Trust - Frontsheet'!AG42="",'Trust - Frontsheet'!AG42="-"),0,('Trust - Frontsheet'!AG42)) -> 0.176076555 | AO30: =IF(OR('Trust - Frontsheet'!AH42="",'Trust - Frontsheet'!AH42="-"),0,('Trust - Frontsheet'!AH42)) -> 0 | AP30: =IF(OR('Trust - Frontsheet'!AI42="",'Trust - Frontsheet'!AI42="-"),0,('Trust - Frontsheet'!AI42)) -> 0 | AQ30: =IF(OR('Trust - Frontsheet'!AJ42="",'Trust - Frontsheet'!AJ42="-"),0,('Trust - Frontsheet'!AJ42)) -> 4.309885167 | AR30: =IF(A30="","",(IF(ISBLANK('Trust - Frontsheet'!F9),"",'Trust - Frontsheet'!F9))) -> 
A31: =IF('Trust - Frontsheet'!D43=0,"",IF('Trust - Frontsheet'!D43="","",'Trust - Frontsheet'!D43)) -> RWG02 | B31: =IF(ISBLANK('Trust - Frontsheet'!E43),"",'Trust - Frontsheet'!E43) -> WATFORD GENERAL HOSPITAL | C31: =IF(ISBLANK('Trust - Frontsheet'!F43),"","'" & 'Trust - Frontsheet'!F43 & "'") -> 'Victoria' | D31: =IF(ISBLANK('Trust - Frontsheet'!G43),"",'Trust - Frontsheet'!G43) -> 501 - OBSTETRICS | E31: =IF(ISBLANK('Trust - Frontsheet'!H43),"",'Trust - Frontsheet'!H43) ->  | F31: ='Trust - Frontsheet'!I43 -> 713 | G31: ='Trust - Frontsheet'!J43 -> 713 | H31: ='Trust - Frontsheet'!K43 -> 356.5 | I31: ='Trust - Frontsheet'!L43 -> 299 | J31: ='Trust - Frontsheet'!M43 -> 0 | K31: ='Trust - Frontsheet'!N43 -> 0 | L31: ='Trust - Frontsheet'!O43 -> 0 | M31: ='Trust - Frontsheet'!P43 -> 0 | N31: ='Trust - Frontsheet'!Q43 -> 713 | O31: ='Trust - Frontsheet'!R43 -> 713 | P31: ='Trust - Frontsheet'!S43 -> 356.5 | Q31: ='Trust - Frontsheet'!T43 -> 333.5 | R31: ='Trust - Frontsheet'!U43 -> 0 | S31: ='Trust - Frontsheet'!V43 -> 0 | T31: ='Trust - Frontsheet'!W43 -> 0 | U31: ='Trust - Frontsheet'!X43 -> 0 | V31: ='Trust - Frontsheet'!Y43 -> 0 | W31: ='Trust - Frontsheet'!Z43 -> 0 | X31: ='Trust - Frontsheet'!AA43 -> 0 | Y31: ='Trust - Frontsheet'!AB43 -> 0 | Z31: =IF(OR('Trust - Frontsheet'!AK43="",'Trust - Frontsheet'!AK43="-"),0,('Trust - Frontsheet'!AK43)) -> 1 | AA31: =IF(OR('Trust - Frontsheet'!AL43="",'Trust - Frontsheet'!AL43="-"),0,('Trust - Frontsheet'!AL43)) -> 0.8387096774 | AB31: =IF(OR('Trust - Frontsheet'!AM43="",'Trust - Frontsheet'!AM43="-"),0,('Trust - Frontsheet'!AM43)) -> 0 | AC31: =IF(OR('Trust - Frontsheet'!AN43="",'Trust - Frontsheet'!AN43="-"),0,('Trust - Frontsheet'!AN43)) -> 0 | AD31: =IF(OR('Trust - Frontsheet'!AO43="",'Trust - Frontsheet'!AO43="-"),0,('Trust - Frontsheet'!AO43)) -> 1 | AE31: =IF(OR('Trust - Frontsheet'!AP43="",'Trust - Frontsheet'!AP43="-"),0,('Trust - Frontsheet'!AP43)) -> 0.935483871 | AF31: =IF(OR('Trust - Frontsheet'!AQ43="",'Trust - Frontsheet'!AQ43="-"),0,('Trust - Frontsheet'!AQ43)) -> 0 | AG31: =IF(OR('Trust - Frontsheet'!AR43="",'Trust - Frontsheet'!AR43="-"),0,('Trust - Frontsheet'!AR43)) -> 0 | AH31: =IF(OR('Trust - Frontsheet'!AS43="",'Trust - Frontsheet'!AS43="-"),0,('Trust - Frontsheet'!AS43)) -> 0 | AI31: =IF(OR('Trust - Frontsheet'!AT43="",'Trust - Frontsheet'!AT43="-"),0,('Trust - Frontsheet'!AT43)) -> 0 | AJ31: ='Trust - Frontsheet'!AC43 -> 265 | AK31: =IF(OR('Trust - Frontsheet'!AD43="",'Trust - Frontsheet'!AD43="-"),0,('Trust - Frontsheet'!AD43)) -> 5.381132075 | AL31: =IF(OR('Trust - Frontsheet'!AE43="",'Trust - Frontsheet'!AE43="-"),0,('Trust - Frontsheet'!AE43)) -> 2.386792453 | AM31: =IF(OR('Trust - Frontsheet'!AF43="",'Trust - Frontsheet'!AF43="-"),0,('Trust - Frontsheet'!AF43)) -> 0 | AN31: =IF(OR('Trust - Frontsheet'!AG43="",'Trust - Frontsheet'!AG43="-"),0,('Trust - Frontsheet'!AG43)) -> 0 | AO31: =IF(OR('Trust - Frontsheet'!AH43="",'Trust - Frontsheet'!AH43="-"),0,('Trust - Frontsheet'!AH43)) -> 0 | AP31: =IF(OR('Trust - Frontsheet'!AI43="",'Trust - Frontsheet'!AI43="-"),0,('Trust - Frontsheet'!AI43)) -> 0 | AQ31: =IF(OR('Trust - Frontsheet'!AJ43="",'Trust - Frontsheet'!AJ43="-"),0,('Trust - Frontsheet'!AJ43)) -> 7.767924528 | AR31: =IF(A31="","",(IF(ISBLANK('Trust - Frontsheet'!F9),"",'Trust - Frontsheet'!F9))) -> 
A32: =IF('Trust - Frontsheet'!D44=0,"",IF('Trust - Frontsheet'!D44="","",'Trust - Frontsheet'!D44)) -> RWG02 | B32: =IF(ISBLANK('Trust - Frontsheet'!E44),"",'Trust - Frontsheet'!E44) -> WATFORD GENERAL HOSPITAL | C32: =IF(ISBLANK('Trust - Frontsheet'!F44),"","'" & 'Trust - Frontsheet'!F44 & "'") -> 'SCBU' | D32: =IF(ISBLANK('Trust - Frontsheet'!G44),"",'Trust - Frontsheet'!G44) -> 501 - OBSTETRICS | E32: =IF(ISBLANK('Trust - Frontsheet'!H44),"",'Trust - Frontsheet'!H44) ->  | F32: ='Trust - Frontsheet'!I44 -> 1529.5 | G32: ='Trust - Frontsheet'!J44 -> 1660.583333 | H32: ='Trust - Frontsheet'!K44 -> 184 | I32: ='Trust - Frontsheet'!L44 -> 168.5 | J32: ='Trust - Frontsheet'!M44 -> 0 | K32: ='Trust - Frontsheet'!N44 -> 0 | L32: ='Trust - Frontsheet'!O44 -> 0 | M32: ='Trust - Frontsheet'!P44 -> 0 | N32: ='Trust - Frontsheet'!Q44 -> 1597.5 | O32: ='Trust - Frontsheet'!R44 -> 1631 | P32: ='Trust - Frontsheet'!S44 -> 149.5 | Q32: ='Trust - Frontsheet'!T44 -> 149.5 | R32: ='Trust - Frontsheet'!U44 -> 0 | S32: ='Trust - Frontsheet'!V44 -> 0 | T32: ='Trust - Frontsheet'!W44 -> 0 | U32: ='Trust - Frontsheet'!X44 -> 0 | V32: ='Trust - Frontsheet'!Y44 -> 0 | W32: ='Trust - Frontsheet'!Z44 -> 0 | X32: ='Trust - Frontsheet'!AA44 -> 0 | Y32: ='Trust - Frontsheet'!AB44 -> 0 | Z32: =IF(OR('Trust - Frontsheet'!AK44="",'Trust - Frontsheet'!AK44="-"),0,('Trust - Frontsheet'!AK44)) -> 1.085703389 | AA32: =IF(OR('Trust - Frontsheet'!AL44="",'Trust - Frontsheet'!AL44="-"),0,('Trust - Frontsheet'!AL44)) -> 0.9157608696 | AB32: =IF(OR('Trust - Frontsheet'!AM44="",'Trust - Frontsheet'!AM44="-"),0,('Trust - Frontsheet'!AM44)) -> 0 | AC32: =IF(OR('Trust - Frontsheet'!AN44="",'Trust - Frontsheet'!AN44="-"),0,('Trust - Frontsheet'!AN44)) -> 0 | AD32: =IF(OR('Trust - Frontsheet'!AO44="",'Trust - Frontsheet'!AO44="-"),0,('Trust - Frontsheet'!AO44)) -> 1.020970266 | AE32: =IF(OR('Trust - Frontsheet'!AP44="",'Trust - Frontsheet'!AP44="-"),0,('Trust - Frontsheet'!AP44)) -> 1 | AF32: =IF(OR('Trust - Frontsheet'!AQ44="",'Trust - Frontsheet'!AQ44="-"),0,('Trust - Frontsheet'!AQ44)) -> 0 | AG32: =IF(OR('Trust - Frontsheet'!AR44="",'Trust - Frontsheet'!AR44="-"),0,('Trust - Frontsheet'!AR44)) -> 0 | AH32: =IF(OR('Trust - Frontsheet'!AS44="",'Trust - Frontsheet'!AS44="-"),0,('Trust - Frontsheet'!AS44)) -> 0 | AI32: =IF(OR('Trust - Frontsheet'!AT44="",'Trust - Frontsheet'!AT44="-"),0,('Trust - Frontsheet'!AT44)) -> 0 | AJ32: ='Trust - Frontsheet'!AC44 -> 361 | AK32: =IF(OR('Trust - Frontsheet'!AD44="",'Trust - Frontsheet'!AD44="-"),0,('Trust - Frontsheet'!AD44)) -> 9.117959372 | AL32: =IF(OR('Trust - Frontsheet'!AE44="",'Trust - Frontsheet'!AE44="-"),0,('Trust - Frontsheet'!AE44)) -> 0.8808864266 | AM32: =IF(OR('Trust - Frontsheet'!AF44="",'Trust - Frontsheet'!AF44="-"),0,('Trust - Frontsheet'!AF44)) -> 0 | AN32: =IF(OR('Trust - Frontsheet'!AG44="",'Trust - Frontsheet'!AG44="-"),0,('Trust - Frontsheet'!AG44)) -> 0 | AO32: =IF(OR('Trust - Frontsheet'!AH44="",'Trust - Frontsheet'!AH44="-"),0,('Trust - Frontsheet'!AH44)) -> 0 | AP32: =IF(OR('Trust - Frontsheet'!AI44="",'Trust - Frontsheet'!AI44="-"),0,('Trust - Frontsheet'!AI44)) -> 0 | AQ32: =IF(OR('Trust - Frontsheet'!AJ44="",'Trust - Frontsheet'!AJ44="-"),0,('Trust - Frontsheet'!AJ44)) -> 9.998845799 | AR32: =IF(A32="","",(IF(ISBLANK('Trust - Frontsheet'!F9),"",'Trust - Frontsheet'!F9))) -> 
A33: =IF('Trust - Frontsheet'!D45=0,"",IF('Trust - Frontsheet'!D45="","",'Trust - Frontsheet'!D45)) -> RWG02 | B33: =IF(ISBLANK('Trust - Frontsheet'!E45),"",'Trust - Frontsheet'!E45) -> WATFORD GENERAL HOSPITAL | C33: =IF(ISBLANK('Trust - Frontsheet'!F45),"","'" & 'Trust - Frontsheet'!F45 & "'") -> 'Starfish' | D33: =IF(ISBLANK('Trust - Frontsheet'!G45),"",'Trust - Frontsheet'!G45) -> 420 - PAEDIATRICS | E33: =IF(ISBLANK('Trust - Frontsheet'!H45),"",'Trust - Frontsheet'!H45) ->  | F33: ='Trust - Frontsheet'!I45 -> 1426 | G33: ='Trust - Frontsheet'!J45 -> 1316 | H33: ='Trust - Frontsheet'!K45 -> 356.5 | I33: ='Trust - Frontsheet'!L45 -> 345 | J33: ='Trust - Frontsheet'!M45 -> 0 | K33: ='Trust - Frontsheet'!N45 -> 0 | L33: ='Trust - Frontsheet'!O45 -> 0 | M33: ='Trust - Frontsheet'!P45 -> 0 | N33: ='Trust - Frontsheet'!Q45 -> 1069.5 | O33: ='Trust - Frontsheet'!R45 -> 1081 | P33: ='Trust - Frontsheet'!S45 -> 356.5 | Q33: ='Trust - Frontsheet'!T45 -> 379.5 | R33: ='Trust - Frontsheet'!U45 -> 0 | S33: ='Trust - Frontsheet'!V45 -> 0 | T33: ='Trust - Frontsheet'!W45 -> 0 | U33: ='Trust - Frontsheet'!X45 -> 0 | V33: ='Trust - Frontsheet'!Y45 -> 0 | W33: ='Trust - Frontsheet'!Z45 -> 0 | X33: ='Trust - Frontsheet'!AA45 -> 0 | Y33: ='Trust - Frontsheet'!AB45 -> 0 | Z33: =IF(OR('Trust - Frontsheet'!AK45="",'Trust - Frontsheet'!AK45="-"),0,('Trust - Frontsheet'!AK45)) -> 0.9228611501 | AA33: =IF(OR('Trust - Frontsheet'!AL45="",'Trust - Frontsheet'!AL45="-"),0,('Trust - Frontsheet'!AL45)) -> 0.9677419355 | AB33: =IF(OR('Trust - Frontsheet'!AM45="",'Trust - Frontsheet'!AM45="-"),0,('Trust - Frontsheet'!AM45)) -> 0 | AC33: =IF(OR('Trust - Frontsheet'!AN45="",'Trust - Frontsheet'!AN45="-"),0,('Trust - Frontsheet'!AN45)) -> 0 | AD33: =IF(OR('Trust - Frontsheet'!AO45="",'Trust - Frontsheet'!AO45="-"),0,('Trust - Frontsheet'!AO45)) -> 1.010752688 | AE33: =IF(OR('Trust - Frontsheet'!AP45="",'Trust - Frontsheet'!AP45="-"),0,('Trust - Frontsheet'!AP45)) -> 1.064516129 | AF33: =IF(OR('Trust - Frontsheet'!AQ45="",'Trust - Frontsheet'!AQ45="-"),0,('Trust - Frontsheet'!AQ45)) -> 0 | AG33: =IF(OR('Trust - Frontsheet'!AR45="",'Trust - Frontsheet'!AR45="-"),0,('Trust - Frontsheet'!AR45)) -> 0 | AH33: =IF(OR('Trust - Frontsheet'!AS45="",'Trust - Frontsheet'!AS45="-"),0,('Trust - Frontsheet'!AS45)) -> 0 | AI33: =IF(OR('Trust - Frontsheet'!AT45="",'Trust - Frontsheet'!AT45="-"),0,('Trust - Frontsheet'!AT45)) -> 0 | AJ33: ='Trust - Frontsheet'!AC45 -> 283 | AK33: =IF(OR('Trust - Frontsheet'!AD45="",'Trust - Frontsheet'!AD45="-"),0,('Trust - Frontsheet'!AD45)) -> 8.469964664 | AL33: =IF(OR('Trust - Frontsheet'!AE45="",'Trust - Frontsheet'!AE45="-"),0,('Trust - Frontsheet'!AE45)) -> 2.560070671 | AM33: =IF(OR('Trust - Frontsheet'!AF45="",'Trust - Frontsheet'!AF45="-"),0,('Trust - Frontsheet'!AF45)) -> 0 | AN33: =IF(OR('Trust - Frontsheet'!AG45="",'Trust - Frontsheet'!AG45="-"),0,('Trust - Frontsheet'!AG45)) -> 0 | AO33: =IF(OR('Trust - Frontsheet'!AH45="",'Trust - Frontsheet'!AH45="-"),0,('Trust - Frontsheet'!AH45)) -> 0 | AP33: =IF(OR('Trust - Frontsheet'!AI45="",'Trust - Frontsheet'!AI45="-"),0,('Trust - Frontsheet'!AI45)) -> 0 | AQ33: =IF(OR('Trust - Frontsheet'!AJ45="",'Trust - Frontsheet'!AJ45="-"),0,('Trust - Frontsheet'!AJ45)) -> 11.03003534 | AR33: =IF(A33="","",(IF(ISBLANK('Trust - Frontsheet'!F9),"",'Trust - Frontsheet'!F9))) -> 
A34: =IF('Trust - Frontsheet'!D46=0,"",IF('Trust - Frontsheet'!D46="","",'Trust - Frontsheet'!D46)) ->  | B34: =IF(ISBLANK('Trust - Frontsheet'!E46),"",'Trust - Frontsheet'!E46) ->  | C34: =IF(ISBLANK('Trust - Frontsheet'!F46),"","'" & 'Trust - Frontsheet'!F46 & "'") ->  | D34: =IF(ISBLANK('Trust - Frontsheet'!G46),"",'Trust - Frontsheet'!G46) ->  | E34: =IF(ISBLANK('Trust - Frontsheet'!H46),"",'Trust - Frontsheet'!H46) ->  | F34: ='Trust - Frontsheet'!I46 -> 0 | G34: ='Trust - Frontsheet'!J46 -> 0 | H34: ='Trust - Frontsheet'!K46 -> 0 | I34: ='Trust - Frontsheet'!L46 -> 0 | J34: ='Trust - Frontsheet'!M46 -> 0 | K34: ='Trust - Frontsheet'!N46 -> 0 | L34: ='Trust - Frontsheet'!O46 -> 0 | M34: ='Trust - Frontsheet'!P46 -> 0 | N34: ='Trust - Frontsheet'!Q46 -> 0 | O34: ='Trust - Frontsheet'!R46 -> 0 | P34: ='Trust - Frontsheet'!S46 -> 0 | Q34: ='Trust - Frontsheet'!T46 -> 0 | R34: ='Trust - Frontsheet'!U46 -> 0 | S34: ='Trust - Frontsheet'!V46 -> 0 | T34: ='Trust - Frontsheet'!W46 -> 0 | U34: ='Trust - Frontsheet'!X46 -> 0 | V34: ='Trust - Frontsheet'!Y46 -> 0 | W34: ='Trust - Frontsheet'!Z46 -> 0 | X34: ='Trust - Frontsheet'!AA46 -> 0 | Y34: ='Trust - Frontsheet'!AB46 -> 0 | Z34: =IF(OR('Trust - Frontsheet'!AK46="",'Trust - Frontsheet'!AK46="-"),0,('Trust - Frontsheet'!AK46)) -> 0 | AA34: =IF(OR('Trust - Frontsheet'!AL46="",'Trust - Frontsheet'!AL46="-"),0,('Trust - Frontsheet'!AL46)) -> 0 | AB34: =IF(OR('Trust - Frontsheet'!AM46="",'Trust - Frontsheet'!AM46="-"),0,('Trust - Frontsheet'!AM46)) -> 0 | AC34: =IF(OR('Trust - Frontsheet'!AN46="",'Trust - Frontsheet'!AN46="-"),0,('Trust - Frontsheet'!AN46)) -> 0 | AD34: =IF(OR('Trust - Frontsheet'!AO46="",'Trust - Frontsheet'!AO46="-"),0,('Trust - Frontsheet'!AO46)) -> 0 | AE34: =IF(OR('Trust - Frontsheet'!AP46="",'Trust - Frontsheet'!AP46="-"),0,('Trust - Frontsheet'!AP46)) -> 0 | AF34: =IF(OR('Trust - Frontsheet'!AQ46="",'Trust - Frontsheet'!AQ46="-"),0,('Trust - Frontsheet'!AQ46)) -> 0 | AG34: =IF(OR('Trust - Frontsheet'!AR46="",'Trust - Frontsheet'!AR46="-"),0,('Trust - Frontsheet'!AR46)) -> 0 | AH34: =IF(OR('Trust - Frontsheet'!AS46="",'Trust - Frontsheet'!AS46="-"),0,('Trust - Frontsheet'!AS46)) -> 0 | AI34: =IF(OR('Trust - Frontsheet'!AT46="",'Trust - Frontsheet'!AT46="-"),0,('Trust - Frontsheet'!AT46)) -> 0 | AJ34: ='Trust - Frontsheet'!AC46 -> 0 | AK34: =IF(OR('Trust - Frontsheet'!AD46="",'Trust - Frontsheet'!AD46="-"),0,('Trust - Frontsheet'!AD46)) -> 0 | AL34: =IF(OR('Trust - Frontsheet'!AE46="",'Trust - Frontsheet'!AE46="-"),0,('Trust - Frontsheet'!AE46)) -> 0 | AM34: =IF(OR('Trust - Frontsheet'!AF46="",'Trust - Frontsheet'!AF46="-"),0,('Trust - Frontsheet'!AF46)) -> 0 | AN34: =IF(OR('Trust - Frontsheet'!AG46="",'Trust - Frontsheet'!AG46="-"),0,('Trust - Frontsheet'!AG46)) -> 0 | AO34: =IF(OR('Trust - Frontsheet'!AH46="",'Trust - Frontsheet'!AH46="-"),0,('Trust - Frontsheet'!AH46)) -> 0 | AP34: =IF(OR('Trust - Frontsheet'!AI46="",'Trust - Frontsheet'!AI46="-"),0,('Trust - Frontsheet'!AI46)) -> 0 | AQ34: =IF(OR('Trust - Frontsheet'!AJ46="",'Trust - Frontsheet'!AJ46="-"),0,('Trust - Frontsheet'!AJ46)) -> 0 | AR34: =IF(A34="","",(IF(ISBLANK('Trust - Frontsheet'!F9),"",'Trust - Frontsheet'!F9))) -> 
A35: =IF('Trust - Frontsheet'!D47=0,"",IF('Trust - Frontsheet'!D47="","",'Trust - Frontsheet'!D47)) ->  | B35: =IF(ISBLANK('Trust - Frontsheet'!E47),"",'Trust - Frontsheet'!E47) ->  | C35: =IF(ISBLANK('Trust - Frontsheet'!F47),"","'" & 'Trust - Frontsheet'!F47 & "'") ->  | D35: =IF(ISBLANK('Trust - Frontsheet'!G47),"",'Trust - Frontsheet'!G47) ->  | E35: =IF(ISBLANK('Trust - Frontsheet'!H47),"",'Trust - Frontsheet'!H47) ->  | F35: ='Trust - Frontsheet'!I47 -> 0 | G35: ='Trust - Frontsheet'!J47 -> 0 | H35: ='Trust - Frontsheet'!K47 -> 0 | I35: ='Trust - Frontsheet'!L47 -> 0 | J35: ='Trust - Frontsheet'!M47 -> 0 | K35: ='Trust - Frontsheet'!N47 -> 0 | L35: ='Trust - Frontsheet'!O47 -> 0 | M35: ='Trust - Frontsheet'!P47 -> 0 | N35: ='Trust - Frontsheet'!Q47 -> 0 | O35: ='Trust - Frontsheet'!R47 -> 0 | P35: ='Trust - Frontsheet'!S47 -> 0 | Q35: ='Trust - Frontsheet'!T47 -> 0 | R35: ='Trust - Frontsheet'!U47 -> 0 | S35: ='Trust - Frontsheet'!V47 -> 0 | T35: ='Trust - Frontsheet'!W47 -> 0 | U35: ='Trust - Frontsheet'!X47 -> 0 | V35: ='Trust - Frontsheet'!Y47 -> 0 | W35: ='Trust - Frontsheet'!Z47 -> 0 | X35: ='Trust - Frontsheet'!AA47 -> 0 | Y35: ='Trust - Frontsheet'!AB47 -> 0 | Z35: =IF(OR('Trust - Frontsheet'!AK47="",'Trust - Frontsheet'!AK47="-"),0,('Trust - Frontsheet'!AK47)) -> 0 | AA35: =IF(OR('Trust - Frontsheet'!AL47="",'Trust - Frontsheet'!AL47="-"),0,('Trust - Frontsheet'!AL47)) -> 0 | AB35: =IF(OR('Trust - Frontsheet'!AM47="",'Trust - Frontsheet'!AM47="-"),0,('Trust - Frontsheet'!AM47)) -> 0 | AC35: =IF(OR('Trust - Frontsheet'!AN47="",'Trust - Frontsheet'!AN47="-"),0,('Trust - Frontsheet'!AN47)) -> 0 | AD35: =IF(OR('Trust - Frontsheet'!AO47="",'Trust - Frontsheet'!AO47="-"),0,('Trust - Frontsheet'!AO47)) -> 0 | AE35: =IF(OR('Trust - Frontsheet'!AP47="",'Trust - Frontsheet'!AP47="-"),0,('Trust - Frontsheet'!AP47)) -> 0 | AF35: =IF(OR('Trust - Frontsheet'!AQ47="",'Trust - Frontsheet'!AQ47="-"),0,('Trust - Frontsheet'!AQ47)) -> 0 | AG35: =IF(OR('Trust - Frontsheet'!AR47="",'Trust - Frontsheet'!AR47="-"),0,('Trust - Frontsheet'!AR47)) -> 0 | AH35: =IF(OR('Trust - Frontsheet'!AS47="",'Trust - Frontsheet'!AS47="-"),0,('Trust - Frontsheet'!AS47)) -> 0 | AI35: =IF(OR('Trust - Frontsheet'!AT47="",'Trust - Frontsheet'!AT47="-"),0,('Trust - Frontsheet'!AT47)) -> 0 | AJ35: ='Trust - Frontsheet'!AC47 -> 0 | AK35: =IF(OR('Trust - Frontsheet'!AD47="",'Trust - Frontsheet'!AD47="-"),0,('Trust - Frontsheet'!AD47)) -> 0 | AL35: =IF(OR('Trust - Frontsheet'!AE47="",'Trust - Frontsheet'!AE47="-"),0,('Trust - Frontsheet'!AE47)) -> 0 | AM35: =IF(OR('Trust - Frontsheet'!AF47="",'Trust - Frontsheet'!AF47="-"),0,('Trust - Frontsheet'!AF47)) -> 0 | AN35: =IF(OR('Trust - Frontsheet'!AG47="",'Trust - Frontsheet'!AG47="-"),0,('Trust - Frontsheet'!AG47)) -> 0 | AO35: =IF(OR('Trust - Frontsheet'!AH47="",'Trust - Frontsheet'!AH47="-"),0,('Trust - Frontsheet'!AH47)) -> 0 | AP35: =IF(OR('Trust - Frontsheet'!AI47="",'Trust - Frontsheet'!AI47="-"),0,('Trust - Frontsheet'!AI47)) -> 0 | AQ35: =IF(OR('Trust - Frontsheet'!AJ47="",'Trust - Frontsheet'!AJ47="-"),0,('Trust - Frontsheet'!AJ47)) -> 0 | AR35: =IF(A35="","",(IF(ISBLANK('Trust - Frontsheet'!F9),"",'Trust - Frontsheet'!F9))) -> 
A36: =IF('Trust - Frontsheet'!D48=0,"",IF('Trust - Frontsheet'!D48="","",'Trust - Frontsheet'!D48)) ->  | B36: =IF(ISBLANK('Trust - Frontsheet'!E48),"",'Trust - Frontsheet'!E48) ->  | C36: =IF(ISBLANK('Trust - Frontsheet'!F48),"","'" & 'Trust - Frontsheet'!F48 & "'") ->  | D36: =IF(ISBLANK('Trust - Frontsheet'!G48),"",'Trust - Frontsheet'!G48) ->  | E36: =IF(ISBLANK('Trust - Frontsheet'!H48),"",'Trust - Frontsheet'!H48) ->  | F36: ='Trust - Frontsheet'!I48 -> 0 | G36: ='Trust - Frontsheet'!J48 -> 0 | H36: ='Trust - Frontsheet'!K48 -> 0 | I36: ='Trust - Frontsheet'!L48 -> 0 | J36: ='Trust - Frontsheet'!M48 -> 0 | K36: ='Trust - Frontsheet'!N48 -> 0 | L36: ='Trust - Frontsheet'!O48 -> 0 | M36: ='Trust - Frontsheet'!P48 -> 0 | N36: ='Trust - Frontsheet'!Q48 -> 0 | O36: ='Trust - Frontsheet'!R48 -> 0 | P36: ='Trust - Frontsheet'!S48 -> 0 | Q36: ='Trust - Frontsheet'!T48 -> 0 | R36: ='Trust - Frontsheet'!U48 -> 0 | S36: ='Trust - Frontsheet'!V48 -> 0 | T36: ='Trust - Frontsheet'!W48 -> 0 | U36: ='Trust - Frontsheet'!X48 -> 0 | V36: ='Trust - Frontsheet'!Y48 -> 0 | W36: ='Trust - Frontsheet'!Z48 -> 0 | X36: ='Trust - Frontsheet'!AA48 -> 0 | Y36: ='Trust - Frontsheet'!AB48 -> 0 | Z36: =IF(OR('Trust - Frontsheet'!AK48="",'Trust - Frontsheet'!AK48="-"),0,('Trust - Frontsheet'!AK48)) -> 0 | AA36: =IF(OR('Trust - Frontsheet'!AL48="",'Trust - Frontsheet'!AL48="-"),0,('Trust - Frontsheet'!AL48)) -> 0 | AB36: =IF(OR('Trust - Frontsheet'!AM48="",'Trust - Frontsheet'!AM48="-"),0,('Trust - Frontsheet'!AM48)) -> 0 | AC36: =IF(OR('Trust - Frontsheet'!AN48="",'Trust - Frontsheet'!AN48="-"),0,('Trust - Frontsheet'!AN48)) -> 0 | AD36: =IF(OR('Trust - Frontsheet'!AO48="",'Trust - Frontsheet'!AO48="-"),0,('Trust - Frontsheet'!AO48)) -> 0 | AE36: =IF(OR('Trust - Frontsheet'!AP48="",'Trust - Frontsheet'!AP48="-"),0,('Trust - Frontsheet'!AP48)) -> 0 | AF36: =IF(OR('Trust - Frontsheet'!AQ48="",'Trust - Frontsheet'!AQ48="-"),0,('Trust - Frontsheet'!AQ48)) -> 0 | AG36: =IF(OR('Trust - Frontsheet'!AR48="",'Trust - Frontsheet'!AR48="-"),0,('Trust - Frontsheet'!AR48)) -> 0 | AH36: =IF(OR('Trust - Frontsheet'!AS48="",'Trust - Frontsheet'!AS48="-"),0,('Trust - Frontsheet'!AS48)) -> 0 | AI36: =IF(OR('Trust - Frontsheet'!AT48="",'Trust - Frontsheet'!AT48="-"),0,('Trust - Frontsheet'!AT48)) -> 0 | AJ36: ='Trust - Frontsheet'!AC48 -> 0 | AK36: =IF(OR('Trust - Frontsheet'!AD48="",'Trust - Frontsheet'!AD48="-"),0,('Trust - Frontsheet'!AD48)) -> 0 | AL36: =IF(OR('Trust - Frontsheet'!AE48="",'Trust - Frontsheet'!AE48="-"),0,('Trust - Frontsheet'!AE48)) -> 0 | AM36: =IF(OR('Trust - Frontsheet'!AF48="",'Trust - Frontsheet'!AF48="-"),0,('Trust - Frontsheet'!AF48)) -> 0 | AN36: =IF(OR('Trust - Frontsheet'!AG48="",'Trust - Frontsheet'!AG48="-"),0,('Trust - Frontsheet'!AG48)) -> 0 | AO36: =IF(OR('Trust - Frontsheet'!AH48="",'Trust - Frontsheet'!AH48="-"),0,('Trust - Frontsheet'!AH48)) -> 0 | AP36: =IF(OR('Trust - Frontsheet'!AI48="",'Trust - Frontsheet'!AI48="-"),0,('Trust - Frontsheet'!AI48)) -> 0 | AQ36: =IF(OR('Trust - Frontsheet'!AJ48="",'Trust - Frontsheet'!AJ48="-"),0,('Trust - Frontsheet'!AJ48)) -> 0 | AR36: =IF(A36="","",(IF(ISBLANK('Trust - Frontsheet'!F9),"",'Trust - Frontsheet'!F9))) -> 
A37: =IF('Trust - Frontsheet'!D49=0,"",IF('Trust - Frontsheet'!D49="","",'Trust - Frontsheet'!D49)) ->  | B37: =IF(ISBLANK('Trust - Frontsheet'!E49),"",'Trust - Frontsheet'!E49) ->  | C37: =IF(ISBLANK('Trust - Frontsheet'!F49),"","'" & 'Trust - Frontsheet'!F49 & "'") ->  | D37: =IF(ISBLANK('Trust - Frontsheet'!G49),"",'Trust - Frontsheet'!G49) ->  | E37: =IF(ISBLANK('Trust - Frontsheet'!H49),"",'Trust - Frontsheet'!H49) ->  | F37: ='Trust - Frontsheet'!I49 -> 0 | G37: ='Trust - Frontsheet'!J49 -> 0 | H37: ='Trust - Frontsheet'!K49 -> 0 | I37: ='Trust - Frontsheet'!L49 -> 0 | J37: ='Trust - Frontsheet'!M49 -> 0 | K37: ='Trust - Frontsheet'!N49 -> 0 | L37: ='Trust - Frontsheet'!O49 -> 0 | M37: ='Trust - Frontsheet'!P49 -> 0 | N37: ='Trust - Frontsheet'!Q49 -> 0 | O37: ='Trust - Frontsheet'!R49 -> 0 | P37: ='Trust - Frontsheet'!S49 -> 0 | Q37: ='Trust - Frontsheet'!T49 -> 0 | R37: ='Trust - Frontsheet'!U49 -> 0 | S37: ='Trust - Frontsheet'!V49 -> 0 | T37: ='Trust - Frontsheet'!W49 -> 0 | U37: ='Trust - Frontsheet'!X49 -> 0 | V37: ='Trust - Frontsheet'!Y49 -> 0 | W37: ='Trust - Frontsheet'!Z49 -> 0 | X37: ='Trust - Frontsheet'!AA49 -> 0 | Y37: ='Trust - Frontsheet'!AB49 -> 0 | Z37: =IF(OR('Trust - Frontsheet'!AK49="",'Trust - Frontsheet'!AK49="-"),0,('Trust - Frontsheet'!AK49)) -> 0 | AA37: =IF(OR('Trust - Frontsheet'!AL49="",'Trust - Frontsheet'!AL49="-"),0,('Trust - Frontsheet'!AL49)) -> 0 | AB37: =IF(OR('Trust - Frontsheet'!AM49="",'Trust - Frontsheet'!AM49="-"),0,('Trust - Frontsheet'!AM49)) -> 0 | AC37: =IF(OR('Trust - Frontsheet'!AN49="",'Trust - Frontsheet'!AN49="-"),0,('Trust - Frontsheet'!AN49)) -> 0 | AD37: =IF(OR('Trust - Frontsheet'!AO49="",'Trust - Frontsheet'!AO49="-"),0,('Trust - Frontsheet'!AO49)) -> 0 | AE37: =IF(OR('Trust - Frontsheet'!AP49="",'Trust - Frontsheet'!AP49="-"),0,('Trust - Frontsheet'!AP49)) -> 0 | AF37: =IF(OR('Trust - Frontsheet'!AQ49="",'Trust - Frontsheet'!AQ49="-"),0,('Trust - Frontsheet'!AQ49)) -> 0 | AG37: =IF(OR('Trust - Frontsheet'!AR49="",'Trust - Frontsheet'!AR49="-"),0,('Trust - Frontsheet'!AR49)) -> 0 | AH37: =IF(OR('Trust - Frontsheet'!AS49="",'Trust - Frontsheet'!AS49="-"),0,('Trust - Frontsheet'!AS49)) -> 0 | AI37: =IF(OR('Trust - Frontsheet'!AT49="",'Trust - Frontsheet'!AT49="-"),0,('Trust - Frontsheet'!AT49)) -> 0 | AJ37: ='Trust - Frontsheet'!AC49 -> 0 | AK37: =IF(OR('Trust - Frontsheet'!AD49="",'Trust - Frontsheet'!AD49="-"),0,('Trust - Frontsheet'!AD49)) -> 0 | AL37: =IF(OR('Trust - Frontsheet'!AE49="",'Trust - Frontsheet'!AE49="-"),0,('Trust - Frontsheet'!AE49)) -> 0 | AM37: =IF(OR('Trust - Frontsheet'!AF49="",'Trust - Frontsheet'!AF49="-"),0,('Trust - Frontsheet'!AF49)) -> 0 | AN37: =IF(OR('Trust - Frontsheet'!AG49="",'Trust - Frontsheet'!AG49="-"),0,('Trust - Frontsheet'!AG49)) -> 0 | AO37: =IF(OR('Trust - Frontsheet'!AH49="",'Trust - Frontsheet'!AH49="-"),0,('Trust - Frontsheet'!AH49)) -> 0 | AP37: =IF(OR('Trust - Frontsheet'!AI49="",'Trust - Frontsheet'!AI49="-"),0,('Trust - Frontsheet'!AI49)) -> 0 | AQ37: =IF(OR('Trust - Frontsheet'!AJ49="",'Trust - Frontsheet'!AJ49="-"),0,('Trust - Frontsheet'!AJ49)) -> 0 | AR37: =IF(A37="","",(IF(ISBLANK('Trust - Frontsheet'!F9),"",'Trust - Frontsheet'!F9))) -> 
A38: =IF('Trust - Frontsheet'!D50=0,"",IF('Trust - Frontsheet'!D50="","",'Trust - Frontsheet'!D50)) ->  | B38: =IF(ISBLANK('Trust - Frontsheet'!E50),"",'Trust - Frontsheet'!E50) ->  | C38: =IF(ISBLANK('Trust - Frontsheet'!F50),"","'" & 'Trust - Frontsheet'!F50 & "'") ->  | D38: =IF(ISBLANK('Trust - Frontsheet'!G50),"",'Trust - Frontsheet'!G50) ->  | E38: =IF(ISBLANK('Trust - Frontsheet'!H50),"",'Trust - Frontsheet'!H50) ->  | F38: ='Trust - Frontsheet'!I50 -> 0 | G38: ='Trust - Frontsheet'!J50 -> 0 | H38: ='Trust - Frontsheet'!K50 -> 0 | I38: ='Trust - Frontsheet'!L50 -> 0 | J38: ='Trust - Frontsheet'!M50 -> 0 | K38: ='Trust - Frontsheet'!N50 -> 0 | L38: ='Trust - Frontsheet'!O50 -> 0 | M38: ='Trust - Frontsheet'!P50 -> 0 | N38: ='Trust - Frontsheet'!Q50 -> 0 | O38: ='Trust - Frontsheet'!R50 -> 0 | P38: ='Trust - Frontsheet'!S50 -> 0 | Q38: ='Trust - Frontsheet'!T50 -> 0 | R38: ='Trust - Frontsheet'!U50 -> 0 | S38: ='Trust - Frontsheet'!V50 -> 0 | T38: ='Trust - Frontsheet'!W50 -> 0 | U38: ='Trust - Frontsheet'!X50 -> 0 | V38: ='Trust - Frontsheet'!Y50 -> 0 | W38: ='Trust - Frontsheet'!Z50 -> 0 | X38: ='Trust - Frontsheet'!AA50 -> 0 | Y38: ='Trust - Frontsheet'!AB50 -> 0 | Z38: =IF(OR('Trust - Frontsheet'!AK50="",'Trust - Frontsheet'!AK50="-"),0,('Trust - Frontsheet'!AK50)) -> 0 | AA38: =IF(OR('Trust - Frontsheet'!AL50="",'Trust - Frontsheet'!AL50="-"),0,('Trust - Frontsheet'!AL50)) -> 0 | AB38: =IF(OR('Trust - Frontsheet'!AM50="",'Trust - Frontsheet'!AM50="-"),0,('Trust - Frontsheet'!AM50)) -> 0 | AC38: =IF(OR('Trust - Frontsheet'!AN50="",'Trust - Frontsheet'!AN50="-"),0,('Trust - Frontsheet'!AN50)) -> 0 | AD38: =IF(OR('Trust - Frontsheet'!AO50="",'Trust - Frontsheet'!AO50="-"),0,('Trust - Frontsheet'!AO50)) -> 0 | AE38: =IF(OR('Trust - Frontsheet'!AP50="",'Trust - Frontsheet'!AP50="-"),0,('Trust - Frontsheet'!AP50)) -> 0 | AF38: =IF(OR('Trust - Frontsheet'!AQ50="",'Trust - Frontsheet'!AQ50="-"),0,('Trust - Frontsheet'!AQ50)) -> 0 | AG38: =IF(OR('Trust - Frontsheet'!AR50="",'Trust - Frontsheet'!AR50="-"),0,('Trust - Frontsheet'!AR50)) -> 0 | AH38: =IF(OR('Trust - Frontsheet'!AS50="",'Trust - Frontsheet'!AS50="-"),0,('Trust - Frontsheet'!AS50)) -> 0 | AI38: =IF(OR('Trust - Frontsheet'!AT50="",'Trust - Frontsheet'!AT50="-"),0,('Trust - Frontsheet'!AT50)) -> 0 | AJ38: ='Trust - Frontsheet'!AC50 -> 0 | AK38: =IF(OR('Trust - Frontsheet'!AD50="",'Trust - Frontsheet'!AD50="-"),0,('Trust - Frontsheet'!AD50)) -> 0 | AL38: =IF(OR('Trust - Frontsheet'!AE50="",'Trust - Frontsheet'!AE50="-"),0,('Trust - Frontsheet'!AE50)) -> 0 | AM38: =IF(OR('Trust - Frontsheet'!AF50="",'Trust - Frontsheet'!AF50="-"),0,('Trust - Frontsheet'!AF50)) -> 0 | AN38: =IF(OR('Trust - Frontsheet'!AG50="",'Trust - Frontsheet'!AG50="-"),0,('Trust - Frontsheet'!AG50)) -> 0 | AO38: =IF(OR('Trust - Frontsheet'!AH50="",'Trust - Frontsheet'!AH50="-"),0,('Trust - Frontsheet'!AH50)) -> 0 | AP38: =IF(OR('Trust - Frontsheet'!AI50="",'Trust - Frontsheet'!AI50="-"),0,('Trust - Frontsheet'!AI50)) -> 0 | AQ38: =IF(OR('Trust - Frontsheet'!AJ50="",'Trust - Frontsheet'!AJ50="-"),0,('Trust - Frontsheet'!AJ50)) -> 0 | AR38: =IF(A38="","",(IF(ISBLANK('Trust - Frontsheet'!F9),"",'Trust - Frontsheet'!F9))) -> 
A39: =IF('Trust - Frontsheet'!D51=0,"",IF('Trust - Frontsheet'!D51="","",'Trust - Frontsheet'!D51)) ->  | B39: =IF(ISBLANK('Trust - Frontsheet'!E51),"",'Trust - Frontsheet'!E51) ->  | C39: =IF(ISBLANK('Trust - Frontsheet'!F51),"","'" & 'Trust - Frontsheet'!F51 & "'") ->  | D39: =IF(ISBLANK('Trust - Frontsheet'!G51),"",'Trust - Frontsheet'!G51) ->  | E39: =IF(ISBLANK('Trust - Frontsheet'!H51),"",'Trust - Frontsheet'!H51) ->  | F39: ='Trust - Frontsheet'!I51 -> 0 | G39: ='Trust - Frontsheet'!J51 -> 0 | H39: ='Trust - Frontsheet'!K51 -> 0 | I39: ='Trust - Frontsheet'!L51 -> 0 | J39: ='Trust - Frontsheet'!M51 -> 0 | K39: ='Trust - Frontsheet'!N51 -> 0 | L39: ='Trust - Frontsheet'!O51 -> 0 | M39: ='Trust - Frontsheet'!P51 -> 0 | N39: ='Trust - Frontsheet'!Q51 -> 0 | O39: ='Trust - Frontsheet'!R51 -> 0 | P39: ='Trust - Frontsheet'!S51 -> 0 | Q39: ='Trust - Frontsheet'!T51 -> 0 | R39: ='Trust - Frontsheet'!U51 -> 0 | S39: ='Trust - Frontsheet'!V51 -> 0 | T39: ='Trust - Frontsheet'!W51 -> 0 | U39: ='Trust - Frontsheet'!X51 -> 0 | V39: ='Trust - Frontsheet'!Y51 -> 0 | W39: ='Trust - Frontsheet'!Z51 -> 0 | X39: ='Trust - Frontsheet'!AA51 -> 0 | Y39: ='Trust - Frontsheet'!AB51 -> 0 | Z39: =IF(OR('Trust - Frontsheet'!AK51="",'Trust - Frontsheet'!AK51="-"),0,('Trust - Frontsheet'!AK51)) -> 0 | AA39: =IF(OR('Trust - Frontsheet'!AL51="",'Trust - Frontsheet'!AL51="-"),0,('Trust - Frontsheet'!AL51)) -> 0 | AB39: =IF(OR('Trust - Frontsheet'!AM51="",'Trust - Frontsheet'!AM51="-"),0,('Trust - Frontsheet'!AM51)) -> 0 | AC39: =IF(OR('Trust - Frontsheet'!AN51="",'Trust - Frontsheet'!AN51="-"),0,('Trust - Frontsheet'!AN51)) -> 0 | AD39: =IF(OR('Trust - Frontsheet'!AO51="",'Trust - Frontsheet'!AO51="-"),0,('Trust - Frontsheet'!AO51)) -> 0 | AE39: =IF(OR('Trust - Frontsheet'!AP51="",'Trust - Frontsheet'!AP51="-"),0,('Trust - Frontsheet'!AP51)) -> 0 | AF39: =IF(OR('Trust - Frontsheet'!AQ51="",'Trust - Frontsheet'!AQ51="-"),0,('Trust - Frontsheet'!AQ51)) -> 0 | AG39: =IF(OR('Trust - Frontsheet'!AR51="",'Trust - Frontsheet'!AR51="-"),0,('Trust - Frontsheet'!AR51)) -> 0 | AH39: =IF(OR('Trust - Frontsheet'!AS51="",'Trust - Frontsheet'!AS51="-"),0,('Trust - Frontsheet'!AS51)) -> 0 | AI39: =IF(OR('Trust - Frontsheet'!AT51="",'Trust - Frontsheet'!AT51="-"),0,('Trust - Frontsheet'!AT51)) -> 0 | AJ39: ='Trust - Frontsheet'!AC51 -> 0 | AK39: =IF(OR('Trust - Frontsheet'!AD51="",'Trust - Frontsheet'!AD51="-"),0,('Trust - Frontsheet'!AD51)) -> 0 | AL39: =IF(OR('Trust - Frontsheet'!AE51="",'Trust - Frontsheet'!AE51="-"),0,('Trust - Frontsheet'!AE51)) -> 0 | AM39: =IF(OR('Trust - Frontsheet'!AF51="",'Trust - Frontsheet'!AF51="-"),0,('Trust - Frontsheet'!AF51)) -> 0 | AN39: =IF(OR('Trust - Frontsheet'!AG51="",'Trust - Frontsheet'!AG51="-"),0,('Trust - Frontsheet'!AG51)) -> 0 | AO39: =IF(OR('Trust - Frontsheet'!AH51="",'Trust - Frontsheet'!AH51="-"),0,('Trust - Frontsheet'!AH51)) -> 0 | AP39: =IF(OR('Trust - Frontsheet'!AI51="",'Trust - Frontsheet'!AI51="-"),0,('Trust - Frontsheet'!AI51)) -> 0 | AQ39: =IF(OR('Trust - Frontsheet'!AJ51="",'Trust - Frontsheet'!AJ51="-"),0,('Trust - Frontsheet'!AJ51)) -> 0 | AR39: =IF(A39="","",(IF(ISBLANK('Trust - Frontsheet'!F9),"",'Trust - Frontsheet'!F9))) -> 
A40: =IF('Trust - Frontsheet'!D52=0,"",IF('Trust - Frontsheet'!D52="","",'Trust - Frontsheet'!D52)) ->  | B40: =IF(ISBLANK('Trust - Frontsheet'!E52),"",'Trust - Frontsheet'!E52) ->  | C40: =IF(ISBLANK('Trust - Frontsheet'!F52),"","'" & 'Trust - Frontsheet'!F52 & "'") ->  | D40: =IF(ISBLANK('Trust - Frontsheet'!G52),"",'Trust - Frontsheet'!G52) ->  | E40: =IF(ISBLANK('Trust - Frontsheet'!H52),"",'Trust - Frontsheet'!H52) ->  | F40: ='Trust - Frontsheet'!I52 -> 0 | G40: ='Trust - Frontsheet'!J52 -> 0 | H40: ='Trust - Frontsheet'!K52 -> 0 | I40: ='Trust - Frontsheet'!L52 -> 0 | J40: ='Trust - Frontsheet'!M52 -> 0 | K40: ='Trust - Frontsheet'!N52 -> 0 | L40: ='Trust - Frontsheet'!O52 -> 0 | M40: ='Trust - Frontsheet'!P52 -> 0 | N40: ='Trust - Frontsheet'!Q52 -> 0 | O40: ='Trust - Frontsheet'!R52 -> 0 | P40: ='Trust - Frontsheet'!S52 -> 0 | Q40: ='Trust - Frontsheet'!T52 -> 0 | R40: ='Trust - Frontsheet'!U52 -> 0 | S40: ='Trust - Frontsheet'!V52 -> 0 | T40: ='Trust - Frontsheet'!W52 -> 0 | U40: ='Trust - Frontsheet'!X52 -> 0 | V40: ='Trust - Frontsheet'!Y52 -> 0 | W40: ='Trust - Frontsheet'!Z52 -> 0 | X40: ='Trust - Frontsheet'!AA52 -> 0 | Y40: ='Trust - Frontsheet'!AB52 -> 0 | Z40: =IF(OR('Trust - Frontsheet'!AK52="",'Trust - Frontsheet'!AK52="-"),0,('Trust - Frontsheet'!AK52)) -> 0 | AA40: =IF(OR('Trust - Frontsheet'!AL52="",'Trust - Frontsheet'!AL52="-"),0,('Trust - Frontsheet'!AL52)) -> 0 | AB40: =IF(OR('Trust - Frontsheet'!AM52="",'Trust - Frontsheet'!AM52="-"),0,('Trust - Frontsheet'!AM52)) -> 0 | AC40: =IF(OR('Trust - Frontsheet'!AN52="",'Trust - Frontsheet'!AN52="-"),0,('Trust - Frontsheet'!AN52)) -> 0 | AD40: =IF(OR('Trust - Frontsheet'!AO52="",'Trust - Frontsheet'!AO52="-"),0,('Trust - Frontsheet'!AO52)) -> 0 | AE40: =IF(OR('Trust - Frontsheet'!AP52="",'Trust - Frontsheet'!AP52="-"),0,('Trust - Frontsheet'!AP52)) -> 0 | AF40: =IF(OR('Trust - Frontsheet'!AQ52="",'Trust - Frontsheet'!AQ52="-"),0,('Trust - Frontsheet'!AQ52)) -> 0 | AG40: =IF(OR('Trust - Frontsheet'!AR52="",'Trust - Frontsheet'!AR52="-"),0,('Trust - Frontsheet'!AR52)) -> 0 | AH40: =IF(OR('Trust - Frontsheet'!AS52="",'Trust - Frontsheet'!AS52="-"),0,('Trust - Frontsheet'!AS52)) -> 0 | AI40: =IF(OR('Trust - Frontsheet'!AT52="",'Trust - Frontsheet'!AT52="-"),0,('Trust - Frontsheet'!AT52)) -> 0 | AJ40: ='Trust - Frontsheet'!AC52 -> 0 | AK40: =IF(OR('Trust - Frontsheet'!AD52="",'Trust - Frontsheet'!AD52="-"),0,('Trust - Frontsheet'!AD52)) -> 0 | AL40: =IF(OR('Trust - Frontsheet'!AE52="",'Trust - Frontsheet'!AE52="-"),0,('Trust - Frontsheet'!AE52)) -> 0 | AM40: =IF(OR('Trust - Frontsheet'!AF52="",'Trust - Frontsheet'!AF52="-"),0,('Trust - Frontsheet'!AF52)) -> 0 | AN40: =IF(OR('Trust - Frontsheet'!AG52="",'Trust - Frontsheet'!AG52="-"),0,('Trust - Frontsheet'!AG52)) -> 0 | AO40: =IF(OR('Trust - Frontsheet'!AH52="",'Trust - Frontsheet'!AH52="-"),0,('Trust - Frontsheet'!AH52)) -> 0 | AP40: =IF(OR('Trust - Frontsheet'!AI52="",'Trust - Frontsheet'!AI52="-"),0,('Trust - Frontsheet'!AI52)) -> 0 | AQ40: =IF(OR('Trust - Frontsheet'!AJ52="",'Trust - Frontsheet'!AJ52="-"),0,('Trust - Frontsheet'!AJ52)) -> 0 | AR40: =IF(A40="","",(IF(ISBLANK('Trust - Frontsheet'!F9),"",'Trust - Frontsheet'!F9))) -> 
A41: =IF('Trust - Frontsheet'!D53=0,"",IF('Trust - Frontsheet'!D53="","",'Trust - Frontsheet'!D53)) ->  | B41: =IF(ISBLANK('Trust - Frontsheet'!E53),"",'Trust - Frontsheet'!E53) ->  | C41: =IF(ISBLANK('Trust - Frontsheet'!F53),"","'" & 'Trust - Frontsheet'!F53 & "'") ->  | D41: =IF(ISBLANK('Trust - Frontsheet'!G53),"",'Trust - Frontsheet'!G53) ->  | E41: =IF(ISBLANK('Trust - Frontsheet'!H53),"",'Trust - Frontsheet'!H53) ->  | F41: ='Trust - Frontsheet'!I53 -> 0 | G41: ='Trust - Frontsheet'!J53 -> 0 | H41: ='Trust - Frontsheet'!K53 -> 0 | I41: ='Trust - Frontsheet'!L53 -> 0 | J41: ='Trust - Frontsheet'!M53 -> 0 | K41: ='Trust - Frontsheet'!N53 -> 0 | L41: ='Trust - Frontsheet'!O53 -> 0 | M41: ='Trust - Frontsheet'!P53 -> 0 | N41: ='Trust - Frontsheet'!Q53 -> 0 | O41: ='Trust - Frontsheet'!R53 -> 0 | P41: ='Trust - Frontsheet'!S53 -> 0 | Q41: ='Trust - Frontsheet'!T53 -> 0 | R41: ='Trust - Frontsheet'!U53 -> 0 | S41: ='Trust - Frontsheet'!V53 -> 0 | T41: ='Trust - Frontsheet'!W53 -> 0 | U41: ='Trust - Frontsheet'!X53 -> 0 | V41: ='Trust - Frontsheet'!Y53 -> 0 | W41: ='Trust - Frontsheet'!Z53 -> 0 | X41: ='Trust - Frontsheet'!AA53 -> 0 | Y41: ='Trust - Frontsheet'!AB53 -> 0 | Z41: =IF(OR('Trust - Frontsheet'!AK53="",'Trust - Frontsheet'!AK53="-"),0,('Trust - Frontsheet'!AK53)) -> 0 | AA41: =IF(OR('Trust - Frontsheet'!AL53="",'Trust - Frontsheet'!AL53="-"),0,('Trust - Frontsheet'!AL53)) -> 0 | AB41: =IF(OR('Trust - Frontsheet'!AM53="",'Trust - Frontsheet'!AM53="-"),0,('Trust - Frontsheet'!AM53)) -> 0 | AC41: =IF(OR('Trust - Frontsheet'!AN53="",'Trust - Frontsheet'!AN53="-"),0,('Trust - Frontsheet'!AN53)) -> 0 | AD41: =IF(OR('Trust - Frontsheet'!AO53="",'Trust - Frontsheet'!AO53="-"),0,('Trust - Frontsheet'!AO53)) -> 0 | AE41: =IF(OR('Trust - Frontsheet'!AP53="",'Trust - Frontsheet'!AP53="-"),0,('Trust - Frontsheet'!AP53)) -> 0 | AF41: =IF(OR('Trust - Frontsheet'!AQ53="",'Trust - Frontsheet'!AQ53="-"),0,('Trust - Frontsheet'!AQ53)) -> 0 | AG41: =IF(OR('Trust - Frontsheet'!AR53="",'Trust - Frontsheet'!AR53="-"),0,('Trust - Frontsheet'!AR53)) -> 0 | AH41: =IF(OR('Trust - Frontsheet'!AS53="",'Trust - Frontsheet'!AS53="-"),0,('Trust - Frontsheet'!AS53)) -> 0 | AI41: =IF(OR('Trust - Frontsheet'!AT53="",'Trust - Frontsheet'!AT53="-"),0,('Trust - Frontsheet'!AT53)) -> 0 | AJ41: ='Trust - Frontsheet'!AC53 -> 0 | AK41: =IF(OR('Trust - Frontsheet'!AD53="",'Trust - Frontsheet'!AD53="-"),0,('Trust - Frontsheet'!AD53)) -> 0 | AL41: =IF(OR('Trust - Frontsheet'!AE53="",'Trust - Frontsheet'!AE53="-"),0,('Trust - Frontsheet'!AE53)) -> 0 | AM41: =IF(OR('Trust - Frontsheet'!AF53="",'Trust - Frontsheet'!AF53="-"),0,('Trust - Frontsheet'!AF53)) -> 0 | AN41: =IF(OR('Trust - Frontsheet'!AG53="",'Trust - Frontsheet'!AG53="-"),0,('Trust - Frontsheet'!AG53)) -> 0 | AO41: =IF(OR('Trust - Frontsheet'!AH53="",'Trust - Frontsheet'!AH53="-"),0,('Trust - Frontsheet'!AH53)) -> 0 | AP41: =IF(OR('Trust - Frontsheet'!AI53="",'Trust - Frontsheet'!AI53="-"),0,('Trust - Frontsheet'!AI53)) -> 0 | AQ41: =IF(OR('Trust - Frontsheet'!AJ53="",'Trust - Frontsheet'!AJ53="-"),0,('Trust - Frontsheet'!AJ53)) -> 0 | AR41: =IF(A41="","",(IF(ISBLANK('Trust - Frontsheet'!F9),"",'Trust - Frontsheet'!F9))) -> 
A42: =IF('Trust - Frontsheet'!D54=0,"",IF('Trust - Frontsheet'!D54="","",'Trust - Frontsheet'!D54)) ->  | B42: =IF(ISBLANK('Trust - Frontsheet'!E54),"",'Trust - Frontsheet'!E54) ->  | C42: =IF(ISBLANK('Trust - Frontsheet'!F54),"","'" & 'Trust - Frontsheet'!F54 & "'") ->  | D42: =IF(ISBLANK('Trust - Frontsheet'!G54),"",'Trust - Frontsheet'!G54) ->  | E42: =IF(ISBLANK('Trust - Frontsheet'!H54),"",'Trust - Frontsheet'!H54) ->  | F42: ='Trust - Frontsheet'!I54 -> 0 | G42: ='Trust - Frontsheet'!J54 -> 0 | H42: ='Trust - Frontsheet'!K54 -> 0 | I42: ='Trust - Frontsheet'!L54 -> 0 | J42: ='Trust - Frontsheet'!M54 -> 0 | K42: ='Trust - Frontsheet'!N54 -> 0 | L42: ='Trust - Frontsheet'!O54 -> 0 | M42: ='Trust - Frontsheet'!P54 -> 0 | N42: ='Trust - Frontsheet'!Q54 -> 0 | O42: ='Trust - Frontsheet'!R54 -> 0 | P42: ='Trust - Frontsheet'!S54 -> 0 | Q42: ='Trust - Frontsheet'!T54 -> 0 | R42: ='Trust - Frontsheet'!U54 -> 0 | S42: ='Trust - Frontsheet'!V54 -> 0 | T42: ='Trust - Frontsheet'!W54 -> 0 | U42: ='Trust - Frontsheet'!X54 -> 0 | V42: ='Trust - Frontsheet'!Y54 -> 0 | W42: ='Trust - Frontsheet'!Z54 -> 0 | X42: ='Trust - Frontsheet'!AA54 -> 0 | Y42: ='Trust - Frontsheet'!AB54 -> 0 | Z42: =IF(OR('Trust - Frontsheet'!AK54="",'Trust - Frontsheet'!AK54="-"),0,('Trust - Frontsheet'!AK54)) -> 0 | AA42: =IF(OR('Trust - Frontsheet'!AL54="",'Trust - Frontsheet'!AL54="-"),0,('Trust - Frontsheet'!AL54)) -> 0 | AB42: =IF(OR('Trust - Frontsheet'!AM54="",'Trust - Frontsheet'!AM54="-"),0,('Trust - Frontsheet'!AM54)) -> 0 | AC42: =IF(OR('Trust - Frontsheet'!AN54="",'Trust - Frontsheet'!AN54="-"),0,('Trust - Frontsheet'!AN54)) -> 0 | AD42: =IF(OR('Trust - Frontsheet'!AO54="",'Trust - Frontsheet'!AO54="-"),0,('Trust - Frontsheet'!AO54)) -> 0 | AE42: =IF(OR('Trust - Frontsheet'!AP54="",'Trust - Frontsheet'!AP54="-"),0,('Trust - Frontsheet'!AP54)) -> 0 | AF42: =IF(OR('Trust - Frontsheet'!AQ54="",'Trust - Frontsheet'!AQ54="-"),0,('Trust - Frontsheet'!AQ54)) -> 0 | AG42: =IF(OR('Trust - Frontsheet'!AR54="",'Trust - Frontsheet'!AR54="-"),0,('Trust - Frontsheet'!AR54)) -> 0 | AH42: =IF(OR('Trust - Frontsheet'!AS54="",'Trust - Frontsheet'!AS54="-"),0,('Trust - Frontsheet'!AS54)) -> 0 | AI42: =IF(OR('Trust - Frontsheet'!AT54="",'Trust - Frontsheet'!AT54="-"),0,('Trust - Frontsheet'!AT54)) -> 0 | AJ42: ='Trust - Frontsheet'!AC54 -> 0 | AK42: =IF(OR('Trust - Frontsheet'!AD54="",'Trust - Frontsheet'!AD54="-"),0,('Trust - Frontsheet'!AD54)) -> 0 | AL42: =IF(OR('Trust - Frontsheet'!AE54="",'Trust - Frontsheet'!AE54="-"),0,('Trust - Frontsheet'!AE54)) -> 0 | AM42: =IF(OR('Trust - Frontsheet'!AF54="",'Trust - Frontsheet'!AF54="-"),0,('Trust - Frontsheet'!AF54)) -> 0 | AN42: =IF(OR('Trust - Frontsheet'!AG54="",'Trust - Frontsheet'!AG54="-"),0,('Trust - Frontsheet'!AG54)) -> 0 | AO42: =IF(OR('Trust - Frontsheet'!AH54="",'Trust - Frontsheet'!AH54="-"),0,('Trust - Frontsheet'!AH54)) -> 0 | AP42: =IF(OR('Trust - Frontsheet'!AI54="",'Trust - Frontsheet'!AI54="-"),0,('Trust - Frontsheet'!AI54)) -> 0 | AQ42: =IF(OR('Trust - Frontsheet'!AJ54="",'Trust - Frontsheet'!AJ54="-"),0,('Trust - Frontsheet'!AJ54)) -> 0 | AR42: =IF(A42="","",(IF(ISBLANK('Trust - Frontsheet'!F9),"",'Trust - Frontsheet'!F9))) -> 
A43: =IF('Trust - Frontsheet'!D55=0,"",IF('Trust - Frontsheet'!D55="","",'Trust - Frontsheet'!D55)) ->  | B43: =IF(ISBLANK('Trust - Frontsheet'!E55),"",'Trust - Frontsheet'!E55) ->  | C43: =IF(ISBLANK('Trust - Frontsheet'!F55),"","'" & 'Trust - Frontsheet'!F55 & "'") ->  | D43: =IF(ISBLANK('Trust - Frontsheet'!G55),"",'Trust - Frontsheet'!G55) ->  | E43: =IF(ISBLANK('Trust - Frontsheet'!H55),"",'Trust - Frontsheet'!H55) ->  | F43: ='Trust - Frontsheet'!I55 -> 0 | G43: ='Trust - Frontsheet'!J55 -> 0 | H43: ='Trust - Frontsheet'!K55 -> 0 | I43: ='Trust - Frontsheet'!L55 -> 0 | J43: ='Trust - Frontsheet'!M55 -> 0 | K43: ='Trust - Frontsheet'!N55 -> 0 | L43: ='Trust - Frontsheet'!O55 -> 0 | M43: ='Trust - Frontsheet'!P55 -> 0 | N43: ='Trust - Frontsheet'!Q55 -> 0 | O43: ='Trust - Frontsheet'!R55 -> 0 | P43: ='Trust - Frontsheet'!S55 -> 0 | Q43: ='Trust - Frontsheet'!T55 -> 0 | R43: ='Trust - Frontsheet'!U55 -> 0 | S43: ='Trust - Frontsheet'!V55 -> 0 | T43: ='Trust - Frontsheet'!W55 -> 0 | U43: ='Trust - Frontsheet'!X55 -> 0 | V43: ='Trust - Frontsheet'!Y55 -> 0 | W43: ='Trust - Frontsheet'!Z55 -> 0 | X43: ='Trust - Frontsheet'!AA55 -> 0 | Y43: ='Trust - Frontsheet'!AB55 -> 0 | Z43: =IF(OR('Trust - Frontsheet'!AK55="",'Trust - Frontsheet'!AK55="-"),0,('Trust - Frontsheet'!AK55)) -> 0 | AA43: =IF(OR('Trust - Frontsheet'!AL55="",'Trust - Frontsheet'!AL55="-"),0,('Trust - Frontsheet'!AL55)) -> 0 | AB43: =IF(OR('Trust - Frontsheet'!AM55="",'Trust - Frontsheet'!AM55="-"),0,('Trust - Frontsheet'!AM55)) -> 0 | AC43: =IF(OR('Trust - Frontsheet'!AN55="",'Trust - Frontsheet'!AN55="-"),0,('Trust - Frontsheet'!AN55)) -> 0 | AD43: =IF(OR('Trust - Frontsheet'!AO55="",'Trust - Frontsheet'!AO55="-"),0,('Trust - Frontsheet'!AO55)) -> 0 | AE43: =IF(OR('Trust - Frontsheet'!AP55="",'Trust - Frontsheet'!AP55="-"),0,('Trust - Frontsheet'!AP55)) -> 0 | AF43: =IF(OR('Trust - Frontsheet'!AQ55="",'Trust - Frontsheet'!AQ55="-"),0,('Trust - Frontsheet'!AQ55)) -> 0 | AG43: =IF(OR('Trust - Frontsheet'!AR55="",'Trust - Frontsheet'!AR55="-"),0,('Trust - Frontsheet'!AR55)) -> 0 | AH43: =IF(OR('Trust - Frontsheet'!AS55="",'Trust - Frontsheet'!AS55="-"),0,('Trust - Frontsheet'!AS55)) -> 0 | AI43: =IF(OR('Trust - Frontsheet'!AT55="",'Trust - Frontsheet'!AT55="-"),0,('Trust - Frontsheet'!AT55)) -> 0 | AJ43: ='Trust - Frontsheet'!AC55 -> 0 | AK43: =IF(OR('Trust - Frontsheet'!AD55="",'Trust - Frontsheet'!AD55="-"),0,('Trust - Frontsheet'!AD55)) -> 0 | AL43: =IF(OR('Trust - Frontsheet'!AE55="",'Trust - Frontsheet'!AE55="-"),0,('Trust - Frontsheet'!AE55)) -> 0 | AM43: =IF(OR('Trust - Frontsheet'!AF55="",'Trust - Frontsheet'!AF55="-"),0,('Trust - Frontsheet'!AF55)) -> 0 | AN43: =IF(OR('Trust - Frontsheet'!AG55="",'Trust - Frontsheet'!AG55="-"),0,('Trust - Frontsheet'!AG55)) -> 0 | AO43: =IF(OR('Trust - Frontsheet'!AH55="",'Trust - Frontsheet'!AH55="-"),0,('Trust - Frontsheet'!AH55)) -> 0 | AP43: =IF(OR('Trust - Frontsheet'!AI55="",'Trust - Frontsheet'!AI55="-"),0,('Trust - Frontsheet'!AI55)) -> 0 | AQ43: =IF(OR('Trust - Frontsheet'!AJ55="",'Trust - Frontsheet'!AJ55="-"),0,('Trust - Frontsheet'!AJ55)) -> 0 | AR43: =IF(A43="","",(IF(ISBLANK('Trust - Frontsheet'!F9),"",'Trust - Frontsheet'!F9))) -> 
